Workbook

Sheet Explications
B45: Evolution
B46: V6 | C46: 2009/02 | D46: LL - AF | E46: Mise en place de la feuille de saisie des chronos, passage à 100 pilotes / 20 manches / 4 groupe scoring
B47: V5 | C47: 2009/01 | D47: LL | E47: Automatisation du classement évolutif
B48: V4 | C48: 2008/07 | D48: LL | E48: Mise en place du calcul avec gestion du group scoring
B49: V1..V3 | E49: diverses adaptations et évolutions

Sheet Pilotes
ED1: Meilleur temps | EG1: =IF(COUNTIF(_TM3,"")<>6,MIN(_TM3),"") ->  | EH1: Pilote 8 | EI1: =IF(COUNTIF(_TM13,"")<>6,MIN(_TM13),"") -> 0
B2: CLUB : | C2: GAP | ED2: 1 à 10 | EE2: =MIN(EG1:EH10) -> 0 | EF2: Pilote 6 | EG2: =IF(COUNTIF(_TM4,"")<>6,MIN(_TM4),"") ->  | EH2: Pilote 1 | EI2: =IF(COUNTIF(_TM14,"")<>6,MIN(_TM14),"") -> 0
B3: LIEU : | C3: Col de la Croix Morand | ED3: 11 à 20 | EE3: =IF(COUNTIF(EI1:EI10,"")<10,MIN(EI1:EJ10),"") -> 0 | EG3: =IF(COUNTIF(_TM5,"")<>6,MIN(_TM5),"") ->  | EH3: Pilote 1 | EI3: =IF(COUNTIF(_TM15,"")<>6,MIN(_TM15),"") -> 0
B4: DATE : | C4: 6, 7 et 8 mai 2017 | ED4: Compet | EE4: =MIN(EE2:EE3) -> 0 | EF4: Pilote 6 | EG4: =IF(COUNTIF(_TM6,"")<>6,MIN(_TM6),"") ->  | EH4: Pilote 1 | EI4: =IF(COUNTIF(_TM16,"")<>6,MIN(_TM16),"") -> 0
B9: Extraction du fichier du site de F3F | K9: Eléments à rajouter
A10: Lig | B10: Name - First name | C10: Country | D10: Tel | E10: Club | F10: No Licence | G10: Freq F3F | H10: Freq F3F Secours | I10: Freq 60 | J10: Freq 60 Secours | K10: Commentaire | L10: Inscrit (O/N) | M10: Rang CDF | N10: Dossard | O10: Fréq Affectée | P10: Equipe | Q10: Groupe Série 1 | R10: Classt Fin Série 1 | S10: Groupe Série 2 | T10: Classt Fin Série 2 | U10: Groupe Série 3 | V10: Classt Fin Série 3 | W10: Groupe Série 4
A11: 1 | B11: Sébastien CHABAUD | C11: France | G11: 2.4GHz | N11: 1 | O11: 2.4GHz | Q11: 1
A12: 2 | B12: Herve DALL AVA | C12: France | G12: 2.4GHz | N12: 2 | O12: 2.4GHz | Q12: 1
A13: 5 | B13: Jean Luc FOUCHER | C13: France | G13: 2.4GHz | N13: 3 | O13: 2.4GHz | Q13: 1
A14: 4 | B14: Thomas DELARBRE | C14: France | G14: 2.4GHz | N14: 4 | O14: 2.4GHz | Q14: 1
A15: 3 | B15: Pierre DIATTA | C15: France | G15: 2.4GHz | N15: 5 | O15: 2.4GHz | Q15: 1
A16: 7 | B16: Olivier MONET | C16: France | G16: 41.110MHz | H16: 41.060MHz | N16: 6 | O16: 41.110MHz | Q16: 1
A17: 17 | B17: Pierre RONDEL | C17: France | G17: 2.4GHz | N17: 7 | O17: 2.4GHz | Q17: 1
A18: 9 | B18: Andreas FRICKE | C18: France | G18: 2.4GHz | N18: 8 | O18: 2.4GHz | Q18: 1
A19: 10 | B19: Thomas FAURE | C19: France | G19: 2.4GHz | N19: 9 | O19: 2.4GHz | Q19: 1
A20: 11 | B20: Philippe LANES | C20: France | G20: 2.4GHz | N20: 10 | O20: 2.4GHz | Q20: 1
A21: 6 | B21: Julien HONOR | C21: France | G21: 2.4GHz | N21: 11 | O21: 2.4GHz | Q21: 1
A22: 14 | B22: Michael KREBS | C22: France | G22: 2.4GHz | N22: 12 | O22: 2.4GHz | Q22: 1
A23: 12 | B23: Aubry GABANON | C23: France | G23: 2.4GHz | N23: 13 | O23: 2.4GHz | Q23: 1
A24: 13 | B24: Serge DELARBRE | C24: France | G24: 2.4GHz | N24: 14 | O24: 2.4GHz | Q24: 1
A25: 22 | B25: Arnaud LEGER | C25: France | G25: 2.4GHz | N25: 15 | O25: 2.4GHz | Q25: 1
A26: 16 | B26: Thierry POIGNARD | C26: France | G26: 2.4GHz | N26: 16 | O26: 2.4GHz | Q26: 1
A27: 8 | B27: Joel MARIN | C27: France | G27: 2.4GHz | N27: 17 | O27: 2.4GHz | Q27: 1
A28: 18 | B28: Matthieu MERVELET | C28: France | G28: 2.4GHz | N28: 18 | O28: 2.4GHz | Q28: 1
A29: 19 | B29: Gabriel MANTEL | C29: France | G29: 2.4GHz | N29: 19 | O29: 2.4GHz | Q29: 1
A30: 15 | B30: Sylvain PFEFFERKORN | C30: France | G30: 2.4GHz | N30: 20 | O30: 2.4GHz | Q30: 1
A31: 21 | B31: Frederic HOURS | C31: France | G31: 2.4GHz | N31: 21 | O31: 2.4GHz | Q31: 1
A32: 20 | B32: Sébastien LANES | C32: France | G32: 2.4GHz | N32: 22 | O32: 2.4GHz | Q32: 1
A33: 23 | Q33: 1
A34: 24 | Q34: 1
A35: 25 | Q35: 1
A36: 26 | Q36: 1
A37: 27 | Q37: 1
A38: 28 | Q38: 1
A39: 29 | Q39: 1
A40: 30 | Q40: 1
A41: 31 | Q41: 1
A42: 32 | Q42: 1
A43: 33 | Q43: 1
A44: 34 | Q44: 1
A45: 35 | Q45: 1
A46: 36 | Q46: 1
A47: 37 | Q47: 1
A48: 38 | Q48: 1
A49: 39 | Q49: 1
A50: 40 | Q50: 1
A51: 41 | Q51: 1
A52: 42 | Q52: 1
A53: 43 | Q53: 1
A54: 44 | Q54: 1
A55: 45 | Q55: 1
A56: 46 | Q56: 1
A57: 47 | Q57: 1
A58: 48 | Q58: 1
A59: 49 | Q59: 1
A60: 50 | Q60: 1
A61: 51 | Q61: 1
A62: 52 | Q62: 1
A63: 53 | Q63: 1
A64: 54 | Q64: 1
A65: 55 | Q65: 1
A66: 56 | Q66: 1
A67: 57 | Q67: 1
A68: 58
A69: 59
A70: 60
A71: 61
A72: 62
A73: 63
A74: 64
A75: 65
A76: 66
A77: 67
A78: 68
A79: 69
A80: 70
A81: 71
A82: 72
A83: 73
A84: 74
A85: 75
A86: 76
A87: 77
A88: 78
A89: 79
A90: 80
A91: 81
A92: 82
A93: 83
A94: 84
A95: 85
A96: 86
A97: 87
A98: 88
A99: 89
A100: 90
A101: 91
A102: 92
A103: 93
A104: 94
A105: 95
A106: 96
A107: 97
A108: 98
A109: 99
A110: 100

Sheet Equipes
B2: CLUB : | C2: =Pilotes!C2 -> GAP
B3: LIEU : | C3: =Pilotes!C3 -> Col de la Croix Morand
B4: DATE : | C4: =Pilotes!C4 -> 6, 7 et 8 mai 2017
B10: =Pilotes!P10 -> Equipe | C10: Nom équipe | D10: Nb Pilotes | K10: =B10 -> Equipe | L10: =K10 -> Equipe | M10: =L10 -> Equipe | N10: =M10 -> Equipe | O10: =N10 -> Equipe | P10: =O10 -> Equipe | Q10: =P10 -> Equipe | R10: =Q10 -> Equipe | S10: =R10 -> Equipe | T10: =S10 -> Equipe | U10: =T10 -> Equipe | V10: =U10 -> Equipe | W10: =V10 -> Equipe | X10: =W10 -> Equipe | Y10: =X10 -> Equipe | Z10: =Y10 -> Equipe | AA10: =Z10 -> Equipe | AB10: =AA10 -> Equipe | AC10: =AB10 -> Equipe | AD10: =AC10 -> Equipe | AE10: =AD10 -> Equipe | AF10: =AE10 -> Equipe | AG10: =AF10 -> Equipe | AH10: =AG10 -> Equipe | AI10: =AH10 -> Equipe | AJ10: =AI10 -> Equipe | AK10: =AJ10 -> Equipe | AL10: =AK10 -> Equipe | AM10: =AL10 -> Equipe | AN10: =AM10 -> Equipe | AO10: =AN10 -> Equipe | AP10: =AO10 -> Equipe | AQ10: =AP10 -> Equipe | AR10: =AQ10 -> Equipe | AS10: =AR10 -> Equipe
B11: 1 | D11: =DCOUNTA(Pilotes!B$10:P$110,Pilotes!P$10,K10:K11) -> 0 | K11: =B11 -> 1 | L11: =B12 -> 2 | M11: =B13 -> 3 | N11: =B14 -> 4 | O11: =B15 -> 5 | P11: =B16 -> 6 | Q11: =B17 -> 7 | R11: =B18 -> 8 | S11: =B19 -> 9 | T11: =B20 -> 10 | U11: =B21 -> 11 | V11: =B22 -> 12 | W11: =B23 -> 13 | X11: =B24 -> 14 | Y11: =B25 -> 15 | Z11: =B26 -> 16 | AA11: =B27 -> 17 | AB11: =B28 -> 18 | AC11: =B29 -> 19 | AD11: =B30 -> 20 | AE11: =B31 -> 21 | AF11: =B32 -> 22 | AG11: =B33 -> 23 | AH11: =B34 -> 24 | AI11: =B35 -> 25 | AJ11: =B36 -> 26 | AK11: =B37 -> 27 | AL11: =B38 -> 28 | AM11: =B39 -> 29 | AN11: =B40 -> 30 | AO11: =B41 -> 31 | AP11: =B42 -> 32 | AQ11: =B43 -> 33 | AR11: =B44 -> 34 | AS11: =B45 -> 35
B12: 2 | D12: =DCOUNTA(Pilotes!B$10:P$110,Pilotes!P$10,L10:L11) -> 0
B13: 3 | D13: =DCOUNTA(Pilotes!B$10:P$110,Pilotes!P$10,M10:M11) -> 0
B14: 4 | D14: =DCOUNTA(Pilotes!B$10:P$110,Pilotes!P$10,N10:N11) -> 0
B15: 5 | D15: =DCOUNTA(Pilotes!B$10:P$110,Pilotes!P$10,O10:O11) -> 0
B16: 6 | D16: =DCOUNTA(Pilotes!B$10:P$110,Pilotes!P$10,P10:P11) -> 0
B17: 7 | D17: =DCOUNTA(Pilotes!B$10:P$110,Pilotes!P$10,Q10:Q11) -> 0
B18: 8 | D18: =DCOUNTA(Pilotes!B$10:P$110,Pilotes!P$10,R10:R11) -> 0
B19: 9 | D19: =DCOUNTA(Pilotes!B$10:P$110,Pilotes!P$10,S10:S11) -> 0
B20: 10 | D20: =DCOUNTA(Pilotes!B$10:P$110,Pilotes!P$10,T10:T11) -> 0
B21: 11 | D21: =DCOUNTA(Pilotes!B$10:P$110,Pilotes!P$10,U10:U11) -> 0
B22: 12 | D22: =DCOUNTA(Pilotes!B$10:P$110,Pilotes!P$10,V10:V11) -> 0
B23: 13 | D23: =DCOUNTA(Pilotes!B$10:P$110,Pilotes!P$10,W10:W11) -> 0
B24: 14 | D24: =DCOUNTA(Pilotes!B$10:P$110,Pilotes!P$10,X10:X11) -> 0
B25: 15 | D25: =DCOUNTA(Pilotes!B$10:P$110,Pilotes!P$10,Y10:Y11) -> 0
B26: 16 | D26: =DCOUNTA(Pilotes!B$10:P$110,Pilotes!P$10,Z10:Z11) -> 0
B27: 17 | D27: =DCOUNTA(Pilotes!B$10:P$110,Pilotes!P$10,AA10:AA11) -> 0
B28: 18 | D28: =DCOUNTA(Pilotes!B$10:P$110,Pilotes!P$10,AB10:AB11) -> 0
B29: 19 | D29: =DCOUNTA(Pilotes!B$10:P$110,Pilotes!P$10,AC10:AC11) -> 0
B30: 20 | D30: =DCOUNTA(Pilotes!B$10:P$110,Pilotes!P$10,AD10:AD11) -> 0
B31: 21 | D31: =DCOUNTA(Pilotes!B$10:P$110,Pilotes!P$10,AE10:AE11) -> 0
B32: 22 | D32: =DCOUNTA(Pilotes!B$10:P$110,Pilotes!P$10,AF10:AF11) -> 0
B33: 23 | D33: =DCOUNTA(Pilotes!B$10:P$110,Pilotes!P$10,AG10:AG11) -> 0
B34: 24 | D34: =DCOUNTA(Pilotes!B$10:P$110,Pilotes!P$10,AH10:AH11) -> 0
B35: 25 | D35: =DCOUNTA(Pilotes!B$10:P$110,Pilotes!P$10,AI10:AI11) -> 0
B36: 26 | D36: =DCOUNTA(Pilotes!B$10:P$110,Pilotes!P$10,AJ10:AJ11) -> 0
B37: 27 | D37: =DCOUNTA(Pilotes!B$10:P$110,Pilotes!P$10,AK10:AK11) -> 0
B38: 28 | D38: =DCOUNTA(Pilotes!B$10:P$110,Pilotes!P$10,AL10:AL11) -> 0
B39: 29 | D39: =DCOUNTA(Pilotes!B$10:P$110,Pilotes!P$10,AM10:AM11) -> 0
B40: 30 | D40: =DCOUNTA(Pilotes!B$10:P$110,Pilotes!P$10,AN10:AN11) -> 0
B41: 31 | D41: =DCOUNTA(Pilotes!B$10:P$110,Pilotes!P$10,AO10:AO11) -> 0
B42: 32 | D42: =DCOUNTA(Pilotes!B$10:P$110,Pilotes!P$10,AP10:AP11) -> 0
B43: 33 | D43: =DCOUNTA(Pilotes!B$10:P$110,Pilotes!P$10,AQ10:AQ11) -> 0
B44: 34 | D44: =DCOUNTA(Pilotes!B$10:P$110,Pilotes!P$10,AR10:AR11) -> 0
B45: 35 | D45: =DCOUNTA(Pilotes!B$10:P$110,Pilotes!P$10,AS10:AS11) -> 0

Sheet Impression Concurrents DC
N1: Feuille des directeurs de course
B2: CLUB : | C2: =Pilotes!C2 -> GAP | E2: Série | G2: 1 | H2: Manche départ | I2: 1
B3: LIEU : | C3: =Pilotes!C3 -> Col de la Croix Morand | E3: Nord | F3: Pente | G3: Sud | H3: Heure Début
B4: DATE : | C4: =Pilotes!C4 -> 6, 7 et 8 mai 2017 | H4: Heure Fin
B7: Gpe | C7: Nom | D7: Dossard | E7: FREQ | F7: =I2 -> 1 | H7: =F7+1 -> 2 | J7: =H7+1 -> 3 | L7: =J7+1 -> 4 | N7: Commentaire
F8: Temps | G8: Pénalité | H8: Temps | I8: Pénalité | J8: Temps | K8: Pénalité | L8: Temps | M8: Pénalité
B9: =IF(Pilotes!$B11<>"",Pilotes!Q11,"") -> 1 | C9: =IF(Pilotes!$B11<>"",Pilotes!B11,"") -> Sébastien CHABAUD | D9: =IF(Pilotes!$B11<>"",Pilotes!N11,"") -> 1 | E9: =IF(Pilotes!$B11<>"",Pilotes!O11,"") -> 2.4GHz
B10: =IF(Pilotes!$B12<>"",Pilotes!Q12,"") -> 1 | C10: =IF(Pilotes!$B12<>"",Pilotes!B12,"") -> Herve DALL AVA | D10: =IF(Pilotes!$B12<>"",Pilotes!N12,"") -> 2 | E10: =IF(Pilotes!$B12<>"",Pilotes!O12,"") -> 2.4GHz
B11: =IF(Pilotes!$B13<>"",Pilotes!Q13,"") -> 1 | C11: =IF(Pilotes!$B13<>"",Pilotes!B13,"") -> Jean Luc FOUCHER | D11: =IF(Pilotes!$B13<>"",Pilotes!N13,"") -> 3 | E11: =IF(Pilotes!$B13<>"",Pilotes!O13,"") -> 2.4GHz
B12: =IF(Pilotes!$B14<>"",Pilotes!Q14,"") -> 1 | C12: =IF(Pilotes!$B14<>"",Pilotes!B14,"") -> Thomas DELARBRE | D12: =IF(Pilotes!$B14<>"",Pilotes!N14,"") -> 4 | E12: =IF(Pilotes!$B14<>"",Pilotes!O14,"") -> 2.4GHz
B13: =IF(Pilotes!$B15<>"",Pilotes!Q15,"") -> 1 | C13: =IF(Pilotes!$B15<>"",Pilotes!B15,"") -> Pierre DIATTA | D13: =IF(Pilotes!$B15<>"",Pilotes!N15,"") -> 5 | E13: =IF(Pilotes!$B15<>"",Pilotes!O15,"") -> 2.4GHz
B14: =IF(Pilotes!$B16<>"",Pilotes!Q16,"") -> 1 | C14: =IF(Pilotes!$B16<>"",Pilotes!B16,"") -> Olivier MONET | D14: =IF(Pilotes!$B16<>"",Pilotes!N16,"") -> 6 | E14: =IF(Pilotes!$B16<>"",Pilotes!O16,"") -> 41.110MHz
B15: =IF(Pilotes!$B17<>"",Pilotes!Q17,"") -> 1 | C15: =IF(Pilotes!$B17<>"",Pilotes!B17,"") -> Pierre RONDEL | D15: =IF(Pilotes!$B17<>"",Pilotes!N17,"") -> 7 | E15: =IF(Pilotes!$B17<>"",Pilotes!O17,"") -> 2.4GHz
B16: =IF(Pilotes!$B18<>"",Pilotes!Q18,"") -> 1 | C16: =IF(Pilotes!$B18<>"",Pilotes!B18,"") -> Andreas FRICKE | D16: =IF(Pilotes!$B18<>"",Pilotes!N18,"") -> 8 | E16: =IF(Pilotes!$B18<>"",Pilotes!O18,"") -> 2.4GHz
B17: =IF(Pilotes!$B19<>"",Pilotes!Q19,"") -> 1 | C17: =IF(Pilotes!$B19<>"",Pilotes!B19,"") -> Thomas FAURE | D17: =IF(Pilotes!$B19<>"",Pilotes!N19,"") -> 9 | E17: =IF(Pilotes!$B19<>"",Pilotes!O19,"") -> 2.4GHz
B18: =IF(Pilotes!$B20<>"",Pilotes!Q20,"") -> 1 | C18: =IF(Pilotes!$B20<>"",Pilotes!B20,"") -> Philippe LANES | D18: =IF(Pilotes!$B20<>"",Pilotes!N20,"") -> 10 | E18: =IF(Pilotes!$B20<>"",Pilotes!O20,"") -> 2.4GHz
B19: =IF(Pilotes!$B21<>"",Pilotes!Q21,"") -> 1 | C19: =IF(Pilotes!$B21<>"",Pilotes!B21,"") -> Julien HONOR | D19: =IF(Pilotes!$B21<>"",Pilotes!N21,"") -> 11 | E19: =IF(Pilotes!$B21<>"",Pilotes!O21,"") -> 2.4GHz
B20: =IF(Pilotes!$B22<>"",Pilotes!Q22,"") -> 1 | C20: =IF(Pilotes!$B22<>"",Pilotes!B22,"") -> Michael KREBS | D20: =IF(Pilotes!$B22<>"",Pilotes!N22,"") -> 12 | E20: =IF(Pilotes!$B22<>"",Pilotes!O22,"") -> 2.4GHz
B21: =IF(Pilotes!$B23<>"",Pilotes!Q23,"") -> 1 | C21: =IF(Pilotes!$B23<>"",Pilotes!B23,"") -> Aubry GABANON | D21: =IF(Pilotes!$B23<>"",Pilotes!N23,"") -> 13 | E21: =IF(Pilotes!$B23<>"",Pilotes!O23,"") -> 2.4GHz
B22: =IF(Pilotes!$B24<>"",Pilotes!Q24,"") -> 1 | C22: =IF(Pilotes!$B24<>"",Pilotes!B24,"") -> Serge DELARBRE | D22: =IF(Pilotes!$B24<>"",Pilotes!N24,"") -> 14 | E22: =IF(Pilotes!$B24<>"",Pilotes!O24,"") -> 2.4GHz
B23: =IF(Pilotes!$B25<>"",Pilotes!Q25,"") -> 1 | C23: =IF(Pilotes!$B25<>"",Pilotes!B25,"") -> Arnaud LEGER | D23: =IF(Pilotes!$B25<>"",Pilotes!N25,"") -> 15 | E23: =IF(Pilotes!$B25<>"",Pilotes!O25,"") -> 2.4GHz
B24: =IF(Pilotes!$B26<>"",Pilotes!Q26,"") -> 1 | C24: =IF(Pilotes!$B26<>"",Pilotes!B26,"") -> Thierry POIGNARD | D24: =IF(Pilotes!$B26<>"",Pilotes!N26,"") -> 16 | E24: =IF(Pilotes!$B26<>"",Pilotes!O26,"") -> 2.4GHz
B25: =IF(Pilotes!$B27<>"",Pilotes!Q27,"") -> 1 | C25: =IF(Pilotes!$B27<>"",Pilotes!B27,"") -> Joel MARIN | D25: =IF(Pilotes!$B27<>"",Pilotes!N27,"") -> 17 | E25: =IF(Pilotes!$B27<>"",Pilotes!O27,"") -> 2.4GHz
B26: =IF(Pilotes!$B28<>"",Pilotes!Q28,"") -> 1 | C26: =IF(Pilotes!$B28<>"",Pilotes!B28,"") -> Matthieu MERVELET | D26: =IF(Pilotes!$B28<>"",Pilotes!N28,"") -> 18 | E26: =IF(Pilotes!$B28<>"",Pilotes!O28,"") -> 2.4GHz
B27: =IF(Pilotes!$B29<>"",Pilotes!Q29,"") -> 1 | C27: =IF(Pilotes!$B29<>"",Pilotes!B29,"") -> Gabriel MANTEL | D27: =IF(Pilotes!$B29<>"",Pilotes!N29,"") -> 19 | E27: =IF(Pilotes!$B29<>"",Pilotes!O29,"") -> 2.4GHz
B28: =IF(Pilotes!$B30<>"",Pilotes!Q30,"") -> 1 | C28: =IF(Pilotes!$B30<>"",Pilotes!B30,"") -> Sylvain PFEFFERKORN | D28: =IF(Pilotes!$B30<>"",Pilotes!N30,"") -> 20 | E28: =IF(Pilotes!$B30<>"",Pilotes!O30,"") -> 2.4GHz
B29: =IF(Pilotes!$B31<>"",Pilotes!Q31,"") -> 1 | C29: =IF(Pilotes!$B31<>"",Pilotes!B31,"") -> Frederic HOURS | D29: =IF(Pilotes!$B31<>"",Pilotes!N31,"") -> 21 | E29: =IF(Pilotes!$B31<>"",Pilotes!O31,"") -> 2.4GHz
B30: =IF(Pilotes!$B32<>"",Pilotes!Q32,"") -> 1 | C30: =IF(Pilotes!$B32<>"",Pilotes!B32,"") -> Sébastien LANES | D30: =IF(Pilotes!$B32<>"",Pilotes!N32,"") -> 22 | E30: =IF(Pilotes!$B32<>"",Pilotes!O32,"") -> 2.4GHz
B31: =IF(Pilotes!$B33<>"",Pilotes!Q33,"") ->  | C31: =IF(Pilotes!$B33<>"",Pilotes!B33,"") ->  | D31: =IF(Pilotes!$B33<>"",Pilotes!N33,"") ->  | E31: =IF(Pilotes!$B33<>"",Pilotes!O33,"") -> 
B32: =IF(Pilotes!$B34<>"",Pilotes!Q34,"") ->  | C32: =IF(Pilotes!$B34<>"",Pilotes!B34,"") ->  | D32: =IF(Pilotes!$B34<>"",Pilotes!N34,"") ->  | E32: =IF(Pilotes!$B34<>"",Pilotes!O34,"") -> 
B33: =IF(Pilotes!$B35<>"",Pilotes!Q35,"") ->  | C33: =IF(Pilotes!$B35<>"",Pilotes!B35,"") ->  | D33: =IF(Pilotes!$B35<>"",Pilotes!N35,"") ->  | E33: =IF(Pilotes!$B35<>"",Pilotes!O35,"") -> 
B34: =IF(Pilotes!$B36<>"",Pilotes!Q36,"") ->  | C34: =IF(Pilotes!$B36<>"",Pilotes!B36,"") ->  | D34: =IF(Pilotes!$B36<>"",Pilotes!N36,"") ->  | E34: =IF(Pilotes!$B36<>"",Pilotes!O36,"") -> 
B35: =IF(Pilotes!$B37<>"",Pilotes!Q37,"") ->  | C35: =IF(Pilotes!$B37<>"",Pilotes!B37,"") ->  | D35: =IF(Pilotes!$B37<>"",Pilotes!N37,"") ->  | E35: =IF(Pilotes!$B37<>"",Pilotes!O37,"") -> 
B36: =IF(Pilotes!$B38<>"",Pilotes!Q38,"") ->  | C36: =IF(Pilotes!$B38<>"",Pilotes!B38,"") ->  | D36: =IF(Pilotes!$B38<>"",Pilotes!N38,"") ->  | E36: =IF(Pilotes!$B38<>"",Pilotes!O38,"") -> 
B37: =IF(Pilotes!$B39<>"",Pilotes!Q39,"") ->  | C37: =IF(Pilotes!$B39<>"",Pilotes!B39,"") ->  | D37: =IF(Pilotes!$B39<>"",Pilotes!N39,"") ->  | E37: =IF(Pilotes!$B39<>"",Pilotes!O39,"") -> 
B38: =IF(Pilotes!$B40<>"",Pilotes!Q40,"") ->  | C38: =IF(Pilotes!$B40<>"",Pilotes!B40,"") ->  | D38: =IF(Pilotes!$B40<>"",Pilotes!N40,"") ->  | E38: =IF(Pilotes!$B40<>"",Pilotes!O40,"") -> 
B39: =IF(Pilotes!$B41<>"",Pilotes!Q41,"") ->  | C39: =IF(Pilotes!$B41<>"",Pilotes!B41,"") ->  | D39: =IF(Pilotes!$B41<>"",Pilotes!N41,"") ->  | E39: =IF(Pilotes!$B41<>"",Pilotes!O41,"") -> 
B40: =IF(Pilotes!$B42<>"",Pilotes!Q42,"") ->  | C40: =IF(Pilotes!$B42<>"",Pilotes!B42,"") ->  | D40: =IF(Pilotes!$B42<>"",Pilotes!N42,"") ->  | E40: =IF(Pilotes!$B42<>"",Pilotes!O42,"") -> 
B41: =IF(Pilotes!$B43<>"",Pilotes!Q43,"") ->  | C41: =IF(Pilotes!$B43<>"",Pilotes!B43,"") ->  | D41: =IF(Pilotes!$B43<>"",Pilotes!N43,"") ->  | E41: =IF(Pilotes!$B43<>"",Pilotes!O43,"") -> 
B42: =IF(Pilotes!$B44<>"",Pilotes!Q44,"") ->  | C42: =IF(Pilotes!$B44<>"",Pilotes!B44,"") ->  | D42: =IF(Pilotes!$B44<>"",Pilotes!N44,"") ->  | E42: =IF(Pilotes!$B44<>"",Pilotes!O44,"") -> 
B43: =IF(Pilotes!$B45<>"",Pilotes!Q45,"") ->  | C43: =IF(Pilotes!$B45<>"",Pilotes!B45,"") ->  | D43: =IF(Pilotes!$B45<>"",Pilotes!N45,"") ->  | E43: =IF(Pilotes!$B45<>"",Pilotes!O45,"") -> 
B44: =IF(Pilotes!$B46<>"",Pilotes!Q46,"") ->  | C44: =IF(Pilotes!$B46<>"",Pilotes!B46,"") ->  | D44: =IF(Pilotes!$B46<>"",Pilotes!N46,"") ->  | E44: =IF(Pilotes!$B46<>"",Pilotes!O46,"") -> 
B45: =IF(Pilotes!$B47<>"",Pilotes!U47,"") ->  | C45: =IF(Pilotes!$B47<>"",Pilotes!B47,"") ->  | D45: =IF(Pilotes!$B47<>"",Pilotes!N47,"") ->  | E45: =IF(Pilotes!$B47<>"",Pilotes!O47,"") -> 
B46: =IF(Pilotes!$B48<>"",Pilotes!U48,"") ->  | C46: =IF(Pilotes!$B48<>"",Pilotes!B48,"") ->  | D46: =IF(Pilotes!$B48<>"",Pilotes!N48,"") ->  | E46: =IF(Pilotes!$B48<>"",Pilotes!O48,"") -> 
B47: =IF(Pilotes!$B49<>"",Pilotes!U49,"") ->  | C47: =IF(Pilotes!$B49<>"",Pilotes!B49,"") ->  | D47: =IF(Pilotes!$B49<>"",Pilotes!N49,"") ->  | E47: =IF(Pilotes!$B49<>"",Pilotes!O49,"") -> 
B48: =IF(Pilotes!$B50<>"",Pilotes!U50,"") ->  | C48: =IF(Pilotes!$B50<>"",Pilotes!B50,"") ->  | D48: =IF(Pilotes!$B50<>"",Pilotes!N50,"") ->  | E48: =IF(Pilotes!$B50<>"",Pilotes!O50,"") -> 
B49: =IF(Pilotes!$B51<>"",Pilotes!U51,"") ->  | C49: =IF(Pilotes!$B51<>"",Pilotes!B51,"") ->  | D49: =IF(Pilotes!$B51<>"",Pilotes!N51,"") ->  | E49: =IF(Pilotes!$B51<>"",Pilotes!O51,"") -> 
B50: =IF(Pilotes!$B52<>"",Pilotes!U52,"") ->  | C50: =IF(Pilotes!$B52<>"",Pilotes!B52,"") ->  | D50: =IF(Pilotes!$B52<>"",Pilotes!N52,"") ->  | E50: =IF(Pilotes!$B52<>"",Pilotes!O52,"") -> 
B51: =IF(Pilotes!$B53<>"",Pilotes!U53,"") ->  | C51: =IF(Pilotes!$B53<>"",Pilotes!B53,"") ->  | D51: =IF(Pilotes!$B53<>"",Pilotes!N53,"") ->  | E51: =IF(Pilotes!$B53<>"",Pilotes!O53,"") -> 
B52: =IF(Pilotes!$B54<>"",Pilotes!U54,"") ->  | C52: =IF(Pilotes!$B54<>"",Pilotes!B54,"") ->  | D52: =IF(Pilotes!$B54<>"",Pilotes!N54,"") ->  | E52: =IF(Pilotes!$B54<>"",Pilotes!O54,"") -> 
B53: =IF(Pilotes!$B55<>"",Pilotes!U55,"") ->  | C53: =IF(Pilotes!$B55<>"",Pilotes!B55,"") ->  | D53: =IF(Pilotes!$B55<>"",Pilotes!N55,"") ->  | E53: =IF(Pilotes!$B55<>"",Pilotes!O55,"") -> 
B54: =IF(Pilotes!$B56<>"",Pilotes!U56,"") ->  | C54: =IF(Pilotes!$B56<>"",Pilotes!B56,"") ->  | D54: =IF(Pilotes!$B56<>"",Pilotes!N56,"") ->  | E54: =IF(Pilotes!$B56<>"",Pilotes!O56,"") -> 
B55: =IF(Pilotes!$B57<>"",Pilotes!U57,"") ->  | C55: =IF(Pilotes!$B57<>"",Pilotes!B57,"") ->  | D55: =IF(Pilotes!$B57<>"",Pilotes!N57,"") ->  | E55: =IF(Pilotes!$B57<>"",Pilotes!O57,"") -> 
B56: =IF(Pilotes!$B58<>"",Pilotes!U58,"") ->  | C56: =IF(Pilotes!$B58<>"",Pilotes!B58,"") ->  | D56: =IF(Pilotes!$B58<>"",Pilotes!N58,"") ->  | E56: =IF(Pilotes!$B58<>"",Pilotes!O58,"") -> 
B57: =IF(Pilotes!$B59<>"",Pilotes!U59,"") ->  | C57: =IF(Pilotes!$B59<>"",Pilotes!B59,"") ->  | D57: =IF(Pilotes!$B59<>"",Pilotes!N59,"") ->  | E57: =IF(Pilotes!$B59<>"",Pilotes!O59,"") -> 
B58: =IF(Pilotes!$B60<>"",Pilotes!U60,"") ->  | C58: =IF(Pilotes!$B60<>"",Pilotes!B60,"") ->  | D58: =IF(Pilotes!$B60<>"",Pilotes!N60,"") ->  | E58: =IF(Pilotes!$B60<>"",Pilotes!O60,"") -> 
B59: =IF(Pilotes!$B61<>"",Pilotes!U61,"") ->  | C59: =IF(Pilotes!$B61<>"",Pilotes!B61,"") ->  | D59: =IF(Pilotes!$B61<>"",Pilotes!N61,"") ->  | E59: =IF(Pilotes!$B61<>"",Pilotes!O61,"") -> 
B60: =IF(Pilotes!$B62<>"",Pilotes!U62,"") ->  | C60: =IF(Pilotes!$B62<>"",Pilotes!B62,"") ->  | D60: =IF(Pilotes!$B62<>"",Pilotes!N62,"") ->  | E60: =IF(Pilotes!$B62<>"",Pilotes!O62,"") -> 
B61: =IF(Pilotes!$B63<>"",Pilotes!U63,"") ->  | C61: =IF(Pilotes!$B63<>"",Pilotes!B63,"") ->  | D61: =IF(Pilotes!$B63<>"",Pilotes!N63,"") ->  | E61: =IF(Pilotes!$B63<>"",Pilotes!O63,"") -> 
B62: =IF(Pilotes!$B64<>"",Pilotes!U64,"") ->  | C62: =IF(Pilotes!$B64<>"",Pilotes!B64,"") ->  | D62: =IF(Pilotes!$B64<>"",Pilotes!N64,"") ->  | E62: =IF(Pilotes!$B64<>"",Pilotes!O64,"") -> 
B63: =IF(Pilotes!$B65<>"",Pilotes!U65,"") ->  | C63: =IF(Pilotes!$B65<>"",Pilotes!B65,"") ->  | D63: =IF(Pilotes!$B65<>"",Pilotes!N65,"") ->  | E63: =IF(Pilotes!$B65<>"",Pilotes!O65,"") -> 
B64: =IF(Pilotes!$B66<>"",Pilotes!U66,"") ->  | C64: =IF(Pilotes!$B66<>"",Pilotes!B66,"") ->  | D64: =IF(Pilotes!$B66<>"",Pilotes!N66,"") ->  | E64: =IF(Pilotes!$B66<>"",Pilotes!O66,"") -> 
B65: =IF(Pilotes!$B67<>"",Pilotes!U67,"") ->  | C65: =IF(Pilotes!$B67<>"",Pilotes!B67,"") ->  | D65: =IF(Pilotes!$B67<>"",Pilotes!N67,"") ->  | E65: =IF(Pilotes!$B67<>"",Pilotes!O67,"") -> 
B66: =IF(Pilotes!$B68<>"",Pilotes!Q68,"") ->  | C66: =IF(Pilotes!$B68<>"",Pilotes!B68,"") ->  | D66: =IF(Pilotes!$B68<>"",Pilotes!N68,"") ->  | E66: =IF(Pilotes!$B68<>"",Pilotes!O68,"") -> 
B67: =IF(Pilotes!$B69<>"",Pilotes!Q69,"") ->  | C67: =IF(Pilotes!$B69<>"",Pilotes!B69,"") ->  | D67: =IF(Pilotes!$B69<>"",Pilotes!N69,"") ->  | E67: =IF(Pilotes!$B69<>"",Pilotes!O69,"") -> 
B68: =IF(Pilotes!$B70<>"",Pilotes!Q70,"") ->  | C68: =IF(Pilotes!$B70<>"",Pilotes!B70,"") ->  | D68: =IF(Pilotes!$B70<>"",Pilotes!N70,"") ->  | E68: =IF(Pilotes!$B70<>"",Pilotes!O70,"") -> 
B69: =IF(Pilotes!$B71<>"",Pilotes!Q71,"") ->  | C69: =IF(Pilotes!$B71<>"",Pilotes!B71,"") ->  | D69: =IF(Pilotes!$B71<>"",Pilotes!N71,"") ->  | E69: =IF(Pilotes!$B71<>"",Pilotes!O71,"") -> 
B70: =IF(Pilotes!$B72<>"",Pilotes!Q72,"") ->  | C70: =IF(Pilotes!$B72<>"",Pilotes!B72,"") ->  | D70: =IF(Pilotes!$B72<>"",Pilotes!N72,"") ->  | E70: =IF(Pilotes!$B72<>"",Pilotes!O72,"") -> 
B71: =IF(Pilotes!$B73<>"",Pilotes!Q73,"") ->  | C71: =IF(Pilotes!$B73<>"",Pilotes!B73,"") ->  | D71: =IF(Pilotes!$B73<>"",Pilotes!N73,"") ->  | E71: =IF(Pilotes!$B73<>"",Pilotes!O73,"") -> 
B72: =IF(Pilotes!$B74<>"",Pilotes!Q74,"") ->  | C72: =IF(Pilotes!$B74<>"",Pilotes!B74,"") ->  | D72: =IF(Pilotes!$B74<>"",Pilotes!N74,"") ->  | E72: =IF(Pilotes!$B74<>"",Pilotes!O74,"") -> 
B73: =IF(Pilotes!$B75<>"",Pilotes!Q75,"") ->  | C73: =IF(Pilotes!$B75<>"",Pilotes!B75,"") ->  | D73: =IF(Pilotes!$B75<>"",Pilotes!N75,"") ->  | E73: =IF(Pilotes!$B75<>"",Pilotes!O75,"") -> 
B74: =IF(Pilotes!$B76<>"",Pilotes!Q76,"") ->  | C74: =IF(Pilotes!$B76<>"",Pilotes!B76,"") ->  | D74: =IF(Pilotes!$B76<>"",Pilotes!N76,"") ->  | E74: =IF(Pilotes!$B76<>"",Pilotes!O76,"") -> 
B75: =IF(Pilotes!$B77<>"",Pilotes!Q77,"") ->  | C75: =IF(Pilotes!$B77<>"",Pilotes!B77,"") ->  | D75: =IF(Pilotes!$B77<>"",Pilotes!N77,"") ->  | E75: =IF(Pilotes!$B77<>"",Pilotes!O77,"") -> 
B76: =IF(Pilotes!$B78<>"",Pilotes!Q78,"") ->  | C76: =IF(Pilotes!$B78<>"",Pilotes!B78,"") ->  | D76: =IF(Pilotes!$B78<>"",Pilotes!N78,"") ->  | E76: =IF(Pilotes!$B78<>"",Pilotes!O78,"") -> 
B77: =IF(Pilotes!$B79<>"",Pilotes!Q79,"") ->  | C77: =IF(Pilotes!$B79<>"",Pilotes!B79,"") ->  | D77: =IF(Pilotes!$B79<>"",Pilotes!N79,"") ->  | E77: =IF(Pilotes!$B79<>"",Pilotes!O79,"") -> 
B78: =IF(Pilotes!$B80<>"",Pilotes!Q80,"") ->  | C78: =IF(Pilotes!$B80<>"",Pilotes!B80,"") ->  | D78: =IF(Pilotes!$B80<>"",Pilotes!N80,"") ->  | E78: =IF(Pilotes!$B80<>"",Pilotes!O80,"") -> 
B79: =IF(Pilotes!$B81<>"",Pilotes!Q81,"") ->  | C79: =IF(Pilotes!$B81<>"",Pilotes!B81,"") ->  | D79: =IF(Pilotes!$B81<>"",Pilotes!N81,"") ->  | E79: =IF(Pilotes!$B81<>"",Pilotes!O81,"") -> 
B80: =IF(Pilotes!$B82<>"",Pilotes!Q82,"") ->  | C80: =IF(Pilotes!$B82<>"",Pilotes!B82,"") ->  | D80: =IF(Pilotes!$B82<>"",Pilotes!N82,"") ->  | E80: =IF(Pilotes!$B82<>"",Pilotes!O82,"") -> 
B81: =IF(Pilotes!$B83<>"",Pilotes!Q83,"") ->  | C81: =IF(Pilotes!$B83<>"",Pilotes!B83,"") ->  | D81: =IF(Pilotes!$B83<>"",Pilotes!N83,"") ->  | E81: =IF(Pilotes!$B83<>"",Pilotes!O83,"") -> 
B82: =IF(Pilotes!$B84<>"",Pilotes!Q84,"") ->  | C82: =IF(Pilotes!$B84<>"",Pilotes!B84,"") ->  | D82: =IF(Pilotes!$B84<>"",Pilotes!N84,"") ->  | E82: =IF(Pilotes!$B84<>"",Pilotes!O84,"") -> 
B83: =IF(Pilotes!$B85<>"",Pilotes!Q85,"") ->  | C83: =IF(Pilotes!$B85<>"",Pilotes!B85,"") ->  | D83: =IF(Pilotes!$B85<>"",Pilotes!N85,"") ->  | E83: =IF(Pilotes!$B85<>"",Pilotes!O85,"") -> 
B84: =IF(Pilotes!$B86<>"",Pilotes!Q86,"") ->  | C84: =IF(Pilotes!$B86<>"",Pilotes!B86,"") ->  | D84: =IF(Pilotes!$B86<>"",Pilotes!N86,"") ->  | E84: =IF(Pilotes!$B86<>"",Pilotes!O86,"") -> 
B85: =IF(Pilotes!$B87<>"",Pilotes!Q87,"") ->  | C85: =IF(Pilotes!$B87<>"",Pilotes!B87,"") ->  | D85: =IF(Pilotes!$B87<>"",Pilotes!N87,"") ->  | E85: =IF(Pilotes!$B87<>"",Pilotes!O87,"") -> 
B86: =IF(Pilotes!$B88<>"",Pilotes!Q88,"") ->  | C86: =IF(Pilotes!$B88<>"",Pilotes!B88,"") ->  | D86: =IF(Pilotes!$B88<>"",Pilotes!N88,"") ->  | E86: =IF(Pilotes!$B88<>"",Pilotes!O88,"") -> 
B87: =IF(Pilotes!$B89<>"",Pilotes!Q89,"") ->  | C87: =IF(Pilotes!$B89<>"",Pilotes!B89,"") ->  | D87: =IF(Pilotes!$B89<>"",Pilotes!N89,"") ->  | E87: =IF(Pilotes!$B89<>"",Pilotes!O89,"") -> 
B88: =IF(Pilotes!$B90<>"",Pilotes!Q90,"") ->  | C88: =IF(Pilotes!$B90<>"",Pilotes!B90,"") ->  | D88: =IF(Pilotes!$B90<>"",Pilotes!N90,"") ->  | E88: =IF(Pilotes!$B90<>"",Pilotes!O90,"") -> 
B89: =IF(Pilotes!$B91<>"",Pilotes!Q91,"") ->  | C89: =IF(Pilotes!$B91<>"",Pilotes!B91,"") ->  | D89: =IF(Pilotes!$B91<>"",Pilotes!N91,"") ->  | E89: =IF(Pilotes!$B91<>"",Pilotes!O91,"") -> 
B90: =IF(Pilotes!$B92<>"",Pilotes!Q92,"") ->  | C90: =IF(Pilotes!$B92<>"",Pilotes!B92,"") ->  | D90: =IF(Pilotes!$B92<>"",Pilotes!N92,"") ->  | E90: =IF(Pilotes!$B92<>"",Pilotes!O92,"") -> 
B91: =IF(Pilotes!$B93<>"",Pilotes!Q93,"") ->  | C91: =IF(Pilotes!$B93<>"",Pilotes!B93,"") ->  | D91: =IF(Pilotes!$B93<>"",Pilotes!N93,"") ->  | E91: =IF(Pilotes!$B93<>"",Pilotes!O93,"") -> 
B92: =IF(Pilotes!$B94<>"",Pilotes!Q94,"") ->  | C92: =IF(Pilotes!$B94<>"",Pilotes!B94,"") ->  | D92: =IF(Pilotes!$B94<>"",Pilotes!N94,"") ->  | E92: =IF(Pilotes!$B94<>"",Pilotes!O94,"") -> 
B93: =IF(Pilotes!$B95<>"",Pilotes!Q95,"") ->  | C93: =IF(Pilotes!$B95<>"",Pilotes!B95,"") ->  | D93: =IF(Pilotes!$B95<>"",Pilotes!N95,"") ->  | E93: =IF(Pilotes!$B95<>"",Pilotes!O95,"") -> 
B94: =IF(Pilotes!$B96<>"",Pilotes!Q96,"") ->  | C94: =IF(Pilotes!$B96<>"",Pilotes!B96,"") ->  | D94: =IF(Pilotes!$B96<>"",Pilotes!N96,"") ->  | E94: =IF(Pilotes!$B96<>"",Pilotes!O96,"") -> 
B95: =IF(Pilotes!$B97<>"",Pilotes!Q97,"") ->  | C95: =IF(Pilotes!$B97<>"",Pilotes!B97,"") ->  | D95: =IF(Pilotes!$B97<>"",Pilotes!N97,"") ->  | E95: =IF(Pilotes!$B97<>"",Pilotes!O97,"") -> 
B96: =IF(Pilotes!$B98<>"",Pilotes!Q98,"") ->  | C96: =IF(Pilotes!$B98<>"",Pilotes!B98,"") ->  | D96: =IF(Pilotes!$B98<>"",Pilotes!N98,"") ->  | E96: =IF(Pilotes!$B98<>"",Pilotes!O98,"") -> 
B97: =IF(Pilotes!$B99<>"",Pilotes!Q99,"") ->  | C97: =IF(Pilotes!$B99<>"",Pilotes!B99,"") ->  | D97: =IF(Pilotes!$B99<>"",Pilotes!N99,"") ->  | E97: =IF(Pilotes!$B99<>"",Pilotes!O99,"") -> 
B98: =IF(Pilotes!$B100<>"",Pilotes!Q100,"") ->  | C98: =IF(Pilotes!$B100<>"",Pilotes!B100,"") ->  | D98: =IF(Pilotes!$B100<>"",Pilotes!N100,"") ->  | E98: =IF(Pilotes!$B100<>"",Pilotes!O100,"") -> 
B99: =IF(Pilotes!$B101<>"",Pilotes!Q101,"") ->  | C99: =IF(Pilotes!$B101<>"",Pilotes!B101,"") ->  | D99: =IF(Pilotes!$B101<>"",Pilotes!N101,"") ->  | E99: =IF(Pilotes!$B101<>"",Pilotes!O101,"") -> 
B100: =IF(Pilotes!$B102<>"",Pilotes!Q102,"") ->  | C100: =IF(Pilotes!$B102<>"",Pilotes!B102,"") ->  | D100: =IF(Pilotes!$B102<>"",Pilotes!N102,"") ->  | E100: =IF(Pilotes!$B102<>"",Pilotes!O102,"") -> 
B101: =IF(Pilotes!$B103<>"",Pilotes!Q103,"") ->  | C101: =IF(Pilotes!$B103<>"",Pilotes!B103,"") ->  | D101: =IF(Pilotes!$B103<>"",Pilotes!N103,"") ->  | E101: =IF(Pilotes!$B103<>"",Pilotes!O103,"") -> 
B102: =IF(Pilotes!$B104<>"",Pilotes!Q104,"") ->  | C102: =IF(Pilotes!$B104<>"",Pilotes!B104,"") ->  | D102: =IF(Pilotes!$B104<>"",Pilotes!N104,"") ->  | E102: =IF(Pilotes!$B104<>"",Pilotes!O104,"") -> 
B103: =IF(Pilotes!$B105<>"",Pilotes!Q105,"") ->  | C103: =IF(Pilotes!$B105<>"",Pilotes!B105,"") ->  | D103: =IF(Pilotes!$B105<>"",Pilotes!N105,"") ->  | E103: =IF(Pilotes!$B105<>"",Pilotes!O105,"") -> 
B104: =IF(Pilotes!$B106<>"",Pilotes!Q106,"") ->  | C104: =IF(Pilotes!$B106<>"",Pilotes!B106,"") ->  | D104: =IF(Pilotes!$B106<>"",Pilotes!N106,"") ->  | E104: =IF(Pilotes!$B106<>"",Pilotes!O106,"") -> 
B105: =IF(Pilotes!$B107<>"",Pilotes!Q107,"") ->  | C105: =IF(Pilotes!$B107<>"",Pilotes!B107,"") ->  | D105: =IF(Pilotes!$B107<>"",Pilotes!N107,"") ->  | E105: =IF(Pilotes!$B107<>"",Pilotes!O107,"") -> 
B106: =IF(Pilotes!$B108<>"",Pilotes!Q108,"") ->  | C106: =IF(Pilotes!$B108<>"",Pilotes!B108,"") ->  | D106: =IF(Pilotes!$B108<>"",Pilotes!N108,"") ->  | E106: =IF(Pilotes!$B108<>"",Pilotes!O108,"") -> 
B107: =IF(Pilotes!$B109<>"",Pilotes!Q109,"") ->  | C107: =IF(Pilotes!$B109<>"",Pilotes!B109,"") ->  | D107: =IF(Pilotes!$B109<>"",Pilotes!N109,"") ->  | E107: =IF(Pilotes!$B109<>"",Pilotes!O109,"") -> 
B108: =IF(Pilotes!$B110<>"",Pilotes!Q110,"") ->  | C108: =IF(Pilotes!$B110<>"",Pilotes!B110,"") ->  | D108: =IF(Pilotes!$B110<>"",Pilotes!N110,"") ->  | E108: =IF(Pilotes!$B110<>"",Pilotes!O110,"") -> 

Sheet Chronos (M1..M20)
B1: F3F - Saisie des chronos - Manches 1 à 20
B2: CLUB : | C2: =Pilotes!C2 -> GAP
B3: LIEU : | C3: =Pilotes!C3 -> Col de la Croix Morand
B4: DATE : | C4: =Pilotes!C4 -> 6, 7 et 8 mai 2017
B5: Nb Manches | C5: =COUNTIF(V:V,">0") -> 7
B6: Nb Chrono | C6: =COUNT(I:I) -> 154
B7: Meilleur Chrono | C7: =MIN(Q:Q) -> 35.05 | V7: ClastM | W7: Classement de la manche en cours
R8: TEMPS | V8: ClastE | W8: Classement évolutif après cette manche (pour copier/coller vers <Prépa Gpe>
B9: Nom | C9: Dossard | D9: Freq | E9: Equipe | F9: Manche | G9: Gpe | H9: GS | I9: Temps | J9: Penalité | K9: FAI Brut | L9: FAI Net | M9: ClastM | N9: ClastE | O9: ClastG | P9: GS | Q9: Min | R9: Max | S9: Moy | T9: Nbre Concurrents | V9: ClastG | W9: Classement Général | AH9: GS | AI9: Temps | AJ9: Penalité
B10: Nom | C10: Dossard | D10: Freq | E10: Equipe | F10: Manche | G10: Gpe | H10: GS | I10: Temps | J10: Penalité | K10: FAI Brut | L10: FAI Net | M10: ClastM | N10: ClastE | O10: ClastG | P10: GS | Q10: Min | R10: Max | S10: Moy | T10: Nbre Concurrents | U10: GS | AH10: GS | AI10: Temps | AJ10: Penalité
B11: Sébastien CHABAUD | C11: 1 | D11: 2.4GHz | F11: 1 | G11: 1 | H11: =IF($G11<>"",G11,"") -> 1 | I11: 56.89 | K11: =IF($B11<>"",IF(I11,(INDEX(P$11:Q$14,MATCH(H11,P$11:P$14),2)/I11)*1000,0),"") -> 751.9775004 | L11: =IF(Q$11<>"",IF($B11<>"",K11-$J11,""),"") -> 751.9775004 | M11: =IF(B11<>"",RANK(L11,L$11:L$110),"") -> 21 | N11: =IF(B11<>"",'Classement Général'!BA11,"") -> 21 | O11: =IF(B11<>"",'Calculs (M1..M20)'!A14,"") -> 22 | P11: =IF(DMIN($H10:$I111,$P$10,$U$10:$U$11)<>0,1,"") -> 1 | Q11: =IF(DMIN($H10:$I111,$I$10,$U$10:$U$11)<>0,DMIN($H10:$I111,$I$10,$U$10:$U$11),"") -> 42.78 | R11: =IF(DMAX($H10:$I111,$I$10,$U$10:$U$11)<>0,DMAX($H10:$I111,$I$10,$U$10:$U$11),"") -> 56.89 | S11: =IF($P11<>"",IF(DAVERAGE($H10:$I111,$I$10,$U$10:$U$11)<>0,DAVERAGE($H10:$I111,$I$10,$U$10:$U$11),""),"") -> 49.82727273 | T11: =IF($P11<>"",IF(DCOUNTA($H10:$I111,$I$10,$U$10:$U$11)<>0,DCOUNTA($H10:$I111,$I$10,$U$10:$U$11),""),"") -> 22 | U11: 1 | AH11: =IF($G11<>"",AG11,"") -> 0
B12: Herve DALL AVA | C12: 2 | D12: 2.4GHz | F12: 1 | G12: 1 | H12: =IF($G12<>"",G12,"") -> 1 | I12: 49.2 | K12: =IF($B12<>"",IF(I12,(INDEX(P$11:Q$14,MATCH(H12,P$11:P$14),2)/I12)*1000,0),"") -> 869.5121951 | L12: =IF(Q$11<>"",IF($B12<>"",K12-J12,""),"") -> 869.5121951 | M12: =IF(B12<>"",RANK(L12,L$11:L$110),"") -> 9 | N12: =IF(B12<>"",'Classement Général'!BA12,"") -> 9 | O12: =IF(B12<>"",'Calculs (M1..M20)'!A15,"") -> 8 | P12: =IF(DMIN($H10:$I111,$P$10,$U$12:$U$13)<>0,2,"") ->  | Q12: =IF(DMIN($H10:$I111,$I$10,$U$12:$U$13)<>0,DMIN($H10:$I111,$I$10,$U$12:$U$13),"") ->  | R12: =IF(DMAX($H10:$I111,$I$10,$U$12:$U$13)<>0,DMAX($H10:$I111,$I$10,$U$12:$U$13),"") ->  | S12: =IF($P12<>"",IF(DAVERAGE($H10:$I111,$I$10,$U$12:$U$13)<>0,DAVERAGE($H10:$I111,$I$10,$U$12:$U$13),""),"") ->  | T12: =IF($P11<>"",IF(DCOUNTA($H10:$I111,$I$10,$U$12:$U$13)<>0,DCOUNTA($H10:$I111,$I$10,$U$12:$U$13),""),"") ->  | U12: GS | AH12: =IF($G12<>"",AG12,"") -> 0
B13: Jean Luc FOUCHER | C13: 3 | D13: 2.4GHz | F13: 1 | G13: 1 | H13: =IF($G13<>"",G13,"") -> 1 | I13: 50.31 | K13: =IF($B13<>"",IF(I13,(INDEX(P$11:Q$14,MATCH(H13,P$11:P$14),2)/I13)*1000,0),"") -> 850.3279666 | L13: =IF(Q$11<>"",IF($B13<>"",K13-J13,""),"") -> 850.3279666 | M13: =IF(B13<>"",RANK(L13,L$11:L$110),"") -> 13 | N13: =IF(B13<>"",'Classement Général'!BA13,"") -> 13 | O13: =IF(B13<>"",'Calculs (M1..M20)'!A16,"") -> 15 | P13: =IF(DMIN($H10:$I111,$P$10,$U$14:$U$15)<>0,3,"") ->  | Q13: =IF(DMIN($H10:$I111,$I$10,$U$14:$U$15)<>0,DMIN($H10:$I111,$I$10,$U$14:$U$15),"") ->  | R13: =IF(DMAX($H10:$I111,$I$10,$U$14:$U$15)<>0,DMAX($H10:$I111,$I$10,$U$14:$U$15),"") ->  | S13: =IF($P13<>"",IF(DAVERAGE($H10:$I111,$I$10,$U$14:$U$15)<>0,DAVERAGE($H10:$I111,$I$10,$U$14:$U$15),""),"") ->  | T13: =IF($P13<>"",IF(DCOUNTA($H10:$I111,$I$10,$U$14:$U$15)<>0,DCOUNTA($H10:$I111,$I$10,$U$14:$U$15),""),"") ->  | U13: 2 | AH13: =IF($G13<>"",AG13,"") -> 0
B14: Thomas DELARBRE | C14: 4 | D14: 2.4GHz | F14: 1 | G14: 1 | H14: =IF($G14<>"",G14,"") -> 1 | I14: 50.24 | K14: =IF($B14<>"",IF(I14,(INDEX(P$11:Q$14,MATCH(H14,P$11:P$14),2)/I14)*1000,0),"") -> 851.5127389 | L14: =IF(Q$11<>"",IF($B14<>"",K14-J14,""),"") -> 851.5127389 | M14: =IF(B14<>"",RANK(L14,L$11:L$110),"") -> 12 | N14: =IF(B14<>"",'Classement Général'!BA14,"") -> 12 | O14: =IF(B14<>"",'Calculs (M1..M20)'!A17,"") -> 10 | P14: =IF(DMIN($H10:$I111,$P$10,$U$16:$U$17)<>0,4,"") ->  | Q14: =IF(DMIN($H10:$I111,$I$10,$U$16:$U$17)<>0,DMIN($H10:$I111,$I$10,$U$16:$U$17),"") ->  | R14: =IF(DMAX($H10:$I111,$I$10,$U$16:$U$17)<>0,DMAX($H10:$I111,$I$10,$U$16:$U$17),"") ->  | S14: =IF($P14<>"",IF(DAVERAGE($H10:$I111,$I$10,$U$16:$U$17)<>0,DAVERAGE($H10:$I111,$I$10,$U$16:$U$17),""),"") ->  | T14: =IF($P13<>"",IF(DCOUNTA($H10:$I111,$I$10,$U$16:$U$17)<>0,DCOUNTA($H10:$I111,$I$10,$U$16:$U$17),""),"") ->  | U14: GS | AH14: =IF($G14<>"",AG14,"") -> 0
B15: Pierre DIATTA | C15: 5 | D15: 2.4GHz | F15: 1 | G15: 1 | H15: =IF($G15<>"",G15,"") -> 1 | I15: 50.21 | K15: =IF($B15<>"",IF(I15,(INDEX(P$11:Q$14,MATCH(H15,P$11:P$14),2)/I15)*1000,0),"") -> 852.0215097 | L15: =IF(Q$11<>"",IF($B15<>"",K15-J15,""),"") -> 852.0215097 | M15: =IF(B15<>"",RANK(L15,L$11:L$110),"") -> 11 | N15: =IF(B15<>"",'Classement Général'!BA15,"") -> 11 | O15: =IF(B15<>"",'Calculs (M1..M20)'!A18,"") -> 20 | T15: =SUM(T11:T14) -> 22 | U15: 3 | V15: =T15 -> 22 | AH15: =IF($G15<>"",AG15,"") -> 0
B16: Olivier MONET | C16: 6 | D16: 41.110MHz | F16: 1 | G16: 1 | H16: =IF($G16<>"",G16,"") -> 1 | I16: 50.53 | K16: =IF($B16<>"",IF(I16,(INDEX(P$11:Q$14,MATCH(H16,P$11:P$14),2)/I16)*1000,0),"") -> 846.6257669 | L16: =IF(Q$11<>"",IF($B16<>"",K16-J16,""),"") -> 846.6257669 | M16: =IF(B16<>"",RANK(L16,L$11:L$110),"") -> 14 | N16: =IF(B16<>"",'Classement Général'!BA16,"") -> 14 | O16: =IF(B16<>"",'Calculs (M1..M20)'!A19,"") -> 6 | U16: GS | AH16: =IF($G16<>"",AG16,"") -> 0
B17: Pierre RONDEL | C17: 7 | D17: 2.4GHz | F17: 1 | G17: 1 | H17: =IF($G17<>"",G17,"") -> 1 | I17: 45.47 | K17: =IF($B17<>"",IF(I17,(INDEX(P$11:Q$14,MATCH(H17,P$11:P$14),2)/I17)*1000,0),"") -> 940.8401144 | L17: =IF(Q$11<>"",IF($B17<>"",K17-J17,""),"") -> 940.8401144 | M17: =IF(B17<>"",RANK(L17,L$11:L$110),"") -> 3 | N17: =IF(B17<>"",'Classement Général'!BA17,"") -> 3 | O17: =IF(B17<>"",'Calculs (M1..M20)'!A20,"") -> 1 | U17: 4 | AH17: =IF($G17<>"",AG17,"") -> 0
B18: Andreas FRICKE | C18: 8 | D18: 2.4GHz | F18: 1 | G18: 1 | H18: =IF($G18<>"",G18,"") -> 1 | I18: 48.03 | K18: =IF($B18<>"",IF(I18,(INDEX(P$11:Q$14,MATCH(H18,P$11:P$14),2)/I18)*1000,0),"") -> 890.6933167 | L18: =IF(Q$11<>"",IF($B18<>"",K18-J18,""),"") -> 890.6933167 | M18: =IF(B18<>"",RANK(L18,L$11:L$110),"") -> 4 | N18: =IF(B18<>"",'Classement Général'!BA18,"") -> 4 | O18: =IF(B18<>"",'Calculs (M1..M20)'!A21,"") -> 18 | AH18: =IF($G18<>"",AG18,"") -> 0
B19: Thomas FAURE | C19: 9 | D19: 2.4GHz | F19: 1 | G19: 1 | H19: =IF($G19<>"",G19,"") -> 1 | I19: 48.9 | K19: =IF($B19<>"",IF(I19,(INDEX(P$11:Q$14,MATCH(H19,P$11:P$14),2)/I19)*1000,0),"") -> 874.8466258 | L19: =IF(Q$11<>"",IF($B19<>"",K19-J19,""),"") -> 874.8466258 | M19: =IF(B19<>"",RANK(L19,L$11:L$110),"") -> 7 | N19: =IF(B19<>"",'Classement Général'!BA19,"") -> 7 | O19: =IF(B19<>"",'Calculs (M1..M20)'!A22,"") -> 11 | AH19: =IF($G19<>"",AG19,"") -> 0
B20: Philippe LANES | C20: 10 | D20: 2.4GHz | F20: 1 | G20: 1 | H20: =IF($G20<>"",G20,"") -> 1 | I20: 51.07 | J20: 100 | K20: =IF($B20<>"",IF(I20,(INDEX(P$11:Q$14,MATCH(H20,P$11:P$14),2)/I20)*1000,0),"") -> 837.6737811 | L20: =IF(Q$11<>"",IF($B20<>"",K20-J20,""),"") -> 737.6737811 | M20: =IF(B20<>"",RANK(L20,L$11:L$110),"") -> 22 | N20: =IF(B20<>"",'Classement Général'!BA20,"") -> 22 | O20: =IF(B20<>"",'Calculs (M1..M20)'!A23,"") -> 14 | AH20: =IF($G20<>"",AG20,"") -> 0
B21: Julien HONOR | C21: 11 | D21: 2.4GHz | F21: 1 | G21: 1 | H21: =IF($G21<>"",G21,"") -> 1 | I21: 50.72 | K21: =IF($B21<>"",IF(I21,(INDEX(P$11:Q$14,MATCH(H21,P$11:P$14),2)/I21)*1000,0),"") -> 843.4542587 | L21: =IF(Q$11<>"",IF($B21<>"",K21-J21,""),"") -> 843.4542587 | M21: =IF(B21<>"",RANK(L21,L$11:L$110),"") -> 15 | N21: =IF(B21<>"",'Classement Général'!BA21,"") -> 15 | O21: =IF(B21<>"",'Calculs (M1..M20)'!A24,"") -> 3 | AH21: =IF($G21<>"",AG21,"") -> 0
B22: Michael KREBS | C22: 12 | D22: 2.4GHz | F22: 1 | G22: 1 | H22: =IF($G22<>"",G22,"") -> 1 | I22: 51.04 | K22: =IF($B22<>"",IF(I22,(INDEX(P$11:Q$14,MATCH(H22,P$11:P$14),2)/I22)*1000,0),"") -> 838.1661442 | L22: =IF(Q$11<>"",IF($B22<>"",K22-J22,""),"") -> 838.1661442 | M22: =IF(B22<>"",RANK(L22,L$11:L$110),"") -> 17 | N22: =IF(B22<>"",'Classement Général'!BA22,"") -> 17 | O22: =IF(B22<>"",'Calculs (M1..M20)'!A25,"") -> 12 | AH22: =IF($G22<>"",AG22,"") -> 0
B23: Aubry GABANON | C23: 13 | D23: 2.4GHz | F23: 1 | G23: 1 | H23: =IF($G23<>"",G23,"") -> 1 | I23: 48.14 | K23: =IF($B23<>"",IF(I23,(INDEX(P$11:Q$14,MATCH(H23,P$11:P$14),2)/I23)*1000,0),"") -> 888.6580806 | L23: =IF(Q$11<>"",IF($B23<>"",K23-J23,""),"") -> 888.6580806 | M23: =IF(B23<>"",RANK(L23,L$11:L$110),"") -> 5 | N23: =IF(B23<>"",'Classement Général'!BA23,"") -> 5 | O23: =IF(B23<>"",'Calculs (M1..M20)'!A26,"") -> 5 | AH23: =IF($G23<>"",AG23,"") -> 0
B24: Serge DELARBRE | C24: 14 | D24: 2.4GHz | F24: 1 | G24: 1 | H24: =IF($G24<>"",G24,"") -> 1 | I24: 53.77 | K24: =IF($B24<>"",IF(I24,(INDEX(P$11:Q$14,MATCH(H24,P$11:P$14),2)/I24)*1000,0),"") -> 795.6109355 | L24: =IF(Q$11<>"",IF($B24<>"",K24-J24,""),"") -> 795.6109355 | M24: =IF(B24<>"",RANK(L24,L$11:L$110),"") -> 19 | N24: =IF(B24<>"",'Classement Général'!BA24,"") -> 19 | O24: =IF(B24<>"",'Calculs (M1..M20)'!A27,"") -> 17 | AH24: =IF($G24<>"",AG24,"") -> 0
B25: Arnaud LEGER | C25: 15 | D25: 2.4GHz | F25: 1 | G25: 1 | H25: =IF($G25<>"",G25,"") -> 1 | I25: 49.67 | K25: =IF($B25<>"",IF(I25,(INDEX(P$11:Q$14,MATCH(H25,P$11:P$14),2)/I25)*1000,0),"") -> 861.2844776 | L25: =IF(Q$11<>"",IF($B25<>"",K25-J25,""),"") -> 861.2844776 | M25: =IF(B25<>"",RANK(L25,L$11:L$110),"") -> 10 | N25: =IF(B25<>"",'Classement Général'!BA25,"") -> 10 | O25: =IF(B25<>"",'Calculs (M1..M20)'!A28,"") -> 7 | AH25: =IF($G25<>"",AG25,"") -> 0
B26: Thierry POIGNARD | C26: 16 | D26: 2.4GHz | F26: 1 | G26: 1 | H26: =IF($G26<>"",G26,"") -> 1 | I26: 49.09 | K26: =IF($B26<>"",IF(I26,(INDEX(P$11:Q$14,MATCH(H26,P$11:P$14),2)/I26)*1000,0),"") -> 871.4605826 | L26: =IF(Q$11<>"",IF($B26<>"",K26-J26,""),"") -> 871.4605826 | M26: =IF(B26<>"",RANK(L26,L$11:L$110),"") -> 8 | N26: =IF(B26<>"",'Classement Général'!BA26,"") -> 8 | O26: =IF(B26<>"",'Calculs (M1..M20)'!A29,"") -> 13 | AH26: =IF($G26<>"",AG26,"") -> 0
B27: Joel MARIN | C27: 17 | D27: 2.4GHz | F27: 1 | G27: 1 | H27: =IF($G27<>"",G27,"") -> 1 | I27: 52.27 | K27: =IF($B27<>"",IF(I27,(INDEX(P$11:Q$14,MATCH(H27,P$11:P$14),2)/I27)*1000,0),"") -> 818.4427014 | L27: =IF(Q$11<>"",IF($B27<>"",K27-J27,""),"") -> 818.4427014 | M27: =IF(B27<>"",RANK(L27,L$11:L$110),"") -> 18 | N27: =IF(B27<>"",'Classement Général'!BA27,"") -> 18 | O27: =IF(B27<>"",'Calculs (M1..M20)'!A30,"") -> 16 | AH27: =IF($G27<>"",AG27,"") -> 0
B28: Matthieu MERVELET | C28: 18 | D28: 2.4GHz | F28: 1 | G28: 1 | H28: =IF($G28<>"",G28,"") -> 1 | I28: 42.78 | K28: =IF($B28<>"",IF(I28,(INDEX(P$11:Q$14,MATCH(H28,P$11:P$14),2)/I28)*1000,0),"") -> 1000 | L28: =IF(Q$11<>"",IF($B28<>"",K28-J28,""),"") -> 1000 | M28: =IF(B28<>"",RANK(L28,L$11:L$110),"") -> 1 | N28: =IF(B28<>"",'Classement Général'!BA28,"") -> 1 | O28: =IF(B28<>"",'Calculs (M1..M20)'!A31,"") -> 2 | AH28: =IF($G28<>"",AG28,"") -> 0
B29: Gabriel MANTEL | C29: 19 | D29: 2.4GHz | F29: 1 | G29: 1 | H29: =IF($G29<>"",G29,"") -> 1 | I29: 54.16 | K29: =IF($B29<>"",IF(I29,(INDEX(P$11:Q$14,MATCH(H29,P$11:P$14),2)/I29)*1000,0),"") -> 789.8818316 | L29: =IF(Q$11<>"",IF($B29<>"",K29-J29,""),"") -> 789.8818316 | M29: =IF(B29<>"",RANK(L29,L$11:L$110),"") -> 20 | N29: =IF(B29<>"",'Classement Général'!BA29,"") -> 20 | O29: =IF(B29<>"",'Calculs (M1..M20)'!A32,"") -> 21 | AH29: =IF($G29<>"",AG29,"") -> 0
B30: Sylvain PFEFFERKORN | C30: 20 | D30: 2.4GHz | F30: 1 | G30: 1 | H30: =IF($G30<>"",G30,"") -> 1 | I30: 50.96 | K30: =IF($B30<>"",IF(I30,(INDEX(P$11:Q$14,MATCH(H30,P$11:P$14),2)/I30)*1000,0),"") -> 839.4819466 | L30: =IF(Q$11<>"",IF($B30<>"",K30-J30,""),"") -> 839.4819466 | M30: =IF(B30<>"",RANK(L30,L$11:L$110),"") -> 16 | N30: =IF(B30<>"",'Classement Général'!BA30,"") -> 16 | O30: =IF(B30<>"",'Calculs (M1..M20)'!A33,"") -> 19 | AH30: =IF($G30<>"",AG30,"") -> 0
B31: Frederic HOURS | C31: 21 | D31: 2.4GHz | F31: 1 | G31: 1 | H31: =IF($G31<>"",G31,"") -> 1 | I31: 43.93 | K31: =IF($B31<>"",IF(I31,(INDEX(P$11:Q$14,MATCH(H31,P$11:P$14),2)/I31)*1000,0),"") -> 973.8219895 | L31: =IF(Q$11<>"",IF($B31<>"",K31-J31,""),"") -> 973.8219895 | M31: =IF(B31<>"",RANK(L31,L$11:L$110),"") -> 2 | N31: =IF(B31<>"",'Classement Général'!BA31,"") -> 2 | O31: =IF(B31<>"",'Calculs (M1..M20)'!A34,"") -> 9 | AH31: =IF($G31<>"",AG31,"") -> 0
B32: Sébastien LANES | C32: 22 | D32: 2.4GHz | F32: 1 | G32: 1 | H32: =IF($G32<>"",G32,"") -> 1 | I32: 48.82 | K32: =IF($B32<>"",IF(I32,(INDEX(P$11:Q$14,MATCH(H32,P$11:P$14),2)/I32)*1000,0),"") -> 876.280213 | L32: =IF(Q$11<>"",IF($B32<>"",K32-J32,""),"") -> 876.280213 | M32: =IF(B32<>"",RANK(L32,L$11:L$110),"") -> 6 | N32: =IF(B32<>"",'Classement Général'!BA32,"") -> 6 | O32: =IF(B32<>"",'Calculs (M1..M20)'!A35,"") -> 4 | AH32: =IF($G32<>"",AG32,"") -> 0
F33: 1 | G33: 1 | H33: =IF($G33<>"",G33,"") -> 1 | K33: =IF($B33<>"",IF(I33,(INDEX(P$11:Q$14,MATCH(H33,P$11:P$14),2)/I33)*1000,0),"") ->  | L33: =IF(Q$11<>"",IF($B33<>"",K33-J33,""),"") ->  | M33: =IF(B33<>"",RANK(L33,L$11:L$110),"") ->  | N33: =IF(B33<>"",'Classement Général'!BA33,"") ->  | O33: =IF(B33<>"",'Calculs (M1..M20)'!A36,"") ->  | AH33: =IF($G33<>"",AG33,"") -> 0
F34: 1 | G34: 1 | H34: =IF($G34<>"",G34,"") -> 1 | K34: =IF($B34<>"",IF(I34,(INDEX(P$11:Q$14,MATCH(H34,P$11:P$14),2)/I34)*1000,0),"") ->  | L34: =IF(Q$11<>"",IF($B34<>"",K34-J34,""),"") ->  | M34: =IF(B34<>"",RANK(L34,L$11:L$110),"") ->  | N34: =IF(B34<>"",'Classement Général'!BA34,"") ->  | O34: =IF(B34<>"",'Calculs (M1..M20)'!A37,"") ->  | AH34: =IF($G34<>"",AG34,"") -> 0
F35: 1 | G35: 1 | H35: =IF($G35<>"",G35,"") -> 1 | K35: =IF($B35<>"",IF(I35,(INDEX(P$11:Q$14,MATCH(H35,P$11:P$14),2)/I35)*1000,0),"") ->  | L35: =IF(Q$11<>"",IF($B35<>"",K35-J35,""),"") ->  | M35: =IF(B35<>"",RANK(L35,L$11:L$110),"") ->  | N35: =IF(B35<>"",'Classement Général'!BA35,"") ->  | O35: =IF(B35<>"",'Calculs (M1..M20)'!A38,"") ->  | AH35: =IF($G35<>"",AG35,"") -> 0
F36: 1 | G36: 1 | H36: =IF($G36<>"",G36,"") -> 1 | K36: =IF($B36<>"",IF(I36,(INDEX(P$11:Q$14,MATCH(H36,P$11:P$14),2)/I36)*1000,0),"") ->  | L36: =IF(Q$11<>"",IF($B36<>"",K36-J36,""),"") ->  | M36: =IF(B36<>"",RANK(L36,L$11:L$110),"") ->  | N36: =IF(B36<>"",'Classement Général'!BA36,"") ->  | O36: =IF(B36<>"",'Calculs (M1..M20)'!A39,"") ->  | AH36: =IF($G36<>"",AG36,"") -> 0
F37: 1 | G37: 1 | H37: =IF($G37<>"",G37,"") -> 1 | K37: =IF($B37<>"",IF(I37,(INDEX(P$11:Q$14,MATCH(H37,P$11:P$14),2)/I37)*1000,0),"") ->  | L37: =IF(Q$11<>"",IF($B37<>"",K37-J37,""),"") ->  | M37: =IF(B37<>"",RANK(L37,L$11:L$110),"") ->  | N37: =IF(B37<>"",'Classement Général'!BA37,"") ->  | O37: =IF(B37<>"",'Calculs (M1..M20)'!A40,"") ->  | AH37: =IF($G37<>"",AG37,"") -> 0
F38: 1 | G38: 1 | H38: =IF($G38<>"",G38,"") -> 1 | K38: =IF($B38<>"",IF(I38,(INDEX(P$11:Q$14,MATCH(H38,P$11:P$14),2)/I38)*1000,0),"") ->  | L38: =IF(Q$11<>"",IF($B38<>"",K38-J38,""),"") ->  | M38: =IF(B38<>"",RANK(L38,L$11:L$110),"") ->  | N38: =IF(B38<>"",'Classement Général'!BA38,"") ->  | O38: =IF(B38<>"",'Calculs (M1..M20)'!A41,"") ->  | AH38: =IF($G38<>"",AG38,"") -> 0
F39: 1 | G39: 1 | H39: =IF($G39<>"",G39,"") -> 1 | K39: =IF($B39<>"",IF(I39,(INDEX(P$11:Q$14,MATCH(H39,P$11:P$14),2)/I39)*1000,0),"") ->  | L39: =IF(Q$11<>"",IF($B39<>"",K39-J39,""),"") ->  | M39: =IF(B39<>"",RANK(L39,L$11:L$110),"") ->  | N39: =IF(B39<>"",'Classement Général'!BA39,"") ->  | O39: =IF(B39<>"",'Calculs (M1..M20)'!A42,"") ->  | AH39: =IF($G39<>"",AG39,"") -> 0
F40: 1 | G40: 1 | H40: =IF($G40<>"",G40,"") -> 1 | K40: =IF($B40<>"",IF(I40,(INDEX(P$11:Q$14,MATCH(H40,P$11:P$14),2)/I40)*1000,0),"") ->  | L40: =IF(Q$11<>"",IF($B40<>"",K40-J40,""),"") ->  | M40: =IF(B40<>"",RANK(L40,L$11:L$110),"") ->  | N40: =IF(B40<>"",'Classement Général'!BA40,"") ->  | O40: =IF(B40<>"",'Calculs (M1..M20)'!A43,"") ->  | AH40: =IF($G40<>"",AG40,"") -> 0
F41: 1 | G41: 1 | H41: =IF($G41<>"",G41,"") -> 1 | K41: =IF($B41<>"",IF(I41,(INDEX(P$11:Q$14,MATCH(H41,P$11:P$14),2)/I41)*1000,0),"") ->  | L41: =IF(Q$11<>"",IF($B41<>"",K41-J41,""),"") ->  | M41: =IF(B41<>"",RANK(L41,L$11:L$110),"") ->  | N41: =IF(B41<>"",'Classement Général'!BA41,"") ->  | O41: =IF(B41<>"",'Calculs (M1..M20)'!A44,"") ->  | AH41: =IF($G41<>"",AG41,"") -> 0
F42: 1 | G42: 1 | H42: =IF($G42<>"",G42,"") -> 1 | K42: =IF($B42<>"",IF(I42,(INDEX(P$11:Q$14,MATCH(H42,P$11:P$14),2)/I42)*1000,0),"") ->  | L42: =IF(Q$11<>"",IF($B42<>"",K42-J42,""),"") ->  | M42: =IF(B42<>"",RANK(L42,L$11:L$110),"") ->  | N42: =IF(B42<>"",'Classement Général'!BA42,"") ->  | O42: =IF(B42<>"",'Calculs (M1..M20)'!A45,"") ->  | AH42: =IF($G42<>"",AG42,"") -> 0
F43: 1 | G43: 1 | H43: =IF($G43<>"",G43,"") -> 1 | K43: =IF($B43<>"",IF(I43,(INDEX(P$11:Q$14,MATCH(H43,P$11:P$14),2)/I43)*1000,0),"") ->  | L43: =IF(Q$11<>"",IF($B43<>"",K43-J43,""),"") ->  | M43: =IF(B43<>"",RANK(L43,L$11:L$110),"") ->  | N43: =IF(B43<>"",'Classement Général'!BA43,"") ->  | O43: =IF(B43<>"",'Calculs (M1..M20)'!A46,"") ->  | AH43: =IF($G43<>"",AG43,"") -> 0
F44: 1 | G44: 1 | H44: =IF($G44<>"",G44,"") -> 1 | K44: =IF($B44<>"",IF(I44,(INDEX(P$11:Q$14,MATCH(H44,P$11:P$14),2)/I44)*1000,0),"") ->  | L44: =IF(Q$11<>"",IF($B44<>"",K44-J44,""),"") ->  | M44: =IF(B44<>"",RANK(L44,L$11:L$110),"") ->  | N44: =IF(B44<>"",'Classement Général'!BA44,"") ->  | O44: =IF(B44<>"",'Calculs (M1..M20)'!A47,"") ->  | AH44: =IF($G44<>"",AG44,"") -> 0
F45: 1 | G45: 1 | H45: =IF($G45<>"",G45,"") -> 1 | K45: =IF($B45<>"",IF(I45,(INDEX(P$11:Q$14,MATCH(H45,P$11:P$14),2)/I45)*1000,0),"") ->  | L45: =IF(Q$11<>"",IF($B45<>"",K45-J45,""),"") ->  | M45: =IF(B45<>"",RANK(L45,L$11:L$110),"") ->  | N45: =IF(B45<>"",'Classement Général'!BA45,"") ->  | O45: =IF(B45<>"",'Calculs (M1..M20)'!A48,"") ->  | AH45: =IF($G45<>"",AG45,"") -> 0
F46: 1 | G46: 1 | H46: =IF($G46<>"",G46,"") -> 1 | K46: =IF($B46<>"",IF(I46,(INDEX(P$11:Q$14,MATCH(H46,P$11:P$14),2)/I46)*1000,0),"") ->  | L46: =IF(Q$11<>"",IF($B46<>"",K46-J46,""),"") ->  | M46: =IF(B46<>"",RANK(L46,L$11:L$110),"") ->  | N46: =IF(B46<>"",'Classement Général'!BA46,"") ->  | O46: =IF(B46<>"",'Calculs (M1..M20)'!A49,"") ->  | AH46: =IF($G46<>"",AG46,"") -> 0
F47: 1 | G47: 1 | H47: =IF($G47<>"",G47,"") -> 1 | K47: =IF($B47<>"",IF(I47,(INDEX(P$11:Q$14,MATCH(H47,P$11:P$14),2)/I47)*1000,0),"") ->  | L47: =IF(Q$11<>"",IF($B47<>"",K47-J47,""),"") ->  | M47: =IF(B47<>"",RANK(L47,L$11:L$110),"") ->  | N47: =IF(B47<>"",'Classement Général'!BA47,"") ->  | O47: =IF(B47<>"",'Calculs (M1..M20)'!A50,"") ->  | AH47: =IF($G47<>"",AG47,"") -> 0
F48: 1 | G48: 1 | H48: =IF($G48<>"",G48,"") -> 1 | K48: =IF($B48<>"",IF(I48,(INDEX(P$11:Q$14,MATCH(H48,P$11:P$14),2)/I48)*1000,0),"") ->  | L48: =IF(Q$11<>"",IF($B48<>"",K48-J48,""),"") ->  | M48: =IF(B48<>"",RANK(L48,L$11:L$110),"") ->  | N48: =IF(B48<>"",'Classement Général'!BA48,"") ->  | O48: =IF(B48<>"",'Calculs (M1..M20)'!A51,"") ->  | AH48: =IF($G48<>"",AG48,"") -> 0
F49: 1 | G49: 1 | H49: =IF($G49<>"",G49,"") -> 1 | K49: =IF($B49<>"",IF(I49,(INDEX(P$11:Q$14,MATCH(H49,P$11:P$14),2)/I49)*1000,0),"") ->  | L49: =IF(Q$11<>"",IF($B49<>"",K49-J49,""),"") ->  | M49: =IF(B49<>"",RANK(L49,L$11:L$110),"") ->  | N49: =IF(B49<>"",'Classement Général'!BA49,"") ->  | O49: =IF(B49<>"",'Calculs (M1..M20)'!A52,"") ->  | AH49: =IF($G49<>"",AG49,"") -> 0
F50: 1 | G50: 1 | H50: =IF($G50<>"",G50,"") -> 1 | K50: =IF($B50<>"",IF(I50,(INDEX(P$11:Q$14,MATCH(H50,P$11:P$14),2)/I50)*1000,0),"") ->  | L50: =IF(Q$11<>"",IF($B50<>"",K50-J50,""),"") ->  | M50: =IF(B50<>"",RANK(L50,L$11:L$110),"") ->  | N50: =IF(B50<>"",'Classement Général'!BA50,"") ->  | O50: =IF(B50<>"",'Calculs (M1..M20)'!A53,"") ->  | AH50: =IF($G50<>"",AG50,"") -> 0
F51: 1 | G51: 1 | H51: =IF($G51<>"",G51,"") -> 1 | K51: =IF($B51<>"",IF(I51,(INDEX(P$11:Q$14,MATCH(H51,P$11:P$14),2)/I51)*1000,0),"") ->  | L51: =IF(Q$11<>"",IF($B51<>"",K51-J51,""),"") ->  | M51: =IF(B51<>"",RANK(L51,L$11:L$110),"") ->  | N51: =IF(B51<>"",'Classement Général'!BA51,"") ->  | O51: =IF(B51<>"",'Calculs (M1..M20)'!A54,"") ->  | AH51: =IF($G51<>"",AG51,"") -> 0
F52: 1 | G52: 1 | H52: =IF($G52<>"",G52,"") -> 1 | K52: =IF($B52<>"",IF(I52,(INDEX(P$11:Q$14,MATCH(H52,P$11:P$14),2)/I52)*1000,0),"") ->  | L52: =IF(Q$11<>"",IF($B52<>"",K52-J52,""),"") ->  | M52: =IF(B52<>"",RANK(L52,L$11:L$110),"") ->  | N52: =IF(B52<>"",'Classement Général'!BA52,"") ->  | O52: =IF(B52<>"",'Calculs (M1..M20)'!A55,"") ->  | AH52: =IF($G52<>"",AG52,"") -> 0
F53: 1 | G53: 1 | H53: =IF($G53<>"",G53,"") -> 1 | K53: =IF($B53<>"",IF(I53,(INDEX(P$11:Q$14,MATCH(H53,P$11:P$14),2)/I53)*1000,0),"") ->  | L53: =IF(Q$11<>"",IF($B53<>"",K53-J53,""),"") ->  | M53: =IF(B53<>"",RANK(L53,L$11:L$110),"") ->  | N53: =IF(B53<>"",'Classement Général'!BA53,"") ->  | O53: =IF(B53<>"",'Calculs (M1..M20)'!A56,"") ->  | AH53: =IF($G53<>"",AG53,"") -> 0
F54: 1 | G54: 1 | H54: =IF($G54<>"",G54,"") -> 1 | K54: =IF($B54<>"",IF(I54,(INDEX(P$11:Q$14,MATCH(H54,P$11:P$14),2)/I54)*1000,0),"") ->  | L54: =IF(Q$11<>"",IF($B54<>"",K54-J54,""),"") ->  | M54: =IF(B54<>"",RANK(L54,L$11:L$110),"") ->  | N54: =IF(B54<>"",'Classement Général'!BA54,"") ->  | O54: =IF(B54<>"",'Calculs (M1..M20)'!A57,"") ->  | AH54: =IF($G54<>"",AG54,"") -> 0
F55: 1 | G55: 1 | H55: =IF($G55<>"",G55,"") -> 1 | K55: =IF($B55<>"",IF(I55,(INDEX(P$11:Q$14,MATCH(H55,P$11:P$14),2)/I55)*1000,0),"") ->  | L55: =IF(Q$11<>"",IF($B55<>"",K55-J55,""),"") ->  | M55: =IF(B55<>"",RANK(L55,L$11:L$110),"") ->  | N55: =IF(B55<>"",'Classement Général'!BA55,"") ->  | O55: =IF(B55<>"",'Calculs (M1..M20)'!A58,"") ->  | AH55: =IF($G55<>"",AG55,"") -> 0
F56: 1 | G56: 1 | H56: =IF($G56<>"",G56,"") -> 1 | K56: =IF($B56<>"",IF(I56,(INDEX(P$11:Q$14,MATCH(H56,P$11:P$14),2)/I56)*1000,0),"") ->  | L56: =IF(Q$11<>"",IF($B56<>"",K56-J56,""),"") ->  | M56: =IF(B56<>"",RANK(L56,L$11:L$110),"") ->  | N56: =IF(B56<>"",'Classement Général'!BA56,"") ->  | O56: =IF(B56<>"",'Calculs (M1..M20)'!A59,"") ->  | AH56: =IF($G56<>"",AG56,"") -> 0
F57: 1 | G57: 1 | H57: =IF($G57<>"",G57,"") -> 1 | K57: =IF($B57<>"",IF(I57,(INDEX(P$11:Q$14,MATCH(H57,P$11:P$14),2)/I57)*1000,0),"") ->  | L57: =IF(Q$11<>"",IF($B57<>"",K57-J57,""),"") ->  | M57: =IF(B57<>"",RANK(L57,L$11:L$110),"") ->  | N57: =IF(B57<>"",'Classement Général'!BA57,"") ->  | O57: =IF(B57<>"",'Calculs (M1..M20)'!A60,"") ->  | AH57: =IF($G57<>"",AG57,"") -> 0
F58: 1 | G58: 1 | H58: =IF($G58<>"",G58,"") -> 1 | K58: =IF($B58<>"",IF(I58,(INDEX(P$11:Q$14,MATCH(H58,P$11:P$14),2)/I58)*1000,0),"") ->  | L58: =IF(Q$11<>"",IF($B58<>"",K58-J58,""),"") ->  | M58: =IF(B58<>"",RANK(L58,L$11:L$110),"") ->  | N58: =IF(B58<>"",'Classement Général'!BA58,"") ->  | O58: =IF(B58<>"",'Calculs (M1..M20)'!A61,"") ->  | AH58: =IF($G58<>"",AG58,"") -> 0
F59: 1 | G59: 1 | H59: =IF($G59<>"",G59,"") -> 1 | K59: =IF($B59<>"",IF(I59,(INDEX(P$11:Q$14,MATCH(H59,P$11:P$14),2)/I59)*1000,0),"") ->  | L59: =IF(Q$11<>"",IF($B59<>"",K59-J59,""),"") ->  | M59: =IF(B59<>"",RANK(L59,L$11:L$110),"") ->  | N59: =IF(B59<>"",'Classement Général'!BA59,"") ->  | O59: =IF(B59<>"",'Calculs (M1..M20)'!A62,"") ->  | AH59: =IF($G59<>"",AG59,"") -> 0
F60: 1 | G60: 1 | H60: =IF($G60<>"",G60,"") -> 1 | K60: =IF($B60<>"",IF(I60,(INDEX(P$11:Q$14,MATCH(H60,P$11:P$14),2)/I60)*1000,0),"") ->  | L60: =IF(Q$11<>"",IF($B60<>"",K60-J60,""),"") ->  | M60: =IF(B60<>"",RANK(L60,L$11:L$110),"") ->  | N60: =IF(B60<>"",'Classement Général'!BA60,"") ->  | O60: =IF(B60<>"",'Calculs (M1..M20)'!A63,"") ->  | AH60: =IF($G60<>"",AG60,"") -> 0
F61: 1 | G61: 1 | H61: =IF($G61<>"",G61,"") -> 1 | K61: =IF($B61<>"",IF(I61,(INDEX(P$11:Q$14,MATCH(H61,P$11:P$14),2)/I61)*1000,0),"") ->  | L61: =IF(Q$11<>"",IF($B61<>"",K61-J61,""),"") ->  | M61: =IF(B61<>"",RANK(L61,L$11:L$110),"") ->  | N61: =IF(B61<>"",'Classement Général'!BA61,"") ->  | O61: =IF(B61<>"",'Calculs (M1..M20)'!A64,"") ->  | AH61: =IF($G61<>"",AG61,"") -> 0
F62: 1 | G62: 1 | H62: =IF($G62<>"",G62,"") -> 1 | K62: =IF($B62<>"",IF(I62,(INDEX(P$11:Q$14,MATCH(H62,P$11:P$14),2)/I62)*1000,0),"") ->  | L62: =IF(Q$11<>"",IF($B62<>"",K62-J62,""),"") ->  | M62: =IF(B62<>"",RANK(L62,L$11:L$110),"") ->  | N62: =IF(B62<>"",'Classement Général'!BA62,"") ->  | O62: =IF(B62<>"",'Calculs (M1..M20)'!A65,"") ->  | AH62: =IF($G62<>"",AG62,"") -> 0
F63: 1 | G63: 1 | H63: =IF($G63<>"",G63,"") -> 1 | K63: =IF($B63<>"",IF(I63,(INDEX(P$11:Q$14,MATCH(H63,P$11:P$14),2)/I63)*1000,0),"") ->  | L63: =IF(Q$11<>"",IF($B63<>"",K63-J63,""),"") ->  | M63: =IF(B63<>"",RANK(L63,L$11:L$110),"") ->  | N63: =IF(B63<>"",'Classement Général'!BA63,"") ->  | O63: =IF(B63<>"",'Calculs (M1..M20)'!A66,"") ->  | AH63: =IF($G63<>"",AG63,"") -> 0
F64: 1 | G64: 1 | H64: =IF($G64<>"",G64,"") -> 1 | K64: =IF($B64<>"",IF(I64,(INDEX(P$11:Q$14,MATCH(H64,P$11:P$14),2)/I64)*1000,0),"") ->  | L64: =IF(Q$11<>"",IF($B64<>"",K64-J64,""),"") ->  | M64: =IF(B64<>"",RANK(L64,L$11:L$110),"") ->  | N64: =IF(B64<>"",'Classement Général'!BA64,"") ->  | O64: =IF(B64<>"",'Calculs (M1..M20)'!A67,"") ->  | AH64: =IF($G64<>"",AG64,"") -> 0
F65: 1 | G65: 1 | H65: =IF($G65<>"",G65,"") -> 1 | K65: =IF($B65<>"",IF(I65,(INDEX(P$11:Q$14,MATCH(H65,P$11:P$14),2)/I65)*1000,0),"") ->  | L65: =IF(Q$11<>"",IF($B65<>"",K65-J65,""),"") ->  | M65: =IF(B65<>"",RANK(L65,L$11:L$110),"") ->  | N65: =IF(B65<>"",'Classement Général'!BA65,"") ->  | O65: =IF(B65<>"",'Calculs (M1..M20)'!A68,"") ->  | AH65: =IF($G65<>"",AG65,"") -> 0
F66: 1 | G66: 1 | H66: =IF($G66<>"",G66,"") -> 1 | K66: =IF($B66<>"",IF(I66,(INDEX(P$11:Q$14,MATCH(H66,P$11:P$14),2)/I66)*1000,0),"") ->  | L66: =IF(Q$11<>"",IF($B66<>"",K66-J66,""),"") ->  | M66: =IF(B66<>"",RANK(L66,L$11:L$110),"") ->  | N66: =IF(B66<>"",'Classement Général'!BA66,"") ->  | O66: =IF(B66<>"",'Calculs (M1..M20)'!A69,"") ->  | AH66: =IF($G66<>"",AG66,"") -> 0
F67: 1 | G67: 1 | H67: =IF($G67<>"",G67,"") -> 1 | K67: =IF($B67<>"",IF(I67,(INDEX(P$11:Q$14,MATCH(H67,P$11:P$14),2)/I67)*1000,0),"") ->  | L67: =IF(Q$11<>"",IF($B67<>"",K67-J67,""),"") ->  | M67: =IF(B67<>"",RANK(L67,L$11:L$110),"") ->  | N67: =IF(B67<>"",'Classement Général'!BA67,"") ->  | O67: =IF(B67<>"",'Calculs (M1..M20)'!A70,"") ->  | AH67: =IF($G67<>"",AG67,"") -> 0
F68: 1 | H68: =IF($G68<>"",G68,"") ->  | K68: =IF($B68<>"",IF(I68,(INDEX(P$11:Q$14,MATCH(H68,P$11:P$14),2)/I68)*1000,0),"") ->  | L68: =IF(Q$11<>"",IF($B68<>"",K68-J68,""),"") ->  | M68: =IF(B68<>"",RANK(L68,L$11:L$110),"") ->  | N68: =IF(B68<>"",'Classement Général'!BA68,"") ->  | O68: =IF(B68<>"",'Calculs (M1..M20)'!A71,"") ->  | AH68: =IF($G68<>"",AG68,"") -> 
F69: 1 | H69: =IF($G69<>"",G69,"") ->  | K69: =IF($B69<>"",IF(I69,(INDEX(P$11:Q$14,MATCH(H69,P$11:P$14),2)/I69)*1000,0),"") ->  | L69: =IF(Q$11<>"",IF($B69<>"",K69-J69,""),"") ->  | M69: =IF(B69<>"",RANK(L69,L$11:L$110),"") ->  | N69: =IF(B69<>"",'Classement Général'!BA69,"") ->  | O69: =IF(B69<>"",'Calculs (M1..M20)'!A72,"") ->  | AH69: =IF($G69<>"",AG69,"") -> 
F70: 1 | H70: =IF($G70<>"",G70,"") ->  | K70: =IF($B70<>"",IF(I70,(INDEX(P$11:Q$14,MATCH(H70,P$11:P$14),2)/I70)*1000,0),"") ->  | L70: =IF(Q$11<>"",IF($B70<>"",K70-J70,""),"") ->  | M70: =IF(B70<>"",RANK(L70,L$11:L$110),"") ->  | N70: =IF(B70<>"",'Classement Général'!BA70,"") ->  | O70: =IF(B70<>"",'Calculs (M1..M20)'!A73,"") ->  | AH70: =IF($G70<>"",AG70,"") -> 
F71: 1 | H71: =IF($G71<>"",G71,"") ->  | K71: =IF($B71<>"",IF(I71,(INDEX(P$11:Q$14,MATCH(H71,P$11:P$14),2)/I71)*1000,0),"") ->  | L71: =IF(Q$11<>"",IF($B71<>"",K71-J71,""),"") ->  | M71: =IF(B71<>"",RANK(L71,L$11:L$110),"") ->  | N71: =IF(B71<>"",'Classement Général'!BA71,"") ->  | O71: =IF(B71<>"",'Calculs (M1..M20)'!A74,"") ->  | AH71: =IF($G71<>"",AG71,"") -> 
F72: 1 | H72: =IF($G72<>"",G72,"") ->  | K72: =IF($B72<>"",IF(I72,(INDEX(P$11:Q$14,MATCH(H72,P$11:P$14),2)/I72)*1000,0),"") ->  | L72: =IF(Q$11<>"",IF($B72<>"",K72-J72,""),"") ->  | M72: =IF(B72<>"",RANK(L72,L$11:L$110),"") ->  | N72: =IF(B72<>"",'Classement Général'!BA72,"") ->  | O72: =IF(B72<>"",'Calculs (M1..M20)'!A75,"") ->  | AH72: =IF($G72<>"",AG72,"") -> 
F73: 1 | H73: =IF($G73<>"",G73,"") ->  | K73: =IF($B73<>"",IF(I73,(INDEX(P$11:Q$14,MATCH(H73,P$11:P$14),2)/I73)*1000,0),"") ->  | L73: =IF(Q$11<>"",IF($B73<>"",K73-J73,""),"") ->  | M73: =IF(B73<>"",RANK(L73,L$11:L$110),"") ->  | N73: =IF(B73<>"",'Classement Général'!BA73,"") ->  | O73: =IF(B73<>"",'Calculs (M1..M20)'!A76,"") ->  | AH73: =IF($G73<>"",AG73,"") -> 
F74: 1 | H74: =IF($G74<>"",G74,"") ->  | K74: =IF($B74<>"",IF(I74,(INDEX(P$11:Q$14,MATCH(H74,P$11:P$14),2)/I74)*1000,0),"") ->  | L74: =IF(Q$11<>"",IF($B74<>"",K74-J74,""),"") ->  | M74: =IF(B74<>"",RANK(L74,L$11:L$110),"") ->  | N74: =IF(B74<>"",'Classement Général'!BA74,"") ->  | O74: =IF(B74<>"",'Calculs (M1..M20)'!A77,"") ->  | AH74: =IF($G74<>"",AG74,"") -> 
F75: 1 | H75: =IF($G75<>"",G75,"") ->  | K75: =IF($B75<>"",IF(I75,(INDEX(P$11:Q$14,MATCH(H75,P$11:P$14),2)/I75)*1000,0),"") ->  | L75: =IF(Q$11<>"",IF($B75<>"",K75-J75,""),"") ->  | M75: =IF(B75<>"",RANK(L75,L$11:L$110),"") ->  | N75: =IF(B75<>"",'Classement Général'!BA75,"") ->  | O75: =IF(B75<>"",'Calculs (M1..M20)'!A78,"") ->  | AH75: =IF($G75<>"",AG75,"") -> 
F76: 1 | H76: =IF($G76<>"",G76,"") ->  | K76: =IF($B76<>"",IF(I76,(INDEX(P$11:Q$14,MATCH(H76,P$11:P$14),2)/I76)*1000,0),"") ->  | L76: =IF(Q$11<>"",IF($B76<>"",K76-J76,""),"") ->  | M76: =IF(B76<>"",RANK(L76,L$11:L$110),"") ->  | N76: =IF(B76<>"",'Classement Général'!BA76,"") ->  | O76: =IF(B76<>"",'Calculs (M1..M20)'!A79,"") ->  | AH76: =IF($G76<>"",AG76,"") -> 
F77: 1 | H77: =IF($G77<>"",G77,"") ->  | K77: =IF($B77<>"",IF(I77,(INDEX(P$11:Q$14,MATCH(H77,P$11:P$14),2)/I77)*1000,0),"") ->  | L77: =IF(Q$11<>"",IF($B77<>"",K77-J77,""),"") ->  | M77: =IF(B77<>"",RANK(L77,L$11:L$110),"") ->  | N77: =IF(B77<>"",'Classement Général'!BA77,"") ->  | O77: =IF(B77<>"",'Calculs (M1..M20)'!A80,"") ->  | AH77: =IF($G77<>"",AG77,"") -> 
F78: 1 | H78: =IF($G78<>"",G78,"") ->  | K78: =IF($B78<>"",IF(I78,(INDEX(P$11:Q$14,MATCH(H78,P$11:P$14),2)/I78)*1000,0),"") ->  | L78: =IF(Q$11<>"",IF($B78<>"",K78-J78,""),"") ->  | M78: =IF(B78<>"",RANK(L78,L$11:L$110),"") ->  | N78: =IF(B78<>"",'Classement Général'!BA78,"") ->  | O78: =IF(B78<>"",'Calculs (M1..M20)'!A81,"") ->  | AH78: =IF($G78<>"",AG78,"") -> 
F79: 1 | H79: =IF($G79<>"",G79,"") ->  | K79: =IF($B79<>"",IF(I79,(INDEX(P$11:Q$14,MATCH(H79,P$11:P$14),2)/I79)*1000,0),"") ->  | L79: =IF(Q$11<>"",IF($B79<>"",K79-J79,""),"") ->  | M79: =IF(B79<>"",RANK(L79,L$11:L$110),"") ->  | N79: =IF(B79<>"",'Classement Général'!BA79,"") ->  | O79: =IF(B79<>"",'Calculs (M1..M20)'!A82,"") ->  | AH79: =IF($G79<>"",AG79,"") -> 
F80: 1 | H80: =IF($G80<>"",G80,"") ->  | K80: =IF($B80<>"",IF(I80,(INDEX(P$11:Q$14,MATCH(H80,P$11:P$14),2)/I80)*1000,0),"") ->  | L80: =IF(Q$11<>"",IF($B80<>"",K80-J80,""),"") ->  | M80: =IF(B80<>"",RANK(L80,L$11:L$110),"") ->  | N80: =IF(B80<>"",'Classement Général'!BA80,"") ->  | O80: =IF(B80<>"",'Calculs (M1..M20)'!A83,"") ->  | AH80: =IF($G80<>"",AG80,"") -> 
F81: 1 | H81: =IF($G81<>"",G81,"") ->  | K81: =IF($B81<>"",IF(I81,(INDEX(P$11:Q$14,MATCH(H81,P$11:P$14),2)/I81)*1000,0),"") ->  | L81: =IF(Q$11<>"",IF($B81<>"",K81-J81,""),"") ->  | M81: =IF(B81<>"",RANK(L81,L$11:L$110),"") ->  | N81: =IF(B81<>"",'Classement Général'!BA81,"") ->  | O81: =IF(B81<>"",'Calculs (M1..M20)'!A84,"") ->  | AH81: =IF($G81<>"",AG81,"") -> 
F82: 1 | H82: =IF($G82<>"",G82,"") ->  | K82: =IF($B82<>"",IF(I82,(INDEX(P$11:Q$14,MATCH(H82,P$11:P$14),2)/I82)*1000,0),"") ->  | L82: =IF(Q$11<>"",IF($B82<>"",K82-J82,""),"") ->  | M82: =IF(B82<>"",RANK(L82,L$11:L$110),"") ->  | N82: =IF(B82<>"",'Classement Général'!BA82,"") ->  | O82: =IF(B82<>"",'Calculs (M1..M20)'!A85,"") ->  | AH82: =IF($G82<>"",AG82,"") -> 
F83: 1 | H83: =IF($G83<>"",G83,"") ->  | K83: =IF($B83<>"",IF(I83,(INDEX(P$11:Q$14,MATCH(H83,P$11:P$14),2)/I83)*1000,0),"") ->  | L83: =IF(Q$11<>"",IF($B83<>"",K83-J83,""),"") ->  | M83: =IF(B83<>"",RANK(L83,L$11:L$110),"") ->  | N83: =IF(B83<>"",'Classement Général'!BA83,"") ->  | O83: =IF(B83<>"",'Calculs (M1..M20)'!A86,"") ->  | AH83: =IF($G83<>"",AG83,"") -> 
F84: 1 | H84: =IF($G84<>"",G84,"") ->  | K84: =IF($B84<>"",IF(I84,(INDEX(P$11:Q$14,MATCH(H84,P$11:P$14),2)/I84)*1000,0),"") ->  | L84: =IF(Q$11<>"",IF($B84<>"",K84-J84,""),"") ->  | M84: =IF(B84<>"",RANK(L84,L$11:L$110),"") ->  | N84: =IF(B84<>"",'Classement Général'!BA84,"") ->  | O84: =IF(B84<>"",'Calculs (M1..M20)'!A87,"") ->  | AH84: =IF($G84<>"",AG84,"") -> 
F85: 1 | H85: =IF($G85<>"",G85,"") ->  | K85: =IF($B85<>"",IF(I85,(INDEX(P$11:Q$14,MATCH(H85,P$11:P$14),2)/I85)*1000,0),"") ->  | L85: =IF(Q$11<>"",IF($B85<>"",K85-J85,""),"") ->  | M85: =IF(B85<>"",RANK(L85,L$11:L$110),"") ->  | N85: =IF(B85<>"",'Classement Général'!BA85,"") ->  | O85: =IF(B85<>"",'Calculs (M1..M20)'!A88,"") ->  | AH85: =IF($G85<>"",AG85,"") -> 
F86: 1 | H86: =IF($G86<>"",G86,"") ->  | K86: =IF($B86<>"",IF(I86,(INDEX(P$11:Q$14,MATCH(H86,P$11:P$14),2)/I86)*1000,0),"") ->  | L86: =IF(Q$11<>"",IF($B86<>"",K86-J86,""),"") ->  | M86: =IF(B86<>"",RANK(L86,L$11:L$110),"") ->  | N86: =IF(B86<>"",'Classement Général'!BA86,"") ->  | O86: =IF(B86<>"",'Calculs (M1..M20)'!A89,"") ->  | AH86: =IF($G86<>"",AG86,"") -> 
F87: 1 | H87: =IF($G87<>"",G87,"") ->  | K87: =IF($B87<>"",IF(I87,(INDEX(P$11:Q$14,MATCH(H87,P$11:P$14),2)/I87)*1000,0),"") ->  | L87: =IF(Q$11<>"",IF($B87<>"",K87-J87,""),"") ->  | M87: =IF(B87<>"",RANK(L87,L$11:L$110),"") ->  | N87: =IF(B87<>"",'Classement Général'!BA87,"") ->  | O87: =IF(B87<>"",'Calculs (M1..M20)'!A90,"") ->  | AH87: =IF($G87<>"",AG87,"") -> 
F88: 1 | H88: =IF($G88<>"",G88,"") ->  | K88: =IF($B88<>"",IF(I88,(INDEX(P$11:Q$14,MATCH(H88,P$11:P$14),2)/I88)*1000,0),"") ->  | L88: =IF(Q$11<>"",IF($B88<>"",K88-J88,""),"") ->  | M88: =IF(B88<>"",RANK(L88,L$11:L$110),"") ->  | N88: =IF(B88<>"",'Classement Général'!BA88,"") ->  | O88: =IF(B88<>"",'Calculs (M1..M20)'!A91,"") ->  | AH88: =IF($G88<>"",AG88,"") -> 
F89: 1 | H89: =IF($G89<>"",G89,"") ->  | K89: =IF($B89<>"",IF(I89,(INDEX(P$11:Q$14,MATCH(H89,P$11:P$14),2)/I89)*1000,0),"") ->  | L89: =IF(Q$11<>"",IF($B89<>"",K89-J89,""),"") ->  | M89: =IF(B89<>"",RANK(L89,L$11:L$110),"") ->  | N89: =IF(B89<>"",'Classement Général'!BA89,"") ->  | O89: =IF(B89<>"",'Calculs (M1..M20)'!A92,"") ->  | AH89: =IF($G89<>"",AG89,"") -> 
F90: 1 | H90: =IF($G90<>"",G90,"") ->  | K90: =IF($B90<>"",IF(I90,(INDEX(P$11:Q$14,MATCH(H90,P$11:P$14),2)/I90)*1000,0),"") ->  | L90: =IF(Q$11<>"",IF($B90<>"",K90-J90,""),"") ->  | M90: =IF(B90<>"",RANK(L90,L$11:L$110),"") ->  | N90: =IF(B90<>"",'Classement Général'!BA90,"") ->  | O90: =IF(B90<>"",'Calculs (M1..M20)'!A93,"") ->  | AH90: =IF($G90<>"",AG90,"") -> 
F91: 1 | H91: =IF($G91<>"",G91,"") ->  | K91: =IF($B91<>"",IF(I91,(INDEX(P$11:Q$14,MATCH(H91,P$11:P$14),2)/I91)*1000,0),"") ->  | L91: =IF(Q$11<>"",IF($B91<>"",K91-J91,""),"") ->  | M91: =IF(B91<>"",RANK(L91,L$11:L$110),"") ->  | N91: =IF(B91<>"",'Classement Général'!BA91,"") ->  | O91: =IF(B91<>"",'Calculs (M1..M20)'!A94,"") ->  | AH91: =IF($G91<>"",AG91,"") -> 
F92: 1 | H92: =IF($G92<>"",G92,"") ->  | K92: =IF($B92<>"",IF(I92,(INDEX(P$11:Q$14,MATCH(H92,P$11:P$14),2)/I92)*1000,0),"") ->  | L92: =IF(Q$11<>"",IF($B92<>"",K92-J92,""),"") ->  | M92: =IF(B92<>"",RANK(L92,L$11:L$110),"") ->  | N92: =IF(B92<>"",'Classement Général'!BA92,"") ->  | O92: =IF(B92<>"",'Calculs (M1..M20)'!A95,"") ->  | AH92: =IF($G92<>"",AG92,"") -> 
F93: 1 | H93: =IF($G93<>"",G93,"") ->  | K93: =IF($B93<>"",IF(I93,(INDEX(P$11:Q$14,MATCH(H93,P$11:P$14),2)/I93)*1000,0),"") ->  | L93: =IF(Q$11<>"",IF($B93<>"",K93-J93,""),"") ->  | M93: =IF(B93<>"",RANK(L93,L$11:L$110),"") ->  | N93: =IF(B93<>"",'Classement Général'!BA93,"") ->  | O93: =IF(B93<>"",'Calculs (M1..M20)'!A96,"") ->  | AH93: =IF($G93<>"",AG93,"") -> 
F94: 1 | H94: =IF($G94<>"",G94,"") ->  | K94: =IF($B94<>"",IF(I94,(INDEX(P$11:Q$14,MATCH(H94,P$11:P$14),2)/I94)*1000,0),"") ->  | L94: =IF(Q$11<>"",IF($B94<>"",K94-J94,""),"") ->  | M94: =IF(B94<>"",RANK(L94,L$11:L$110),"") ->  | N94: =IF(B94<>"",'Classement Général'!BA94,"") ->  | O94: =IF(B94<>"",'Calculs (M1..M20)'!A97,"") ->  | AH94: =IF($G94<>"",AG94,"") -> 
F95: 1 | H95: =IF($G95<>"",G95,"") ->  | K95: =IF($B95<>"",IF(I95,(INDEX(P$11:Q$14,MATCH(H95,P$11:P$14),2)/I95)*1000,0),"") ->  | L95: =IF(Q$11<>"",IF($B95<>"",K95-J95,""),"") ->  | M95: =IF(B95<>"",RANK(L95,L$11:L$110),"") ->  | N95: =IF(B95<>"",'Classement Général'!BA95,"") ->  | O95: =IF(B95<>"",'Calculs (M1..M20)'!A98,"") ->  | AH95: =IF($G95<>"",AG95,"") -> 
F96: 1 | H96: =IF($G96<>"",G96,"") ->  | K96: =IF($B96<>"",IF(I96,(INDEX(P$11:Q$14,MATCH(H96,P$11:P$14),2)/I96)*1000,0),"") ->  | L96: =IF(Q$11<>"",IF($B96<>"",K96-J96,""),"") ->  | M96: =IF(B96<>"",RANK(L96,L$11:L$110),"") ->  | N96: =IF(B96<>"",'Classement Général'!BA96,"") ->  | O96: =IF(B96<>"",'Calculs (M1..M20)'!A99,"") ->  | AH96: =IF($G96<>"",AG96,"") -> 
F97: 1 | H97: =IF($G97<>"",G97,"") ->  | K97: =IF($B97<>"",IF(I97,(INDEX(P$11:Q$14,MATCH(H97,P$11:P$14),2)/I97)*1000,0),"") ->  | L97: =IF(Q$11<>"",IF($B97<>"",K97-J97,""),"") ->  | M97: =IF(B97<>"",RANK(L97,L$11:L$110),"") ->  | N97: =IF(B97<>"",'Classement Général'!BA97,"") ->  | O97: =IF(B97<>"",'Calculs (M1..M20)'!A100,"") ->  | AH97: =IF($G97<>"",AG97,"") -> 
F98: 1 | H98: =IF($G98<>"",G98,"") ->  | K98: =IF($B98<>"",IF(I98,(INDEX(P$11:Q$14,MATCH(H98,P$11:P$14),2)/I98)*1000,0),"") ->  | L98: =IF(Q$11<>"",IF($B98<>"",K98-J98,""),"") ->  | M98: =IF(B98<>"",RANK(L98,L$11:L$110),"") ->  | N98: =IF(B98<>"",'Classement Général'!BA98,"") ->  | O98: =IF(B98<>"",'Calculs (M1..M20)'!A101,"") ->  | AH98: =IF($G98<>"",AG98,"") -> 
F99: 1 | H99: =IF($G99<>"",G99,"") ->  | K99: =IF($B99<>"",IF(I99,(INDEX(P$11:Q$14,MATCH(H99,P$11:P$14),2)/I99)*1000,0),"") ->  | L99: =IF(Q$11<>"",IF($B99<>"",K99-J99,""),"") ->  | M99: =IF(B99<>"",RANK(L99,L$11:L$110),"") ->  | N99: =IF(B99<>"",'Classement Général'!BA99,"") ->  | O99: =IF(B99<>"",'Calculs (M1..M20)'!A102,"") ->  | AH99: =IF($G99<>"",AG99,"") -> 
F100: 1 | H100: =IF($G100<>"",G100,"") ->  | K100: =IF($B100<>"",IF(I100,(INDEX(P$11:Q$14,MATCH(H100,P$11:P$14),2)/I100)*1000,0),"") ->  | L100: =IF(Q$11<>"",IF($B100<>"",K100-J100,""),"") ->  | M100: =IF(B100<>"",RANK(L100,L$11:L$110),"") ->  | N100: =IF(B100<>"",'Classement Général'!BA100,"") ->  | O100: =IF(B100<>"",'Calculs (M1..M20)'!A103,"") ->  | AH100: =IF($G100<>"",AG100,"") -> 
F101: 1 | H101: =IF($G101<>"",G101,"") ->  | K101: =IF($B101<>"",IF(I101,(INDEX(P$11:Q$14,MATCH(H101,P$11:P$14),2)/I101)*1000,0),"") ->  | L101: =IF(Q$11<>"",IF($B101<>"",K101-J101,""),"") ->  | M101: =IF(B101<>"",RANK(L101,L$11:L$110),"") ->  | N101: =IF(B101<>"",'Classement Général'!BA101,"") ->  | O101: =IF(B101<>"",'Calculs (M1..M20)'!A104,"") ->  | AH101: =IF($G101<>"",AG101,"") -> 
F102: 1 | H102: =IF($G102<>"",G102,"") ->  | K102: =IF($B102<>"",IF(I102,(INDEX(P$11:Q$14,MATCH(H102,P$11:P$14),2)/I102)*1000,0),"") ->  | L102: =IF(Q$11<>"",IF($B102<>"",K102-J102,""),"") ->  | M102: =IF(B102<>"",RANK(L102,L$11:L$110),"") ->  | N102: =IF(B102<>"",'Classement Général'!BA102,"") ->  | O102: =IF(B102<>"",'Calculs (M1..M20)'!A105,"") ->  | AH102: =IF($G102<>"",AG102,"") -> 
F103: 1 | H103: =IF($G103<>"",G103,"") ->  | K103: =IF($B103<>"",IF(I103,(INDEX(P$11:Q$14,MATCH(H103,P$11:P$14),2)/I103)*1000,0),"") ->  | L103: =IF(Q$11<>"",IF($B103<>"",K103-J103,""),"") ->  | M103: =IF(B103<>"",RANK(L103,L$11:L$110),"") ->  | N103: =IF(B103<>"",'Classement Général'!BA103,"") ->  | O103: =IF(B103<>"",'Calculs (M1..M20)'!A106,"") ->  | AH103: =IF($G103<>"",AG103,"") -> 
F104: 1 | H104: =IF($G104<>"",G104,"") ->  | K104: =IF($B104<>"",IF(I104,(INDEX(P$11:Q$14,MATCH(H104,P$11:P$14),2)/I104)*1000,0),"") ->  | L104: =IF(Q$11<>"",IF($B104<>"",K104-J104,""),"") ->  | M104: =IF(B104<>"",RANK(L104,L$11:L$110),"") ->  | N104: =IF(B104<>"",'Classement Général'!BA104,"") ->  | O104: =IF(B104<>"",'Calculs (M1..M20)'!A107,"") ->  | AH104: =IF($G104<>"",AG104,"") -> 
F105: 1 | H105: =IF($G105<>"",G105,"") ->  | K105: =IF($B105<>"",IF(I105,(INDEX(P$11:Q$14,MATCH(H105,P$11:P$14),2)/I105)*1000,0),"") ->  | L105: =IF(Q$11<>"",IF($B105<>"",K105-J105,""),"") ->  | M105: =IF(B105<>"",RANK(L105,L$11:L$110),"") ->  | N105: =IF(B105<>"",'Classement Général'!BA105,"") ->  | O105: =IF(B105<>"",'Calculs (M1..M20)'!A108,"") ->  | AH105: =IF($G105<>"",AG105,"") -> 
F106: 1 | H106: =IF($G106<>"",G106,"") ->  | K106: =IF($B106<>"",IF(I106,(INDEX(P$11:Q$14,MATCH(H106,P$11:P$14),2)/I106)*1000,0),"") ->  | L106: =IF(Q$11<>"",IF($B106<>"",K106-J106,""),"") ->  | M106: =IF(B106<>"",RANK(L106,L$11:L$110),"") ->  | N106: =IF(B106<>"",'Classement Général'!BA106,"") ->  | O106: =IF(B106<>"",'Calculs (M1..M20)'!A109,"") ->  | AH106: =IF($G106<>"",AG106,"") -> 
F107: 1 | H107: =IF($G107<>"",G107,"") ->  | K107: =IF($B107<>"",IF(I107,(INDEX(P$11:Q$14,MATCH(H107,P$11:P$14),2)/I107)*1000,0),"") ->  | L107: =IF(Q$11<>"",IF($B107<>"",K107-J107,""),"") ->  | M107: =IF(B107<>"",RANK(L107,L$11:L$110),"") ->  | N107: =IF(B107<>"",'Classement Général'!BA107,"") ->  | O107: =IF(B107<>"",'Calculs (M1..M20)'!A110,"") ->  | AH107: =IF($G107<>"",AG107,"") -> 
F108: 1 | H108: =IF($G108<>"",G108,"") ->  | K108: =IF($B108<>"",IF(I108,(INDEX(P$11:Q$14,MATCH(H108,P$11:P$14),2)/I108)*1000,0),"") ->  | L108: =IF(Q$11<>"",IF($B108<>"",K108-J108,""),"") ->  | M108: =IF(B108<>"",RANK(L108,L$11:L$110),"") ->  | N108: =IF(B108<>"",'Classement Général'!BA108,"") ->  | O108: =IF(B108<>"",'Calculs (M1..M20)'!A111,"") ->  | AH108: =IF($G108<>"",AG108,"") -> 
F109: 1 | H109: =IF($G109<>"",G109,"") ->  | K109: =IF($B109<>"",IF(I109,(INDEX(P$11:Q$14,MATCH(H109,P$11:P$14),2)/I109)*1000,0),"") ->  | L109: =IF(Q$11<>"",IF($B109<>"",K109-J109,""),"") ->  | M109: =IF(B109<>"",RANK(L109,L$11:L$110),"") ->  | N109: =IF(B109<>"",'Classement Général'!BA109,"") ->  | O109: =IF(B109<>"",'Calculs (M1..M20)'!A112,"") ->  | AH109: =IF($G109<>"",AG109,"") -> 
F110: 1 | H110: =IF($G110<>"",G110,"") ->  | K110: =IF($B110<>"",IF(I110,(INDEX(P$11:Q$14,MATCH(H110,P$11:P$14),2)/I110)*1000,0),"") ->  | L110: =IF(Q$11<>"",IF($B110<>"",K110-J110,""),"") ->  | M110: =IF(B110<>"",RANK(L110,L$11:L$110),"") ->  | N110: =IF(B110<>"",'Classement Général'!BA110,"") ->  | O110: =IF(B110<>"",'Calculs (M1..M20)'!A113,"") ->  | AH110: =IF($G110<>"",AG110,"") -> 
B111: Nom | C111: Dossard | D111: Freq | E111: Equipe | F111: Manche | G111: Gpe | H111: GS | I111: Temps | J111: Penalité | K111: FAI Brut | L111: FAI Net | M111: ClastM | N111: ClastE | O111: ClastG | P111: GS | Q111: Min | R111: Max | S111: Moy | T111: Nbre Concurrents | U111: GS | AH111: GS | AI111: Temps | AJ111: Penalité
B112: =IF(B11<>"",B11,"") -> Sébastien CHABAUD | C112: =IF(C11<>"",C11,"") -> 1 | D112: =IF(D11<>"",D11,"") -> 2.4GHz | E112: =IF(E11<>"",E11,"") ->  | F112: 2 | G112: =G11 -> 1 | H112: =IF($G112<>"",G112,"") -> 1 | I112: 56.41 | K112: =IF($B112<>"",IF(I112,(INDEX(P$112:Q$115,MATCH(H112,P$112:P$115),2)/I112)*1000,0),"") -> 742.7761035 | L112: =IF(Q$112<>"",IF($B112<>"",K112-$J112,""),"") -> 742.7761035 | M112: =IF(B112<>"",RANK(L112,L$112:L$211),"") -> 20 | N112: =IF(B112<>"",'Classement Général'!BB11,"") -> 22 | O112: =IF(B112<>"",'Calculs (M1..M20)'!A14,"") -> 22 | P112: =IF(DMIN($H111:$I212,$P$10,$U$10:$U$11)<>0,1,"") -> 1 | Q112: =IF(DMIN($H111:$I212,$I$10,$U$10:$U$11)<>0,DMIN($H111:$I212,$I$10,$U$10:$U$11),"") -> 41.9 | R112: =IF(DMAX($H111:$I212,$I$10,$U$10:$U$11)<>0,DMAX($H111:$I212,$I$10,$U$10:$U$11),"") -> 58.25 | S112: =IF($P112<>"",IF(DAVERAGE($H111:$I212,$I$10,$U$10:$U$11)<>0,DAVERAGE($H111:$I212,$I$10,$U$10:$U$11),""),"") -> 50.51636364 | T112: =IF($P112<>"",IF(DCOUNTA($H111:$I212,$I$10,$U$10:$U$11)<>0,DCOUNTA($H111:$I212,$I$10,$U$10:$U$11),""),"") -> 22 | U112: 1 | AH112: =IF($G112<>"",AG112,"") -> 0
B113: =IF(B12<>"",B12,"") -> Herve DALL AVA | C113: =IF(C12<>"",C12,"") -> 2 | D113: =IF(D12<>"",D12,"") -> 2.4GHz | E113: =IF(E12<>"",E12,"") ->  | F113: 2 | G113: =G12 -> 1 | H113: =IF($G113<>"",G113,"") -> 1 | I113: 48.38 | K113: =IF($B113<>"",IF(I113,(INDEX(P$112:Q$115,MATCH(H113,P$112:P$115),2)/I113)*1000,0),"") -> 866.0603555 | L113: =IF(Q$112<>"",IF($B113<>"",K113-$J113,""),"") -> 866.0603555 | M113: =IF(B113<>"",RANK(L113,L$112:L$211),"") -> 6 | N113: =IF(B113<>"",'Classement Général'!BB12,"") -> 7 | O113: =IF(B113<>"",'Calculs (M1..M20)'!A15,"") -> 8 | P113: =IF(DMIN($H111:$I212,$P$10,$U$12:$U$13)<>0,2,"") ->  | Q113: =IF(DMIN($H111:$I212,$I$10,$U$12:$U$13)<>0,DMIN($H111:$I212,$I$10,$U$12:$U$13),"") ->  | R113: =IF(DMAX($H111:$I212,$I$10,$U$12:$U$13)<>0,DMAX($H111:$I212,$I$10,$U$12:$U$13),"") ->  | S113: =IF($P113<>"",IF(DAVERAGE($H111:$I212,$I$10,$U$12:$U$13)<>0,DAVERAGE($H111:$I212,$I$10,$U$12:$U$13),""),"") ->  | T113: =IF($P112<>"",IF(DCOUNTA($H111:$I212,$I$10,$U$12:$U$13)<>0,DCOUNTA($H111:$I212,$I$10,$U$12:$U$13),""),"") ->  | U113: GS | AH113: =IF($G113<>"",AG113,"") -> 0
B114: =IF(B13<>"",B13,"") -> Jean Luc FOUCHER | C114: =IF(C13<>"",C13,"") -> 3 | D114: =IF(D13<>"",D13,"") -> 2.4GHz | E114: =IF(E13<>"",E13,"") ->  | F114: 2 | G114: =G13 -> 1 | H114: =IF($G114<>"",G114,"") -> 1 | I114: 51.16 | K114: =IF($B114<>"",IF(I114,(INDEX(P$112:Q$115,MATCH(H114,P$112:P$115),2)/I114)*1000,0),"") -> 818.9992181 | L114: =IF(Q$112<>"",IF($B114<>"",K114-$J114,""),"") -> 818.9992181 | M114: =IF(B114<>"",RANK(L114,L$112:L$211),"") -> 15 | N114: =IF(B114<>"",'Classement Général'!BB13,"") -> 14 | O114: =IF(B114<>"",'Calculs (M1..M20)'!A16,"") -> 15 | P114: =IF(DMIN($H111:$I212,$P$10,$U$14:$U$15)<>0,3,"") ->  | Q114: =IF(DMIN($H111:$I212,$I$10,$U$14:$U$15)<>0,DMIN($H111:$I212,$I$10,$U$14:$U$15),"") ->  | R114: =IF(DMAX($H111:$I212,$I$10,$U$14:$U$15)<>0,DMAX($H111:$I212,$I$10,$U$14:$U$15),"") ->  | S114: =IF($P114<>"",IF(DAVERAGE($H111:$I212,$I$10,$U$14:$U$15)<>0,DAVERAGE($H111:$I212,$I$10,$U$14:$U$15),""),"") ->  | T114: =IF($P114<>"",IF(DCOUNTA($H111:$I212,$I$10,$U$14:$U$15)<>0,DCOUNTA($H111:$I212,$I$10,$U$14:$U$15),""),"") ->  | U114: 2 | AH114: =IF($G114<>"",AG114,"") -> 0
B115: =IF(B14<>"",B14,"") -> Thomas DELARBRE | C115: =IF(C14<>"",C14,"") -> 4 | D115: =IF(D14<>"",D14,"") -> 2.4GHz | E115: =IF(E14<>"",E14,"") ->  | F115: 2 | G115: =G14 -> 1 | H115: =IF($G115<>"",G115,"") -> 1 | I115: 48.99 | K115: =IF($B115<>"",IF(I115,(INDEX(P$112:Q$115,MATCH(H115,P$112:P$115),2)/I115)*1000,0),"") -> 855.2765871 | L115: =IF(Q$112<>"",IF($B115<>"",K115-$J115,""),"") -> 855.2765871 | M115: =IF(B115<>"",RANK(L115,L$112:L$211),"") -> 10 | N115: =IF(B115<>"",'Classement Général'!BB14,"") -> 10 | O115: =IF(B115<>"",'Calculs (M1..M20)'!A17,"") -> 10 | P115: =IF(DMIN($H111:$I212,$P$10,$U$16:$U$17)<>0,4,"") ->  | Q115: =IF(DMIN($H111:$I212,$I$10,$U$16:$U$17)<>0,DMIN($H111:$I212,$I$10,$U$16:$U$17),"") ->  | R115: =IF(DMAX($H111:$I212,$I$10,$U$16:$U$17)<>0,DMAX($H111:$I212,$I$10,$U$16:$U$17),"") ->  | S115: =IF($P115<>"",IF(DAVERAGE($H111:$I212,$I$10,$U$16:$U$17)<>0,DAVERAGE($H111:$I212,$I$10,$U$16:$U$17),""),"") ->  | T115: =IF($P114<>"",IF(DCOUNTA($H111:$I212,$I$10,$U$16:$U$17)<>0,DCOUNTA($H111:$I212,$I$10,$U$16:$U$17),""),"") ->  | U115: GS | AH115: =IF($G115<>"",AG115,"") -> 0
B116: =IF(B15<>"",B15,"") -> Pierre DIATTA | C116: =IF(C15<>"",C15,"") -> 5 | D116: =IF(D15<>"",D15,"") -> 2.4GHz | E116: =IF(E15<>"",E15,"") ->  | F116: 2 | G116: =G15 -> 1 | H116: =IF($G116<>"",G116,"") -> 1 | I116: 53.07 | K116: =IF($B116<>"",IF(I116,(INDEX(P$112:Q$115,MATCH(H116,P$112:P$115),2)/I116)*1000,0),"") -> 789.5232712 | L116: =IF(Q$112<>"",IF($B116<>"",K116-$J116,""),"") -> 789.5232712 | M116: =IF(B116<>"",RANK(L116,L$112:L$211),"") -> 17 | N116: =IF(B116<>"",'Classement Général'!BB15,"") -> 15 | O116: =IF(B116<>"",'Calculs (M1..M20)'!A18,"") -> 20 | T116: =SUM(T112:T115) -> 22 | U116: 3 | V116: =T116 -> 22 | AH116: =IF($G116<>"",AG116,"") -> 0
B117: =IF(B16<>"",B16,"") -> Olivier MONET | C117: =IF(C16<>"",C16,"") -> 6 | D117: =IF(D16<>"",D16,"") -> 41.110MHz | E117: =IF(E16<>"",E16,"") ->  | F117: 2 | G117: =G16 -> 1 | H117: =IF($G117<>"",G117,"") -> 1 | I117: 47.22 | K117: =IF($B117<>"",IF(I117,(INDEX(P$112:Q$115,MATCH(H117,P$112:P$115),2)/I117)*1000,0),"") -> 887.3358746 | L117: =IF(Q$112<>"",IF($B117<>"",K117-$J117,""),"") -> 887.3358746 | M117: =IF(B117<>"",RANK(L117,L$112:L$211),"") -> 2 | N117: =IF(B117<>"",'Classement Général'!BB16,"") -> 8 | O117: =IF(B117<>"",'Calculs (M1..M20)'!A19,"") -> 6 | U117: GS | AH117: =IF($G117<>"",AG117,"") -> 0
B118: =IF(B17<>"",B17,"") -> Pierre RONDEL | C118: =IF(C17<>"",C17,"") -> 7 | D118: =IF(D17<>"",D17,"") -> 2.4GHz | E118: =IF(E17<>"",E17,"") ->  | F118: 2 | G118: =G17 -> 1 | H118: =IF($G118<>"",G118,"") -> 1 | I118: 50.76 | K118: =IF($B118<>"",IF(I118,(INDEX(P$112:Q$115,MATCH(H118,P$112:P$115),2)/I118)*1000,0),"") -> 825.4531127 | L118: =IF(Q$112<>"",IF($B118<>"",K118-$J118,""),"") -> 825.4531127 | M118: =IF(B118<>"",RANK(L118,L$112:L$211),"") -> 14 | N118: =IF(B118<>"",'Classement Général'!BB17,"") -> 3 | O118: =IF(B118<>"",'Calculs (M1..M20)'!A20,"") -> 1 | U118: 4 | AH118: =IF($G118<>"",AG118,"") -> 0
B119: =IF(B18<>"",B18,"") -> Andreas FRICKE | C119: =IF(C18<>"",C18,"") -> 8 | D119: =IF(D18<>"",D18,"") -> 2.4GHz | E119: =IF(E18<>"",E18,"") ->  | F119: 2 | G119: =G18 -> 1 | H119: =IF($G119<>"",G119,"") -> 1 | I119: 57.88 | K119: =IF($B119<>"",IF(I119,(INDEX(P$112:Q$115,MATCH(H119,P$112:P$115),2)/I119)*1000,0),"") -> 723.9115411 | L119: =IF(Q$112<>"",IF($B119<>"",K119-$J119,""),"") -> 723.9115411 | M119: =IF(B119<>"",RANK(L119,L$112:L$211),"") -> 21 | N119: =IF(B119<>"",'Classement Général'!BB18,"") -> 17 | O119: =IF(B119<>"",'Calculs (M1..M20)'!A21,"") -> 18 | AH119: =IF($G119<>"",AG119,"") -> 0
B120: =IF(B19<>"",B19,"") -> Thomas FAURE | C120: =IF(C19<>"",C19,"") -> 9 | D120: =IF(D19<>"",D19,"") -> 2.4GHz | E120: =IF(E19<>"",E19,"") ->  | F120: 2 | G120: =G19 -> 1 | H120: =IF($G120<>"",G120,"") -> 1 | I120: 50.07 | K120: =IF($B120<>"",IF(I120,(INDEX(P$112:Q$115,MATCH(H120,P$112:P$115),2)/I120)*1000,0),"") -> 836.8284402 | L120: =IF(Q$112<>"",IF($B120<>"",K120-$J120,""),"") -> 836.8284402 | M120: =IF(B120<>"",RANK(L120,L$112:L$211),"") -> 12 | N120: =IF(B120<>"",'Classement Général'!BB19,"") -> 9 | O120: =IF(B120<>"",'Calculs (M1..M20)'!A22,"") -> 11 | AH120: =IF($G120<>"",AG120,"") -> 0
B121: =IF(B20<>"",B20,"") -> Philippe LANES | C121: =IF(C20<>"",C20,"") -> 10 | D121: =IF(D20<>"",D20,"") -> 2.4GHz | E121: =IF(E20<>"",E20,"") ->  | F121: 2 | G121: =G20 -> 1 | H121: =IF($G121<>"",G121,"") -> 1 | I121: 47.83 | K121: =IF($B121<>"",IF(I121,(INDEX(P$112:Q$115,MATCH(H121,P$112:P$115),2)/I121)*1000,0),"") -> 876.0192348 | L121: =IF(Q$112<>"",IF($B121<>"",K121-$J121,""),"") -> 876.0192348 | M121: =IF(B121<>"",RANK(L121,L$112:L$211),"") -> 5 | N121: =IF(B121<>"",'Classement Général'!BB20,"") -> 18 | O121: =IF(B121<>"",'Calculs (M1..M20)'!A23,"") -> 14 | AH121: =IF($G121<>"",AG121,"") -> 0
B122: =IF(B21<>"",B21,"") -> Julien HONOR | C122: =IF(C21<>"",C21,"") -> 11 | D122: =IF(D21<>"",D21,"") -> 2.4GHz | E122: =IF(E21<>"",E21,"") ->  | F122: 2 | G122: =G21 -> 1 | H122: =IF($G122<>"",G122,"") -> 1 | I122: 50.21 | K122: =IF($B122<>"",IF(I122,(INDEX(P$112:Q$115,MATCH(H122,P$112:P$115),2)/I122)*1000,0),"") -> 834.4951205 | L122: =IF(Q$112<>"",IF($B122<>"",K122-$J122,""),"") -> 834.4951205 | M122: =IF(B122<>"",RANK(L122,L$112:L$211),"") -> 13 | N122: =IF(B122<>"",'Classement Général'!BB21,"") -> 13 | O122: =IF(B122<>"",'Calculs (M1..M20)'!A24,"") -> 3 | AH122: =IF($G122<>"",AG122,"") -> 0
B123: =IF(B22<>"",B22,"") -> Michael KREBS | C123: =IF(C22<>"",C22,"") -> 12 | D123: =IF(D22<>"",D22,"") -> 2.4GHz | E123: =IF(E22<>"",E22,"") ->  | F123: 2 | G123: =G22 -> 1 | H123: =IF($G123<>"",G123,"") -> 1 | I123: 49.18 | K123: =IF($B123<>"",IF(I123,(INDEX(P$112:Q$115,MATCH(H123,P$112:P$115),2)/I123)*1000,0),"") -> 851.9723465 | L123: =IF(Q$112<>"",IF($B123<>"",K123-$J123,""),"") -> 851.9723465 | M123: =IF(B123<>"",RANK(L123,L$112:L$211),"") -> 11 | N123: =IF(B123<>"",'Classement Général'!BB22,"") -> 12 | O123: =IF(B123<>"",'Calculs (M1..M20)'!A25,"") -> 12 | AH123: =IF($G123<>"",AG123,"") -> 0
B124: =IF(B23<>"",B23,"") -> Aubry GABANON | C124: =IF(C23<>"",C23,"") -> 13 | D124: =IF(D23<>"",D23,"") -> 2.4GHz | E124: =IF(E23<>"",E23,"") ->  | F124: 2 | G124: =G23 -> 1 | H124: =IF($G124<>"",G124,"") -> 1 | I124: 48.73 | K124: =IF($B124<>"",IF(I124,(INDEX(P$112:Q$115,MATCH(H124,P$112:P$115),2)/I124)*1000,0),"") -> 859.8399343 | L124: =IF(Q$112<>"",IF($B124<>"",K124-$J124,""),"") -> 859.8399343 | M124: =IF(B124<>"",RANK(L124,L$112:L$211),"") -> 9 | N124: =IF(B124<>"",'Classement Général'!BB23,"") -> 4 | O124: =IF(B124<>"",'Calculs (M1..M20)'!A26,"") -> 5 | AH124: =IF($G124<>"",AG124,"") -> 0
B125: =IF(B24<>"",B24,"") -> Serge DELARBRE | C125: =IF(C24<>"",C24,"") -> 14 | D125: =IF(D24<>"",D24,"") -> 2.4GHz | E125: =IF(E24<>"",E24,"") ->  | F125: 2 | G125: =G24 -> 1 | H125: =IF($G125<>"",G125,"") -> 1 | I125: 53.28 | K125: =IF($B125<>"",IF(I125,(INDEX(P$112:Q$115,MATCH(H125,P$112:P$115),2)/I125)*1000,0),"") -> 786.4114114 | L125: =IF(Q$112<>"",IF($B125<>"",K125-$J125,""),"") -> 786.4114114 | M125: =IF(B125<>"",RANK(L125,L$112:L$211),"") -> 18 | N125: =IF(B125<>"",'Classement Général'!BB24,"") -> 20 | O125: =IF(B125<>"",'Calculs (M1..M20)'!A27,"") -> 17 | AH125: =IF($G125<>"",AG125,"") -> 0
B126: =IF(B25<>"",B25,"") -> Arnaud LEGER | C126: =IF(C25<>"",C25,"") -> 15 | D126: =IF(D25<>"",D25,"") -> 2.4GHz | E126: =IF(E25<>"",E25,"") ->  | F126: 2 | G126: =G25 -> 1 | H126: =IF($G126<>"",G126,"") -> 1 | I126: 47.41 | K126: =IF($B126<>"",IF(I126,(INDEX(P$112:Q$115,MATCH(H126,P$112:P$115),2)/I126)*1000,0),"") -> 883.7797933 | L126: =IF(Q$112<>"",IF($B126<>"",K126-$J126,""),"") -> 883.7797933 | M126: =IF(B126<>"",RANK(L126,L$112:L$211),"") -> 4 | N126: =IF(B126<>"",'Classement Général'!BB25,"") -> 5 | O126: =IF(B126<>"",'Calculs (M1..M20)'!A28,"") -> 7 | AH126: =IF($G126<>"",AG126,"") -> 0
B127: =IF(B26<>"",B26,"") -> Thierry POIGNARD | C127: =IF(C26<>"",C26,"") -> 16 | D127: =IF(D26<>"",D26,"") -> 2.4GHz | E127: =IF(E26<>"",E26,"") ->  | F127: 2 | G127: =G26 -> 1 | H127: =IF($G127<>"",G127,"") -> 1 | I127: 58.25 | K127: =IF($B127<>"",IF(I127,(INDEX(P$112:Q$115,MATCH(H127,P$112:P$115),2)/I127)*1000,0),"") -> 719.3133047 | L127: =IF(Q$112<>"",IF($B127<>"",K127-$J127,""),"") -> 719.3133047 | M127: =IF(B127<>"",RANK(L127,L$112:L$211),"") -> 22 | N127: =IF(B127<>"",'Classement Général'!BB26,"") -> 19 | O127: =IF(B127<>"",'Calculs (M1..M20)'!A29,"") -> 13 | AH127: =IF($G127<>"",AG127,"") -> 0
B128: =IF(B27<>"",B27,"") -> Joel MARIN | C128: =IF(C27<>"",C27,"") -> 17 | D128: =IF(D27<>"",D27,"") -> 2.4GHz | E128: =IF(E27<>"",E27,"") ->  | F128: 2 | G128: =G27 -> 1 | H128: =IF($G128<>"",G128,"") -> 1 | I128: 51.7 | K128: =IF($B128<>"",IF(I128,(INDEX(P$112:Q$115,MATCH(H128,P$112:P$115),2)/I128)*1000,0),"") -> 810.4448743 | L128: =IF(Q$112<>"",IF($B128<>"",K128-$J128,""),"") -> 810.4448743 | M128: =IF(B128<>"",RANK(L128,L$112:L$211),"") -> 16 | N128: =IF(B128<>"",'Classement Général'!BB27,"") -> 16 | O128: =IF(B128<>"",'Calculs (M1..M20)'!A30,"") -> 16 | AH128: =IF($G128<>"",AG128,"") -> 0
B129: =IF(B28<>"",B28,"") -> Matthieu MERVELET | C129: =IF(C28<>"",C28,"") -> 18 | D129: =IF(D28<>"",D28,"") -> 2.4GHz | E129: =IF(E28<>"",E28,"") ->  | F129: 2 | G129: =G28 -> 1 | H129: =IF($G129<>"",G129,"") -> 1 | I129: 41.9 | K129: =IF($B129<>"",IF(I129,(INDEX(P$112:Q$115,MATCH(H129,P$112:P$115),2)/I129)*1000,0),"") -> 1000 | L129: =IF(Q$112<>"",IF($B129<>"",K129-$J129,""),"") -> 1000 | M129: =IF(B129<>"",RANK(L129,L$112:L$211),"") -> 1 | N129: =IF(B129<>"",'Classement Général'!BB28,"") -> 1 | O129: =IF(B129<>"",'Calculs (M1..M20)'!A31,"") -> 2 | AH129: =IF($G129<>"",AG129,"") -> 0
B130: =IF(B29<>"",B29,"") -> Gabriel MANTEL | C130: =IF(C29<>"",C29,"") -> 19 | D130: =IF(D29<>"",D29,"") -> 2.4GHz | E130: =IF(E29<>"",E29,"") ->  | F130: 2 | G130: =G29 -> 1 | H130: =IF($G130<>"",G130,"") -> 1 | I130: 54.34 | K130: =IF($B130<>"",IF(I130,(INDEX(P$112:Q$115,MATCH(H130,P$112:P$115),2)/I130)*1000,0),"") -> 771.0710342 | L130: =IF(Q$112<>"",IF($B130<>"",K130-$J130,""),"") -> 771.0710342 | M130: =IF(B130<>"",RANK(L130,L$112:L$211),"") -> 19 | N130: =IF(B130<>"",'Classement Général'!BB29,"") -> 21 | O130: =IF(B130<>"",'Calculs (M1..M20)'!A32,"") -> 21 | AH130: =IF($G130<>"",AG130,"") -> 0
B131: =IF(B30<>"",B30,"") -> Sylvain PFEFFERKORN | C131: =IF(C30<>"",C30,"") -> 20 | D131: =IF(D30<>"",D30,"") -> 2.4GHz | E131: =IF(E30<>"",E30,"") ->  | F131: 2 | G131: =G30 -> 1 | H131: =IF($G131<>"",G131,"") -> 1 | I131: 48.65 | K131: =IF($B131<>"",IF(I131,(INDEX(P$112:Q$115,MATCH(H131,P$112:P$115),2)/I131)*1000,0),"") -> 861.2538541 | L131: =IF(Q$112<>"",IF($B131<>"",K131-$J131,""),"") -> 861.2538541 | M131: =IF(B131<>"",RANK(L131,L$112:L$211),"") -> 8 | N131: =IF(B131<>"",'Classement Général'!BB30,"") -> 11 | O131: =IF(B131<>"",'Calculs (M1..M20)'!A33,"") -> 19 | AH131: =IF($G131<>"",AG131,"") -> 0
B132: =IF(B31<>"",B31,"") -> Frederic HOURS | C132: =IF(C31<>"",C31,"") -> 21 | D132: =IF(D31<>"",D31,"") -> 2.4GHz | E132: =IF(E31<>"",E31,"") ->  | F132: 2 | G132: =G31 -> 1 | H132: =IF($G132<>"",G132,"") -> 1 | I132: 47.32 | K132: =IF($B132<>"",IF(I132,(INDEX(P$112:Q$115,MATCH(H132,P$112:P$115),2)/I132)*1000,0),"") -> 885.4606932 | L132: =IF(Q$112<>"",IF($B132<>"",K132-$J132,""),"") -> 885.4606932 | M132: =IF(B132<>"",RANK(L132,L$112:L$211),"") -> 3 | N132: =IF(B132<>"",'Classement Général'!BB31,"") -> 2 | O132: =IF(B132<>"",'Calculs (M1..M20)'!A34,"") -> 9 | AH132: =IF($G132<>"",AG132,"") -> 0
B133: =IF(B32<>"",B32,"") -> Sébastien LANES | C133: =IF(C32<>"",C32,"") -> 22 | D133: =IF(D32<>"",D32,"") -> 2.4GHz | E133: =IF(E32<>"",E32,"") ->  | F133: 2 | G133: =G32 -> 1 | H133: =IF($G133<>"",G133,"") -> 1 | I133: 48.62 | K133: =IF($B133<>"",IF(I133,(INDEX(P$112:Q$115,MATCH(H133,P$112:P$115),2)/I133)*1000,0),"") -> 861.7852735 | L133: =IF(Q$112<>"",IF($B133<>"",K133-$J133,""),"") -> 861.7852735 | M133: =IF(B133<>"",RANK(L133,L$112:L$211),"") -> 7 | N133: =IF(B133<>"",'Classement Général'!BB32,"") -> 6 | O133: =IF(B133<>"",'Calculs (M1..M20)'!A35,"") -> 4 | AH133: =IF($G133<>"",AG133,"") -> 0
B134: =IF(B33<>"",B33,"") ->  | C134: =IF(C33<>"",C33,"") ->  | D134: =IF(D33<>"",D33,"") ->  | E134: =IF(E33<>"",E33,"") ->  | F134: 2 | G134: =G33 -> 1 | H134: =IF($G134<>"",G134,"") -> 1 | K134: =IF($B134<>"",IF(I134,(INDEX(P$112:Q$115,MATCH(H134,P$112:P$115),2)/I134)*1000,0),"") ->  | L134: =IF(Q$112<>"",IF($B134<>"",K134-$J134,""),"") ->  | M134: =IF(B134<>"",RANK(L134,L$112:L$211),"") ->  | N134: =IF(B134<>"",'Classement Général'!BB33,"") ->  | O134: =IF(B134<>"",'Calculs (M1..M20)'!A36,"") ->  | AH134: =IF($G134<>"",AG134,"") -> 0
B135: =IF(B34<>"",B34,"") ->  | C135: =IF(C34<>"",C34,"") ->  | D135: =IF(D34<>"",D34,"") ->  | E135: =IF(E34<>"",E34,"") ->  | F135: 2 | G135: =G34 -> 1 | H135: =IF($G135<>"",G135,"") -> 1 | K135: =IF($B135<>"",IF(I135,(INDEX(P$112:Q$115,MATCH(H135,P$112:P$115),2)/I135)*1000,0),"") ->  | L135: =IF(Q$112<>"",IF($B135<>"",K135-$J135,""),"") ->  | M135: =IF(B135<>"",RANK(L135,L$112:L$211),"") ->  | N135: =IF(B135<>"",'Classement Général'!BB34,"") ->  | O135: =IF(B135<>"",'Calculs (M1..M20)'!A37,"") ->  | AH135: =IF($G135<>"",AG135,"") -> 0
B136: =IF(B35<>"",B35,"") ->  | C136: =IF(C35<>"",C35,"") ->  | D136: =IF(D35<>"",D35,"") ->  | E136: =IF(E35<>"",E35,"") ->  | F136: 2 | G136: =G35 -> 1 | H136: =IF($G136<>"",G136,"") -> 1 | K136: =IF($B136<>"",IF(I136,(INDEX(P$112:Q$115,MATCH(H136,P$112:P$115),2)/I136)*1000,0),"") ->  | L136: =IF(Q$112<>"",IF($B136<>"",K136-$J136,""),"") ->  | M136: =IF(B136<>"",RANK(L136,L$112:L$211),"") ->  | N136: =IF(B136<>"",'Classement Général'!BB35,"") ->  | O136: =IF(B136<>"",'Calculs (M1..M20)'!A38,"") ->  | AH136: =IF($G136<>"",AG136,"") -> 0
B137: =IF(B36<>"",B36,"") ->  | C137: =IF(C36<>"",C36,"") ->  | D137: =IF(D36<>"",D36,"") ->  | E137: =IF(E36<>"",E36,"") ->  | F137: 2 | G137: =G36 -> 1 | H137: =IF($G137<>"",G137,"") -> 1 | K137: =IF($B137<>"",IF(I137,(INDEX(P$112:Q$115,MATCH(H137,P$112:P$115),2)/I137)*1000,0),"") ->  | L137: =IF(Q$112<>"",IF($B137<>"",K137-$J137,""),"") ->  | M137: =IF(B137<>"",RANK(L137,L$112:L$211),"") ->  | N137: =IF(B137<>"",'Classement Général'!BB36,"") ->  | O137: =IF(B137<>"",'Calculs (M1..M20)'!A39,"") ->  | AH137: =IF($G137<>"",AG137,"") -> 0
B138: =IF(B37<>"",B37,"") ->  | C138: =IF(C37<>"",C37,"") ->  | D138: =IF(D37<>"",D37,"") ->  | E138: =IF(E37<>"",E37,"") ->  | F138: 2 | G138: =G37 -> 1 | H138: =IF($G138<>"",G138,"") -> 1 | K138: =IF($B138<>"",IF(I138,(INDEX(P$112:Q$115,MATCH(H138,P$112:P$115),2)/I138)*1000,0),"") ->  | L138: =IF(Q$112<>"",IF($B138<>"",K138-$J138,""),"") ->  | M138: =IF(B138<>"",RANK(L138,L$112:L$211),"") ->  | N138: =IF(B138<>"",'Classement Général'!BB37,"") ->  | O138: =IF(B138<>"",'Calculs (M1..M20)'!A40,"") ->  | AH138: =IF($G138<>"",AG138,"") -> 0
B139: =IF(B38<>"",B38,"") ->  | C139: =IF(C38<>"",C38,"") ->  | D139: =IF(D38<>"",D38,"") ->  | E139: =IF(E38<>"",E38,"") ->  | F139: 2 | G139: =G38 -> 1 | H139: =IF($G139<>"",G139,"") -> 1 | K139: =IF($B139<>"",IF(I139,(INDEX(P$112:Q$115,MATCH(H139,P$112:P$115),2)/I139)*1000,0),"") ->  | L139: =IF(Q$112<>"",IF($B139<>"",K139-$J139,""),"") ->  | M139: =IF(B139<>"",RANK(L139,L$112:L$211),"") ->  | N139: =IF(B139<>"",'Classement Général'!BB38,"") ->  | O139: =IF(B139<>"",'Calculs (M1..M20)'!A41,"") ->  | AH139: =IF($G139<>"",AG139,"") -> 0
B140: =IF(B39<>"",B39,"") ->  | C140: =IF(C39<>"",C39,"") ->  | D140: =IF(D39<>"",D39,"") ->  | E140: =IF(E39<>"",E39,"") ->  | F140: 2 | G140: =G39 -> 1 | H140: =IF($G140<>"",G140,"") -> 1 | K140: =IF($B140<>"",IF(I140,(INDEX(P$112:Q$115,MATCH(H140,P$112:P$115),2)/I140)*1000,0),"") ->  | L140: =IF(Q$112<>"",IF($B140<>"",K140-$J140,""),"") ->  | M140: =IF(B140<>"",RANK(L140,L$112:L$211),"") ->  | N140: =IF(B140<>"",'Classement Général'!BB39,"") ->  | O140: =IF(B140<>"",'Calculs (M1..M20)'!A42,"") ->  | AH140: =IF($G140<>"",AG140,"") -> 0
B141: =IF(B40<>"",B40,"") ->  | C141: =IF(C40<>"",C40,"") ->  | D141: =IF(D40<>"",D40,"") ->  | E141: =IF(E40<>"",E40,"") ->  | F141: 2 | G141: =G40 -> 1 | H141: =IF($G141<>"",G141,"") -> 1 | K141: =IF($B141<>"",IF(I141,(INDEX(P$112:Q$115,MATCH(H141,P$112:P$115),2)/I141)*1000,0),"") ->  | L141: =IF(Q$112<>"",IF($B141<>"",K141-$J141,""),"") ->  | M141: =IF(B141<>"",RANK(L141,L$112:L$211),"") ->  | N141: =IF(B141<>"",'Classement Général'!BB40,"") ->  | O141: =IF(B141<>"",'Calculs (M1..M20)'!A43,"") ->  | AH141: =IF($G141<>"",AG141,"") -> 0
B142: =IF(B41<>"",B41,"") ->  | C142: =IF(C41<>"",C41,"") ->  | D142: =IF(D41<>"",D41,"") ->  | E142: =IF(E41<>"",E41,"") ->  | F142: 2 | G142: =G41 -> 1 | H142: =IF($G142<>"",G142,"") -> 1 | K142: =IF($B142<>"",IF(I142,(INDEX(P$112:Q$115,MATCH(H142,P$112:P$115),2)/I142)*1000,0),"") ->  | L142: =IF(Q$112<>"",IF($B142<>"",K142-$J142,""),"") ->  | M142: =IF(B142<>"",RANK(L142,L$112:L$211),"") ->  | N142: =IF(B142<>"",'Classement Général'!BB41,"") ->  | O142: =IF(B142<>"",'Calculs (M1..M20)'!A44,"") ->  | AH142: =IF($G142<>"",AG142,"") -> 0
B143: =IF(B42<>"",B42,"") ->  | C143: =IF(C42<>"",C42,"") ->  | D143: =IF(D42<>"",D42,"") ->  | E143: =IF(E42<>"",E42,"") ->  | F143: 2 | G143: =G42 -> 1 | H143: =IF($G143<>"",G143,"") -> 1 | K143: =IF($B143<>"",IF(I143,(INDEX(P$112:Q$115,MATCH(H143,P$112:P$115),2)/I143)*1000,0),"") ->  | L143: =IF(Q$112<>"",IF($B143<>"",K143-$J143,""),"") ->  | M143: =IF(B143<>"",RANK(L143,L$112:L$211),"") ->  | N143: =IF(B143<>"",'Classement Général'!BB42,"") ->  | O143: =IF(B143<>"",'Calculs (M1..M20)'!A45,"") ->  | AH143: =IF($G143<>"",AG143,"") -> 0
B144: =IF(B43<>"",B43,"") ->  | C144: =IF(C43<>"",C43,"") ->  | D144: =IF(D43<>"",D43,"") ->  | E144: =IF(E43<>"",E43,"") ->  | F144: 2 | G144: =G43 -> 1 | H144: =IF($G144<>"",G144,"") -> 1 | K144: =IF($B144<>"",IF(I144,(INDEX(P$112:Q$115,MATCH(H144,P$112:P$115),2)/I144)*1000,0),"") ->  | L144: =IF(Q$112<>"",IF($B144<>"",K144-$J144,""),"") ->  | M144: =IF(B144<>"",RANK(L144,L$112:L$211),"") ->  | N144: =IF(B144<>"",'Classement Général'!BB43,"") ->  | O144: =IF(B144<>"",'Calculs (M1..M20)'!A46,"") ->  | AH144: =IF($G144<>"",AG144,"") -> 0
B145: =IF(B44<>"",B44,"") ->  | C145: =IF(C44<>"",C44,"") ->  | D145: =IF(D44<>"",D44,"") ->  | E145: =IF(E44<>"",E44,"") ->  | F145: 2 | G145: =G44 -> 1 | H145: =IF($G145<>"",G145,"") -> 1 | K145: =IF($B145<>"",IF(I145,(INDEX(P$112:Q$115,MATCH(H145,P$112:P$115),2)/I145)*1000,0),"") ->  | L145: =IF(Q$112<>"",IF($B145<>"",K145-$J145,""),"") ->  | M145: =IF(B145<>"",RANK(L145,L$112:L$211),"") ->  | N145: =IF(B145<>"",'Classement Général'!BB44,"") ->  | O145: =IF(B145<>"",'Calculs (M1..M20)'!A47,"") ->  | AH145: =IF($G145<>"",AG145,"") -> 0
B146: =IF(B45<>"",B45,"") ->  | C146: =IF(C45<>"",C45,"") ->  | D146: =IF(D45<>"",D45,"") ->  | E146: =IF(E45<>"",E45,"") ->  | F146: 2 | G146: =G45 -> 1 | H146: =IF($G146<>"",G146,"") -> 1 | K146: =IF($B146<>"",IF(I146,(INDEX(P$112:Q$115,MATCH(H146,P$112:P$115),2)/I146)*1000,0),"") ->  | L146: =IF(Q$112<>"",IF($B146<>"",K146-$J146,""),"") ->  | M146: =IF(B146<>"",RANK(L146,L$112:L$211),"") ->  | N146: =IF(B146<>"",'Classement Général'!BB45,"") ->  | O146: =IF(B146<>"",'Calculs (M1..M20)'!A48,"") ->  | AH146: =IF($G146<>"",AG146,"") -> 0
B147: =IF(B46<>"",B46,"") ->  | C147: =IF(C46<>"",C46,"") ->  | D147: =IF(D46<>"",D46,"") ->  | E147: =IF(E46<>"",E46,"") ->  | F147: 2 | G147: =G46 -> 1 | H147: =IF($G147<>"",G147,"") -> 1 | K147: =IF($B147<>"",IF(I147,(INDEX(P$112:Q$115,MATCH(H147,P$112:P$115),2)/I147)*1000,0),"") ->  | L147: =IF(Q$112<>"",IF($B147<>"",K147-$J147,""),"") ->  | M147: =IF(B147<>"",RANK(L147,L$112:L$211),"") ->  | N147: =IF(B147<>"",'Classement Général'!BB46,"") ->  | O147: =IF(B147<>"",'Calculs (M1..M20)'!A49,"") ->  | AH147: =IF($G147<>"",AG147,"") -> 0
B148: =IF(B47<>"",B47,"") ->  | C148: =IF(C47<>"",C47,"") ->  | D148: =IF(D47<>"",D47,"") ->  | E148: =IF(E47<>"",E47,"") ->  | F148: 2 | G148: =G47 -> 1 | H148: =IF($G148<>"",G148,"") -> 1 | K148: =IF($B148<>"",IF(I148,(INDEX(P$112:Q$115,MATCH(H148,P$112:P$115),2)/I148)*1000,0),"") ->  | L148: =IF(Q$112<>"",IF($B148<>"",K148-$J148,""),"") ->  | M148: =IF(B148<>"",RANK(L148,L$112:L$211),"") ->  | N148: =IF(B148<>"",'Classement Général'!BB47,"") ->  | O148: =IF(B148<>"",'Calculs (M1..M20)'!A50,"") ->  | AH148: =IF($G148<>"",AG148,"") -> 0
B149: =IF(B48<>"",B48,"") ->  | C149: =IF(C48<>"",C48,"") ->  | D149: =IF(D48<>"",D48,"") ->  | E149: =IF(E48<>"",E48,"") ->  | F149: 2 | G149: =G48 -> 1 | H149: =IF($G149<>"",G149,"") -> 1 | K149: =IF($B149<>"",IF(I149,(INDEX(P$112:Q$115,MATCH(H149,P$112:P$115),2)/I149)*1000,0),"") ->  | L149: =IF(Q$112<>"",IF($B149<>"",K149-$J149,""),"") ->  | M149: =IF(B149<>"",RANK(L149,L$112:L$211),"") ->  | N149: =IF(B149<>"",'Classement Général'!BB48,"") ->  | O149: =IF(B149<>"",'Calculs (M1..M20)'!A51,"") ->  | AH149: =IF($G149<>"",AG149,"") -> 0
B150: =IF(B49<>"",B49,"") ->  | C150: =IF(C49<>"",C49,"") ->  | D150: =IF(D49<>"",D49,"") ->  | E150: =IF(E49<>"",E49,"") ->  | F150: 2 | G150: =G49 -> 1 | H150: =IF($G150<>"",G150,"") -> 1 | K150: =IF($B150<>"",IF(I150,(INDEX(P$112:Q$115,MATCH(H150,P$112:P$115),2)/I150)*1000,0),"") ->  | L150: =IF(Q$112<>"",IF($B150<>"",K150-$J150,""),"") ->  | M150: =IF(B150<>"",RANK(L150,L$112:L$211),"") ->  | N150: =IF(B150<>"",'Classement Général'!BB49,"") ->  | O150: =IF(B150<>"",'Calculs (M1..M20)'!A52,"") ->  | AH150: =IF($G150<>"",AG150,"") -> 0
B151: =IF(B50<>"",B50,"") ->  | C151: =IF(C50<>"",C50,"") ->  | D151: =IF(D50<>"",D50,"") ->  | E151: =IF(E50<>"",E50,"") ->  | F151: 2 | G151: =G50 -> 1 | H151: =IF($G151<>"",G151,"") -> 1 | K151: =IF($B151<>"",IF(I151,(INDEX(P$112:Q$115,MATCH(H151,P$112:P$115),2)/I151)*1000,0),"") ->  | L151: =IF(Q$112<>"",IF($B151<>"",K151-$J151,""),"") ->  | M151: =IF(B151<>"",RANK(L151,L$112:L$211),"") ->  | N151: =IF(B151<>"",'Classement Général'!BB50,"") ->  | O151: =IF(B151<>"",'Calculs (M1..M20)'!A53,"") ->  | AH151: =IF($G151<>"",AG151,"") -> 0
B152: =IF(B51<>"",B51,"") ->  | C152: =IF(C51<>"",C51,"") ->  | D152: =IF(D51<>"",D51,"") ->  | E152: =IF(E51<>"",E51,"") ->  | F152: 2 | G152: =G51 -> 1 | H152: =IF($G152<>"",G152,"") -> 1 | K152: =IF($B152<>"",IF(I152,(INDEX(P$112:Q$115,MATCH(H152,P$112:P$115),2)/I152)*1000,0),"") ->  | L152: =IF(Q$112<>"",IF($B152<>"",K152-$J152,""),"") ->  | M152: =IF(B152<>"",RANK(L152,L$112:L$211),"") ->  | N152: =IF(B152<>"",'Classement Général'!BB51,"") ->  | O152: =IF(B152<>"",'Calculs (M1..M20)'!A54,"") ->  | AH152: =IF($G152<>"",AG152,"") -> 0
B153: =IF(B52<>"",B52,"") ->  | C153: =IF(C52<>"",C52,"") ->  | D153: =IF(D52<>"",D52,"") ->  | E153: =IF(E52<>"",E52,"") ->  | F153: 2 | G153: =G52 -> 1 | H153: =IF($G153<>"",G153,"") -> 1 | K153: =IF($B153<>"",IF(I153,(INDEX(P$112:Q$115,MATCH(H153,P$112:P$115),2)/I153)*1000,0),"") ->  | L153: =IF(Q$112<>"",IF($B153<>"",K153-$J153,""),"") ->  | M153: =IF(B153<>"",RANK(L153,L$112:L$211),"") ->  | N153: =IF(B153<>"",'Classement Général'!BB52,"") ->  | O153: =IF(B153<>"",'Calculs (M1..M20)'!A55,"") ->  | AH153: =IF($G153<>"",AG153,"") -> 0
B154: =IF(B53<>"",B53,"") ->  | C154: =IF(C53<>"",C53,"") ->  | D154: =IF(D53<>"",D53,"") ->  | E154: =IF(E53<>"",E53,"") ->  | F154: 2 | G154: =G53 -> 1 | H154: =IF($G154<>"",G154,"") -> 1 | K154: =IF($B154<>"",IF(I154,(INDEX(P$112:Q$115,MATCH(H154,P$112:P$115),2)/I154)*1000,0),"") ->  | L154: =IF(Q$112<>"",IF($B154<>"",K154-$J154,""),"") ->  | M154: =IF(B154<>"",RANK(L154,L$112:L$211),"") ->  | N154: =IF(B154<>"",'Classement Général'!BB53,"") ->  | O154: =IF(B154<>"",'Calculs (M1..M20)'!A56,"") ->  | AH154: =IF($G154<>"",AG154,"") -> 0
B155: =IF(B54<>"",B54,"") ->  | C155: =IF(C54<>"",C54,"") ->  | D155: =IF(D54<>"",D54,"") ->  | E155: =IF(E54<>"",E54,"") ->  | F155: 2 | G155: =G54 -> 1 | H155: =IF($G155<>"",G155,"") -> 1 | K155: =IF($B155<>"",IF(I155,(INDEX(P$112:Q$115,MATCH(H155,P$112:P$115),2)/I155)*1000,0),"") ->  | L155: =IF(Q$112<>"",IF($B155<>"",K155-$J155,""),"") ->  | M155: =IF(B155<>"",RANK(L155,L$112:L$211),"") ->  | N155: =IF(B155<>"",'Classement Général'!BB54,"") ->  | O155: =IF(B155<>"",'Calculs (M1..M20)'!A57,"") ->  | AH155: =IF($G155<>"",AG155,"") -> 0
B156: =IF(B55<>"",B55,"") ->  | C156: =IF(C55<>"",C55,"") ->  | D156: =IF(D55<>"",D55,"") ->  | E156: =IF(E55<>"",E55,"") ->  | F156: 2 | G156: =G55 -> 1 | H156: =IF($G156<>"",G156,"") -> 1 | K156: =IF($B156<>"",IF(I156,(INDEX(P$112:Q$115,MATCH(H156,P$112:P$115),2)/I156)*1000,0),"") ->  | L156: =IF(Q$112<>"",IF($B156<>"",K156-$J156,""),"") ->  | M156: =IF(B156<>"",RANK(L156,L$112:L$211),"") ->  | N156: =IF(B156<>"",'Classement Général'!BB55,"") ->  | O156: =IF(B156<>"",'Calculs (M1..M20)'!A58,"") ->  | AH156: =IF($G156<>"",AG156,"") -> 0
B157: =IF(B56<>"",B56,"") ->  | C157: =IF(C56<>"",C56,"") ->  | D157: =IF(D56<>"",D56,"") ->  | E157: =IF(E56<>"",E56,"") ->  | F157: 2 | G157: =G56 -> 1 | H157: =IF($G157<>"",G157,"") -> 1 | K157: =IF($B157<>"",IF(I157,(INDEX(P$112:Q$115,MATCH(H157,P$112:P$115),2)/I157)*1000,0),"") ->  | L157: =IF(Q$112<>"",IF($B157<>"",K157-$J157,""),"") ->  | M157: =IF(B157<>"",RANK(L157,L$112:L$211),"") ->  | N157: =IF(B157<>"",'Classement Général'!BB56,"") ->  | O157: =IF(B157<>"",'Calculs (M1..M20)'!A59,"") ->  | AH157: =IF($G157<>"",AG157,"") -> 0
B158: =IF(B57<>"",B57,"") ->  | C158: =IF(C57<>"",C57,"") ->  | D158: =IF(D57<>"",D57,"") ->  | E158: =IF(E57<>"",E57,"") ->  | F158: 2 | G158: =G57 -> 1 | H158: =IF($G158<>"",G158,"") -> 1 | K158: =IF($B158<>"",IF(I158,(INDEX(P$112:Q$115,MATCH(H158,P$112:P$115),2)/I158)*1000,0),"") ->  | L158: =IF(Q$112<>"",IF($B158<>"",K158-$J158,""),"") ->  | M158: =IF(B158<>"",RANK(L158,L$112:L$211),"") ->  | N158: =IF(B158<>"",'Classement Général'!BB57,"") ->  | O158: =IF(B158<>"",'Calculs (M1..M20)'!A60,"") ->  | AH158: =IF($G158<>"",AG158,"") -> 0
B159: =IF(B58<>"",B58,"") ->  | C159: =IF(C58<>"",C58,"") ->  | D159: =IF(D58<>"",D58,"") ->  | E159: =IF(E58<>"",E58,"") ->  | F159: 2 | G159: =G58 -> 1 | H159: =IF($G159<>"",G159,"") -> 1 | K159: =IF($B159<>"",IF(I159,(INDEX(P$112:Q$115,MATCH(H159,P$112:P$115),2)/I159)*1000,0),"") ->  | L159: =IF(Q$112<>"",IF($B159<>"",K159-$J159,""),"") ->  | M159: =IF(B159<>"",RANK(L159,L$112:L$211),"") ->  | N159: =IF(B159<>"",'Classement Général'!BB58,"") ->  | O159: =IF(B159<>"",'Calculs (M1..M20)'!A61,"") ->  | AH159: =IF($G159<>"",AG159,"") -> 0
B160: =IF(B59<>"",B59,"") ->  | C160: =IF(C59<>"",C59,"") ->  | D160: =IF(D59<>"",D59,"") ->  | E160: =IF(E59<>"",E59,"") ->  | F160: 2 | G160: =G59 -> 1 | H160: =IF($G160<>"",G160,"") -> 1 | K160: =IF($B160<>"",IF(I160,(INDEX(P$112:Q$115,MATCH(H160,P$112:P$115),2)/I160)*1000,0),"") ->  | L160: =IF(Q$112<>"",IF($B160<>"",K160-$J160,""),"") ->  | M160: =IF(B160<>"",RANK(L160,L$112:L$211),"") ->  | N160: =IF(B160<>"",'Classement Général'!BB59,"") ->  | O160: =IF(B160<>"",'Calculs (M1..M20)'!A62,"") ->  | AH160: =IF($G160<>"",AG160,"") -> 0
B161: =IF(B60<>"",B60,"") ->  | C161: =IF(C60<>"",C60,"") ->  | D161: =IF(D60<>"",D60,"") ->  | E161: =IF(E60<>"",E60,"") ->  | F161: 2 | G161: =G60 -> 1 | H161: =IF($G161<>"",G161,"") -> 1 | K161: =IF($B161<>"",IF(I161,(INDEX(P$112:Q$115,MATCH(H161,P$112:P$115),2)/I161)*1000,0),"") ->  | L161: =IF(Q$112<>"",IF($B161<>"",K161-$J161,""),"") ->  | M161: =IF(B161<>"",RANK(L161,L$112:L$211),"") ->  | N161: =IF(B161<>"",'Classement Général'!BB60,"") ->  | O161: =IF(B161<>"",'Calculs (M1..M20)'!A63,"") ->  | AH161: =IF($G161<>"",AG161,"") -> 0
B162: =IF(B61<>"",B61,"") ->  | C162: =IF(C61<>"",C61,"") ->  | D162: =IF(D61<>"",D61,"") ->  | E162: =IF(E61<>"",E61,"") ->  | F162: 2 | G162: =G61 -> 1 | H162: =IF($G162<>"",G162,"") -> 1 | K162: =IF($B162<>"",IF(I162,(INDEX(P$112:Q$115,MATCH(H162,P$112:P$115),2)/I162)*1000,0),"") ->  | L162: =IF(Q$112<>"",IF($B162<>"",K162-$J162,""),"") ->  | M162: =IF(B162<>"",RANK(L162,L$112:L$211),"") ->  | N162: =IF(B162<>"",'Classement Général'!BB61,"") ->  | O162: =IF(B162<>"",'Calculs (M1..M20)'!A64,"") ->  | AH162: =IF($G162<>"",AG162,"") -> 0
B163: =IF(B62<>"",B62,"") ->  | C163: =IF(C62<>"",C62,"") ->  | D163: =IF(D62<>"",D62,"") ->  | E163: =IF(E62<>"",E62,"") ->  | F163: 2 | G163: =G62 -> 1 | H163: =IF($G163<>"",G163,"") -> 1 | K163: =IF($B163<>"",IF(I163,(INDEX(P$112:Q$115,MATCH(H163,P$112:P$115),2)/I163)*1000,0),"") ->  | L163: =IF(Q$112<>"",IF($B163<>"",K163-$J163,""),"") ->  | M163: =IF(B163<>"",RANK(L163,L$112:L$211),"") ->  | N163: =IF(B163<>"",'Classement Général'!BB62,"") ->  | O163: =IF(B163<>"",'Calculs (M1..M20)'!A65,"") ->  | AH163: =IF($G163<>"",AG163,"") -> 0
B164: =IF(B63<>"",B63,"") ->  | C164: =IF(C63<>"",C63,"") ->  | D164: =IF(D63<>"",D63,"") ->  | E164: =IF(E63<>"",E63,"") ->  | F164: 2 | G164: =G63 -> 1 | H164: =IF($G164<>"",G164,"") -> 1 | K164: =IF($B164<>"",IF(I164,(INDEX(P$112:Q$115,MATCH(H164,P$112:P$115),2)/I164)*1000,0),"") ->  | L164: =IF(Q$112<>"",IF($B164<>"",K164-$J164,""),"") ->  | M164: =IF(B164<>"",RANK(L164,L$112:L$211),"") ->  | N164: =IF(B164<>"",'Classement Général'!BB63,"") ->  | O164: =IF(B164<>"",'Calculs (M1..M20)'!A66,"") ->  | AH164: =IF($G164<>"",AG164,"") -> 0
B165: =IF(B64<>"",B64,"") ->  | C165: =IF(C64<>"",C64,"") ->  | D165: =IF(D64<>"",D64,"") ->  | E165: =IF(E64<>"",E64,"") ->  | F165: 2 | G165: =G64 -> 1 | H165: =IF($G165<>"",G165,"") -> 1 | K165: =IF($B165<>"",IF(I165,(INDEX(P$112:Q$115,MATCH(H165,P$112:P$115),2)/I165)*1000,0),"") ->  | L165: =IF(Q$112<>"",IF($B165<>"",K165-$J165,""),"") ->  | M165: =IF(B165<>"",RANK(L165,L$112:L$211),"") ->  | N165: =IF(B165<>"",'Classement Général'!BB64,"") ->  | O165: =IF(B165<>"",'Calculs (M1..M20)'!A67,"") ->  | AH165: =IF($G165<>"",AG165,"") -> 0
B166: =IF(B65<>"",B65,"") ->  | C166: =IF(C65<>"",C65,"") ->  | D166: =IF(D65<>"",D65,"") ->  | E166: =IF(E65<>"",E65,"") ->  | F166: 2 | G166: =G65 -> 1 | H166: =IF($G166<>"",G166,"") -> 1 | K166: =IF($B166<>"",IF(I166,(INDEX(P$112:Q$115,MATCH(H166,P$112:P$115),2)/I166)*1000,0),"") ->  | L166: =IF(Q$112<>"",IF($B166<>"",K166-$J166,""),"") ->  | M166: =IF(B166<>"",RANK(L166,L$112:L$211),"") ->  | N166: =IF(B166<>"",'Classement Général'!BB65,"") ->  | O166: =IF(B166<>"",'Calculs (M1..M20)'!A68,"") ->  | AH166: =IF($G166<>"",AG166,"") -> 0
B167: =IF(B66<>"",B66,"") ->  | C167: =IF(C66<>"",C66,"") ->  | D167: =IF(D66<>"",D66,"") ->  | E167: =IF(E66<>"",E66,"") ->  | F167: 2 | G167: =G66 -> 1 | H167: =IF($G167<>"",G167,"") -> 1 | K167: =IF($B167<>"",IF(I167,(INDEX(P$112:Q$115,MATCH(H167,P$112:P$115),2)/I167)*1000,0),"") ->  | L167: =IF(Q$112<>"",IF($B167<>"",K167-$J167,""),"") ->  | M167: =IF(B167<>"",RANK(L167,L$112:L$211),"") ->  | N167: =IF(B167<>"",'Classement Général'!BB66,"") ->  | O167: =IF(B167<>"",'Calculs (M1..M20)'!A69,"") ->  | AH167: =IF($G167<>"",AG167,"") -> 0
B168: =IF(B67<>"",B67,"") ->  | C168: =IF(C67<>"",C67,"") ->  | D168: =IF(D67<>"",D67,"") ->  | E168: =IF(E67<>"",E67,"") ->  | F168: 2 | G168: =G67 -> 1 | H168: =IF($G168<>"",G168,"") -> 1 | K168: =IF($B168<>"",IF(I168,(INDEX(P$112:Q$115,MATCH(H168,P$112:P$115),2)/I168)*1000,0),"") ->  | L168: =IF(Q$112<>"",IF($B168<>"",K168-$J168,""),"") ->  | M168: =IF(B168<>"",RANK(L168,L$112:L$211),"") ->  | N168: =IF(B168<>"",'Classement Général'!BB67,"") ->  | O168: =IF(B168<>"",'Calculs (M1..M20)'!A70,"") ->  | AH168: =IF($G168<>"",AG168,"") -> 0
B169: =IF(B68<>"",B68,"") ->  | C169: =IF(C68<>"",C68,"") ->  | D169: =IF(D68<>"",D68,"") ->  | E169: =IF(E68<>"",E68,"") ->  | F169: 2 | G169: =G68 -> 0 | H169: =IF($G169<>"",G169,"") ->  | K169: =IF($B169<>"",IF(I169,(INDEX(P$112:Q$115,MATCH(H169,P$112:P$115),2)/I169)*1000,0),"") ->  | L169: =IF(Q$112<>"",IF($B169<>"",K169-$J169,""),"") ->  | M169: =IF(B169<>"",RANK(L169,L$112:L$211),"") ->  | N169: =IF(B169<>"",'Classement Général'!BB68,"") ->  | O169: =IF(B169<>"",'Calculs (M1..M20)'!A71,"") ->  | AH169: =IF($G169<>"",AG169,"") -> 
B170: =IF(B69<>"",B69,"") ->  | C170: =IF(C69<>"",C69,"") ->  | D170: =IF(D69<>"",D69,"") ->  | E170: =IF(E69<>"",E69,"") ->  | F170: 2 | G170: =G69 -> 0 | H170: =IF($G170<>"",G170,"") ->  | K170: =IF($B170<>"",IF(I170,(INDEX(P$112:Q$115,MATCH(H170,P$112:P$115),2)/I170)*1000,0),"") ->  | L170: =IF(Q$112<>"",IF($B170<>"",K170-$J170,""),"") ->  | M170: =IF(B170<>"",RANK(L170,L$112:L$211),"") ->  | N170: =IF(B170<>"",'Classement Général'!BB69,"") ->  | O170: =IF(B170<>"",'Calculs (M1..M20)'!A72,"") ->  | AH170: =IF($G170<>"",AG170,"") -> 
B171: =IF(B70<>"",B70,"") ->  | C171: =IF(C70<>"",C70,"") ->  | D171: =IF(D70<>"",D70,"") ->  | E171: =IF(E70<>"",E70,"") ->  | F171: 2 | G171: =G70 -> 0 | H171: =IF($G171<>"",G171,"") ->  | K171: =IF($B171<>"",IF(I171,(INDEX(P$112:Q$115,MATCH(H171,P$112:P$115),2)/I171)*1000,0),"") ->  | L171: =IF(Q$112<>"",IF($B171<>"",K171-$J171,""),"") ->  | M171: =IF(B171<>"",RANK(L171,L$112:L$211),"") ->  | N171: =IF(B171<>"",'Classement Général'!BB70,"") ->  | O171: =IF(B171<>"",'Calculs (M1..M20)'!A73,"") ->  | AH171: =IF($G171<>"",AG171,"") -> 
B172: =IF(B71<>"",B71,"") ->  | C172: =IF(C71<>"",C71,"") ->  | D172: =IF(D71<>"",D71,"") ->  | E172: =IF(E71<>"",E71,"") ->  | F172: 2 | G172: =G71 -> 0 | H172: =IF($G172<>"",G172,"") ->  | K172: =IF($B172<>"",IF(I172,(INDEX(P$112:Q$115,MATCH(H172,P$112:P$115),2)/I172)*1000,0),"") ->  | L172: =IF(Q$112<>"",IF($B172<>"",K172-$J172,""),"") ->  | M172: =IF(B172<>"",RANK(L172,L$112:L$211),"") ->  | N172: =IF(B172<>"",'Classement Général'!BB71,"") ->  | O172: =IF(B172<>"",'Calculs (M1..M20)'!A74,"") ->  | AH172: =IF($G172<>"",AG172,"") -> 
B173: =IF(B72<>"",B72,"") ->  | C173: =IF(C72<>"",C72,"") ->  | D173: =IF(D72<>"",D72,"") ->  | E173: =IF(E72<>"",E72,"") ->  | F173: 2 | G173: =G72 -> 0 | H173: =IF($G173<>"",G173,"") ->  | K173: =IF($B173<>"",IF(I173,(INDEX(P$112:Q$115,MATCH(H173,P$112:P$115),2)/I173)*1000,0),"") ->  | L173: =IF(Q$112<>"",IF($B173<>"",K173-$J173,""),"") ->  | M173: =IF(B173<>"",RANK(L173,L$112:L$211),"") ->  | N173: =IF(B173<>"",'Classement Général'!BB72,"") ->  | O173: =IF(B173<>"",'Calculs (M1..M20)'!A75,"") ->  | AH173: =IF($G173<>"",AG173,"") -> 
B174: =IF(B73<>"",B73,"") ->  | C174: =IF(C73<>"",C73,"") ->  | D174: =IF(D73<>"",D73,"") ->  | E174: =IF(E73<>"",E73,"") ->  | F174: 2 | G174: =G73 -> 0 | H174: =IF($G174<>"",G174,"") ->  | K174: =IF($B174<>"",IF(I174,(INDEX(P$112:Q$115,MATCH(H174,P$112:P$115),2)/I174)*1000,0),"") ->  | L174: =IF(Q$112<>"",IF($B174<>"",K174-$J174,""),"") ->  | M174: =IF(B174<>"",RANK(L174,L$112:L$211),"") ->  | N174: =IF(B174<>"",'Classement Général'!BB73,"") ->  | O174: =IF(B174<>"",'Calculs (M1..M20)'!A76,"") ->  | AH174: =IF($G174<>"",AG174,"") -> 
B175: =IF(B74<>"",B74,"") ->  | C175: =IF(C74<>"",C74,"") ->  | D175: =IF(D74<>"",D74,"") ->  | E175: =IF(E74<>"",E74,"") ->  | F175: 2 | G175: =G74 -> 0 | H175: =IF($G175<>"",G175,"") ->  | K175: =IF($B175<>"",IF(I175,(INDEX(P$112:Q$115,MATCH(H175,P$112:P$115),2)/I175)*1000,0),"") ->  | L175: =IF(Q$112<>"",IF($B175<>"",K175-$J175,""),"") ->  | M175: =IF(B175<>"",RANK(L175,L$112:L$211),"") ->  | N175: =IF(B175<>"",'Classement Général'!BB74,"") ->  | O175: =IF(B175<>"",'Calculs (M1..M20)'!A77,"") ->  | AH175: =IF($G175<>"",AG175,"") -> 
B176: =IF(B75<>"",B75,"") ->  | C176: =IF(C75<>"",C75,"") ->  | D176: =IF(D75<>"",D75,"") ->  | E176: =IF(E75<>"",E75,"") ->  | F176: 2 | G176: =G75 -> 0 | H176: =IF($G176<>"",G176,"") ->  | K176: =IF($B176<>"",IF(I176,(INDEX(P$112:Q$115,MATCH(H176,P$112:P$115),2)/I176)*1000,0),"") ->  | L176: =IF(Q$112<>"",IF($B176<>"",K176-$J176,""),"") ->  | M176: =IF(B176<>"",RANK(L176,L$112:L$211),"") ->  | N176: =IF(B176<>"",'Classement Général'!BB75,"") ->  | O176: =IF(B176<>"",'Calculs (M1..M20)'!A78,"") ->  | AH176: =IF($G176<>"",AG176,"") -> 
B177: =IF(B76<>"",B76,"") ->  | C177: =IF(C76<>"",C76,"") ->  | D177: =IF(D76<>"",D76,"") ->  | E177: =IF(E76<>"",E76,"") ->  | F177: 2 | G177: =G76 -> 0 | H177: =IF($G177<>"",G177,"") ->  | K177: =IF($B177<>"",IF(I177,(INDEX(P$112:Q$115,MATCH(H177,P$112:P$115),2)/I177)*1000,0),"") ->  | L177: =IF(Q$112<>"",IF($B177<>"",K177-$J177,""),"") ->  | M177: =IF(B177<>"",RANK(L177,L$112:L$211),"") ->  | N177: =IF(B177<>"",'Classement Général'!BB76,"") ->  | O177: =IF(B177<>"",'Calculs (M1..M20)'!A79,"") ->  | AH177: =IF($G177<>"",AG177,"") -> 
B178: =IF(B77<>"",B77,"") ->  | C178: =IF(C77<>"",C77,"") ->  | D178: =IF(D77<>"",D77,"") ->  | E178: =IF(E77<>"",E77,"") ->  | F178: 2 | G178: =G77 -> 0 | H178: =IF($G178<>"",G178,"") ->  | K178: =IF($B178<>"",IF(I178,(INDEX(P$112:Q$115,MATCH(H178,P$112:P$115),2)/I178)*1000,0),"") ->  | L178: =IF(Q$112<>"",IF($B178<>"",K178-$J178,""),"") ->  | M178: =IF(B178<>"",RANK(L178,L$112:L$211),"") ->  | N178: =IF(B178<>"",'Classement Général'!BB77,"") ->  | O178: =IF(B178<>"",'Calculs (M1..M20)'!A80,"") ->  | AH178: =IF($G178<>"",AG178,"") -> 
B179: =IF(B78<>"",B78,"") ->  | C179: =IF(C78<>"",C78,"") ->  | D179: =IF(D78<>"",D78,"") ->  | E179: =IF(E78<>"",E78,"") ->  | F179: 2 | G179: =G78 -> 0 | H179: =IF($G179<>"",G179,"") ->  | K179: =IF($B179<>"",IF(I179,(INDEX(P$112:Q$115,MATCH(H179,P$112:P$115),2)/I179)*1000,0),"") ->  | L179: =IF(Q$112<>"",IF($B179<>"",K179-$J179,""),"") ->  | M179: =IF(B179<>"",RANK(L179,L$112:L$211),"") ->  | N179: =IF(B179<>"",'Classement Général'!BB78,"") ->  | O179: =IF(B179<>"",'Calculs (M1..M20)'!A81,"") ->  | AH179: =IF($G179<>"",AG179,"") -> 
B180: =IF(B79<>"",B79,"") ->  | C180: =IF(C79<>"",C79,"") ->  | D180: =IF(D79<>"",D79,"") ->  | E180: =IF(E79<>"",E79,"") ->  | F180: 2 | G180: =G79 -> 0 | H180: =IF($G180<>"",G180,"") ->  | K180: =IF($B180<>"",IF(I180,(INDEX(P$112:Q$115,MATCH(H180,P$112:P$115),2)/I180)*1000,0),"") ->  | L180: =IF(Q$112<>"",IF($B180<>"",K180-$J180,""),"") ->  | M180: =IF(B180<>"",RANK(L180,L$112:L$211),"") ->  | N180: =IF(B180<>"",'Classement Général'!BB79,"") ->  | O180: =IF(B180<>"",'Calculs (M1..M20)'!A82,"") ->  | AH180: =IF($G180<>"",AG180,"") -> 
B181: =IF(B80<>"",B80,"") ->  | C181: =IF(C80<>"",C80,"") ->  | D181: =IF(D80<>"",D80,"") ->  | E181: =IF(E80<>"",E80,"") ->  | F181: 2 | G181: =G80 -> 0 | H181: =IF($G181<>"",G181,"") ->  | K181: =IF($B181<>"",IF(I181,(INDEX(P$112:Q$115,MATCH(H181,P$112:P$115),2)/I181)*1000,0),"") ->  | L181: =IF(Q$112<>"",IF($B181<>"",K181-$J181,""),"") ->  | M181: =IF(B181<>"",RANK(L181,L$112:L$211),"") ->  | N181: =IF(B181<>"",'Classement Général'!BB80,"") ->  | O181: =IF(B181<>"",'Calculs (M1..M20)'!A83,"") ->  | AH181: =IF($G181<>"",AG181,"") -> 
B182: =IF(B81<>"",B81,"") ->  | C182: =IF(C81<>"",C81,"") ->  | D182: =IF(D81<>"",D81,"") ->  | E182: =IF(E81<>"",E81,"") ->  | F182: 2 | G182: =G81 -> 0 | H182: =IF($G182<>"",G182,"") ->  | K182: =IF($B182<>"",IF(I182,(INDEX(P$112:Q$115,MATCH(H182,P$112:P$115),2)/I182)*1000,0),"") ->  | L182: =IF(Q$112<>"",IF($B182<>"",K182-$J182,""),"") ->  | M182: =IF(B182<>"",RANK(L182,L$112:L$211),"") ->  | N182: =IF(B182<>"",'Classement Général'!BB81,"") ->  | O182: =IF(B182<>"",'Calculs (M1..M20)'!A84,"") ->  | AH182: =IF($G182<>"",AG182,"") -> 
B183: =IF(B82<>"",B82,"") ->  | C183: =IF(C82<>"",C82,"") ->  | D183: =IF(D82<>"",D82,"") ->  | E183: =IF(E82<>"",E82,"") ->  | F183: 2 | G183: =G82 -> 0 | H183: =IF($G183<>"",G183,"") ->  | K183: =IF($B183<>"",IF(I183,(INDEX(P$112:Q$115,MATCH(H183,P$112:P$115),2)/I183)*1000,0),"") ->  | L183: =IF(Q$112<>"",IF($B183<>"",K183-$J183,""),"") ->  | M183: =IF(B183<>"",RANK(L183,L$112:L$211),"") ->  | N183: =IF(B183<>"",'Classement Général'!BB82,"") ->  | O183: =IF(B183<>"",'Calculs (M1..M20)'!A85,"") ->  | AH183: =IF($G183<>"",AG183,"") -> 
B184: =IF(B83<>"",B83,"") ->  | C184: =IF(C83<>"",C83,"") ->  | D184: =IF(D83<>"",D83,"") ->  | E184: =IF(E83<>"",E83,"") ->  | F184: 2 | G184: =G83 -> 0 | H184: =IF($G184<>"",G184,"") ->  | K184: =IF($B184<>"",IF(I184,(INDEX(P$112:Q$115,MATCH(H184,P$112:P$115),2)/I184)*1000,0),"") ->  | L184: =IF(Q$112<>"",IF($B184<>"",K184-$J184,""),"") ->  | M184: =IF(B184<>"",RANK(L184,L$112:L$211),"") ->  | N184: =IF(B184<>"",'Classement Général'!BB83,"") ->  | O184: =IF(B184<>"",'Calculs (M1..M20)'!A86,"") ->  | AH184: =IF($G184<>"",AG184,"") -> 
B185: =IF(B84<>"",B84,"") ->  | C185: =IF(C84<>"",C84,"") ->  | D185: =IF(D84<>"",D84,"") ->  | E185: =IF(E84<>"",E84,"") ->  | F185: 2 | G185: =G84 -> 0 | H185: =IF($G185<>"",G185,"") ->  | K185: =IF($B185<>"",IF(I185,(INDEX(P$112:Q$115,MATCH(H185,P$112:P$115),2)/I185)*1000,0),"") ->  | L185: =IF(Q$112<>"",IF($B185<>"",K185-$J185,""),"") ->  | M185: =IF(B185<>"",RANK(L185,L$112:L$211),"") ->  | N185: =IF(B185<>"",'Classement Général'!BB84,"") ->  | O185: =IF(B185<>"",'Calculs (M1..M20)'!A87,"") ->  | AH185: =IF($G185<>"",AG185,"") -> 
B186: =IF(B85<>"",B85,"") ->  | C186: =IF(C85<>"",C85,"") ->  | D186: =IF(D85<>"",D85,"") ->  | E186: =IF(E85<>"",E85,"") ->  | F186: 2 | G186: =G85 -> 0 | H186: =IF($G186<>"",G186,"") ->  | K186: =IF($B186<>"",IF(I186,(INDEX(P$112:Q$115,MATCH(H186,P$112:P$115),2)/I186)*1000,0),"") ->  | L186: =IF(Q$112<>"",IF($B186<>"",K186-$J186,""),"") ->  | M186: =IF(B186<>"",RANK(L186,L$112:L$211),"") ->  | N186: =IF(B186<>"",'Classement Général'!BB85,"") ->  | O186: =IF(B186<>"",'Calculs (M1..M20)'!A88,"") ->  | AH186: =IF($G186<>"",AG186,"") -> 
B187: =IF(B86<>"",B86,"") ->  | C187: =IF(C86<>"",C86,"") ->  | D187: =IF(D86<>"",D86,"") ->  | E187: =IF(E86<>"",E86,"") ->  | F187: 2 | G187: =G86 -> 0 | H187: =IF($G187<>"",G187,"") ->  | K187: =IF($B187<>"",IF(I187,(INDEX(P$112:Q$115,MATCH(H187,P$112:P$115),2)/I187)*1000,0),"") ->  | L187: =IF(Q$112<>"",IF($B187<>"",K187-$J187,""),"") ->  | M187: =IF(B187<>"",RANK(L187,L$112:L$211),"") ->  | N187: =IF(B187<>"",'Classement Général'!BB86,"") ->  | O187: =IF(B187<>"",'Calculs (M1..M20)'!A89,"") ->  | AH187: =IF($G187<>"",AG187,"") -> 
B188: =IF(B87<>"",B87,"") ->  | C188: =IF(C87<>"",C87,"") ->  | D188: =IF(D87<>"",D87,"") ->  | E188: =IF(E87<>"",E87,"") ->  | F188: 2 | G188: =G87 -> 0 | H188: =IF($G188<>"",G188,"") ->  | K188: =IF($B188<>"",IF(I188,(INDEX(P$112:Q$115,MATCH(H188,P$112:P$115),2)/I188)*1000,0),"") ->  | L188: =IF(Q$112<>"",IF($B188<>"",K188-$J188,""),"") ->  | M188: =IF(B188<>"",RANK(L188,L$112:L$211),"") ->  | N188: =IF(B188<>"",'Classement Général'!BB87,"") ->  | O188: =IF(B188<>"",'Calculs (M1..M20)'!A90,"") ->  | AH188: =IF($G188<>"",AG188,"") -> 
B189: =IF(B88<>"",B88,"") ->  | C189: =IF(C88<>"",C88,"") ->  | D189: =IF(D88<>"",D88,"") ->  | E189: =IF(E88<>"",E88,"") ->  | F189: 2 | G189: =G88 -> 0 | H189: =IF($G189<>"",G189,"") ->  | K189: =IF($B189<>"",IF(I189,(INDEX(P$112:Q$115,MATCH(H189,P$112:P$115),2)/I189)*1000,0),"") ->  | L189: =IF(Q$112<>"",IF($B189<>"",K189-$J189,""),"") ->  | M189: =IF(B189<>"",RANK(L189,L$112:L$211),"") ->  | N189: =IF(B189<>"",'Classement Général'!BB88,"") ->  | O189: =IF(B189<>"",'Calculs (M1..M20)'!A91,"") ->  | AH189: =IF($G189<>"",AG189,"") -> 
B190: =IF(B89<>"",B89,"") ->  | C190: =IF(C89<>"",C89,"") ->  | D190: =IF(D89<>"",D89,"") ->  | E190: =IF(E89<>"",E89,"") ->  | F190: 2 | G190: =G89 -> 0 | H190: =IF($G190<>"",G190,"") ->  | K190: =IF($B190<>"",IF(I190,(INDEX(P$112:Q$115,MATCH(H190,P$112:P$115),2)/I190)*1000,0),"") ->  | L190: =IF(Q$112<>"",IF($B190<>"",K190-$J190,""),"") ->  | M190: =IF(B190<>"",RANK(L190,L$112:L$211),"") ->  | N190: =IF(B190<>"",'Classement Général'!BB89,"") ->  | O190: =IF(B190<>"",'Calculs (M1..M20)'!A92,"") ->  | AH190: =IF($G190<>"",AG190,"") -> 
B191: =IF(B90<>"",B90,"") ->  | C191: =IF(C90<>"",C90,"") ->  | D191: =IF(D90<>"",D90,"") ->  | E191: =IF(E90<>"",E90,"") ->  | F191: 2 | G191: =G90 -> 0 | H191: =IF($G191<>"",G191,"") ->  | K191: =IF($B191<>"",IF(I191,(INDEX(P$112:Q$115,MATCH(H191,P$112:P$115),2)/I191)*1000,0),"") ->  | L191: =IF(Q$112<>"",IF($B191<>"",K191-$J191,""),"") ->  | M191: =IF(B191<>"",RANK(L191,L$112:L$211),"") ->  | N191: =IF(B191<>"",'Classement Général'!BB90,"") ->  | O191: =IF(B191<>"",'Calculs (M1..M20)'!A93,"") ->  | AH191: =IF($G191<>"",AG191,"") -> 
B192: =IF(B91<>"",B91,"") ->  | C192: =IF(C91<>"",C91,"") ->  | D192: =IF(D91<>"",D91,"") ->  | E192: =IF(E91<>"",E91,"") ->  | F192: 2 | G192: =G91 -> 0 | H192: =IF($G192<>"",G192,"") ->  | K192: =IF($B192<>"",IF(I192,(INDEX(P$112:Q$115,MATCH(H192,P$112:P$115),2)/I192)*1000,0),"") ->  | L192: =IF(Q$112<>"",IF($B192<>"",K192-$J192,""),"") ->  | M192: =IF(B192<>"",RANK(L192,L$112:L$211),"") ->  | N192: =IF(B192<>"",'Classement Général'!BB91,"") ->  | O192: =IF(B192<>"",'Calculs (M1..M20)'!A94,"") ->  | AH192: =IF($G192<>"",AG192,"") -> 
B193: =IF(B92<>"",B92,"") ->  | C193: =IF(C92<>"",C92,"") ->  | D193: =IF(D92<>"",D92,"") ->  | E193: =IF(E92<>"",E92,"") ->  | F193: 2 | G193: =G92 -> 0 | H193: =IF($G193<>"",G193,"") ->  | K193: =IF($B193<>"",IF(I193,(INDEX(P$112:Q$115,MATCH(H193,P$112:P$115),2)/I193)*1000,0),"") ->  | L193: =IF(Q$112<>"",IF($B193<>"",K193-$J193,""),"") ->  | M193: =IF(B193<>"",RANK(L193,L$112:L$211),"") ->  | N193: =IF(B193<>"",'Classement Général'!BB92,"") ->  | O193: =IF(B193<>"",'Calculs (M1..M20)'!A95,"") ->  | AH193: =IF($G193<>"",AG193,"") -> 
B194: =IF(B93<>"",B93,"") ->  | C194: =IF(C93<>"",C93,"") ->  | D194: =IF(D93<>"",D93,"") ->  | E194: =IF(E93<>"",E93,"") ->  | F194: 2 | G194: =G93 -> 0 | H194: =IF($G194<>"",G194,"") ->  | K194: =IF($B194<>"",IF(I194,(INDEX(P$112:Q$115,MATCH(H194,P$112:P$115),2)/I194)*1000,0),"") ->  | L194: =IF(Q$112<>"",IF($B194<>"",K194-$J194,""),"") ->  | M194: =IF(B194<>"",RANK(L194,L$112:L$211),"") ->  | N194: =IF(B194<>"",'Classement Général'!BB93,"") ->  | O194: =IF(B194<>"",'Calculs (M1..M20)'!A96,"") ->  | AH194: =IF($G194<>"",AG194,"") -> 
B195: =IF(B94<>"",B94,"") ->  | C195: =IF(C94<>"",C94,"") ->  | D195: =IF(D94<>"",D94,"") ->  | E195: =IF(E94<>"",E94,"") ->  | F195: 2 | G195: =G94 -> 0 | H195: =IF($G195<>"",G195,"") ->  | K195: =IF($B195<>"",IF(I195,(INDEX(P$112:Q$115,MATCH(H195,P$112:P$115),2)/I195)*1000,0),"") ->  | L195: =IF(Q$112<>"",IF($B195<>"",K195-$J195,""),"") ->  | M195: =IF(B195<>"",RANK(L195,L$112:L$211),"") ->  | N195: =IF(B195<>"",'Classement Général'!BB94,"") ->  | O195: =IF(B195<>"",'Calculs (M1..M20)'!A97,"") ->  | AH195: =IF($G195<>"",AG195,"") -> 
B196: =IF(B95<>"",B95,"") ->  | C196: =IF(C95<>"",C95,"") ->  | D196: =IF(D95<>"",D95,"") ->  | E196: =IF(E95<>"",E95,"") ->  | F196: 2 | G196: =G95 -> 0 | H196: =IF($G196<>"",G196,"") ->  | K196: =IF($B196<>"",IF(I196,(INDEX(P$112:Q$115,MATCH(H196,P$112:P$115),2)/I196)*1000,0),"") ->  | L196: =IF(Q$112<>"",IF($B196<>"",K196-$J196,""),"") ->  | M196: =IF(B196<>"",RANK(L196,L$112:L$211),"") ->  | N196: =IF(B196<>"",'Classement Général'!BB95,"") ->  | O196: =IF(B196<>"",'Calculs (M1..M20)'!A98,"") ->  | AH196: =IF($G196<>"",AG196,"") -> 
B197: =IF(B96<>"",B96,"") ->  | C197: =IF(C96<>"",C96,"") ->  | D197: =IF(D96<>"",D96,"") ->  | E197: =IF(E96<>"",E96,"") ->  | F197: 2 | G197: =G96 -> 0 | H197: =IF($G197<>"",G197,"") ->  | K197: =IF($B197<>"",IF(I197,(INDEX(P$112:Q$115,MATCH(H197,P$112:P$115),2)/I197)*1000,0),"") ->  | L197: =IF(Q$112<>"",IF($B197<>"",K197-$J197,""),"") ->  | M197: =IF(B197<>"",RANK(L197,L$112:L$211),"") ->  | N197: =IF(B197<>"",'Classement Général'!BB96,"") ->  | O197: =IF(B197<>"",'Calculs (M1..M20)'!A99,"") ->  | AH197: =IF($G197<>"",AG197,"") -> 
B198: =IF(B97<>"",B97,"") ->  | C198: =IF(C97<>"",C97,"") ->  | D198: =IF(D97<>"",D97,"") ->  | E198: =IF(E97<>"",E97,"") ->  | F198: 2 | G198: =G97 -> 0 | H198: =IF($G198<>"",G198,"") ->  | K198: =IF($B198<>"",IF(I198,(INDEX(P$112:Q$115,MATCH(H198,P$112:P$115),2)/I198)*1000,0),"") ->  | L198: =IF(Q$112<>"",IF($B198<>"",K198-$J198,""),"") ->  | M198: =IF(B198<>"",RANK(L198,L$112:L$211),"") ->  | N198: =IF(B198<>"",'Classement Général'!BB97,"") ->  | O198: =IF(B198<>"",'Calculs (M1..M20)'!A100,"") ->  | AH198: =IF($G198<>"",AG198,"") -> 
B199: =IF(B98<>"",B98,"") ->  | C199: =IF(C98<>"",C98,"") ->  | D199: =IF(D98<>"",D98,"") ->  | E199: =IF(E98<>"",E98,"") ->  | F199: 2 | G199: =G98 -> 0 | H199: =IF($G199<>"",G199,"") ->  | K199: =IF($B199<>"",IF(I199,(INDEX(P$112:Q$115,MATCH(H199,P$112:P$115),2)/I199)*1000,0),"") ->  | L199: =IF(Q$112<>"",IF($B199<>"",K199-$J199,""),"") ->  | M199: =IF(B199<>"",RANK(L199,L$112:L$211),"") ->  | N199: =IF(B199<>"",'Classement Général'!BB98,"") ->  | O199: =IF(B199<>"",'Calculs (M1..M20)'!A101,"") ->  | AH199: =IF($G199<>"",AG199,"") -> 
B200: =IF(B99<>"",B99,"") ->  | C200: =IF(C99<>"",C99,"") ->  | D200: =IF(D99<>"",D99,"") ->  | E200: =IF(E99<>"",E99,"") ->  | F200: 2 | G200: =G99 -> 0 | H200: =IF($G200<>"",G200,"") ->  | K200: =IF($B200<>"",IF(I200,(INDEX(P$112:Q$115,MATCH(H200,P$112:P$115),2)/I200)*1000,0),"") ->  | L200: =IF(Q$112<>"",IF($B200<>"",K200-$J200,""),"") ->  | M200: =IF(B200<>"",RANK(L200,L$112:L$211),"") ->  | N200: =IF(B200<>"",'Classement Général'!BB99,"") ->  | O200: =IF(B200<>"",'Calculs (M1..M20)'!A102,"") ->  | AH200: =IF($G200<>"",AG200,"") -> 
... 1830 more rows

Sheet Chronos (M21..M40)
B1: F3F - Saisie des chronos - Manches 21 à 40
B2: CLUB : | C2: =Pilotes!C2 -> GAP
B3: LIEU : | C3: =Pilotes!C3 -> Col de la Croix Morand
B4: DATE : | C4: =Pilotes!C4 -> 6, 7 et 8 mai 2017
B5: Nb Manches | C5: ='Chronos (M1..M20)'!C5:E5+COUNTIF(V:V,">0") -> 7
B6: Nb Chrono | C6: =COUNT(I:I) -> 0
B7: Meilleur Chrono | C7: =MIN(Q:Q) -> 0
R8: TEMPS
B9: Nom | C9: Dossard | D9: Freq | E9: Equipe | F9: Manche | G9: Gpe | H9: GS | I9: Temps | J9: Penalité | K9: FAI Brut | L9: FAI Net | M9: ClastM | N9: ClastE | O9: ClastG | P9: GS | Q9: Min | R9: Max | S9: Moy | T9: Nbre Concurrents | AH9: GS | AI9: Temps | AJ9: Penalité
B10: Nom | C10: Dossard | D10: Freq | E10: Equipe | F10: Manche | G10: Gpe | H10: GS | I10: Temps | J10: Penalité | K10: FAI Brut | L10: FAI Net | M10: ClastM | N10: ClastE | O10: ClastG | P10: GS | Q10: Min | R10: Max | S10: Moy | T10: Nbre Concurrents | U10: GS | AH10: GS | AI10: Temps | AJ10: Penalité
B11: =IF('Chronos (M1..M20)'!B11<>"",'Chronos (M1..M20)'!B11,"") -> Sébastien CHABAUD | C11: =IF('Chronos (M1..M20)'!B11<>"",'Chronos (M1..M20)'!C11,"") -> 1 | D11: =IF('Chronos (M1..M20)'!B11<>"",'Chronos (M1..M20)'!D11,"") -> 2.4GHz | E11: =IF('Chronos (M1..M20)'!B11<>"",'Chronos (M1..M20)'!E11,"") -> 0 | F11: 21 | G11: ='Chronos (M1..M20)'!G1930 -> 1 | H11: =IF($G11<>"",G11,"") -> 1 | K11: =IF($B11<>"",IF(I11,(INDEX(P$11:Q$14,MATCH(H11,P$11:P$14),2)/I11)*1000,0),"") -> 0 | L11: =IF(Q$11<>"",IF($B11<>"",K11-$J11,""),"") ->  | M11: =IF(B11<>"",RANK(L11,L$11:L$110),"") ->  | N11: =IF(B11<>"",'Classement Général'!BU11,"") ->  | O11: =IF(B11<>"",'Calculs (M1..M20)'!A14,"") -> 22 | P11: =IF(DMIN($H10:$I111,$P$10,$U$10:$U$11)<>0,1,"") -> 1 | Q11: =IF(DMIN($H10:$I111,$I$10,$U$10:$U$11)<>0,DMIN($H10:$I111,$I$10,$U$10:$U$11),"") ->  | R11: =IF(DMAX($H10:$I111,$I$10,$U$10:$U$11)<>0,DMAX($H10:$I111,$I$10,$U$10:$U$11),"") ->  | S11: =IF($P11<>"",IF(DAVERAGE($H10:$I111,$I$10,$U$10:$U$11)<>0,DAVERAGE($H10:$I111,$I$10,$U$10:$U$11),""),"") ->  | T11: =IF($P11<>"",IF(DCOUNTA($H10:$I111,$I$10,$U$10:$U$11)<>0,DCOUNTA($H10:$I111,$I$10,$U$10:$U$11),""),"") ->  | U11: 1 | AH11: =IF($G11<>"",AG11,"") -> 0
B12: =IF('Chronos (M1..M20)'!B12<>"",'Chronos (M1..M20)'!B12,"") -> Herve DALL AVA | C12: =IF('Chronos (M1..M20)'!B12<>"",'Chronos (M1..M20)'!C12,"") -> 2 | D12: =IF('Chronos (M1..M20)'!B12<>"",'Chronos (M1..M20)'!D12,"") -> 2.4GHz | E12: =IF('Chronos (M1..M20)'!B12<>"",'Chronos (M1..M20)'!E12,"") -> 0 | F12: 21 | G12: ='Chronos (M1..M20)'!G1931 -> 1 | H12: =IF($G12<>"",G12,"") -> 1 | K12: =IF($B12<>"",IF(I12,(INDEX(P$11:Q$14,MATCH(H12,P$11:P$14),2)/I12)*1000,0),"") -> 0 | L12: =IF(Q$11<>"",IF($B12<>"",K12-J12,""),"") ->  | M12: =IF(B12<>"",RANK(L12,L$11:L$110),"") ->  | N12: =IF(B12<>"",'Classement Général'!BU12,"") ->  | O12: =IF(B12<>"",'Calculs (M1..M20)'!A15,"") -> 8 | P12: =IF(DMIN($H10:$I111,$P$10,$U$12:$U$13)<>0,2,"") ->  | Q12: =IF(DMIN($H10:$I111,$I$10,$U$12:$U$13)<>0,DMIN($H10:$I111,$I$10,$U$12:$U$13),"") ->  | R12: =IF(DMAX($H10:$I111,$I$10,$U$12:$U$13)<>0,DMAX($H10:$I111,$I$10,$U$12:$U$13),"") ->  | S12: =IF($P12<>"",IF(DAVERAGE($H10:$I111,$I$10,$U$12:$U$13)<>0,DAVERAGE($H10:$I111,$I$10,$U$12:$U$13),""),"") ->  | T12: =IF($P11<>"",IF(DCOUNTA($H10:$I111,$I$10,$U$12:$U$13)<>0,DCOUNTA($H10:$I111,$I$10,$U$12:$U$13),""),"") ->  | U12: GS | AH12: =IF($G12<>"",AG12,"") -> 0
B13: =IF('Chronos (M1..M20)'!B13<>"",'Chronos (M1..M20)'!B13,"") -> Jean Luc FOUCHER | C13: =IF('Chronos (M1..M20)'!B13<>"",'Chronos (M1..M20)'!C13,"") -> 3 | D13: =IF('Chronos (M1..M20)'!B13<>"",'Chronos (M1..M20)'!D13,"") -> 2.4GHz | E13: =IF('Chronos (M1..M20)'!B13<>"",'Chronos (M1..M20)'!E13,"") -> 0 | F13: 21 | G13: ='Chronos (M1..M20)'!G1932 -> 1 | H13: =IF($G13<>"",G13,"") -> 1 | K13: =IF($B13<>"",IF(I13,(INDEX(P$11:Q$14,MATCH(H13,P$11:P$14),2)/I13)*1000,0),"") -> 0 | L13: =IF(Q$11<>"",IF($B13<>"",K13-J13,""),"") ->  | M13: =IF(B13<>"",RANK(L13,L$11:L$110),"") ->  | N13: =IF(B13<>"",'Classement Général'!BU13,"") ->  | O13: =IF(B13<>"",'Calculs (M1..M20)'!A16,"") -> 15 | P13: =IF(DMIN($H10:$I111,$P$10,$U$14:$U$15)<>0,3,"") ->  | Q13: =IF(DMIN($H10:$I111,$I$10,$U$14:$U$15)<>0,DMIN($H10:$I111,$I$10,$U$14:$U$15),"") ->  | R13: =IF(DMAX($H10:$I111,$I$10,$U$14:$U$15)<>0,DMAX($H10:$I111,$I$10,$U$14:$U$15),"") ->  | S13: =IF($P13<>"",IF(DAVERAGE($H10:$I111,$I$10,$U$14:$U$15)<>0,DAVERAGE($H10:$I111,$I$10,$U$14:$U$15),""),"") ->  | T13: =IF($P13<>"",IF(DCOUNTA($H10:$I111,$I$10,$U$14:$U$15)<>0,DCOUNTA($H10:$I111,$I$10,$U$14:$U$15),""),"") ->  | U13: 2 | AH13: =IF($G13<>"",AG13,"") -> 0
B14: =IF('Chronos (M1..M20)'!B14<>"",'Chronos (M1..M20)'!B14,"") -> Thomas DELARBRE | C14: =IF('Chronos (M1..M20)'!B14<>"",'Chronos (M1..M20)'!C14,"") -> 4 | D14: =IF('Chronos (M1..M20)'!B14<>"",'Chronos (M1..M20)'!D14,"") -> 2.4GHz | E14: =IF('Chronos (M1..M20)'!B14<>"",'Chronos (M1..M20)'!E14,"") -> 0 | F14: 21 | G14: ='Chronos (M1..M20)'!G1933 -> 1 | H14: =IF($G14<>"",G14,"") -> 1 | K14: =IF($B14<>"",IF(I14,(INDEX(P$11:Q$14,MATCH(H14,P$11:P$14),2)/I14)*1000,0),"") -> 0 | L14: =IF(Q$11<>"",IF($B14<>"",K14-J14,""),"") ->  | M14: =IF(B14<>"",RANK(L14,L$11:L$110),"") ->  | N14: =IF(B14<>"",'Classement Général'!BU14,"") ->  | O14: =IF(B14<>"",'Calculs (M1..M20)'!A17,"") -> 10 | P14: =IF(DMIN($H10:$I111,$P$10,$U$16:$U$17)<>0,4,"") ->  | Q14: =IF(DMIN($H10:$I111,$I$10,$U$16:$U$17)<>0,DMIN($H10:$I111,$I$10,$U$16:$U$17),"") ->  | R14: =IF(DMAX($H10:$I111,$I$10,$U$16:$U$17)<>0,DMAX($H10:$I111,$I$10,$U$16:$U$17),"") ->  | S14: =IF($P14<>"",IF(DAVERAGE($H10:$I111,$I$10,$U$16:$U$17)<>0,DAVERAGE($H10:$I111,$I$10,$U$16:$U$17),""),"") ->  | T14: =IF($P13<>"",IF(DCOUNTA($H10:$I111,$I$10,$U$16:$U$17)<>0,DCOUNTA($H10:$I111,$I$10,$U$16:$U$17),""),"") ->  | U14: GS | AH14: =IF($G14<>"",AG14,"") -> 0
B15: =IF('Chronos (M1..M20)'!B15<>"",'Chronos (M1..M20)'!B15,"") -> Pierre DIATTA | C15: =IF('Chronos (M1..M20)'!B15<>"",'Chronos (M1..M20)'!C15,"") -> 5 | D15: =IF('Chronos (M1..M20)'!B15<>"",'Chronos (M1..M20)'!D15,"") -> 2.4GHz | E15: =IF('Chronos (M1..M20)'!B15<>"",'Chronos (M1..M20)'!E15,"") -> 0 | F15: 21 | G15: ='Chronos (M1..M20)'!G1934 -> 1 | H15: =IF($G15<>"",G15,"") -> 1 | K15: =IF($B15<>"",IF(I15,(INDEX(P$11:Q$14,MATCH(H15,P$11:P$14),2)/I15)*1000,0),"") -> 0 | L15: =IF(Q$11<>"",IF($B15<>"",K15-J15,""),"") ->  | M15: =IF(B15<>"",RANK(L15,L$11:L$110),"") ->  | N15: =IF(B15<>"",'Classement Général'!BU15,"") ->  | O15: =IF(B15<>"",'Calculs (M1..M20)'!A18,"") -> 20 | T15: =SUM(T11:T14) -> 0 | U15: 3 | V15: =T15 -> 0 | AH15: =IF($G15<>"",AG15,"") -> 0
B16: =IF('Chronos (M1..M20)'!B16<>"",'Chronos (M1..M20)'!B16,"") -> Olivier MONET | C16: =IF('Chronos (M1..M20)'!B16<>"",'Chronos (M1..M20)'!C16,"") -> 6 | D16: =IF('Chronos (M1..M20)'!B16<>"",'Chronos (M1..M20)'!D16,"") -> 41.110MHz | E16: =IF('Chronos (M1..M20)'!B16<>"",'Chronos (M1..M20)'!E16,"") -> 0 | F16: 21 | G16: ='Chronos (M1..M20)'!G1935 -> 1 | H16: =IF($G16<>"",G16,"") -> 1 | K16: =IF($B16<>"",IF(I16,(INDEX(P$11:Q$14,MATCH(H16,P$11:P$14),2)/I16)*1000,0),"") -> 0 | L16: =IF(Q$11<>"",IF($B16<>"",K16-J16,""),"") ->  | M16: =IF(B16<>"",RANK(L16,L$11:L$110),"") ->  | N16: =IF(B16<>"",'Classement Général'!BU16,"") ->  | O16: =IF(B16<>"",'Calculs (M1..M20)'!A19,"") -> 6 | U16: GS | AH16: =IF($G16<>"",AG16,"") -> 0
B17: =IF('Chronos (M1..M20)'!B17<>"",'Chronos (M1..M20)'!B17,"") -> Pierre RONDEL | C17: =IF('Chronos (M1..M20)'!B17<>"",'Chronos (M1..M20)'!C17,"") -> 7 | D17: =IF('Chronos (M1..M20)'!B17<>"",'Chronos (M1..M20)'!D17,"") -> 2.4GHz | E17: =IF('Chronos (M1..M20)'!B17<>"",'Chronos (M1..M20)'!E17,"") -> 0 | F17: 21 | G17: ='Chronos (M1..M20)'!G1936 -> 1 | H17: =IF($G17<>"",G17,"") -> 1 | K17: =IF($B17<>"",IF(I17,(INDEX(P$11:Q$14,MATCH(H17,P$11:P$14),2)/I17)*1000,0),"") -> 0 | L17: =IF(Q$11<>"",IF($B17<>"",K17-J17,""),"") ->  | M17: =IF(B17<>"",RANK(L17,L$11:L$110),"") ->  | N17: =IF(B17<>"",'Classement Général'!BU17,"") ->  | O17: =IF(B17<>"",'Calculs (M1..M20)'!A20,"") -> 1 | U17: 4 | AH17: =IF($G17<>"",AG17,"") -> 0
B18: =IF('Chronos (M1..M20)'!B18<>"",'Chronos (M1..M20)'!B18,"") -> Andreas FRICKE | C18: =IF('Chronos (M1..M20)'!B18<>"",'Chronos (M1..M20)'!C18,"") -> 8 | D18: =IF('Chronos (M1..M20)'!B18<>"",'Chronos (M1..M20)'!D18,"") -> 2.4GHz | E18: =IF('Chronos (M1..M20)'!B18<>"",'Chronos (M1..M20)'!E18,"") -> 0 | F18: 21 | G18: ='Chronos (M1..M20)'!G1937 -> 1 | H18: =IF($G18<>"",G18,"") -> 1 | K18: =IF($B18<>"",IF(I18,(INDEX(P$11:Q$14,MATCH(H18,P$11:P$14),2)/I18)*1000,0),"") -> 0 | L18: =IF(Q$11<>"",IF($B18<>"",K18-J18,""),"") ->  | M18: =IF(B18<>"",RANK(L18,L$11:L$110),"") ->  | N18: =IF(B18<>"",'Classement Général'!BU18,"") ->  | O18: =IF(B18<>"",'Calculs (M1..M20)'!A21,"") -> 18 | AH18: =IF($G18<>"",AG18,"") -> 0
B19: =IF('Chronos (M1..M20)'!B19<>"",'Chronos (M1..M20)'!B19,"") -> Thomas FAURE | C19: =IF('Chronos (M1..M20)'!B19<>"",'Chronos (M1..M20)'!C19,"") -> 9 | D19: =IF('Chronos (M1..M20)'!B19<>"",'Chronos (M1..M20)'!D19,"") -> 2.4GHz | E19: =IF('Chronos (M1..M20)'!B19<>"",'Chronos (M1..M20)'!E19,"") -> 0 | F19: 21 | G19: ='Chronos (M1..M20)'!G1938 -> 1 | H19: =IF($G19<>"",G19,"") -> 1 | K19: =IF($B19<>"",IF(I19,(INDEX(P$11:Q$14,MATCH(H19,P$11:P$14),2)/I19)*1000,0),"") -> 0 | L19: =IF(Q$11<>"",IF($B19<>"",K19-J19,""),"") ->  | M19: =IF(B19<>"",RANK(L19,L$11:L$110),"") ->  | N19: =IF(B19<>"",'Classement Général'!BU19,"") ->  | O19: =IF(B19<>"",'Calculs (M1..M20)'!A22,"") -> 11 | AH19: =IF($G19<>"",AG19,"") -> 0
B20: =IF('Chronos (M1..M20)'!B20<>"",'Chronos (M1..M20)'!B20,"") -> Philippe LANES | C20: =IF('Chronos (M1..M20)'!B20<>"",'Chronos (M1..M20)'!C20,"") -> 10 | D20: =IF('Chronos (M1..M20)'!B20<>"",'Chronos (M1..M20)'!D20,"") -> 2.4GHz | E20: =IF('Chronos (M1..M20)'!B20<>"",'Chronos (M1..M20)'!E20,"") -> 0 | F20: 21 | G20: ='Chronos (M1..M20)'!G1939 -> 1 | H20: =IF($G20<>"",G20,"") -> 1 | K20: =IF($B20<>"",IF(I20,(INDEX(P$11:Q$14,MATCH(H20,P$11:P$14),2)/I20)*1000,0),"") -> 0 | L20: =IF(Q$11<>"",IF($B20<>"",K20-J20,""),"") ->  | M20: =IF(B20<>"",RANK(L20,L$11:L$110),"") ->  | N20: =IF(B20<>"",'Classement Général'!BU20,"") ->  | O20: =IF(B20<>"",'Calculs (M1..M20)'!A23,"") -> 14 | AH20: =IF($G20<>"",AG20,"") -> 0
B21: =IF('Chronos (M1..M20)'!B21<>"",'Chronos (M1..M20)'!B21,"") -> Julien HONOR | C21: =IF('Chronos (M1..M20)'!B21<>"",'Chronos (M1..M20)'!C21,"") -> 11 | D21: =IF('Chronos (M1..M20)'!B21<>"",'Chronos (M1..M20)'!D21,"") -> 2.4GHz | E21: =IF('Chronos (M1..M20)'!B21<>"",'Chronos (M1..M20)'!E21,"") -> 0 | F21: 21 | G21: ='Chronos (M1..M20)'!G1940 -> 1 | H21: =IF($G21<>"",G21,"") -> 1 | K21: =IF($B21<>"",IF(I21,(INDEX(P$11:Q$14,MATCH(H21,P$11:P$14),2)/I21)*1000,0),"") -> 0 | L21: =IF(Q$11<>"",IF($B21<>"",K21-J21,""),"") ->  | M21: =IF(B21<>"",RANK(L21,L$11:L$110),"") ->  | N21: =IF(B21<>"",'Classement Général'!BU21,"") ->  | O21: =IF(B21<>"",'Calculs (M1..M20)'!A24,"") -> 3 | AH21: =IF($G21<>"",AG21,"") -> 0
B22: =IF('Chronos (M1..M20)'!B22<>"",'Chronos (M1..M20)'!B22,"") -> Michael KREBS | C22: =IF('Chronos (M1..M20)'!B22<>"",'Chronos (M1..M20)'!C22,"") -> 12 | D22: =IF('Chronos (M1..M20)'!B22<>"",'Chronos (M1..M20)'!D22,"") -> 2.4GHz | E22: =IF('Chronos (M1..M20)'!B22<>"",'Chronos (M1..M20)'!E22,"") -> 0 | F22: 21 | G22: ='Chronos (M1..M20)'!G1941 -> 1 | H22: =IF($G22<>"",G22,"") -> 1 | K22: =IF($B22<>"",IF(I22,(INDEX(P$11:Q$14,MATCH(H22,P$11:P$14),2)/I22)*1000,0),"") -> 0 | L22: =IF(Q$11<>"",IF($B22<>"",K22-J22,""),"") ->  | M22: =IF(B22<>"",RANK(L22,L$11:L$110),"") ->  | N22: =IF(B22<>"",'Classement Général'!BU22,"") ->  | O22: =IF(B22<>"",'Calculs (M1..M20)'!A25,"") -> 12 | AH22: =IF($G22<>"",AG22,"") -> 0
B23: =IF('Chronos (M1..M20)'!B23<>"",'Chronos (M1..M20)'!B23,"") -> Aubry GABANON | C23: =IF('Chronos (M1..M20)'!B23<>"",'Chronos (M1..M20)'!C23,"") -> 13 | D23: =IF('Chronos (M1..M20)'!B23<>"",'Chronos (M1..M20)'!D23,"") -> 2.4GHz | E23: =IF('Chronos (M1..M20)'!B23<>"",'Chronos (M1..M20)'!E23,"") -> 0 | F23: 21 | G23: ='Chronos (M1..M20)'!G1942 -> 1 | H23: =IF($G23<>"",G23,"") -> 1 | K23: =IF($B23<>"",IF(I23,(INDEX(P$11:Q$14,MATCH(H23,P$11:P$14),2)/I23)*1000,0),"") -> 0 | L23: =IF(Q$11<>"",IF($B23<>"",K23-J23,""),"") ->  | M23: =IF(B23<>"",RANK(L23,L$11:L$110),"") ->  | N23: =IF(B23<>"",'Classement Général'!BU23,"") ->  | O23: =IF(B23<>"",'Calculs (M1..M20)'!A26,"") -> 5 | AH23: =IF($G23<>"",AG23,"") -> 0
B24: =IF('Chronos (M1..M20)'!B24<>"",'Chronos (M1..M20)'!B24,"") -> Serge DELARBRE | C24: =IF('Chronos (M1..M20)'!B24<>"",'Chronos (M1..M20)'!C24,"") -> 14 | D24: =IF('Chronos (M1..M20)'!B24<>"",'Chronos (M1..M20)'!D24,"") -> 2.4GHz | E24: =IF('Chronos (M1..M20)'!B24<>"",'Chronos (M1..M20)'!E24,"") -> 0 | F24: 21 | G24: ='Chronos (M1..M20)'!G1943 -> 1 | H24: =IF($G24<>"",G24,"") -> 1 | K24: =IF($B24<>"",IF(I24,(INDEX(P$11:Q$14,MATCH(H24,P$11:P$14),2)/I24)*1000,0),"") -> 0 | L24: =IF(Q$11<>"",IF($B24<>"",K24-J24,""),"") ->  | M24: =IF(B24<>"",RANK(L24,L$11:L$110),"") ->  | N24: =IF(B24<>"",'Classement Général'!BU24,"") ->  | O24: =IF(B24<>"",'Calculs (M1..M20)'!A27,"") -> 17 | AH24: =IF($G24<>"",AG24,"") -> 0
B25: =IF('Chronos (M1..M20)'!B25<>"",'Chronos (M1..M20)'!B25,"") -> Arnaud LEGER | C25: =IF('Chronos (M1..M20)'!B25<>"",'Chronos (M1..M20)'!C25,"") -> 15 | D25: =IF('Chronos (M1..M20)'!B25<>"",'Chronos (M1..M20)'!D25,"") -> 2.4GHz | E25: =IF('Chronos (M1..M20)'!B25<>"",'Chronos (M1..M20)'!E25,"") -> 0 | F25: 21 | G25: ='Chronos (M1..M20)'!G1944 -> 1 | H25: =IF($G25<>"",G25,"") -> 1 | K25: =IF($B25<>"",IF(I25,(INDEX(P$11:Q$14,MATCH(H25,P$11:P$14),2)/I25)*1000,0),"") -> 0 | L25: =IF(Q$11<>"",IF($B25<>"",K25-J25,""),"") ->  | M25: =IF(B25<>"",RANK(L25,L$11:L$110),"") ->  | N25: =IF(B25<>"",'Classement Général'!BU25,"") ->  | O25: =IF(B25<>"",'Calculs (M1..M20)'!A28,"") -> 7 | AH25: =IF($G25<>"",AG25,"") -> 0
B26: =IF('Chronos (M1..M20)'!B26<>"",'Chronos (M1..M20)'!B26,"") -> Thierry POIGNARD | C26: =IF('Chronos (M1..M20)'!B26<>"",'Chronos (M1..M20)'!C26,"") -> 16 | D26: =IF('Chronos (M1..M20)'!B26<>"",'Chronos (M1..M20)'!D26,"") -> 2.4GHz | E26: =IF('Chronos (M1..M20)'!B26<>"",'Chronos (M1..M20)'!E26,"") -> 0 | F26: 21 | G26: ='Chronos (M1..M20)'!G1945 -> 1 | H26: =IF($G26<>"",G26,"") -> 1 | K26: =IF($B26<>"",IF(I26,(INDEX(P$11:Q$14,MATCH(H26,P$11:P$14),2)/I26)*1000,0),"") -> 0 | L26: =IF(Q$11<>"",IF($B26<>"",K26-J26,""),"") ->  | M26: =IF(B26<>"",RANK(L26,L$11:L$110),"") ->  | N26: =IF(B26<>"",'Classement Général'!BU26,"") ->  | O26: =IF(B26<>"",'Calculs (M1..M20)'!A29,"") -> 13 | AH26: =IF($G26<>"",AG26,"") -> 0
B27: =IF('Chronos (M1..M20)'!B27<>"",'Chronos (M1..M20)'!B27,"") -> Joel MARIN | C27: =IF('Chronos (M1..M20)'!B27<>"",'Chronos (M1..M20)'!C27,"") -> 17 | D27: =IF('Chronos (M1..M20)'!B27<>"",'Chronos (M1..M20)'!D27,"") -> 2.4GHz | E27: =IF('Chronos (M1..M20)'!B27<>"",'Chronos (M1..M20)'!E27,"") -> 0 | F27: 21 | G27: ='Chronos (M1..M20)'!G1946 -> 1 | H27: =IF($G27<>"",G27,"") -> 1 | K27: =IF($B27<>"",IF(I27,(INDEX(P$11:Q$14,MATCH(H27,P$11:P$14),2)/I27)*1000,0),"") -> 0 | L27: =IF(Q$11<>"",IF($B27<>"",K27-J27,""),"") ->  | M27: =IF(B27<>"",RANK(L27,L$11:L$110),"") ->  | N27: =IF(B27<>"",'Classement Général'!BU27,"") ->  | O27: =IF(B27<>"",'Calculs (M1..M20)'!A30,"") -> 16 | AH27: =IF($G27<>"",AG27,"") -> 0
B28: =IF('Chronos (M1..M20)'!B28<>"",'Chronos (M1..M20)'!B28,"") -> Matthieu MERVELET | C28: =IF('Chronos (M1..M20)'!B28<>"",'Chronos (M1..M20)'!C28,"") -> 18 | D28: =IF('Chronos (M1..M20)'!B28<>"",'Chronos (M1..M20)'!D28,"") -> 2.4GHz | E28: =IF('Chronos (M1..M20)'!B28<>"",'Chronos (M1..M20)'!E28,"") -> 0 | F28: 21 | G28: ='Chronos (M1..M20)'!G1947 -> 1 | H28: =IF($G28<>"",G28,"") -> 1 | K28: =IF($B28<>"",IF(I28,(INDEX(P$11:Q$14,MATCH(H28,P$11:P$14),2)/I28)*1000,0),"") -> 0 | L28: =IF(Q$11<>"",IF($B28<>"",K28-J28,""),"") ->  | M28: =IF(B28<>"",RANK(L28,L$11:L$110),"") ->  | N28: =IF(B28<>"",'Classement Général'!BU28,"") ->  | O28: =IF(B28<>"",'Calculs (M1..M20)'!A31,"") -> 2 | AH28: =IF($G28<>"",AG28,"") -> 0
B29: =IF('Chronos (M1..M20)'!B29<>"",'Chronos (M1..M20)'!B29,"") -> Gabriel MANTEL | C29: =IF('Chronos (M1..M20)'!B29<>"",'Chronos (M1..M20)'!C29,"") -> 19 | D29: =IF('Chronos (M1..M20)'!B29<>"",'Chronos (M1..M20)'!D29,"") -> 2.4GHz | E29: =IF('Chronos (M1..M20)'!B29<>"",'Chronos (M1..M20)'!E29,"") -> 0 | F29: 21 | G29: ='Chronos (M1..M20)'!G1948 -> 1 | H29: =IF($G29<>"",G29,"") -> 1 | K29: =IF($B29<>"",IF(I29,(INDEX(P$11:Q$14,MATCH(H29,P$11:P$14),2)/I29)*1000,0),"") -> 0 | L29: =IF(Q$11<>"",IF($B29<>"",K29-J29,""),"") ->  | M29: =IF(B29<>"",RANK(L29,L$11:L$110),"") ->  | N29: =IF(B29<>"",'Classement Général'!BU29,"") ->  | O29: =IF(B29<>"",'Calculs (M1..M20)'!A32,"") -> 21 | AH29: =IF($G29<>"",AG29,"") -> 0
B30: =IF('Chronos (M1..M20)'!B30<>"",'Chronos (M1..M20)'!B30,"") -> Sylvain PFEFFERKORN | C30: =IF('Chronos (M1..M20)'!B30<>"",'Chronos (M1..M20)'!C30,"") -> 20 | D30: =IF('Chronos (M1..M20)'!B30<>"",'Chronos (M1..M20)'!D30,"") -> 2.4GHz | E30: =IF('Chronos (M1..M20)'!B30<>"",'Chronos (M1..M20)'!E30,"") -> 0 | F30: 21 | G30: ='Chronos (M1..M20)'!G1949 -> 1 | H30: =IF($G30<>"",G30,"") -> 1 | K30: =IF($B30<>"",IF(I30,(INDEX(P$11:Q$14,MATCH(H30,P$11:P$14),2)/I30)*1000,0),"") -> 0 | L30: =IF(Q$11<>"",IF($B30<>"",K30-J30,""),"") ->  | M30: =IF(B30<>"",RANK(L30,L$11:L$110),"") ->  | N30: =IF(B30<>"",'Classement Général'!BU30,"") ->  | O30: =IF(B30<>"",'Calculs (M1..M20)'!A33,"") -> 19 | AH30: =IF($G30<>"",AG30,"") -> 0
B31: =IF('Chronos (M1..M20)'!B31<>"",'Chronos (M1..M20)'!B31,"") -> Frederic HOURS | C31: =IF('Chronos (M1..M20)'!B31<>"",'Chronos (M1..M20)'!C31,"") -> 21 | D31: =IF('Chronos (M1..M20)'!B31<>"",'Chronos (M1..M20)'!D31,"") -> 2.4GHz | E31: =IF('Chronos (M1..M20)'!B31<>"",'Chronos (M1..M20)'!E31,"") -> 0 | F31: 21 | G31: ='Chronos (M1..M20)'!G1950 -> 1 | H31: =IF($G31<>"",G31,"") -> 1 | K31: =IF($B31<>"",IF(I31,(INDEX(P$11:Q$14,MATCH(H31,P$11:P$14),2)/I31)*1000,0),"") -> 0 | L31: =IF(Q$11<>"",IF($B31<>"",K31-J31,""),"") ->  | M31: =IF(B31<>"",RANK(L31,L$11:L$110),"") ->  | N31: =IF(B31<>"",'Classement Général'!BU31,"") ->  | O31: =IF(B31<>"",'Calculs (M1..M20)'!A34,"") -> 9 | AH31: =IF($G31<>"",AG31,"") -> 0
B32: =IF('Chronos (M1..M20)'!B32<>"",'Chronos (M1..M20)'!B32,"") -> Sébastien LANES | C32: =IF('Chronos (M1..M20)'!B32<>"",'Chronos (M1..M20)'!C32,"") -> 22 | D32: =IF('Chronos (M1..M20)'!B32<>"",'Chronos (M1..M20)'!D32,"") -> 2.4GHz | E32: =IF('Chronos (M1..M20)'!B32<>"",'Chronos (M1..M20)'!E32,"") -> 0 | F32: 21 | G32: ='Chronos (M1..M20)'!G1951 -> 1 | H32: =IF($G32<>"",G32,"") -> 1 | K32: =IF($B32<>"",IF(I32,(INDEX(P$11:Q$14,MATCH(H32,P$11:P$14),2)/I32)*1000,0),"") -> 0 | L32: =IF(Q$11<>"",IF($B32<>"",K32-J32,""),"") ->  | M32: =IF(B32<>"",RANK(L32,L$11:L$110),"") ->  | N32: =IF(B32<>"",'Classement Général'!BU32,"") ->  | O32: =IF(B32<>"",'Calculs (M1..M20)'!A35,"") -> 4 | AH32: =IF($G32<>"",AG32,"") -> 0
B33: =IF('Chronos (M1..M20)'!B33<>"",'Chronos (M1..M20)'!B33,"") ->  | C33: =IF('Chronos (M1..M20)'!B33<>"",'Chronos (M1..M20)'!C33,"") ->  | D33: =IF('Chronos (M1..M20)'!B33<>"",'Chronos (M1..M20)'!D33,"") ->  | E33: =IF('Chronos (M1..M20)'!B33<>"",'Chronos (M1..M20)'!E33,"") ->  | F33: 21 | G33: ='Chronos (M1..M20)'!G1952 -> 1 | H33: =IF($G33<>"",G33,"") -> 1 | K33: =IF($B33<>"",IF(I33,(INDEX(P$11:Q$14,MATCH(H33,P$11:P$14),2)/I33)*1000,0),"") ->  | L33: =IF(Q$11<>"",IF($B33<>"",K33-J33,""),"") ->  | M33: =IF(B33<>"",RANK(L33,L$11:L$110),"") ->  | N33: =IF(B33<>"",'Classement Général'!BU33,"") ->  | O33: =IF(B33<>"",'Calculs (M1..M20)'!A36,"") ->  | AH33: =IF($G33<>"",AG33,"") -> 0
B34: =IF('Chronos (M1..M20)'!B34<>"",'Chronos (M1..M20)'!B34,"") ->  | C34: =IF('Chronos (M1..M20)'!B34<>"",'Chronos (M1..M20)'!C34,"") ->  | D34: =IF('Chronos (M1..M20)'!B34<>"",'Chronos (M1..M20)'!D34,"") ->  | E34: =IF('Chronos (M1..M20)'!B34<>"",'Chronos (M1..M20)'!E34,"") ->  | F34: 21 | G34: ='Chronos (M1..M20)'!G1953 -> 1 | H34: =IF($G34<>"",G34,"") -> 1 | K34: =IF($B34<>"",IF(I34,(INDEX(P$11:Q$14,MATCH(H34,P$11:P$14),2)/I34)*1000,0),"") ->  | L34: =IF(Q$11<>"",IF($B34<>"",K34-J34,""),"") ->  | M34: =IF(B34<>"",RANK(L34,L$11:L$110),"") ->  | N34: =IF(B34<>"",'Classement Général'!BU34,"") ->  | O34: =IF(B34<>"",'Calculs (M1..M20)'!A37,"") ->  | AH34: =IF($G34<>"",AG34,"") -> 0
B35: =IF('Chronos (M1..M20)'!B35<>"",'Chronos (M1..M20)'!B35,"") ->  | C35: =IF('Chronos (M1..M20)'!B35<>"",'Chronos (M1..M20)'!C35,"") ->  | D35: =IF('Chronos (M1..M20)'!B35<>"",'Chronos (M1..M20)'!D35,"") ->  | E35: =IF('Chronos (M1..M20)'!B35<>"",'Chronos (M1..M20)'!E35,"") ->  | F35: 21 | G35: ='Chronos (M1..M20)'!G1954 -> 1 | H35: =IF($G35<>"",G35,"") -> 1 | K35: =IF($B35<>"",IF(I35,(INDEX(P$11:Q$14,MATCH(H35,P$11:P$14),2)/I35)*1000,0),"") ->  | L35: =IF(Q$11<>"",IF($B35<>"",K35-J35,""),"") ->  | M35: =IF(B35<>"",RANK(L35,L$11:L$110),"") ->  | N35: =IF(B35<>"",'Classement Général'!BU35,"") ->  | O35: =IF(B35<>"",'Calculs (M1..M20)'!A38,"") ->  | AH35: =IF($G35<>"",AG35,"") -> 0
B36: =IF('Chronos (M1..M20)'!B36<>"",'Chronos (M1..M20)'!B36,"") ->  | C36: =IF('Chronos (M1..M20)'!B36<>"",'Chronos (M1..M20)'!C36,"") ->  | D36: =IF('Chronos (M1..M20)'!B36<>"",'Chronos (M1..M20)'!D36,"") ->  | E36: =IF('Chronos (M1..M20)'!B36<>"",'Chronos (M1..M20)'!E36,"") ->  | F36: 21 | G36: ='Chronos (M1..M20)'!G1955 -> 1 | H36: =IF($G36<>"",G36,"") -> 1 | K36: =IF($B36<>"",IF(I36,(INDEX(P$11:Q$14,MATCH(H36,P$11:P$14),2)/I36)*1000,0),"") ->  | L36: =IF(Q$11<>"",IF($B36<>"",K36-J36,""),"") ->  | M36: =IF(B36<>"",RANK(L36,L$11:L$110),"") ->  | N36: =IF(B36<>"",'Classement Général'!BU36,"") ->  | O36: =IF(B36<>"",'Calculs (M1..M20)'!A39,"") ->  | AH36: =IF($G36<>"",AG36,"") -> 0
B37: =IF('Chronos (M1..M20)'!B37<>"",'Chronos (M1..M20)'!B37,"") ->  | C37: =IF('Chronos (M1..M20)'!B37<>"",'Chronos (M1..M20)'!C37,"") ->  | D37: =IF('Chronos (M1..M20)'!B37<>"",'Chronos (M1..M20)'!D37,"") ->  | E37: =IF('Chronos (M1..M20)'!B37<>"",'Chronos (M1..M20)'!E37,"") ->  | F37: 21 | G37: ='Chronos (M1..M20)'!G1956 -> 1 | H37: =IF($G37<>"",G37,"") -> 1 | K37: =IF($B37<>"",IF(I37,(INDEX(P$11:Q$14,MATCH(H37,P$11:P$14),2)/I37)*1000,0),"") ->  | L37: =IF(Q$11<>"",IF($B37<>"",K37-J37,""),"") ->  | M37: =IF(B37<>"",RANK(L37,L$11:L$110),"") ->  | N37: =IF(B37<>"",'Classement Général'!BU37,"") ->  | O37: =IF(B37<>"",'Calculs (M1..M20)'!A40,"") ->  | AH37: =IF($G37<>"",AG37,"") -> 0
B38: =IF('Chronos (M1..M20)'!B38<>"",'Chronos (M1..M20)'!B38,"") ->  | C38: =IF('Chronos (M1..M20)'!B38<>"",'Chronos (M1..M20)'!C38,"") ->  | D38: =IF('Chronos (M1..M20)'!B38<>"",'Chronos (M1..M20)'!D38,"") ->  | E38: =IF('Chronos (M1..M20)'!B38<>"",'Chronos (M1..M20)'!E38,"") ->  | F38: 21 | G38: ='Chronos (M1..M20)'!G1957 -> 1 | H38: =IF($G38<>"",G38,"") -> 1 | K38: =IF($B38<>"",IF(I38,(INDEX(P$11:Q$14,MATCH(H38,P$11:P$14),2)/I38)*1000,0),"") ->  | L38: =IF(Q$11<>"",IF($B38<>"",K38-J38,""),"") ->  | M38: =IF(B38<>"",RANK(L38,L$11:L$110),"") ->  | N38: =IF(B38<>"",'Classement Général'!BU38,"") ->  | O38: =IF(B38<>"",'Calculs (M1..M20)'!A41,"") ->  | AH38: =IF($G38<>"",AG38,"") -> 0
B39: =IF('Chronos (M1..M20)'!B39<>"",'Chronos (M1..M20)'!B39,"") ->  | C39: =IF('Chronos (M1..M20)'!B39<>"",'Chronos (M1..M20)'!C39,"") ->  | D39: =IF('Chronos (M1..M20)'!B39<>"",'Chronos (M1..M20)'!D39,"") ->  | E39: =IF('Chronos (M1..M20)'!B39<>"",'Chronos (M1..M20)'!E39,"") ->  | F39: 21 | G39: ='Chronos (M1..M20)'!G1958 -> 1 | H39: =IF($G39<>"",G39,"") -> 1 | K39: =IF($B39<>"",IF(I39,(INDEX(P$11:Q$14,MATCH(H39,P$11:P$14),2)/I39)*1000,0),"") ->  | L39: =IF(Q$11<>"",IF($B39<>"",K39-J39,""),"") ->  | M39: =IF(B39<>"",RANK(L39,L$11:L$110),"") ->  | N39: =IF(B39<>"",'Classement Général'!BU39,"") ->  | O39: =IF(B39<>"",'Calculs (M1..M20)'!A42,"") ->  | AH39: =IF($G39<>"",AG39,"") -> 0
B40: =IF('Chronos (M1..M20)'!B40<>"",'Chronos (M1..M20)'!B40,"") ->  | C40: =IF('Chronos (M1..M20)'!B40<>"",'Chronos (M1..M20)'!C40,"") ->  | D40: =IF('Chronos (M1..M20)'!B40<>"",'Chronos (M1..M20)'!D40,"") ->  | E40: =IF('Chronos (M1..M20)'!B40<>"",'Chronos (M1..M20)'!E40,"") ->  | F40: 21 | G40: ='Chronos (M1..M20)'!G1959 -> 1 | H40: =IF($G40<>"",G40,"") -> 1 | K40: =IF($B40<>"",IF(I40,(INDEX(P$11:Q$14,MATCH(H40,P$11:P$14),2)/I40)*1000,0),"") ->  | L40: =IF(Q$11<>"",IF($B40<>"",K40-J40,""),"") ->  | M40: =IF(B40<>"",RANK(L40,L$11:L$110),"") ->  | N40: =IF(B40<>"",'Classement Général'!BU40,"") ->  | O40: =IF(B40<>"",'Calculs (M1..M20)'!A43,"") ->  | AH40: =IF($G40<>"",AG40,"") -> 0
B41: =IF('Chronos (M1..M20)'!B41<>"",'Chronos (M1..M20)'!B41,"") ->  | C41: =IF('Chronos (M1..M20)'!B41<>"",'Chronos (M1..M20)'!C41,"") ->  | D41: =IF('Chronos (M1..M20)'!B41<>"",'Chronos (M1..M20)'!D41,"") ->  | E41: =IF('Chronos (M1..M20)'!B41<>"",'Chronos (M1..M20)'!E41,"") ->  | F41: 21 | G41: ='Chronos (M1..M20)'!G1960 -> 1 | H41: =IF($G41<>"",G41,"") -> 1 | K41: =IF($B41<>"",IF(I41,(INDEX(P$11:Q$14,MATCH(H41,P$11:P$14),2)/I41)*1000,0),"") ->  | L41: =IF(Q$11<>"",IF($B41<>"",K41-J41,""),"") ->  | M41: =IF(B41<>"",RANK(L41,L$11:L$110),"") ->  | N41: =IF(B41<>"",'Classement Général'!BU41,"") ->  | O41: =IF(B41<>"",'Calculs (M1..M20)'!A44,"") ->  | AH41: =IF($G41<>"",AG41,"") -> 0
B42: =IF('Chronos (M1..M20)'!B42<>"",'Chronos (M1..M20)'!B42,"") ->  | C42: =IF('Chronos (M1..M20)'!B42<>"",'Chronos (M1..M20)'!C42,"") ->  | D42: =IF('Chronos (M1..M20)'!B42<>"",'Chronos (M1..M20)'!D42,"") ->  | E42: =IF('Chronos (M1..M20)'!B42<>"",'Chronos (M1..M20)'!E42,"") ->  | F42: 21 | G42: ='Chronos (M1..M20)'!G1961 -> 1 | H42: =IF($G42<>"",G42,"") -> 1 | K42: =IF($B42<>"",IF(I42,(INDEX(P$11:Q$14,MATCH(H42,P$11:P$14),2)/I42)*1000,0),"") ->  | L42: =IF(Q$11<>"",IF($B42<>"",K42-J42,""),"") ->  | M42: =IF(B42<>"",RANK(L42,L$11:L$110),"") ->  | N42: =IF(B42<>"",'Classement Général'!BU42,"") ->  | O42: =IF(B42<>"",'Calculs (M1..M20)'!A45,"") ->  | AH42: =IF($G42<>"",AG42,"") -> 0
B43: =IF('Chronos (M1..M20)'!B43<>"",'Chronos (M1..M20)'!B43,"") ->  | C43: =IF('Chronos (M1..M20)'!B43<>"",'Chronos (M1..M20)'!C43,"") ->  | D43: =IF('Chronos (M1..M20)'!B43<>"",'Chronos (M1..M20)'!D43,"") ->  | E43: =IF('Chronos (M1..M20)'!B43<>"",'Chronos (M1..M20)'!E43,"") ->  | F43: 21 | G43: ='Chronos (M1..M20)'!G1962 -> 1 | H43: =IF($G43<>"",G43,"") -> 1 | K43: =IF($B43<>"",IF(I43,(INDEX(P$11:Q$14,MATCH(H43,P$11:P$14),2)/I43)*1000,0),"") ->  | L43: =IF(Q$11<>"",IF($B43<>"",K43-J43,""),"") ->  | M43: =IF(B43<>"",RANK(L43,L$11:L$110),"") ->  | N43: =IF(B43<>"",'Classement Général'!BU43,"") ->  | O43: =IF(B43<>"",'Calculs (M1..M20)'!A46,"") ->  | AH43: =IF($G43<>"",AG43,"") -> 0
B44: =IF('Chronos (M1..M20)'!B44<>"",'Chronos (M1..M20)'!B44,"") ->  | C44: =IF('Chronos (M1..M20)'!B44<>"",'Chronos (M1..M20)'!C44,"") ->  | D44: =IF('Chronos (M1..M20)'!B44<>"",'Chronos (M1..M20)'!D44,"") ->  | E44: =IF('Chronos (M1..M20)'!B44<>"",'Chronos (M1..M20)'!E44,"") ->  | F44: 21 | G44: ='Chronos (M1..M20)'!G1963 -> 1 | H44: =IF($G44<>"",G44,"") -> 1 | K44: =IF($B44<>"",IF(I44,(INDEX(P$11:Q$14,MATCH(H44,P$11:P$14),2)/I44)*1000,0),"") ->  | L44: =IF(Q$11<>"",IF($B44<>"",K44-J44,""),"") ->  | M44: =IF(B44<>"",RANK(L44,L$11:L$110),"") ->  | N44: =IF(B44<>"",'Classement Général'!BU44,"") ->  | O44: =IF(B44<>"",'Calculs (M1..M20)'!A47,"") ->  | AH44: =IF($G44<>"",AG44,"") -> 0
B45: =IF('Chronos (M1..M20)'!B45<>"",'Chronos (M1..M20)'!B45,"") ->  | C45: =IF('Chronos (M1..M20)'!B45<>"",'Chronos (M1..M20)'!C45,"") ->  | D45: =IF('Chronos (M1..M20)'!B45<>"",'Chronos (M1..M20)'!D45,"") ->  | E45: =IF('Chronos (M1..M20)'!B45<>"",'Chronos (M1..M20)'!E45,"") ->  | F45: 21 | G45: ='Chronos (M1..M20)'!G1964 -> 1 | H45: =IF($G45<>"",G45,"") -> 1 | K45: =IF($B45<>"",IF(I45,(INDEX(P$11:Q$14,MATCH(H45,P$11:P$14),2)/I45)*1000,0),"") ->  | L45: =IF(Q$11<>"",IF($B45<>"",K45-J45,""),"") ->  | M45: =IF(B45<>"",RANK(L45,L$11:L$110),"") ->  | N45: =IF(B45<>"",'Classement Général'!BU45,"") ->  | O45: =IF(B45<>"",'Calculs (M1..M20)'!A48,"") ->  | AH45: =IF($G45<>"",AG45,"") -> 0
B46: =IF('Chronos (M1..M20)'!B46<>"",'Chronos (M1..M20)'!B46,"") ->  | C46: =IF('Chronos (M1..M20)'!B46<>"",'Chronos (M1..M20)'!C46,"") ->  | D46: =IF('Chronos (M1..M20)'!B46<>"",'Chronos (M1..M20)'!D46,"") ->  | E46: =IF('Chronos (M1..M20)'!B46<>"",'Chronos (M1..M20)'!E46,"") ->  | F46: 21 | G46: ='Chronos (M1..M20)'!G1965 -> 1 | H46: =IF($G46<>"",G46,"") -> 1 | K46: =IF($B46<>"",IF(I46,(INDEX(P$11:Q$14,MATCH(H46,P$11:P$14),2)/I46)*1000,0),"") ->  | L46: =IF(Q$11<>"",IF($B46<>"",K46-J46,""),"") ->  | M46: =IF(B46<>"",RANK(L46,L$11:L$110),"") ->  | N46: =IF(B46<>"",'Classement Général'!BU46,"") ->  | O46: =IF(B46<>"",'Calculs (M1..M20)'!A49,"") ->  | AH46: =IF($G46<>"",AG46,"") -> 0
B47: =IF('Chronos (M1..M20)'!B47<>"",'Chronos (M1..M20)'!B47,"") ->  | C47: =IF('Chronos (M1..M20)'!B47<>"",'Chronos (M1..M20)'!C47,"") ->  | D47: =IF('Chronos (M1..M20)'!B47<>"",'Chronos (M1..M20)'!D47,"") ->  | E47: =IF('Chronos (M1..M20)'!B47<>"",'Chronos (M1..M20)'!E47,"") ->  | F47: 21 | G47: ='Chronos (M1..M20)'!G1966 -> 1 | H47: =IF($G47<>"",G47,"") -> 1 | K47: =IF($B47<>"",IF(I47,(INDEX(P$11:Q$14,MATCH(H47,P$11:P$14),2)/I47)*1000,0),"") ->  | L47: =IF(Q$11<>"",IF($B47<>"",K47-J47,""),"") ->  | M47: =IF(B47<>"",RANK(L47,L$11:L$110),"") ->  | N47: =IF(B47<>"",'Classement Général'!BU47,"") ->  | O47: =IF(B47<>"",'Calculs (M1..M20)'!A50,"") ->  | AH47: =IF($G47<>"",AG47,"") -> 0
B48: =IF('Chronos (M1..M20)'!B48<>"",'Chronos (M1..M20)'!B48,"") ->  | C48: =IF('Chronos (M1..M20)'!B48<>"",'Chronos (M1..M20)'!C48,"") ->  | D48: =IF('Chronos (M1..M20)'!B48<>"",'Chronos (M1..M20)'!D48,"") ->  | E48: =IF('Chronos (M1..M20)'!B48<>"",'Chronos (M1..M20)'!E48,"") ->  | F48: 21 | G48: ='Chronos (M1..M20)'!G1967 -> 1 | H48: =IF($G48<>"",G48,"") -> 1 | K48: =IF($B48<>"",IF(I48,(INDEX(P$11:Q$14,MATCH(H48,P$11:P$14),2)/I48)*1000,0),"") ->  | L48: =IF(Q$11<>"",IF($B48<>"",K48-J48,""),"") ->  | M48: =IF(B48<>"",RANK(L48,L$11:L$110),"") ->  | N48: =IF(B48<>"",'Classement Général'!BU48,"") ->  | O48: =IF(B48<>"",'Calculs (M1..M20)'!A51,"") ->  | AH48: =IF($G48<>"",AG48,"") -> 0
B49: =IF('Chronos (M1..M20)'!B49<>"",'Chronos (M1..M20)'!B49,"") ->  | C49: =IF('Chronos (M1..M20)'!B49<>"",'Chronos (M1..M20)'!C49,"") ->  | D49: =IF('Chronos (M1..M20)'!B49<>"",'Chronos (M1..M20)'!D49,"") ->  | E49: =IF('Chronos (M1..M20)'!B49<>"",'Chronos (M1..M20)'!E49,"") ->  | F49: 21 | G49: ='Chronos (M1..M20)'!G1968 -> 1 | H49: =IF($G49<>"",G49,"") -> 1 | K49: =IF($B49<>"",IF(I49,(INDEX(P$11:Q$14,MATCH(H49,P$11:P$14),2)/I49)*1000,0),"") ->  | L49: =IF(Q$11<>"",IF($B49<>"",K49-J49,""),"") ->  | M49: =IF(B49<>"",RANK(L49,L$11:L$110),"") ->  | N49: =IF(B49<>"",'Classement Général'!BU49,"") ->  | O49: =IF(B49<>"",'Calculs (M1..M20)'!A52,"") ->  | AH49: =IF($G49<>"",AG49,"") -> 0
B50: =IF('Chronos (M1..M20)'!B50<>"",'Chronos (M1..M20)'!B50,"") ->  | C50: =IF('Chronos (M1..M20)'!B50<>"",'Chronos (M1..M20)'!C50,"") ->  | D50: =IF('Chronos (M1..M20)'!B50<>"",'Chronos (M1..M20)'!D50,"") ->  | E50: =IF('Chronos (M1..M20)'!B50<>"",'Chronos (M1..M20)'!E50,"") ->  | F50: 21 | G50: ='Chronos (M1..M20)'!G1969 -> 1 | H50: =IF($G50<>"",G50,"") -> 1 | K50: =IF($B50<>"",IF(I50,(INDEX(P$11:Q$14,MATCH(H50,P$11:P$14),2)/I50)*1000,0),"") ->  | L50: =IF(Q$11<>"",IF($B50<>"",K50-J50,""),"") ->  | M50: =IF(B50<>"",RANK(L50,L$11:L$110),"") ->  | N50: =IF(B50<>"",'Classement Général'!BU50,"") ->  | O50: =IF(B50<>"",'Calculs (M1..M20)'!A53,"") ->  | AH50: =IF($G50<>"",AG50,"") -> 0
B51: =IF('Chronos (M1..M20)'!B51<>"",'Chronos (M1..M20)'!B51,"") ->  | C51: =IF('Chronos (M1..M20)'!B51<>"",'Chronos (M1..M20)'!C51,"") ->  | D51: =IF('Chronos (M1..M20)'!B51<>"",'Chronos (M1..M20)'!D51,"") ->  | E51: =IF('Chronos (M1..M20)'!B51<>"",'Chronos (M1..M20)'!E51,"") ->  | F51: 21 | G51: ='Chronos (M1..M20)'!G1970 -> 1 | H51: =IF($G51<>"",G51,"") -> 1 | K51: =IF($B51<>"",IF(I51,(INDEX(P$11:Q$14,MATCH(H51,P$11:P$14),2)/I51)*1000,0),"") ->  | L51: =IF(Q$11<>"",IF($B51<>"",K51-J51,""),"") ->  | M51: =IF(B51<>"",RANK(L51,L$11:L$110),"") ->  | N51: =IF(B51<>"",'Classement Général'!BU51,"") ->  | O51: =IF(B51<>"",'Calculs (M1..M20)'!A54,"") ->  | AH51: =IF($G51<>"",AG51,"") -> 0
B52: =IF('Chronos (M1..M20)'!B52<>"",'Chronos (M1..M20)'!B52,"") ->  | C52: =IF('Chronos (M1..M20)'!B52<>"",'Chronos (M1..M20)'!C52,"") ->  | D52: =IF('Chronos (M1..M20)'!B52<>"",'Chronos (M1..M20)'!D52,"") ->  | E52: =IF('Chronos (M1..M20)'!B52<>"",'Chronos (M1..M20)'!E52,"") ->  | F52: 21 | G52: ='Chronos (M1..M20)'!G1971 -> 1 | H52: =IF($G52<>"",G52,"") -> 1 | K52: =IF($B52<>"",IF(I52,(INDEX(P$11:Q$14,MATCH(H52,P$11:P$14),2)/I52)*1000,0),"") ->  | L52: =IF(Q$11<>"",IF($B52<>"",K52-J52,""),"") ->  | M52: =IF(B52<>"",RANK(L52,L$11:L$110),"") ->  | N52: =IF(B52<>"",'Classement Général'!BU52,"") ->  | O52: =IF(B52<>"",'Calculs (M1..M20)'!A55,"") ->  | AH52: =IF($G52<>"",AG52,"") -> 0
B53: =IF('Chronos (M1..M20)'!B53<>"",'Chronos (M1..M20)'!B53,"") ->  | C53: =IF('Chronos (M1..M20)'!B53<>"",'Chronos (M1..M20)'!C53,"") ->  | D53: =IF('Chronos (M1..M20)'!B53<>"",'Chronos (M1..M20)'!D53,"") ->  | E53: =IF('Chronos (M1..M20)'!B53<>"",'Chronos (M1..M20)'!E53,"") ->  | F53: 21 | G53: ='Chronos (M1..M20)'!G1972 -> 1 | H53: =IF($G53<>"",G53,"") -> 1 | K53: =IF($B53<>"",IF(I53,(INDEX(P$11:Q$14,MATCH(H53,P$11:P$14),2)/I53)*1000,0),"") ->  | L53: =IF(Q$11<>"",IF($B53<>"",K53-J53,""),"") ->  | M53: =IF(B53<>"",RANK(L53,L$11:L$110),"") ->  | N53: =IF(B53<>"",'Classement Général'!BU53,"") ->  | O53: =IF(B53<>"",'Calculs (M1..M20)'!A56,"") ->  | AH53: =IF($G53<>"",AG53,"") -> 0
B54: =IF('Chronos (M1..M20)'!B54<>"",'Chronos (M1..M20)'!B54,"") ->  | C54: =IF('Chronos (M1..M20)'!B54<>"",'Chronos (M1..M20)'!C54,"") ->  | D54: =IF('Chronos (M1..M20)'!B54<>"",'Chronos (M1..M20)'!D54,"") ->  | E54: =IF('Chronos (M1..M20)'!B54<>"",'Chronos (M1..M20)'!E54,"") ->  | F54: 21 | G54: ='Chronos (M1..M20)'!G1973 -> 1 | H54: =IF($G54<>"",G54,"") -> 1 | K54: =IF($B54<>"",IF(I54,(INDEX(P$11:Q$14,MATCH(H54,P$11:P$14),2)/I54)*1000,0),"") ->  | L54: =IF(Q$11<>"",IF($B54<>"",K54-J54,""),"") ->  | M54: =IF(B54<>"",RANK(L54,L$11:L$110),"") ->  | N54: =IF(B54<>"",'Classement Général'!BU54,"") ->  | O54: =IF(B54<>"",'Calculs (M1..M20)'!A57,"") ->  | AH54: =IF($G54<>"",AG54,"") -> 0
B55: =IF('Chronos (M1..M20)'!B55<>"",'Chronos (M1..M20)'!B55,"") ->  | C55: =IF('Chronos (M1..M20)'!B55<>"",'Chronos (M1..M20)'!C55,"") ->  | D55: =IF('Chronos (M1..M20)'!B55<>"",'Chronos (M1..M20)'!D55,"") ->  | E55: =IF('Chronos (M1..M20)'!B55<>"",'Chronos (M1..M20)'!E55,"") ->  | F55: 21 | G55: ='Chronos (M1..M20)'!G1974 -> 1 | H55: =IF($G55<>"",G55,"") -> 1 | K55: =IF($B55<>"",IF(I55,(INDEX(P$11:Q$14,MATCH(H55,P$11:P$14),2)/I55)*1000,0),"") ->  | L55: =IF(Q$11<>"",IF($B55<>"",K55-J55,""),"") ->  | M55: =IF(B55<>"",RANK(L55,L$11:L$110),"") ->  | N55: =IF(B55<>"",'Classement Général'!BU55,"") ->  | O55: =IF(B55<>"",'Calculs (M1..M20)'!A58,"") ->  | AH55: =IF($G55<>"",AG55,"") -> 0
B56: =IF('Chronos (M1..M20)'!B56<>"",'Chronos (M1..M20)'!B56,"") ->  | C56: =IF('Chronos (M1..M20)'!B56<>"",'Chronos (M1..M20)'!C56,"") ->  | D56: =IF('Chronos (M1..M20)'!B56<>"",'Chronos (M1..M20)'!D56,"") ->  | E56: =IF('Chronos (M1..M20)'!B56<>"",'Chronos (M1..M20)'!E56,"") ->  | F56: 21 | G56: ='Chronos (M1..M20)'!G1975 -> 1 | H56: =IF($G56<>"",G56,"") -> 1 | K56: =IF($B56<>"",IF(I56,(INDEX(P$11:Q$14,MATCH(H56,P$11:P$14),2)/I56)*1000,0),"") ->  | L56: =IF(Q$11<>"",IF($B56<>"",K56-J56,""),"") ->  | M56: =IF(B56<>"",RANK(L56,L$11:L$110),"") ->  | N56: =IF(B56<>"",'Classement Général'!BU56,"") ->  | O56: =IF(B56<>"",'Calculs (M1..M20)'!A59,"") ->  | AH56: =IF($G56<>"",AG56,"") -> 0
B57: =IF('Chronos (M1..M20)'!B57<>"",'Chronos (M1..M20)'!B57,"") ->  | C57: =IF('Chronos (M1..M20)'!B57<>"",'Chronos (M1..M20)'!C57,"") ->  | D57: =IF('Chronos (M1..M20)'!B57<>"",'Chronos (M1..M20)'!D57,"") ->  | E57: =IF('Chronos (M1..M20)'!B57<>"",'Chronos (M1..M20)'!E57,"") ->  | F57: 21 | G57: ='Chronos (M1..M20)'!G1976 -> 1 | H57: =IF($G57<>"",G57,"") -> 1 | K57: =IF($B57<>"",IF(I57,(INDEX(P$11:Q$14,MATCH(H57,P$11:P$14),2)/I57)*1000,0),"") ->  | L57: =IF(Q$11<>"",IF($B57<>"",K57-J57,""),"") ->  | M57: =IF(B57<>"",RANK(L57,L$11:L$110),"") ->  | N57: =IF(B57<>"",'Classement Général'!BU57,"") ->  | O57: =IF(B57<>"",'Calculs (M1..M20)'!A60,"") ->  | AH57: =IF($G57<>"",AG57,"") -> 0
B58: =IF('Chronos (M1..M20)'!B58<>"",'Chronos (M1..M20)'!B58,"") ->  | C58: =IF('Chronos (M1..M20)'!B58<>"",'Chronos (M1..M20)'!C58,"") ->  | D58: =IF('Chronos (M1..M20)'!B58<>"",'Chronos (M1..M20)'!D58,"") ->  | E58: =IF('Chronos (M1..M20)'!B58<>"",'Chronos (M1..M20)'!E58,"") ->  | F58: 21 | G58: ='Chronos (M1..M20)'!G1977 -> 1 | H58: =IF($G58<>"",G58,"") -> 1 | K58: =IF($B58<>"",IF(I58,(INDEX(P$11:Q$14,MATCH(H58,P$11:P$14),2)/I58)*1000,0),"") ->  | L58: =IF(Q$11<>"",IF($B58<>"",K58-J58,""),"") ->  | M58: =IF(B58<>"",RANK(L58,L$11:L$110),"") ->  | N58: =IF(B58<>"",'Classement Général'!BU58,"") ->  | O58: =IF(B58<>"",'Calculs (M1..M20)'!A61,"") ->  | AH58: =IF($G58<>"",AG58,"") -> 0
B59: =IF('Chronos (M1..M20)'!B59<>"",'Chronos (M1..M20)'!B59,"") ->  | C59: =IF('Chronos (M1..M20)'!B59<>"",'Chronos (M1..M20)'!C59,"") ->  | D59: =IF('Chronos (M1..M20)'!B59<>"",'Chronos (M1..M20)'!D59,"") ->  | E59: =IF('Chronos (M1..M20)'!B59<>"",'Chronos (M1..M20)'!E59,"") ->  | F59: 21 | G59: ='Chronos (M1..M20)'!G1978 -> 1 | H59: =IF($G59<>"",G59,"") -> 1 | K59: =IF($B59<>"",IF(I59,(INDEX(P$11:Q$14,MATCH(H59,P$11:P$14),2)/I59)*1000,0),"") ->  | L59: =IF(Q$11<>"",IF($B59<>"",K59-J59,""),"") ->  | M59: =IF(B59<>"",RANK(L59,L$11:L$110),"") ->  | N59: =IF(B59<>"",'Classement Général'!BU59,"") ->  | O59: =IF(B59<>"",'Calculs (M1..M20)'!A62,"") ->  | AH59: =IF($G59<>"",AG59,"") -> 0
B60: =IF('Chronos (M1..M20)'!B60<>"",'Chronos (M1..M20)'!B60,"") ->  | C60: =IF('Chronos (M1..M20)'!B60<>"",'Chronos (M1..M20)'!C60,"") ->  | D60: =IF('Chronos (M1..M20)'!B60<>"",'Chronos (M1..M20)'!D60,"") ->  | E60: =IF('Chronos (M1..M20)'!B60<>"",'Chronos (M1..M20)'!E60,"") ->  | F60: 21 | G60: ='Chronos (M1..M20)'!G1979 -> 1 | H60: =IF($G60<>"",G60,"") -> 1 | K60: =IF($B60<>"",IF(I60,(INDEX(P$11:Q$14,MATCH(H60,P$11:P$14),2)/I60)*1000,0),"") ->  | L60: =IF(Q$11<>"",IF($B60<>"",K60-J60,""),"") ->  | M60: =IF(B60<>"",RANK(L60,L$11:L$110),"") ->  | N60: =IF(B60<>"",'Classement Général'!BU60,"") ->  | O60: =IF(B60<>"",'Calculs (M1..M20)'!A63,"") ->  | AH60: =IF($G60<>"",AG60,"") -> 0
B61: =IF('Chronos (M1..M20)'!B61<>"",'Chronos (M1..M20)'!B61,"") ->  | C61: =IF('Chronos (M1..M20)'!B61<>"",'Chronos (M1..M20)'!C61,"") ->  | D61: =IF('Chronos (M1..M20)'!B61<>"",'Chronos (M1..M20)'!D61,"") ->  | E61: =IF('Chronos (M1..M20)'!B61<>"",'Chronos (M1..M20)'!E61,"") ->  | F61: 21 | G61: ='Chronos (M1..M20)'!G1980 -> 1 | H61: =IF($G61<>"",G61,"") -> 1 | K61: =IF($B61<>"",IF(I61,(INDEX(P$11:Q$14,MATCH(H61,P$11:P$14),2)/I61)*1000,0),"") ->  | L61: =IF(Q$11<>"",IF($B61<>"",K61-J61,""),"") ->  | M61: =IF(B61<>"",RANK(L61,L$11:L$110),"") ->  | N61: =IF(B61<>"",'Classement Général'!BU61,"") ->  | O61: =IF(B61<>"",'Calculs (M1..M20)'!A64,"") ->  | AH61: =IF($G61<>"",AG61,"") -> 0
B62: =IF('Chronos (M1..M20)'!B62<>"",'Chronos (M1..M20)'!B62,"") ->  | C62: =IF('Chronos (M1..M20)'!B62<>"",'Chronos (M1..M20)'!C62,"") ->  | D62: =IF('Chronos (M1..M20)'!B62<>"",'Chronos (M1..M20)'!D62,"") ->  | E62: =IF('Chronos (M1..M20)'!B62<>"",'Chronos (M1..M20)'!E62,"") ->  | F62: 21 | G62: ='Chronos (M1..M20)'!G1981 -> 1 | H62: =IF($G62<>"",G62,"") -> 1 | K62: =IF($B62<>"",IF(I62,(INDEX(P$11:Q$14,MATCH(H62,P$11:P$14),2)/I62)*1000,0),"") ->  | L62: =IF(Q$11<>"",IF($B62<>"",K62-J62,""),"") ->  | M62: =IF(B62<>"",RANK(L62,L$11:L$110),"") ->  | N62: =IF(B62<>"",'Classement Général'!BU62,"") ->  | O62: =IF(B62<>"",'Calculs (M1..M20)'!A65,"") ->  | AH62: =IF($G62<>"",AG62,"") -> 0
B63: =IF('Chronos (M1..M20)'!B63<>"",'Chronos (M1..M20)'!B63,"") ->  | C63: =IF('Chronos (M1..M20)'!B63<>"",'Chronos (M1..M20)'!C63,"") ->  | D63: =IF('Chronos (M1..M20)'!B63<>"",'Chronos (M1..M20)'!D63,"") ->  | E63: =IF('Chronos (M1..M20)'!B63<>"",'Chronos (M1..M20)'!E63,"") ->  | F63: 21 | G63: ='Chronos (M1..M20)'!G1982 -> 1 | H63: =IF($G63<>"",G63,"") -> 1 | K63: =IF($B63<>"",IF(I63,(INDEX(P$11:Q$14,MATCH(H63,P$11:P$14),2)/I63)*1000,0),"") ->  | L63: =IF(Q$11<>"",IF($B63<>"",K63-J63,""),"") ->  | M63: =IF(B63<>"",RANK(L63,L$11:L$110),"") ->  | N63: =IF(B63<>"",'Classement Général'!BU63,"") ->  | O63: =IF(B63<>"",'Calculs (M1..M20)'!A66,"") ->  | AH63: =IF($G63<>"",AG63,"") -> 0
B64: =IF('Chronos (M1..M20)'!B64<>"",'Chronos (M1..M20)'!B64,"") ->  | C64: =IF('Chronos (M1..M20)'!B64<>"",'Chronos (M1..M20)'!C64,"") ->  | D64: =IF('Chronos (M1..M20)'!B64<>"",'Chronos (M1..M20)'!D64,"") ->  | E64: =IF('Chronos (M1..M20)'!B64<>"",'Chronos (M1..M20)'!E64,"") ->  | F64: 21 | G64: ='Chronos (M1..M20)'!G1983 -> 1 | H64: =IF($G64<>"",G64,"") -> 1 | K64: =IF($B64<>"",IF(I64,(INDEX(P$11:Q$14,MATCH(H64,P$11:P$14),2)/I64)*1000,0),"") ->  | L64: =IF(Q$11<>"",IF($B64<>"",K64-J64,""),"") ->  | M64: =IF(B64<>"",RANK(L64,L$11:L$110),"") ->  | N64: =IF(B64<>"",'Classement Général'!BU64,"") ->  | O64: =IF(B64<>"",'Calculs (M1..M20)'!A67,"") ->  | AH64: =IF($G64<>"",AG64,"") -> 0
B65: =IF('Chronos (M1..M20)'!B65<>"",'Chronos (M1..M20)'!B65,"") ->  | C65: =IF('Chronos (M1..M20)'!B65<>"",'Chronos (M1..M20)'!C65,"") ->  | D65: =IF('Chronos (M1..M20)'!B65<>"",'Chronos (M1..M20)'!D65,"") ->  | E65: =IF('Chronos (M1..M20)'!B65<>"",'Chronos (M1..M20)'!E65,"") ->  | F65: 21 | G65: ='Chronos (M1..M20)'!G1984 -> 1 | H65: =IF($G65<>"",G65,"") -> 1 | K65: =IF($B65<>"",IF(I65,(INDEX(P$11:Q$14,MATCH(H65,P$11:P$14),2)/I65)*1000,0),"") ->  | L65: =IF(Q$11<>"",IF($B65<>"",K65-J65,""),"") ->  | M65: =IF(B65<>"",RANK(L65,L$11:L$110),"") ->  | N65: =IF(B65<>"",'Classement Général'!BU65,"") ->  | O65: =IF(B65<>"",'Calculs (M1..M20)'!A68,"") ->  | AH65: =IF($G65<>"",AG65,"") -> 0
B66: =IF('Chronos (M1..M20)'!B66<>"",'Chronos (M1..M20)'!B66,"") ->  | C66: =IF('Chronos (M1..M20)'!B66<>"",'Chronos (M1..M20)'!C66,"") ->  | D66: =IF('Chronos (M1..M20)'!B66<>"",'Chronos (M1..M20)'!D66,"") ->  | E66: =IF('Chronos (M1..M20)'!B66<>"",'Chronos (M1..M20)'!E66,"") ->  | F66: 21 | G66: ='Chronos (M1..M20)'!G1985 -> 1 | H66: =IF($G66<>"",G66,"") -> 1 | K66: =IF($B66<>"",IF(I66,(INDEX(P$11:Q$14,MATCH(H66,P$11:P$14),2)/I66)*1000,0),"") ->  | L66: =IF(Q$11<>"",IF($B66<>"",K66-J66,""),"") ->  | M66: =IF(B66<>"",RANK(L66,L$11:L$110),"") ->  | N66: =IF(B66<>"",'Classement Général'!BU66,"") ->  | O66: =IF(B66<>"",'Calculs (M1..M20)'!A69,"") ->  | AH66: =IF($G66<>"",AG66,"") -> 0
B67: =IF('Chronos (M1..M20)'!B67<>"",'Chronos (M1..M20)'!B67,"") ->  | C67: =IF('Chronos (M1..M20)'!B67<>"",'Chronos (M1..M20)'!C67,"") ->  | D67: =IF('Chronos (M1..M20)'!B67<>"",'Chronos (M1..M20)'!D67,"") ->  | E67: =IF('Chronos (M1..M20)'!B67<>"",'Chronos (M1..M20)'!E67,"") ->  | F67: 21 | G67: ='Chronos (M1..M20)'!G1986 -> 1 | H67: =IF($G67<>"",G67,"") -> 1 | K67: =IF($B67<>"",IF(I67,(INDEX(P$11:Q$14,MATCH(H67,P$11:P$14),2)/I67)*1000,0),"") ->  | L67: =IF(Q$11<>"",IF($B67<>"",K67-J67,""),"") ->  | M67: =IF(B67<>"",RANK(L67,L$11:L$110),"") ->  | N67: =IF(B67<>"",'Classement Général'!BU67,"") ->  | O67: =IF(B67<>"",'Calculs (M1..M20)'!A70,"") ->  | AH67: =IF($G67<>"",AG67,"") -> 0
B68: =IF('Chronos (M1..M20)'!B68<>"",'Chronos (M1..M20)'!B68,"") ->  | C68: =IF('Chronos (M1..M20)'!B68<>"",'Chronos (M1..M20)'!C68,"") ->  | D68: =IF('Chronos (M1..M20)'!B68<>"",'Chronos (M1..M20)'!D68,"") ->  | E68: =IF('Chronos (M1..M20)'!B68<>"",'Chronos (M1..M20)'!E68,"") ->  | F68: 21 | G68: ='Chronos (M1..M20)'!G1987 -> 0 | H68: =IF($G68<>"",G68,"") -> 0 | K68: =IF($B68<>"",IF(I68,(INDEX(P$11:Q$14,MATCH(H68,P$11:P$14),2)/I68)*1000,0),"") ->  | L68: =IF(Q$11<>"",IF($B68<>"",K68-J68,""),"") ->  | M68: =IF(B68<>"",RANK(L68,L$11:L$110),"") ->  | N68: =IF(B68<>"",'Classement Général'!BU68,"") ->  | O68: =IF(B68<>"",'Calculs (M1..M20)'!A71,"") ->  | AH68: =IF($G68<>"",AG68,"") -> 0
B69: =IF('Chronos (M1..M20)'!B69<>"",'Chronos (M1..M20)'!B69,"") ->  | C69: =IF('Chronos (M1..M20)'!B69<>"",'Chronos (M1..M20)'!C69,"") ->  | D69: =IF('Chronos (M1..M20)'!B69<>"",'Chronos (M1..M20)'!D69,"") ->  | E69: =IF('Chronos (M1..M20)'!B69<>"",'Chronos (M1..M20)'!E69,"") ->  | F69: 21 | G69: ='Chronos (M1..M20)'!G1988 -> 0 | H69: =IF($G69<>"",G69,"") -> 0 | K69: =IF($B69<>"",IF(I69,(INDEX(P$11:Q$14,MATCH(H69,P$11:P$14),2)/I69)*1000,0),"") ->  | L69: =IF(Q$11<>"",IF($B69<>"",K69-J69,""),"") ->  | M69: =IF(B69<>"",RANK(L69,L$11:L$110),"") ->  | N69: =IF(B69<>"",'Classement Général'!BU69,"") ->  | O69: =IF(B69<>"",'Calculs (M1..M20)'!A72,"") ->  | AH69: =IF($G69<>"",AG69,"") -> 0
B70: =IF('Chronos (M1..M20)'!B70<>"",'Chronos (M1..M20)'!B70,"") ->  | C70: =IF('Chronos (M1..M20)'!B70<>"",'Chronos (M1..M20)'!C70,"") ->  | D70: =IF('Chronos (M1..M20)'!B70<>"",'Chronos (M1..M20)'!D70,"") ->  | E70: =IF('Chronos (M1..M20)'!B70<>"",'Chronos (M1..M20)'!E70,"") ->  | F70: 21 | G70: ='Chronos (M1..M20)'!G1989 -> 0 | H70: =IF($G70<>"",G70,"") -> 0 | K70: =IF($B70<>"",IF(I70,(INDEX(P$11:Q$14,MATCH(H70,P$11:P$14),2)/I70)*1000,0),"") ->  | L70: =IF(Q$11<>"",IF($B70<>"",K70-J70,""),"") ->  | M70: =IF(B70<>"",RANK(L70,L$11:L$110),"") ->  | N70: =IF(B70<>"",'Classement Général'!BU70,"") ->  | O70: =IF(B70<>"",'Calculs (M1..M20)'!A73,"") ->  | AH70: =IF($G70<>"",AG70,"") -> 0
B71: =IF('Chronos (M1..M20)'!B71<>"",'Chronos (M1..M20)'!B71,"") ->  | C71: =IF('Chronos (M1..M20)'!B71<>"",'Chronos (M1..M20)'!C71,"") ->  | D71: =IF('Chronos (M1..M20)'!B71<>"",'Chronos (M1..M20)'!D71,"") ->  | E71: =IF('Chronos (M1..M20)'!B71<>"",'Chronos (M1..M20)'!E71,"") ->  | F71: 21 | G71: ='Chronos (M1..M20)'!G1990 -> 0 | H71: =IF($G71<>"",G71,"") -> 0 | K71: =IF($B71<>"",IF(I71,(INDEX(P$11:Q$14,MATCH(H71,P$11:P$14),2)/I71)*1000,0),"") ->  | L71: =IF(Q$11<>"",IF($B71<>"",K71-J71,""),"") ->  | M71: =IF(B71<>"",RANK(L71,L$11:L$110),"") ->  | N71: =IF(B71<>"",'Classement Général'!BU71,"") ->  | O71: =IF(B71<>"",'Calculs (M1..M20)'!A74,"") ->  | AH71: =IF($G71<>"",AG71,"") -> 0
B72: =IF('Chronos (M1..M20)'!B72<>"",'Chronos (M1..M20)'!B72,"") ->  | C72: =IF('Chronos (M1..M20)'!B72<>"",'Chronos (M1..M20)'!C72,"") ->  | D72: =IF('Chronos (M1..M20)'!B72<>"",'Chronos (M1..M20)'!D72,"") ->  | E72: =IF('Chronos (M1..M20)'!B72<>"",'Chronos (M1..M20)'!E72,"") ->  | F72: 21 | G72: ='Chronos (M1..M20)'!G1991 -> 0 | H72: =IF($G72<>"",G72,"") -> 0 | K72: =IF($B72<>"",IF(I72,(INDEX(P$11:Q$14,MATCH(H72,P$11:P$14),2)/I72)*1000,0),"") ->  | L72: =IF(Q$11<>"",IF($B72<>"",K72-J72,""),"") ->  | M72: =IF(B72<>"",RANK(L72,L$11:L$110),"") ->  | N72: =IF(B72<>"",'Classement Général'!BU72,"") ->  | O72: =IF(B72<>"",'Calculs (M1..M20)'!A75,"") ->  | AH72: =IF($G72<>"",AG72,"") -> 0
B73: =IF('Chronos (M1..M20)'!B73<>"",'Chronos (M1..M20)'!B73,"") ->  | C73: =IF('Chronos (M1..M20)'!B73<>"",'Chronos (M1..M20)'!C73,"") ->  | D73: =IF('Chronos (M1..M20)'!B73<>"",'Chronos (M1..M20)'!D73,"") ->  | E73: =IF('Chronos (M1..M20)'!B73<>"",'Chronos (M1..M20)'!E73,"") ->  | F73: 21 | G73: ='Chronos (M1..M20)'!G1992 -> 0 | H73: =IF($G73<>"",G73,"") -> 0 | K73: =IF($B73<>"",IF(I73,(INDEX(P$11:Q$14,MATCH(H73,P$11:P$14),2)/I73)*1000,0),"") ->  | L73: =IF(Q$11<>"",IF($B73<>"",K73-J73,""),"") ->  | M73: =IF(B73<>"",RANK(L73,L$11:L$110),"") ->  | N73: =IF(B73<>"",'Classement Général'!BU73,"") ->  | O73: =IF(B73<>"",'Calculs (M1..M20)'!A76,"") ->  | AH73: =IF($G73<>"",AG73,"") -> 0
B74: =IF('Chronos (M1..M20)'!B74<>"",'Chronos (M1..M20)'!B74,"") ->  | C74: =IF('Chronos (M1..M20)'!B74<>"",'Chronos (M1..M20)'!C74,"") ->  | D74: =IF('Chronos (M1..M20)'!B74<>"",'Chronos (M1..M20)'!D74,"") ->  | E74: =IF('Chronos (M1..M20)'!B74<>"",'Chronos (M1..M20)'!E74,"") ->  | F74: 21 | G74: ='Chronos (M1..M20)'!G1993 -> 0 | H74: =IF($G74<>"",G74,"") -> 0 | K74: =IF($B74<>"",IF(I74,(INDEX(P$11:Q$14,MATCH(H74,P$11:P$14),2)/I74)*1000,0),"") ->  | L74: =IF(Q$11<>"",IF($B74<>"",K74-J74,""),"") ->  | M74: =IF(B74<>"",RANK(L74,L$11:L$110),"") ->  | N74: =IF(B74<>"",'Classement Général'!BU74,"") ->  | O74: =IF(B74<>"",'Calculs (M1..M20)'!A77,"") ->  | AH74: =IF($G74<>"",AG74,"") -> 0
B75: =IF('Chronos (M1..M20)'!B75<>"",'Chronos (M1..M20)'!B75,"") ->  | C75: =IF('Chronos (M1..M20)'!B75<>"",'Chronos (M1..M20)'!C75,"") ->  | D75: =IF('Chronos (M1..M20)'!B75<>"",'Chronos (M1..M20)'!D75,"") ->  | E75: =IF('Chronos (M1..M20)'!B75<>"",'Chronos (M1..M20)'!E75,"") ->  | F75: 21 | G75: ='Chronos (M1..M20)'!G1994 -> 0 | H75: =IF($G75<>"",G75,"") -> 0 | K75: =IF($B75<>"",IF(I75,(INDEX(P$11:Q$14,MATCH(H75,P$11:P$14),2)/I75)*1000,0),"") ->  | L75: =IF(Q$11<>"",IF($B75<>"",K75-J75,""),"") ->  | M75: =IF(B75<>"",RANK(L75,L$11:L$110),"") ->  | N75: =IF(B75<>"",'Classement Général'!BU75,"") ->  | O75: =IF(B75<>"",'Calculs (M1..M20)'!A78,"") ->  | AH75: =IF($G75<>"",AG75,"") -> 0
B76: =IF('Chronos (M1..M20)'!B76<>"",'Chronos (M1..M20)'!B76,"") ->  | C76: =IF('Chronos (M1..M20)'!B76<>"",'Chronos (M1..M20)'!C76,"") ->  | D76: =IF('Chronos (M1..M20)'!B76<>"",'Chronos (M1..M20)'!D76,"") ->  | E76: =IF('Chronos (M1..M20)'!B76<>"",'Chronos (M1..M20)'!E76,"") ->  | F76: 21 | G76: ='Chronos (M1..M20)'!G1995 -> 0 | H76: =IF($G76<>"",G76,"") -> 0 | K76: =IF($B76<>"",IF(I76,(INDEX(P$11:Q$14,MATCH(H76,P$11:P$14),2)/I76)*1000,0),"") ->  | L76: =IF(Q$11<>"",IF($B76<>"",K76-J76,""),"") ->  | M76: =IF(B76<>"",RANK(L76,L$11:L$110),"") ->  | N76: =IF(B76<>"",'Classement Général'!BU76,"") ->  | O76: =IF(B76<>"",'Calculs (M1..M20)'!A79,"") ->  | AH76: =IF($G76<>"",AG76,"") -> 0
B77: =IF('Chronos (M1..M20)'!B77<>"",'Chronos (M1..M20)'!B77,"") ->  | C77: =IF('Chronos (M1..M20)'!B77<>"",'Chronos (M1..M20)'!C77,"") ->  | D77: =IF('Chronos (M1..M20)'!B77<>"",'Chronos (M1..M20)'!D77,"") ->  | E77: =IF('Chronos (M1..M20)'!B77<>"",'Chronos (M1..M20)'!E77,"") ->  | F77: 21 | G77: ='Chronos (M1..M20)'!G1996 -> 0 | H77: =IF($G77<>"",G77,"") -> 0 | K77: =IF($B77<>"",IF(I77,(INDEX(P$11:Q$14,MATCH(H77,P$11:P$14),2)/I77)*1000,0),"") ->  | L77: =IF(Q$11<>"",IF($B77<>"",K77-J77,""),"") ->  | M77: =IF(B77<>"",RANK(L77,L$11:L$110),"") ->  | N77: =IF(B77<>"",'Classement Général'!BU77,"") ->  | O77: =IF(B77<>"",'Calculs (M1..M20)'!A80,"") ->  | AH77: =IF($G77<>"",AG77,"") -> 0
B78: =IF('Chronos (M1..M20)'!B78<>"",'Chronos (M1..M20)'!B78,"") ->  | C78: =IF('Chronos (M1..M20)'!B78<>"",'Chronos (M1..M20)'!C78,"") ->  | D78: =IF('Chronos (M1..M20)'!B78<>"",'Chronos (M1..M20)'!D78,"") ->  | E78: =IF('Chronos (M1..M20)'!B78<>"",'Chronos (M1..M20)'!E78,"") ->  | F78: 21 | G78: ='Chronos (M1..M20)'!G1997 -> 0 | H78: =IF($G78<>"",G78,"") -> 0 | K78: =IF($B78<>"",IF(I78,(INDEX(P$11:Q$14,MATCH(H78,P$11:P$14),2)/I78)*1000,0),"") ->  | L78: =IF(Q$11<>"",IF($B78<>"",K78-J78,""),"") ->  | M78: =IF(B78<>"",RANK(L78,L$11:L$110),"") ->  | N78: =IF(B78<>"",'Classement Général'!BU78,"") ->  | O78: =IF(B78<>"",'Calculs (M1..M20)'!A81,"") ->  | AH78: =IF($G78<>"",AG78,"") -> 0
B79: =IF('Chronos (M1..M20)'!B79<>"",'Chronos (M1..M20)'!B79,"") ->  | C79: =IF('Chronos (M1..M20)'!B79<>"",'Chronos (M1..M20)'!C79,"") ->  | D79: =IF('Chronos (M1..M20)'!B79<>"",'Chronos (M1..M20)'!D79,"") ->  | E79: =IF('Chronos (M1..M20)'!B79<>"",'Chronos (M1..M20)'!E79,"") ->  | F79: 21 | G79: ='Chronos (M1..M20)'!G1998 -> 0 | H79: =IF($G79<>"",G79,"") -> 0 | K79: =IF($B79<>"",IF(I79,(INDEX(P$11:Q$14,MATCH(H79,P$11:P$14),2)/I79)*1000,0),"") ->  | L79: =IF(Q$11<>"",IF($B79<>"",K79-J79,""),"") ->  | M79: =IF(B79<>"",RANK(L79,L$11:L$110),"") ->  | N79: =IF(B79<>"",'Classement Général'!BU79,"") ->  | O79: =IF(B79<>"",'Calculs (M1..M20)'!A82,"") ->  | AH79: =IF($G79<>"",AG79,"") -> 0
B80: =IF('Chronos (M1..M20)'!B80<>"",'Chronos (M1..M20)'!B80,"") ->  | C80: =IF('Chronos (M1..M20)'!B80<>"",'Chronos (M1..M20)'!C80,"") ->  | D80: =IF('Chronos (M1..M20)'!B80<>"",'Chronos (M1..M20)'!D80,"") ->  | E80: =IF('Chronos (M1..M20)'!B80<>"",'Chronos (M1..M20)'!E80,"") ->  | F80: 21 | G80: ='Chronos (M1..M20)'!G1999 -> 0 | H80: =IF($G80<>"",G80,"") -> 0 | K80: =IF($B80<>"",IF(I80,(INDEX(P$11:Q$14,MATCH(H80,P$11:P$14),2)/I80)*1000,0),"") ->  | L80: =IF(Q$11<>"",IF($B80<>"",K80-J80,""),"") ->  | M80: =IF(B80<>"",RANK(L80,L$11:L$110),"") ->  | N80: =IF(B80<>"",'Classement Général'!BU80,"") ->  | O80: =IF(B80<>"",'Calculs (M1..M20)'!A83,"") ->  | AH80: =IF($G80<>"",AG80,"") -> 0
B81: =IF('Chronos (M1..M20)'!B81<>"",'Chronos (M1..M20)'!B81,"") ->  | C81: =IF('Chronos (M1..M20)'!B81<>"",'Chronos (M1..M20)'!C81,"") ->  | D81: =IF('Chronos (M1..M20)'!B81<>"",'Chronos (M1..M20)'!D81,"") ->  | E81: =IF('Chronos (M1..M20)'!B81<>"",'Chronos (M1..M20)'!E81,"") ->  | F81: 21 | G81: ='Chronos (M1..M20)'!G2000 -> 0 | H81: =IF($G81<>"",G81,"") -> 0 | K81: =IF($B81<>"",IF(I81,(INDEX(P$11:Q$14,MATCH(H81,P$11:P$14),2)/I81)*1000,0),"") ->  | L81: =IF(Q$11<>"",IF($B81<>"",K81-J81,""),"") ->  | M81: =IF(B81<>"",RANK(L81,L$11:L$110),"") ->  | N81: =IF(B81<>"",'Classement Général'!BU81,"") ->  | O81: =IF(B81<>"",'Calculs (M1..M20)'!A84,"") ->  | AH81: =IF($G81<>"",AG81,"") -> 0
B82: =IF('Chronos (M1..M20)'!B82<>"",'Chronos (M1..M20)'!B82,"") ->  | C82: =IF('Chronos (M1..M20)'!B82<>"",'Chronos (M1..M20)'!C82,"") ->  | D82: =IF('Chronos (M1..M20)'!B82<>"",'Chronos (M1..M20)'!D82,"") ->  | E82: =IF('Chronos (M1..M20)'!B82<>"",'Chronos (M1..M20)'!E82,"") ->  | F82: 21 | G82: ='Chronos (M1..M20)'!G2001 -> 0 | H82: =IF($G82<>"",G82,"") -> 0 | K82: =IF($B82<>"",IF(I82,(INDEX(P$11:Q$14,MATCH(H82,P$11:P$14),2)/I82)*1000,0),"") ->  | L82: =IF(Q$11<>"",IF($B82<>"",K82-J82,""),"") ->  | M82: =IF(B82<>"",RANK(L82,L$11:L$110),"") ->  | N82: =IF(B82<>"",'Classement Général'!BU82,"") ->  | O82: =IF(B82<>"",'Calculs (M1..M20)'!A85,"") ->  | AH82: =IF($G82<>"",AG82,"") -> 0
B83: =IF('Chronos (M1..M20)'!B83<>"",'Chronos (M1..M20)'!B83,"") ->  | C83: =IF('Chronos (M1..M20)'!B83<>"",'Chronos (M1..M20)'!C83,"") ->  | D83: =IF('Chronos (M1..M20)'!B83<>"",'Chronos (M1..M20)'!D83,"") ->  | E83: =IF('Chronos (M1..M20)'!B83<>"",'Chronos (M1..M20)'!E83,"") ->  | F83: 21 | G83: ='Chronos (M1..M20)'!G2002 -> 0 | H83: =IF($G83<>"",G83,"") -> 0 | K83: =IF($B83<>"",IF(I83,(INDEX(P$11:Q$14,MATCH(H83,P$11:P$14),2)/I83)*1000,0),"") ->  | L83: =IF(Q$11<>"",IF($B83<>"",K83-J83,""),"") ->  | M83: =IF(B83<>"",RANK(L83,L$11:L$110),"") ->  | N83: =IF(B83<>"",'Classement Général'!BU83,"") ->  | O83: =IF(B83<>"",'Calculs (M1..M20)'!A86,"") ->  | AH83: =IF($G83<>"",AG83,"") -> 0
B84: =IF('Chronos (M1..M20)'!B84<>"",'Chronos (M1..M20)'!B84,"") ->  | C84: =IF('Chronos (M1..M20)'!B84<>"",'Chronos (M1..M20)'!C84,"") ->  | D84: =IF('Chronos (M1..M20)'!B84<>"",'Chronos (M1..M20)'!D84,"") ->  | E84: =IF('Chronos (M1..M20)'!B84<>"",'Chronos (M1..M20)'!E84,"") ->  | F84: 21 | G84: ='Chronos (M1..M20)'!G2003 -> 0 | H84: =IF($G84<>"",G84,"") -> 0 | K84: =IF($B84<>"",IF(I84,(INDEX(P$11:Q$14,MATCH(H84,P$11:P$14),2)/I84)*1000,0),"") ->  | L84: =IF(Q$11<>"",IF($B84<>"",K84-J84,""),"") ->  | M84: =IF(B84<>"",RANK(L84,L$11:L$110),"") ->  | N84: =IF(B84<>"",'Classement Général'!BU84,"") ->  | O84: =IF(B84<>"",'Calculs (M1..M20)'!A87,"") ->  | AH84: =IF($G84<>"",AG84,"") -> 0
B85: =IF('Chronos (M1..M20)'!B85<>"",'Chronos (M1..M20)'!B85,"") ->  | C85: =IF('Chronos (M1..M20)'!B85<>"",'Chronos (M1..M20)'!C85,"") ->  | D85: =IF('Chronos (M1..M20)'!B85<>"",'Chronos (M1..M20)'!D85,"") ->  | E85: =IF('Chronos (M1..M20)'!B85<>"",'Chronos (M1..M20)'!E85,"") ->  | F85: 21 | G85: ='Chronos (M1..M20)'!G2004 -> 0 | H85: =IF($G85<>"",G85,"") -> 0 | K85: =IF($B85<>"",IF(I85,(INDEX(P$11:Q$14,MATCH(H85,P$11:P$14),2)/I85)*1000,0),"") ->  | L85: =IF(Q$11<>"",IF($B85<>"",K85-J85,""),"") ->  | M85: =IF(B85<>"",RANK(L85,L$11:L$110),"") ->  | N85: =IF(B85<>"",'Classement Général'!BU85,"") ->  | O85: =IF(B85<>"",'Calculs (M1..M20)'!A88,"") ->  | AH85: =IF($G85<>"",AG85,"") -> 0
B86: =IF('Chronos (M1..M20)'!B86<>"",'Chronos (M1..M20)'!B86,"") ->  | C86: =IF('Chronos (M1..M20)'!B86<>"",'Chronos (M1..M20)'!C86,"") ->  | D86: =IF('Chronos (M1..M20)'!B86<>"",'Chronos (M1..M20)'!D86,"") ->  | E86: =IF('Chronos (M1..M20)'!B86<>"",'Chronos (M1..M20)'!E86,"") ->  | F86: 21 | G86: ='Chronos (M1..M20)'!G2005 -> 0 | H86: =IF($G86<>"",G86,"") -> 0 | K86: =IF($B86<>"",IF(I86,(INDEX(P$11:Q$14,MATCH(H86,P$11:P$14),2)/I86)*1000,0),"") ->  | L86: =IF(Q$11<>"",IF($B86<>"",K86-J86,""),"") ->  | M86: =IF(B86<>"",RANK(L86,L$11:L$110),"") ->  | N86: =IF(B86<>"",'Classement Général'!BU86,"") ->  | O86: =IF(B86<>"",'Calculs (M1..M20)'!A89,"") ->  | AH86: =IF($G86<>"",AG86,"") -> 0
B87: =IF('Chronos (M1..M20)'!B87<>"",'Chronos (M1..M20)'!B87,"") ->  | C87: =IF('Chronos (M1..M20)'!B87<>"",'Chronos (M1..M20)'!C87,"") ->  | D87: =IF('Chronos (M1..M20)'!B87<>"",'Chronos (M1..M20)'!D87,"") ->  | E87: =IF('Chronos (M1..M20)'!B87<>"",'Chronos (M1..M20)'!E87,"") ->  | F87: 21 | G87: ='Chronos (M1..M20)'!G2006 -> 0 | H87: =IF($G87<>"",G87,"") -> 0 | K87: =IF($B87<>"",IF(I87,(INDEX(P$11:Q$14,MATCH(H87,P$11:P$14),2)/I87)*1000,0),"") ->  | L87: =IF(Q$11<>"",IF($B87<>"",K87-J87,""),"") ->  | M87: =IF(B87<>"",RANK(L87,L$11:L$110),"") ->  | N87: =IF(B87<>"",'Classement Général'!BU87,"") ->  | O87: =IF(B87<>"",'Calculs (M1..M20)'!A90,"") ->  | AH87: =IF($G87<>"",AG87,"") -> 0
B88: =IF('Chronos (M1..M20)'!B88<>"",'Chronos (M1..M20)'!B88,"") ->  | C88: =IF('Chronos (M1..M20)'!B88<>"",'Chronos (M1..M20)'!C88,"") ->  | D88: =IF('Chronos (M1..M20)'!B88<>"",'Chronos (M1..M20)'!D88,"") ->  | E88: =IF('Chronos (M1..M20)'!B88<>"",'Chronos (M1..M20)'!E88,"") ->  | F88: 21 | G88: ='Chronos (M1..M20)'!G2007 -> 0 | H88: =IF($G88<>"",G88,"") -> 0 | K88: =IF($B88<>"",IF(I88,(INDEX(P$11:Q$14,MATCH(H88,P$11:P$14),2)/I88)*1000,0),"") ->  | L88: =IF(Q$11<>"",IF($B88<>"",K88-J88,""),"") ->  | M88: =IF(B88<>"",RANK(L88,L$11:L$110),"") ->  | N88: =IF(B88<>"",'Classement Général'!BU88,"") ->  | O88: =IF(B88<>"",'Calculs (M1..M20)'!A91,"") ->  | AH88: =IF($G88<>"",AG88,"") -> 0
B89: =IF('Chronos (M1..M20)'!B89<>"",'Chronos (M1..M20)'!B89,"") ->  | C89: =IF('Chronos (M1..M20)'!B89<>"",'Chronos (M1..M20)'!C89,"") ->  | D89: =IF('Chronos (M1..M20)'!B89<>"",'Chronos (M1..M20)'!D89,"") ->  | E89: =IF('Chronos (M1..M20)'!B89<>"",'Chronos (M1..M20)'!E89,"") ->  | F89: 21 | G89: ='Chronos (M1..M20)'!G2008 -> 0 | H89: =IF($G89<>"",G89,"") -> 0 | K89: =IF($B89<>"",IF(I89,(INDEX(P$11:Q$14,MATCH(H89,P$11:P$14),2)/I89)*1000,0),"") ->  | L89: =IF(Q$11<>"",IF($B89<>"",K89-J89,""),"") ->  | M89: =IF(B89<>"",RANK(L89,L$11:L$110),"") ->  | N89: =IF(B89<>"",'Classement Général'!BU89,"") ->  | O89: =IF(B89<>"",'Calculs (M1..M20)'!A92,"") ->  | AH89: =IF($G89<>"",AG89,"") -> 0
B90: =IF('Chronos (M1..M20)'!B90<>"",'Chronos (M1..M20)'!B90,"") ->  | C90: =IF('Chronos (M1..M20)'!B90<>"",'Chronos (M1..M20)'!C90,"") ->  | D90: =IF('Chronos (M1..M20)'!B90<>"",'Chronos (M1..M20)'!D90,"") ->  | E90: =IF('Chronos (M1..M20)'!B90<>"",'Chronos (M1..M20)'!E90,"") ->  | F90: 21 | G90: ='Chronos (M1..M20)'!G2009 -> 0 | H90: =IF($G90<>"",G90,"") -> 0 | K90: =IF($B90<>"",IF(I90,(INDEX(P$11:Q$14,MATCH(H90,P$11:P$14),2)/I90)*1000,0),"") ->  | L90: =IF(Q$11<>"",IF($B90<>"",K90-J90,""),"") ->  | M90: =IF(B90<>"",RANK(L90,L$11:L$110),"") ->  | N90: =IF(B90<>"",'Classement Général'!BU90,"") ->  | O90: =IF(B90<>"",'Calculs (M1..M20)'!A93,"") ->  | AH90: =IF($G90<>"",AG90,"") -> 0
B91: =IF('Chronos (M1..M20)'!B91<>"",'Chronos (M1..M20)'!B91,"") ->  | C91: =IF('Chronos (M1..M20)'!B91<>"",'Chronos (M1..M20)'!C91,"") ->  | D91: =IF('Chronos (M1..M20)'!B91<>"",'Chronos (M1..M20)'!D91,"") ->  | E91: =IF('Chronos (M1..M20)'!B91<>"",'Chronos (M1..M20)'!E91,"") ->  | F91: 21 | G91: ='Chronos (M1..M20)'!G2010 -> 0 | H91: =IF($G91<>"",G91,"") -> 0 | K91: =IF($B91<>"",IF(I91,(INDEX(P$11:Q$14,MATCH(H91,P$11:P$14),2)/I91)*1000,0),"") ->  | L91: =IF(Q$11<>"",IF($B91<>"",K91-J91,""),"") ->  | M91: =IF(B91<>"",RANK(L91,L$11:L$110),"") ->  | N91: =IF(B91<>"",'Classement Général'!BU91,"") ->  | O91: =IF(B91<>"",'Calculs (M1..M20)'!A94,"") ->  | AH91: =IF($G91<>"",AG91,"") -> 0
B92: =IF('Chronos (M1..M20)'!B92<>"",'Chronos (M1..M20)'!B92,"") ->  | C92: =IF('Chronos (M1..M20)'!B92<>"",'Chronos (M1..M20)'!C92,"") ->  | D92: =IF('Chronos (M1..M20)'!B92<>"",'Chronos (M1..M20)'!D92,"") ->  | E92: =IF('Chronos (M1..M20)'!B92<>"",'Chronos (M1..M20)'!E92,"") ->  | F92: 21 | G92: ='Chronos (M1..M20)'!G2011 -> 0 | H92: =IF($G92<>"",G92,"") -> 0 | K92: =IF($B92<>"",IF(I92,(INDEX(P$11:Q$14,MATCH(H92,P$11:P$14),2)/I92)*1000,0),"") ->  | L92: =IF(Q$11<>"",IF($B92<>"",K92-J92,""),"") ->  | M92: =IF(B92<>"",RANK(L92,L$11:L$110),"") ->  | N92: =IF(B92<>"",'Classement Général'!BU92,"") ->  | O92: =IF(B92<>"",'Calculs (M1..M20)'!A95,"") ->  | AH92: =IF($G92<>"",AG92,"") -> 0
B93: =IF('Chronos (M1..M20)'!B93<>"",'Chronos (M1..M20)'!B93,"") ->  | C93: =IF('Chronos (M1..M20)'!B93<>"",'Chronos (M1..M20)'!C93,"") ->  | D93: =IF('Chronos (M1..M20)'!B93<>"",'Chronos (M1..M20)'!D93,"") ->  | E93: =IF('Chronos (M1..M20)'!B93<>"",'Chronos (M1..M20)'!E93,"") ->  | F93: 21 | G93: ='Chronos (M1..M20)'!G2012 -> 0 | H93: =IF($G93<>"",G93,"") -> 0 | K93: =IF($B93<>"",IF(I93,(INDEX(P$11:Q$14,MATCH(H93,P$11:P$14),2)/I93)*1000,0),"") ->  | L93: =IF(Q$11<>"",IF($B93<>"",K93-J93,""),"") ->  | M93: =IF(B93<>"",RANK(L93,L$11:L$110),"") ->  | N93: =IF(B93<>"",'Classement Général'!BU93,"") ->  | O93: =IF(B93<>"",'Calculs (M1..M20)'!A96,"") ->  | AH93: =IF($G93<>"",AG93,"") -> 0
B94: =IF('Chronos (M1..M20)'!B94<>"",'Chronos (M1..M20)'!B94,"") ->  | C94: =IF('Chronos (M1..M20)'!B94<>"",'Chronos (M1..M20)'!C94,"") ->  | D94: =IF('Chronos (M1..M20)'!B94<>"",'Chronos (M1..M20)'!D94,"") ->  | E94: =IF('Chronos (M1..M20)'!B94<>"",'Chronos (M1..M20)'!E94,"") ->  | F94: 21 | G94: ='Chronos (M1..M20)'!G2013 -> 0 | H94: =IF($G94<>"",G94,"") -> 0 | K94: =IF($B94<>"",IF(I94,(INDEX(P$11:Q$14,MATCH(H94,P$11:P$14),2)/I94)*1000,0),"") ->  | L94: =IF(Q$11<>"",IF($B94<>"",K94-J94,""),"") ->  | M94: =IF(B94<>"",RANK(L94,L$11:L$110),"") ->  | N94: =IF(B94<>"",'Classement Général'!BU94,"") ->  | O94: =IF(B94<>"",'Calculs (M1..M20)'!A97,"") ->  | AH94: =IF($G94<>"",AG94,"") -> 0
B95: =IF('Chronos (M1..M20)'!B95<>"",'Chronos (M1..M20)'!B95,"") ->  | C95: =IF('Chronos (M1..M20)'!B95<>"",'Chronos (M1..M20)'!C95,"") ->  | D95: =IF('Chronos (M1..M20)'!B95<>"",'Chronos (M1..M20)'!D95,"") ->  | E95: =IF('Chronos (M1..M20)'!B95<>"",'Chronos (M1..M20)'!E95,"") ->  | F95: 21 | G95: ='Chronos (M1..M20)'!G2014 -> 0 | H95: =IF($G95<>"",G95,"") -> 0 | K95: =IF($B95<>"",IF(I95,(INDEX(P$11:Q$14,MATCH(H95,P$11:P$14),2)/I95)*1000,0),"") ->  | L95: =IF(Q$11<>"",IF($B95<>"",K95-J95,""),"") ->  | M95: =IF(B95<>"",RANK(L95,L$11:L$110),"") ->  | N95: =IF(B95<>"",'Classement Général'!BU95,"") ->  | O95: =IF(B95<>"",'Calculs (M1..M20)'!A98,"") ->  | AH95: =IF($G95<>"",AG95,"") -> 0
B96: =IF('Chronos (M1..M20)'!B96<>"",'Chronos (M1..M20)'!B96,"") ->  | C96: =IF('Chronos (M1..M20)'!B96<>"",'Chronos (M1..M20)'!C96,"") ->  | D96: =IF('Chronos (M1..M20)'!B96<>"",'Chronos (M1..M20)'!D96,"") ->  | E96: =IF('Chronos (M1..M20)'!B96<>"",'Chronos (M1..M20)'!E96,"") ->  | F96: 21 | G96: ='Chronos (M1..M20)'!G2015 -> 0 | H96: =IF($G96<>"",G96,"") -> 0 | K96: =IF($B96<>"",IF(I96,(INDEX(P$11:Q$14,MATCH(H96,P$11:P$14),2)/I96)*1000,0),"") ->  | L96: =IF(Q$11<>"",IF($B96<>"",K96-J96,""),"") ->  | M96: =IF(B96<>"",RANK(L96,L$11:L$110),"") ->  | N96: =IF(B96<>"",'Classement Général'!BU96,"") ->  | O96: =IF(B96<>"",'Calculs (M1..M20)'!A99,"") ->  | AH96: =IF($G96<>"",AG96,"") -> 0
B97: =IF('Chronos (M1..M20)'!B97<>"",'Chronos (M1..M20)'!B97,"") ->  | C97: =IF('Chronos (M1..M20)'!B97<>"",'Chronos (M1..M20)'!C97,"") ->  | D97: =IF('Chronos (M1..M20)'!B97<>"",'Chronos (M1..M20)'!D97,"") ->  | E97: =IF('Chronos (M1..M20)'!B97<>"",'Chronos (M1..M20)'!E97,"") ->  | F97: 21 | G97: ='Chronos (M1..M20)'!G2016 -> 0 | H97: =IF($G97<>"",G97,"") -> 0 | K97: =IF($B97<>"",IF(I97,(INDEX(P$11:Q$14,MATCH(H97,P$11:P$14),2)/I97)*1000,0),"") ->  | L97: =IF(Q$11<>"",IF($B97<>"",K97-J97,""),"") ->  | M97: =IF(B97<>"",RANK(L97,L$11:L$110),"") ->  | N97: =IF(B97<>"",'Classement Général'!BU97,"") ->  | O97: =IF(B97<>"",'Calculs (M1..M20)'!A100,"") ->  | AH97: =IF($G97<>"",AG97,"") -> 0
B98: =IF('Chronos (M1..M20)'!B98<>"",'Chronos (M1..M20)'!B98,"") ->  | C98: =IF('Chronos (M1..M20)'!B98<>"",'Chronos (M1..M20)'!C98,"") ->  | D98: =IF('Chronos (M1..M20)'!B98<>"",'Chronos (M1..M20)'!D98,"") ->  | E98: =IF('Chronos (M1..M20)'!B98<>"",'Chronos (M1..M20)'!E98,"") ->  | F98: 21 | G98: ='Chronos (M1..M20)'!G2017 -> 0 | H98: =IF($G98<>"",G98,"") -> 0 | K98: =IF($B98<>"",IF(I98,(INDEX(P$11:Q$14,MATCH(H98,P$11:P$14),2)/I98)*1000,0),"") ->  | L98: =IF(Q$11<>"",IF($B98<>"",K98-J98,""),"") ->  | M98: =IF(B98<>"",RANK(L98,L$11:L$110),"") ->  | N98: =IF(B98<>"",'Classement Général'!BU98,"") ->  | O98: =IF(B98<>"",'Calculs (M1..M20)'!A101,"") ->  | AH98: =IF($G98<>"",AG98,"") -> 0
B99: =IF('Chronos (M1..M20)'!B99<>"",'Chronos (M1..M20)'!B99,"") ->  | C99: =IF('Chronos (M1..M20)'!B99<>"",'Chronos (M1..M20)'!C99,"") ->  | D99: =IF('Chronos (M1..M20)'!B99<>"",'Chronos (M1..M20)'!D99,"") ->  | E99: =IF('Chronos (M1..M20)'!B99<>"",'Chronos (M1..M20)'!E99,"") ->  | F99: 21 | G99: ='Chronos (M1..M20)'!G2018 -> 0 | H99: =IF($G99<>"",G99,"") -> 0 | K99: =IF($B99<>"",IF(I99,(INDEX(P$11:Q$14,MATCH(H99,P$11:P$14),2)/I99)*1000,0),"") ->  | L99: =IF(Q$11<>"",IF($B99<>"",K99-J99,""),"") ->  | M99: =IF(B99<>"",RANK(L99,L$11:L$110),"") ->  | N99: =IF(B99<>"",'Classement Général'!BU99,"") ->  | O99: =IF(B99<>"",'Calculs (M1..M20)'!A102,"") ->  | AH99: =IF($G99<>"",AG99,"") -> 0
B100: =IF('Chronos (M1..M20)'!B100<>"",'Chronos (M1..M20)'!B100,"") ->  | C100: =IF('Chronos (M1..M20)'!B100<>"",'Chronos (M1..M20)'!C100,"") ->  | D100: =IF('Chronos (M1..M20)'!B100<>"",'Chronos (M1..M20)'!D100,"") ->  | E100: =IF('Chronos (M1..M20)'!B100<>"",'Chronos (M1..M20)'!E100,"") ->  | F100: 21 | G100: ='Chronos (M1..M20)'!G2019 -> 0 | H100: =IF($G100<>"",G100,"") -> 0 | K100: =IF($B100<>"",IF(I100,(INDEX(P$11:Q$14,MATCH(H100,P$11:P$14),2)/I100)*1000,0),"") ->  | L100: =IF(Q$11<>"",IF($B100<>"",K100-J100,""),"") ->  | M100: =IF(B100<>"",RANK(L100,L$11:L$110),"") ->  | N100: =IF(B100<>"",'Classement Général'!BU100,"") ->  | O100: =IF(B100<>"",'Calculs (M1..M20)'!A103,"") ->  | AH100: =IF($G100<>"",AG100,"") -> 0
B101: =IF('Chronos (M1..M20)'!B101<>"",'Chronos (M1..M20)'!B101,"") ->  | C101: =IF('Chronos (M1..M20)'!B101<>"",'Chronos (M1..M20)'!C101,"") ->  | D101: =IF('Chronos (M1..M20)'!B101<>"",'Chronos (M1..M20)'!D101,"") ->  | E101: =IF('Chronos (M1..M20)'!B101<>"",'Chronos (M1..M20)'!E101,"") ->  | F101: 21 | G101: ='Chronos (M1..M20)'!G2020 -> 0 | H101: =IF($G101<>"",G101,"") -> 0 | K101: =IF($B101<>"",IF(I101,(INDEX(P$11:Q$14,MATCH(H101,P$11:P$14),2)/I101)*1000,0),"") ->  | L101: =IF(Q$11<>"",IF($B101<>"",K101-J101,""),"") ->  | M101: =IF(B101<>"",RANK(L101,L$11:L$110),"") ->  | N101: =IF(B101<>"",'Classement Général'!BU101,"") ->  | O101: =IF(B101<>"",'Calculs (M1..M20)'!A104,"") ->  | AH101: =IF($G101<>"",AG101,"") -> 0
B102: =IF('Chronos (M1..M20)'!B102<>"",'Chronos (M1..M20)'!B102,"") ->  | C102: =IF('Chronos (M1..M20)'!B102<>"",'Chronos (M1..M20)'!C102,"") ->  | D102: =IF('Chronos (M1..M20)'!B102<>"",'Chronos (M1..M20)'!D102,"") ->  | E102: =IF('Chronos (M1..M20)'!B102<>"",'Chronos (M1..M20)'!E102,"") ->  | F102: 21 | G102: ='Chronos (M1..M20)'!G2021 -> 0 | H102: =IF($G102<>"",G102,"") -> 0 | K102: =IF($B102<>"",IF(I102,(INDEX(P$11:Q$14,MATCH(H102,P$11:P$14),2)/I102)*1000,0),"") ->  | L102: =IF(Q$11<>"",IF($B102<>"",K102-J102,""),"") ->  | M102: =IF(B102<>"",RANK(L102,L$11:L$110),"") ->  | N102: =IF(B102<>"",'Classement Général'!BU102,"") ->  | O102: =IF(B102<>"",'Calculs (M1..M20)'!A105,"") ->  | AH102: =IF($G102<>"",AG102,"") -> 0
B103: =IF('Chronos (M1..M20)'!B103<>"",'Chronos (M1..M20)'!B103,"") ->  | C103: =IF('Chronos (M1..M20)'!B103<>"",'Chronos (M1..M20)'!C103,"") ->  | D103: =IF('Chronos (M1..M20)'!B103<>"",'Chronos (M1..M20)'!D103,"") ->  | E103: =IF('Chronos (M1..M20)'!B103<>"",'Chronos (M1..M20)'!E103,"") ->  | F103: 21 | G103: ='Chronos (M1..M20)'!G2022 -> 0 | H103: =IF($G103<>"",G103,"") -> 0 | K103: =IF($B103<>"",IF(I103,(INDEX(P$11:Q$14,MATCH(H103,P$11:P$14),2)/I103)*1000,0),"") ->  | L103: =IF(Q$11<>"",IF($B103<>"",K103-J103,""),"") ->  | M103: =IF(B103<>"",RANK(L103,L$11:L$110),"") ->  | N103: =IF(B103<>"",'Classement Général'!BU103,"") ->  | O103: =IF(B103<>"",'Calculs (M1..M20)'!A106,"") ->  | AH103: =IF($G103<>"",AG103,"") -> 0
B104: =IF('Chronos (M1..M20)'!B104<>"",'Chronos (M1..M20)'!B104,"") ->  | C104: =IF('Chronos (M1..M20)'!B104<>"",'Chronos (M1..M20)'!C104,"") ->  | D104: =IF('Chronos (M1..M20)'!B104<>"",'Chronos (M1..M20)'!D104,"") ->  | E104: =IF('Chronos (M1..M20)'!B104<>"",'Chronos (M1..M20)'!E104,"") ->  | F104: 21 | G104: ='Chronos (M1..M20)'!G2023 -> 0 | H104: =IF($G104<>"",G104,"") -> 0 | K104: =IF($B104<>"",IF(I104,(INDEX(P$11:Q$14,MATCH(H104,P$11:P$14),2)/I104)*1000,0),"") ->  | L104: =IF(Q$11<>"",IF($B104<>"",K104-J104,""),"") ->  | M104: =IF(B104<>"",RANK(L104,L$11:L$110),"") ->  | N104: =IF(B104<>"",'Classement Général'!BU104,"") ->  | O104: =IF(B104<>"",'Calculs (M1..M20)'!A107,"") ->  | AH104: =IF($G104<>"",AG104,"") -> 0
B105: =IF('Chronos (M1..M20)'!B105<>"",'Chronos (M1..M20)'!B105,"") ->  | C105: =IF('Chronos (M1..M20)'!B105<>"",'Chronos (M1..M20)'!C105,"") ->  | D105: =IF('Chronos (M1..M20)'!B105<>"",'Chronos (M1..M20)'!D105,"") ->  | E105: =IF('Chronos (M1..M20)'!B105<>"",'Chronos (M1..M20)'!E105,"") ->  | F105: 21 | G105: ='Chronos (M1..M20)'!G2024 -> 0 | H105: =IF($G105<>"",G105,"") -> 0 | K105: =IF($B105<>"",IF(I105,(INDEX(P$11:Q$14,MATCH(H105,P$11:P$14),2)/I105)*1000,0),"") ->  | L105: =IF(Q$11<>"",IF($B105<>"",K105-J105,""),"") ->  | M105: =IF(B105<>"",RANK(L105,L$11:L$110),"") ->  | N105: =IF(B105<>"",'Classement Général'!BU105,"") ->  | O105: =IF(B105<>"",'Calculs (M1..M20)'!A108,"") ->  | AH105: =IF($G105<>"",AG105,"") -> 0
B106: =IF('Chronos (M1..M20)'!B106<>"",'Chronos (M1..M20)'!B106,"") ->  | C106: =IF('Chronos (M1..M20)'!B106<>"",'Chronos (M1..M20)'!C106,"") ->  | D106: =IF('Chronos (M1..M20)'!B106<>"",'Chronos (M1..M20)'!D106,"") ->  | E106: =IF('Chronos (M1..M20)'!B106<>"",'Chronos (M1..M20)'!E106,"") ->  | F106: 21 | G106: ='Chronos (M1..M20)'!G2025 -> 0 | H106: =IF($G106<>"",G106,"") -> 0 | K106: =IF($B106<>"",IF(I106,(INDEX(P$11:Q$14,MATCH(H106,P$11:P$14),2)/I106)*1000,0),"") ->  | L106: =IF(Q$11<>"",IF($B106<>"",K106-J106,""),"") ->  | M106: =IF(B106<>"",RANK(L106,L$11:L$110),"") ->  | N106: =IF(B106<>"",'Classement Général'!BU106,"") ->  | O106: =IF(B106<>"",'Calculs (M1..M20)'!A109,"") ->  | AH106: =IF($G106<>"",AG106,"") -> 0
B107: =IF('Chronos (M1..M20)'!B107<>"",'Chronos (M1..M20)'!B107,"") ->  | C107: =IF('Chronos (M1..M20)'!B107<>"",'Chronos (M1..M20)'!C107,"") ->  | D107: =IF('Chronos (M1..M20)'!B107<>"",'Chronos (M1..M20)'!D107,"") ->  | E107: =IF('Chronos (M1..M20)'!B107<>"",'Chronos (M1..M20)'!E107,"") ->  | F107: 21 | G107: ='Chronos (M1..M20)'!G2026 -> 0 | H107: =IF($G107<>"",G107,"") -> 0 | K107: =IF($B107<>"",IF(I107,(INDEX(P$11:Q$14,MATCH(H107,P$11:P$14),2)/I107)*1000,0),"") ->  | L107: =IF(Q$11<>"",IF($B107<>"",K107-J107,""),"") ->  | M107: =IF(B107<>"",RANK(L107,L$11:L$110),"") ->  | N107: =IF(B107<>"",'Classement Général'!BU107,"") ->  | O107: =IF(B107<>"",'Calculs (M1..M20)'!A110,"") ->  | AH107: =IF($G107<>"",AG107,"") -> 0
B108: =IF('Chronos (M1..M20)'!B108<>"",'Chronos (M1..M20)'!B108,"") ->  | C108: =IF('Chronos (M1..M20)'!B108<>"",'Chronos (M1..M20)'!C108,"") ->  | D108: =IF('Chronos (M1..M20)'!B108<>"",'Chronos (M1..M20)'!D108,"") ->  | E108: =IF('Chronos (M1..M20)'!B108<>"",'Chronos (M1..M20)'!E108,"") ->  | F108: 21 | G108: ='Chronos (M1..M20)'!G2027 -> 0 | H108: =IF($G108<>"",G108,"") -> 0 | K108: =IF($B108<>"",IF(I108,(INDEX(P$11:Q$14,MATCH(H108,P$11:P$14),2)/I108)*1000,0),"") ->  | L108: =IF(Q$11<>"",IF($B108<>"",K108-J108,""),"") ->  | M108: =IF(B108<>"",RANK(L108,L$11:L$110),"") ->  | N108: =IF(B108<>"",'Classement Général'!BU108,"") ->  | O108: =IF(B108<>"",'Calculs (M1..M20)'!A111,"") ->  | AH108: =IF($G108<>"",AG108,"") -> 0
B109: =IF('Chronos (M1..M20)'!B109<>"",'Chronos (M1..M20)'!B109,"") ->  | C109: =IF('Chronos (M1..M20)'!B109<>"",'Chronos (M1..M20)'!C109,"") ->  | D109: =IF('Chronos (M1..M20)'!B109<>"",'Chronos (M1..M20)'!D109,"") ->  | E109: =IF('Chronos (M1..M20)'!B109<>"",'Chronos (M1..M20)'!E109,"") ->  | F109: 21 | G109: ='Chronos (M1..M20)'!G2028 -> 0 | H109: =IF($G109<>"",G109,"") -> 0 | K109: =IF($B109<>"",IF(I109,(INDEX(P$11:Q$14,MATCH(H109,P$11:P$14),2)/I109)*1000,0),"") ->  | L109: =IF(Q$11<>"",IF($B109<>"",K109-J109,""),"") ->  | M109: =IF(B109<>"",RANK(L109,L$11:L$110),"") ->  | N109: =IF(B109<>"",'Classement Général'!BU109,"") ->  | O109: =IF(B109<>"",'Calculs (M1..M20)'!A112,"") ->  | AH109: =IF($G109<>"",AG109,"") -> 0
B110: =IF('Chronos (M1..M20)'!B110<>"",'Chronos (M1..M20)'!B110,"") ->  | C110: =IF('Chronos (M1..M20)'!B110<>"",'Chronos (M1..M20)'!C110,"") ->  | D110: =IF('Chronos (M1..M20)'!B110<>"",'Chronos (M1..M20)'!D110,"") ->  | E110: =IF('Chronos (M1..M20)'!B110<>"",'Chronos (M1..M20)'!E110,"") ->  | F110: 21 | G110: ='Chronos (M1..M20)'!G2029 -> 0 | H110: =IF($G110<>"",G110,"") -> 0 | K110: =IF($B110<>"",IF(I110,(INDEX(P$11:Q$14,MATCH(H110,P$11:P$14),2)/I110)*1000,0),"") ->  | L110: =IF(Q$11<>"",IF($B110<>"",K110-J110,""),"") ->  | M110: =IF(B110<>"",RANK(L110,L$11:L$110),"") ->  | N110: =IF(B110<>"",'Classement Général'!BU110,"") ->  | O110: =IF(B110<>"",'Calculs (M1..M20)'!A113,"") ->  | AH110: =IF($G110<>"",AG110,"") -> 0
B111: Nom | C111: Dossard | D111: Freq | E111: Equipe | F111: Manche | G111: Gpe | H111: GS | I111: Temps | J111: Penalité | K111: FAI Brut | L111: FAI Net | M111: ClastM | N111: ClastE | O111: ClastG | P111: GS | Q111: Min | R111: Max | S111: Moy | T111: Nbre Concurrents | U111: GS | AH111: GS | AI111: Temps | AJ111: Penalité
B112: =IF(B11<>"",B11,"") -> Sébastien CHABAUD | C112: =IF(C11<>"",C11,"") -> 1 | D112: =IF(D11<>"",D11,"") -> 2.4GHz | E112: =IF(E11<>"",E11,"") -> 0 | F112: 22 | G112: =G11 -> 1 | H112: =IF($G112<>"",G112,"") -> 1 | K112: =IF($B112<>"",IF(I112,(INDEX(P$112:Q$115,MATCH(H112,P$112:P$115),2)/I112)*1000,0),"") -> 0 | L112: =IF(Q$112<>"",IF($B112<>"",K112-$J112,""),"") ->  | M112: =IF(B112<>"",RANK(L112,L$112:L$211),"") ->  | N112: =IF(B112<>"",'Classement Général'!BV11,"") ->  | O112: =IF(B112<>"",'Calculs (M1..M20)'!A14,"") -> 22 | P112: =IF(DMIN($H111:$I212,$P$10,$U$10:$U$11)<>0,1,"") -> 1 | Q112: =IF(DMIN($H111:$I212,$I$10,$U$10:$U$11)<>0,DMIN($H111:$I212,$I$10,$U$10:$U$11),"") ->  | R112: =IF(DMAX($H111:$I212,$I$10,$U$10:$U$11)<>0,DMAX($H111:$I212,$I$10,$U$10:$U$11),"") ->  | S112: =IF($P112<>"",IF(DAVERAGE($H111:$I212,$I$10,$U$10:$U$11)<>0,DAVERAGE($H111:$I212,$I$10,$U$10:$U$11),""),"") ->  | T112: =IF($P112<>"",IF(DCOUNTA($H111:$I212,$I$10,$U$10:$U$11)<>0,DCOUNTA($H111:$I212,$I$10,$U$10:$U$11),""),"") ->  | U112: 1 | AH112: =IF($G112<>"",AG112,"") -> 0
B113: =IF(B12<>"",B12,"") -> Herve DALL AVA | C113: =IF(C12<>"",C12,"") -> 2 | D113: =IF(D12<>"",D12,"") -> 2.4GHz | E113: =IF(E12<>"",E12,"") -> 0 | F113: 22 | G113: =G12 -> 1 | H113: =IF($G113<>"",G113,"") -> 1 | K113: =IF($B113<>"",IF(I113,(INDEX(P$112:Q$115,MATCH(H113,P$112:P$115),2)/I113)*1000,0),"") -> 0 | L113: =IF(Q$112<>"",IF($B113<>"",K113-$J113,""),"") ->  | M113: =IF(B113<>"",RANK(L113,L$112:L$211),"") ->  | N113: =IF(B113<>"",'Classement Général'!BV12,"") ->  | O113: =IF(B113<>"",'Calculs (M1..M20)'!A15,"") -> 8 | P113: =IF(DMIN($H111:$I212,$P$10,$U$12:$U$13)<>0,2,"") ->  | Q113: =IF(DMIN($H111:$I212,$I$10,$U$12:$U$13)<>0,DMIN($H111:$I212,$I$10,$U$12:$U$13),"") ->  | R113: =IF(DMAX($H111:$I212,$I$10,$U$12:$U$13)<>0,DMAX($H111:$I212,$I$10,$U$12:$U$13),"") ->  | S113: =IF($P113<>"",IF(DAVERAGE($H111:$I212,$I$10,$U$12:$U$13)<>0,DAVERAGE($H111:$I212,$I$10,$U$12:$U$13),""),"") ->  | T113: =IF($P112<>"",IF(DCOUNTA($H111:$I212,$I$10,$U$12:$U$13)<>0,DCOUNTA($H111:$I212,$I$10,$U$12:$U$13),""),"") ->  | U113: GS | AH113: =IF($G113<>"",AG113,"") -> 0
B114: =IF(B13<>"",B13,"") -> Jean Luc FOUCHER | C114: =IF(C13<>"",C13,"") -> 3 | D114: =IF(D13<>"",D13,"") -> 2.4GHz | E114: =IF(E13<>"",E13,"") -> 0 | F114: 22 | G114: =G13 -> 1 | H114: =IF($G114<>"",G114,"") -> 1 | K114: =IF($B114<>"",IF(I114,(INDEX(P$112:Q$115,MATCH(H114,P$112:P$115),2)/I114)*1000,0),"") -> 0 | L114: =IF(Q$112<>"",IF($B114<>"",K114-$J114,""),"") ->  | M114: =IF(B114<>"",RANK(L114,L$112:L$211),"") ->  | N114: =IF(B114<>"",'Classement Général'!BV13,"") ->  | O114: =IF(B114<>"",'Calculs (M1..M20)'!A16,"") -> 15 | P114: =IF(DMIN($H111:$I212,$P$10,$U$14:$U$15)<>0,3,"") ->  | Q114: =IF(DMIN($H111:$I212,$I$10,$U$14:$U$15)<>0,DMIN($H111:$I212,$I$10,$U$14:$U$15),"") ->  | R114: =IF(DMAX($H111:$I212,$I$10,$U$14:$U$15)<>0,DMAX($H111:$I212,$I$10,$U$14:$U$15),"") ->  | S114: =IF($P114<>"",IF(DAVERAGE($H111:$I212,$I$10,$U$14:$U$15)<>0,DAVERAGE($H111:$I212,$I$10,$U$14:$U$15),""),"") ->  | T114: =IF($P114<>"",IF(DCOUNTA($H111:$I212,$I$10,$U$14:$U$15)<>0,DCOUNTA($H111:$I212,$I$10,$U$14:$U$15),""),"") ->  | U114: 2 | AH114: =IF($G114<>"",AG114,"") -> 0
B115: =IF(B14<>"",B14,"") -> Thomas DELARBRE | C115: =IF(C14<>"",C14,"") -> 4 | D115: =IF(D14<>"",D14,"") -> 2.4GHz | E115: =IF(E14<>"",E14,"") -> 0 | F115: 22 | G115: =G14 -> 1 | H115: =IF($G115<>"",G115,"") -> 1 | K115: =IF($B115<>"",IF(I115,(INDEX(P$112:Q$115,MATCH(H115,P$112:P$115),2)/I115)*1000,0),"") -> 0 | L115: =IF(Q$112<>"",IF($B115<>"",K115-$J115,""),"") ->  | M115: =IF(B115<>"",RANK(L115,L$112:L$211),"") ->  | N115: =IF(B115<>"",'Classement Général'!BV14,"") ->  | O115: =IF(B115<>"",'Calculs (M1..M20)'!A17,"") -> 10 | P115: =IF(DMIN($H111:$I212,$P$10,$U$16:$U$17)<>0,4,"") ->  | Q115: =IF(DMIN($H111:$I212,$I$10,$U$16:$U$17)<>0,DMIN($H111:$I212,$I$10,$U$16:$U$17),"") ->  | R115: =IF(DMAX($H111:$I212,$I$10,$U$16:$U$17)<>0,DMAX($H111:$I212,$I$10,$U$16:$U$17),"") ->  | S115: =IF($P115<>"",IF(DAVERAGE($H111:$I212,$I$10,$U$16:$U$17)<>0,DAVERAGE($H111:$I212,$I$10,$U$16:$U$17),""),"") ->  | T115: =IF($P114<>"",IF(DCOUNTA($H111:$I212,$I$10,$U$16:$U$17)<>0,DCOUNTA($H111:$I212,$I$10,$U$16:$U$17),""),"") ->  | U115: GS | AH115: =IF($G115<>"",AG115,"") -> 0
B116: =IF(B15<>"",B15,"") -> Pierre DIATTA | C116: =IF(C15<>"",C15,"") -> 5 | D116: =IF(D15<>"",D15,"") -> 2.4GHz | E116: =IF(E15<>"",E15,"") -> 0 | F116: 22 | G116: =G15 -> 1 | H116: =IF($G116<>"",G116,"") -> 1 | K116: =IF($B116<>"",IF(I116,(INDEX(P$112:Q$115,MATCH(H116,P$112:P$115),2)/I116)*1000,0),"") -> 0 | L116: =IF(Q$112<>"",IF($B116<>"",K116-$J116,""),"") ->  | M116: =IF(B116<>"",RANK(L116,L$112:L$211),"") ->  | N116: =IF(B116<>"",'Classement Général'!BV15,"") ->  | O116: =IF(B116<>"",'Calculs (M1..M20)'!A18,"") -> 20 | T116: =SUM(T112:T115) -> 0 | U116: 3 | V116: =T116 -> 0 | AH116: =IF($G116<>"",AG116,"") -> 0
B117: =IF(B16<>"",B16,"") -> Olivier MONET | C117: =IF(C16<>"",C16,"") -> 6 | D117: =IF(D16<>"",D16,"") -> 41.110MHz | E117: =IF(E16<>"",E16,"") -> 0 | F117: 22 | G117: =G16 -> 1 | H117: =IF($G117<>"",G117,"") -> 1 | K117: =IF($B117<>"",IF(I117,(INDEX(P$112:Q$115,MATCH(H117,P$112:P$115),2)/I117)*1000,0),"") -> 0 | L117: =IF(Q$112<>"",IF($B117<>"",K117-$J117,""),"") ->  | M117: =IF(B117<>"",RANK(L117,L$112:L$211),"") ->  | N117: =IF(B117<>"",'Classement Général'!BV16,"") ->  | O117: =IF(B117<>"",'Calculs (M1..M20)'!A19,"") -> 6 | U117: GS | AH117: =IF($G117<>"",AG117,"") -> 0
B118: =IF(B17<>"",B17,"") -> Pierre RONDEL | C118: =IF(C17<>"",C17,"") -> 7 | D118: =IF(D17<>"",D17,"") -> 2.4GHz | E118: =IF(E17<>"",E17,"") -> 0 | F118: 22 | G118: =G17 -> 1 | H118: =IF($G118<>"",G118,"") -> 1 | K118: =IF($B118<>"",IF(I118,(INDEX(P$112:Q$115,MATCH(H118,P$112:P$115),2)/I118)*1000,0),"") -> 0 | L118: =IF(Q$112<>"",IF($B118<>"",K118-$J118,""),"") ->  | M118: =IF(B118<>"",RANK(L118,L$112:L$211),"") ->  | N118: =IF(B118<>"",'Classement Général'!BV17,"") ->  | O118: =IF(B118<>"",'Calculs (M1..M20)'!A20,"") -> 1 | U118: 4 | AH118: =IF($G118<>"",AG118,"") -> 0
B119: =IF(B18<>"",B18,"") -> Andreas FRICKE | C119: =IF(C18<>"",C18,"") -> 8 | D119: =IF(D18<>"",D18,"") -> 2.4GHz | E119: =IF(E18<>"",E18,"") -> 0 | F119: 22 | G119: =G18 -> 1 | H119: =IF($G119<>"",G119,"") -> 1 | K119: =IF($B119<>"",IF(I119,(INDEX(P$112:Q$115,MATCH(H119,P$112:P$115),2)/I119)*1000,0),"") -> 0 | L119: =IF(Q$112<>"",IF($B119<>"",K119-$J119,""),"") ->  | M119: =IF(B119<>"",RANK(L119,L$112:L$211),"") ->  | N119: =IF(B119<>"",'Classement Général'!BV18,"") ->  | O119: =IF(B119<>"",'Calculs (M1..M20)'!A21,"") -> 18 | AH119: =IF($G119<>"",AG119,"") -> 0
B120: =IF(B19<>"",B19,"") -> Thomas FAURE | C120: =IF(C19<>"",C19,"") -> 9 | D120: =IF(D19<>"",D19,"") -> 2.4GHz | E120: =IF(E19<>"",E19,"") -> 0 | F120: 22 | G120: =G19 -> 1 | H120: =IF($G120<>"",G120,"") -> 1 | K120: =IF($B120<>"",IF(I120,(INDEX(P$112:Q$115,MATCH(H120,P$112:P$115),2)/I120)*1000,0),"") -> 0 | L120: =IF(Q$112<>"",IF($B120<>"",K120-$J120,""),"") ->  | M120: =IF(B120<>"",RANK(L120,L$112:L$211),"") ->  | N120: =IF(B120<>"",'Classement Général'!BV19,"") ->  | O120: =IF(B120<>"",'Calculs (M1..M20)'!A22,"") -> 11 | AH120: =IF($G120<>"",AG120,"") -> 0
B121: =IF(B20<>"",B20,"") -> Philippe LANES | C121: =IF(C20<>"",C20,"") -> 10 | D121: =IF(D20<>"",D20,"") -> 2.4GHz | E121: =IF(E20<>"",E20,"") -> 0 | F121: 22 | G121: =G20 -> 1 | H121: =IF($G121<>"",G121,"") -> 1 | K121: =IF($B121<>"",IF(I121,(INDEX(P$112:Q$115,MATCH(H121,P$112:P$115),2)/I121)*1000,0),"") -> 0 | L121: =IF(Q$112<>"",IF($B121<>"",K121-$J121,""),"") ->  | M121: =IF(B121<>"",RANK(L121,L$112:L$211),"") ->  | N121: =IF(B121<>"",'Classement Général'!BV20,"") ->  | O121: =IF(B121<>"",'Calculs (M1..M20)'!A23,"") -> 14 | AH121: =IF($G121<>"",AG121,"") -> 0
B122: =IF(B21<>"",B21,"") -> Julien HONOR | C122: =IF(C21<>"",C21,"") -> 11 | D122: =IF(D21<>"",D21,"") -> 2.4GHz | E122: =IF(E21<>"",E21,"") -> 0 | F122: 22 | G122: =G21 -> 1 | H122: =IF($G122<>"",G122,"") -> 1 | K122: =IF($B122<>"",IF(I122,(INDEX(P$112:Q$115,MATCH(H122,P$112:P$115),2)/I122)*1000,0),"") -> 0 | L122: =IF(Q$112<>"",IF($B122<>"",K122-$J122,""),"") ->  | M122: =IF(B122<>"",RANK(L122,L$112:L$211),"") ->  | N122: =IF(B122<>"",'Classement Général'!BV21,"") ->  | O122: =IF(B122<>"",'Calculs (M1..M20)'!A24,"") -> 3 | AH122: =IF($G122<>"",AG122,"") -> 0
B123: =IF(B22<>"",B22,"") -> Michael KREBS | C123: =IF(C22<>"",C22,"") -> 12 | D123: =IF(D22<>"",D22,"") -> 2.4GHz | E123: =IF(E22<>"",E22,"") -> 0 | F123: 22 | G123: =G22 -> 1 | H123: =IF($G123<>"",G123,"") -> 1 | K123: =IF($B123<>"",IF(I123,(INDEX(P$112:Q$115,MATCH(H123,P$112:P$115),2)/I123)*1000,0),"") -> 0 | L123: =IF(Q$112<>"",IF($B123<>"",K123-$J123,""),"") ->  | M123: =IF(B123<>"",RANK(L123,L$112:L$211),"") ->  | N123: =IF(B123<>"",'Classement Général'!BV22,"") ->  | O123: =IF(B123<>"",'Calculs (M1..M20)'!A25,"") -> 12 | AH123: =IF($G123<>"",AG123,"") -> 0
B124: =IF(B23<>"",B23,"") -> Aubry GABANON | C124: =IF(C23<>"",C23,"") -> 13 | D124: =IF(D23<>"",D23,"") -> 2.4GHz | E124: =IF(E23<>"",E23,"") -> 0 | F124: 22 | G124: =G23 -> 1 | H124: =IF($G124<>"",G124,"") -> 1 | K124: =IF($B124<>"",IF(I124,(INDEX(P$112:Q$115,MATCH(H124,P$112:P$115),2)/I124)*1000,0),"") -> 0 | L124: =IF(Q$112<>"",IF($B124<>"",K124-$J124,""),"") ->  | M124: =IF(B124<>"",RANK(L124,L$112:L$211),"") ->  | N124: =IF(B124<>"",'Classement Général'!BV23,"") ->  | O124: =IF(B124<>"",'Calculs (M1..M20)'!A26,"") -> 5 | AH124: =IF($G124<>"",AG124,"") -> 0
B125: =IF(B24<>"",B24,"") -> Serge DELARBRE | C125: =IF(C24<>"",C24,"") -> 14 | D125: =IF(D24<>"",D24,"") -> 2.4GHz | E125: =IF(E24<>"",E24,"") -> 0 | F125: 22 | G125: =G24 -> 1 | H125: =IF($G125<>"",G125,"") -> 1 | K125: =IF($B125<>"",IF(I125,(INDEX(P$112:Q$115,MATCH(H125,P$112:P$115),2)/I125)*1000,0),"") -> 0 | L125: =IF(Q$112<>"",IF($B125<>"",K125-$J125,""),"") ->  | M125: =IF(B125<>"",RANK(L125,L$112:L$211),"") ->  | N125: =IF(B125<>"",'Classement Général'!BV24,"") ->  | O125: =IF(B125<>"",'Calculs (M1..M20)'!A27,"") -> 17 | AH125: =IF($G125<>"",AG125,"") -> 0
B126: =IF(B25<>"",B25,"") -> Arnaud LEGER | C126: =IF(C25<>"",C25,"") -> 15 | D126: =IF(D25<>"",D25,"") -> 2.4GHz | E126: =IF(E25<>"",E25,"") -> 0 | F126: 22 | G126: =G25 -> 1 | H126: =IF($G126<>"",G126,"") -> 1 | K126: =IF($B126<>"",IF(I126,(INDEX(P$112:Q$115,MATCH(H126,P$112:P$115),2)/I126)*1000,0),"") -> 0 | L126: =IF(Q$112<>"",IF($B126<>"",K126-$J126,""),"") ->  | M126: =IF(B126<>"",RANK(L126,L$112:L$211),"") ->  | N126: =IF(B126<>"",'Classement Général'!BV25,"") ->  | O126: =IF(B126<>"",'Calculs (M1..M20)'!A28,"") -> 7 | AH126: =IF($G126<>"",AG126,"") -> 0
B127: =IF(B26<>"",B26,"") -> Thierry POIGNARD | C127: =IF(C26<>"",C26,"") -> 16 | D127: =IF(D26<>"",D26,"") -> 2.4GHz | E127: =IF(E26<>"",E26,"") -> 0 | F127: 22 | G127: =G26 -> 1 | H127: =IF($G127<>"",G127,"") -> 1 | K127: =IF($B127<>"",IF(I127,(INDEX(P$112:Q$115,MATCH(H127,P$112:P$115),2)/I127)*1000,0),"") -> 0 | L127: =IF(Q$112<>"",IF($B127<>"",K127-$J127,""),"") ->  | M127: =IF(B127<>"",RANK(L127,L$112:L$211),"") ->  | N127: =IF(B127<>"",'Classement Général'!BV26,"") ->  | O127: =IF(B127<>"",'Calculs (M1..M20)'!A29,"") -> 13 | AH127: =IF($G127<>"",AG127,"") -> 0
B128: =IF(B27<>"",B27,"") -> Joel MARIN | C128: =IF(C27<>"",C27,"") -> 17 | D128: =IF(D27<>"",D27,"") -> 2.4GHz | E128: =IF(E27<>"",E27,"") -> 0 | F128: 22 | G128: =G27 -> 1 | H128: =IF($G128<>"",G128,"") -> 1 | K128: =IF($B128<>"",IF(I128,(INDEX(P$112:Q$115,MATCH(H128,P$112:P$115),2)/I128)*1000,0),"") -> 0 | L128: =IF(Q$112<>"",IF($B128<>"",K128-$J128,""),"") ->  | M128: =IF(B128<>"",RANK(L128,L$112:L$211),"") ->  | N128: =IF(B128<>"",'Classement Général'!BV27,"") ->  | O128: =IF(B128<>"",'Calculs (M1..M20)'!A30,"") -> 16 | AH128: =IF($G128<>"",AG128,"") -> 0
B129: =IF(B28<>"",B28,"") -> Matthieu MERVELET | C129: =IF(C28<>"",C28,"") -> 18 | D129: =IF(D28<>"",D28,"") -> 2.4GHz | E129: =IF(E28<>"",E28,"") -> 0 | F129: 22 | G129: =G28 -> 1 | H129: =IF($G129<>"",G129,"") -> 1 | K129: =IF($B129<>"",IF(I129,(INDEX(P$112:Q$115,MATCH(H129,P$112:P$115),2)/I129)*1000,0),"") -> 0 | L129: =IF(Q$112<>"",IF($B129<>"",K129-$J129,""),"") ->  | M129: =IF(B129<>"",RANK(L129,L$112:L$211),"") ->  | N129: =IF(B129<>"",'Classement Général'!BV28,"") ->  | O129: =IF(B129<>"",'Calculs (M1..M20)'!A31,"") -> 2 | AH129: =IF($G129<>"",AG129,"") -> 0
B130: =IF(B29<>"",B29,"") -> Gabriel MANTEL | C130: =IF(C29<>"",C29,"") -> 19 | D130: =IF(D29<>"",D29,"") -> 2.4GHz | E130: =IF(E29<>"",E29,"") -> 0 | F130: 22 | G130: =G29 -> 1 | H130: =IF($G130<>"",G130,"") -> 1 | K130: =IF($B130<>"",IF(I130,(INDEX(P$112:Q$115,MATCH(H130,P$112:P$115),2)/I130)*1000,0),"") -> 0 | L130: =IF(Q$112<>"",IF($B130<>"",K130-$J130,""),"") ->  | M130: =IF(B130<>"",RANK(L130,L$112:L$211),"") ->  | N130: =IF(B130<>"",'Classement Général'!BV29,"") ->  | O130: =IF(B130<>"",'Calculs (M1..M20)'!A32,"") -> 21 | AH130: =IF($G130<>"",AG130,"") -> 0
B131: =IF(B30<>"",B30,"") -> Sylvain PFEFFERKORN | C131: =IF(C30<>"",C30,"") -> 20 | D131: =IF(D30<>"",D30,"") -> 2.4GHz | E131: =IF(E30<>"",E30,"") -> 0 | F131: 22 | G131: =G30 -> 1 | H131: =IF($G131<>"",G131,"") -> 1 | K131: =IF($B131<>"",IF(I131,(INDEX(P$112:Q$115,MATCH(H131,P$112:P$115),2)/I131)*1000,0),"") -> 0 | L131: =IF(Q$112<>"",IF($B131<>"",K131-$J131,""),"") ->  | M131: =IF(B131<>"",RANK(L131,L$112:L$211),"") ->  | N131: =IF(B131<>"",'Classement Général'!BV30,"") ->  | O131: =IF(B131<>"",'Calculs (M1..M20)'!A33,"") -> 19 | AH131: =IF($G131<>"",AG131,"") -> 0
B132: =IF(B31<>"",B31,"") -> Frederic HOURS | C132: =IF(C31<>"",C31,"") -> 21 | D132: =IF(D31<>"",D31,"") -> 2.4GHz | E132: =IF(E31<>"",E31,"") -> 0 | F132: 22 | G132: =G31 -> 1 | H132: =IF($G132<>"",G132,"") -> 1 | K132: =IF($B132<>"",IF(I132,(INDEX(P$112:Q$115,MATCH(H132,P$112:P$115),2)/I132)*1000,0),"") -> 0 | L132: =IF(Q$112<>"",IF($B132<>"",K132-$J132,""),"") ->  | M132: =IF(B132<>"",RANK(L132,L$112:L$211),"") ->  | N132: =IF(B132<>"",'Classement Général'!BV31,"") ->  | O132: =IF(B132<>"",'Calculs (M1..M20)'!A34,"") -> 9 | AH132: =IF($G132<>"",AG132,"") -> 0
B133: =IF(B32<>"",B32,"") -> Sébastien LANES | C133: =IF(C32<>"",C32,"") -> 22 | D133: =IF(D32<>"",D32,"") -> 2.4GHz | E133: =IF(E32<>"",E32,"") -> 0 | F133: 22 | G133: =G32 -> 1 | H133: =IF($G133<>"",G133,"") -> 1 | K133: =IF($B133<>"",IF(I133,(INDEX(P$112:Q$115,MATCH(H133,P$112:P$115),2)/I133)*1000,0),"") -> 0 | L133: =IF(Q$112<>"",IF($B133<>"",K133-$J133,""),"") ->  | M133: =IF(B133<>"",RANK(L133,L$112:L$211),"") ->  | N133: =IF(B133<>"",'Classement Général'!BV32,"") ->  | O133: =IF(B133<>"",'Calculs (M1..M20)'!A35,"") -> 4 | AH133: =IF($G133<>"",AG133,"") -> 0
B134: =IF(B33<>"",B33,"") ->  | C134: =IF(C33<>"",C33,"") ->  | D134: =IF(D33<>"",D33,"") ->  | E134: =IF(E33<>"",E33,"") ->  | F134: 22 | G134: =G33 -> 1 | H134: =IF($G134<>"",G134,"") -> 1 | K134: =IF($B134<>"",IF(I134,(INDEX(P$112:Q$115,MATCH(H134,P$112:P$115),2)/I134)*1000,0),"") ->  | L134: =IF(Q$112<>"",IF($B134<>"",K134-$J134,""),"") ->  | M134: =IF(B134<>"",RANK(L134,L$112:L$211),"") ->  | N134: =IF(B134<>"",'Classement Général'!BV33,"") ->  | O134: =IF(B134<>"",'Calculs (M1..M20)'!A36,"") ->  | AH134: =IF($G134<>"",AG134,"") -> 0
B135: =IF(B34<>"",B34,"") ->  | C135: =IF(C34<>"",C34,"") ->  | D135: =IF(D34<>"",D34,"") ->  | E135: =IF(E34<>"",E34,"") ->  | F135: 22 | G135: =G34 -> 1 | H135: =IF($G135<>"",G135,"") -> 1 | K135: =IF($B135<>"",IF(I135,(INDEX(P$112:Q$115,MATCH(H135,P$112:P$115),2)/I135)*1000,0),"") ->  | L135: =IF(Q$112<>"",IF($B135<>"",K135-$J135,""),"") ->  | M135: =IF(B135<>"",RANK(L135,L$112:L$211),"") ->  | N135: =IF(B135<>"",'Classement Général'!BV34,"") ->  | O135: =IF(B135<>"",'Calculs (M1..M20)'!A37,"") ->  | AH135: =IF($G135<>"",AG135,"") -> 0
B136: =IF(B35<>"",B35,"") ->  | C136: =IF(C35<>"",C35,"") ->  | D136: =IF(D35<>"",D35,"") ->  | E136: =IF(E35<>"",E35,"") ->  | F136: 22 | G136: =G35 -> 1 | H136: =IF($G136<>"",G136,"") -> 1 | K136: =IF($B136<>"",IF(I136,(INDEX(P$112:Q$115,MATCH(H136,P$112:P$115),2)/I136)*1000,0),"") ->  | L136: =IF(Q$112<>"",IF($B136<>"",K136-$J136,""),"") ->  | M136: =IF(B136<>"",RANK(L136,L$112:L$211),"") ->  | N136: =IF(B136<>"",'Classement Général'!BV35,"") ->  | O136: =IF(B136<>"",'Calculs (M1..M20)'!A38,"") ->  | AH136: =IF($G136<>"",AG136,"") -> 0
B137: =IF(B36<>"",B36,"") ->  | C137: =IF(C36<>"",C36,"") ->  | D137: =IF(D36<>"",D36,"") ->  | E137: =IF(E36<>"",E36,"") ->  | F137: 22 | G137: =G36 -> 1 | H137: =IF($G137<>"",G137,"") -> 1 | K137: =IF($B137<>"",IF(I137,(INDEX(P$112:Q$115,MATCH(H137,P$112:P$115),2)/I137)*1000,0),"") ->  | L137: =IF(Q$112<>"",IF($B137<>"",K137-$J137,""),"") ->  | M137: =IF(B137<>"",RANK(L137,L$112:L$211),"") ->  | N137: =IF(B137<>"",'Classement Général'!BV36,"") ->  | O137: =IF(B137<>"",'Calculs (M1..M20)'!A39,"") ->  | AH137: =IF($G137<>"",AG137,"") -> 0
B138: =IF(B37<>"",B37,"") ->  | C138: =IF(C37<>"",C37,"") ->  | D138: =IF(D37<>"",D37,"") ->  | E138: =IF(E37<>"",E37,"") ->  | F138: 22 | G138: =G37 -> 1 | H138: =IF($G138<>"",G138,"") -> 1 | K138: =IF($B138<>"",IF(I138,(INDEX(P$112:Q$115,MATCH(H138,P$112:P$115),2)/I138)*1000,0),"") ->  | L138: =IF(Q$112<>"",IF($B138<>"",K138-$J138,""),"") ->  | M138: =IF(B138<>"",RANK(L138,L$112:L$211),"") ->  | N138: =IF(B138<>"",'Classement Général'!BV37,"") ->  | O138: =IF(B138<>"",'Calculs (M1..M20)'!A40,"") ->  | AH138: =IF($G138<>"",AG138,"") -> 0
B139: =IF(B38<>"",B38,"") ->  | C139: =IF(C38<>"",C38,"") ->  | D139: =IF(D38<>"",D38,"") ->  | E139: =IF(E38<>"",E38,"") ->  | F139: 22 | G139: =G38 -> 1 | H139: =IF($G139<>"",G139,"") -> 1 | K139: =IF($B139<>"",IF(I139,(INDEX(P$112:Q$115,MATCH(H139,P$112:P$115),2)/I139)*1000,0),"") ->  | L139: =IF(Q$112<>"",IF($B139<>"",K139-$J139,""),"") ->  | M139: =IF(B139<>"",RANK(L139,L$112:L$211),"") ->  | N139: =IF(B139<>"",'Classement Général'!BV38,"") ->  | O139: =IF(B139<>"",'Calculs (M1..M20)'!A41,"") ->  | AH139: =IF($G139<>"",AG139,"") -> 0
B140: =IF(B39<>"",B39,"") ->  | C140: =IF(C39<>"",C39,"") ->  | D140: =IF(D39<>"",D39,"") ->  | E140: =IF(E39<>"",E39,"") ->  | F140: 22 | G140: =G39 -> 1 | H140: =IF($G140<>"",G140,"") -> 1 | K140: =IF($B140<>"",IF(I140,(INDEX(P$112:Q$115,MATCH(H140,P$112:P$115),2)/I140)*1000,0),"") ->  | L140: =IF(Q$112<>"",IF($B140<>"",K140-$J140,""),"") ->  | M140: =IF(B140<>"",RANK(L140,L$112:L$211),"") ->  | N140: =IF(B140<>"",'Classement Général'!BV39,"") ->  | O140: =IF(B140<>"",'Calculs (M1..M20)'!A42,"") ->  | AH140: =IF($G140<>"",AG140,"") -> 0
B141: =IF(B40<>"",B40,"") ->  | C141: =IF(C40<>"",C40,"") ->  | D141: =IF(D40<>"",D40,"") ->  | E141: =IF(E40<>"",E40,"") ->  | F141: 22 | G141: =G40 -> 1 | H141: =IF($G141<>"",G141,"") -> 1 | K141: =IF($B141<>"",IF(I141,(INDEX(P$112:Q$115,MATCH(H141,P$112:P$115),2)/I141)*1000,0),"") ->  | L141: =IF(Q$112<>"",IF($B141<>"",K141-$J141,""),"") ->  | M141: =IF(B141<>"",RANK(L141,L$112:L$211),"") ->  | N141: =IF(B141<>"",'Classement Général'!BV40,"") ->  | O141: =IF(B141<>"",'Calculs (M1..M20)'!A43,"") ->  | AH141: =IF($G141<>"",AG141,"") -> 0
B142: =IF(B41<>"",B41,"") ->  | C142: =IF(C41<>"",C41,"") ->  | D142: =IF(D41<>"",D41,"") ->  | E142: =IF(E41<>"",E41,"") ->  | F142: 22 | G142: =G41 -> 1 | H142: =IF($G142<>"",G142,"") -> 1 | K142: =IF($B142<>"",IF(I142,(INDEX(P$112:Q$115,MATCH(H142,P$112:P$115),2)/I142)*1000,0),"") ->  | L142: =IF(Q$112<>"",IF($B142<>"",K142-$J142,""),"") ->  | M142: =IF(B142<>"",RANK(L142,L$112:L$211),"") ->  | N142: =IF(B142<>"",'Classement Général'!BV41,"") ->  | O142: =IF(B142<>"",'Calculs (M1..M20)'!A44,"") ->  | AH142: =IF($G142<>"",AG142,"") -> 0
B143: =IF(B42<>"",B42,"") ->  | C143: =IF(C42<>"",C42,"") ->  | D143: =IF(D42<>"",D42,"") ->  | E143: =IF(E42<>"",E42,"") ->  | F143: 22 | G143: =G42 -> 1 | H143: =IF($G143<>"",G143,"") -> 1 | K143: =IF($B143<>"",IF(I143,(INDEX(P$112:Q$115,MATCH(H143,P$112:P$115),2)/I143)*1000,0),"") ->  | L143: =IF(Q$112<>"",IF($B143<>"",K143-$J143,""),"") ->  | M143: =IF(B143<>"",RANK(L143,L$112:L$211),"") ->  | N143: =IF(B143<>"",'Classement Général'!BV42,"") ->  | O143: =IF(B143<>"",'Calculs (M1..M20)'!A45,"") ->  | AH143: =IF($G143<>"",AG143,"") -> 0
B144: =IF(B43<>"",B43,"") ->  | C144: =IF(C43<>"",C43,"") ->  | D144: =IF(D43<>"",D43,"") ->  | E144: =IF(E43<>"",E43,"") ->  | F144: 22 | G144: =G43 -> 1 | H144: =IF($G144<>"",G144,"") -> 1 | K144: =IF($B144<>"",IF(I144,(INDEX(P$112:Q$115,MATCH(H144,P$112:P$115),2)/I144)*1000,0),"") ->  | L144: =IF(Q$112<>"",IF($B144<>"",K144-$J144,""),"") ->  | M144: =IF(B144<>"",RANK(L144,L$112:L$211),"") ->  | N144: =IF(B144<>"",'Classement Général'!BV43,"") ->  | O144: =IF(B144<>"",'Calculs (M1..M20)'!A46,"") ->  | AH144: =IF($G144<>"",AG144,"") -> 0
B145: =IF(B44<>"",B44,"") ->  | C145: =IF(C44<>"",C44,"") ->  | D145: =IF(D44<>"",D44,"") ->  | E145: =IF(E44<>"",E44,"") ->  | F145: 22 | G145: =G44 -> 1 | H145: =IF($G145<>"",G145,"") -> 1 | K145: =IF($B145<>"",IF(I145,(INDEX(P$112:Q$115,MATCH(H145,P$112:P$115),2)/I145)*1000,0),"") ->  | L145: =IF(Q$112<>"",IF($B145<>"",K145-$J145,""),"") ->  | M145: =IF(B145<>"",RANK(L145,L$112:L$211),"") ->  | N145: =IF(B145<>"",'Classement Général'!BV44,"") ->  | O145: =IF(B145<>"",'Calculs (M1..M20)'!A47,"") ->  | AH145: =IF($G145<>"",AG145,"") -> 0
B146: =IF(B45<>"",B45,"") ->  | C146: =IF(C45<>"",C45,"") ->  | D146: =IF(D45<>"",D45,"") ->  | E146: =IF(E45<>"",E45,"") ->  | F146: 22 | G146: =G45 -> 1 | H146: =IF($G146<>"",G146,"") -> 1 | K146: =IF($B146<>"",IF(I146,(INDEX(P$112:Q$115,MATCH(H146,P$112:P$115),2)/I146)*1000,0),"") ->  | L146: =IF(Q$112<>"",IF($B146<>"",K146-$J146,""),"") ->  | M146: =IF(B146<>"",RANK(L146,L$112:L$211),"") ->  | N146: =IF(B146<>"",'Classement Général'!BV45,"") ->  | O146: =IF(B146<>"",'Calculs (M1..M20)'!A48,"") ->  | AH146: =IF($G146<>"",AG146,"") -> 0
B147: =IF(B46<>"",B46,"") ->  | C147: =IF(C46<>"",C46,"") ->  | D147: =IF(D46<>"",D46,"") ->  | E147: =IF(E46<>"",E46,"") ->  | F147: 22 | G147: =G46 -> 1 | H147: =IF($G147<>"",G147,"") -> 1 | K147: =IF($B147<>"",IF(I147,(INDEX(P$112:Q$115,MATCH(H147,P$112:P$115),2)/I147)*1000,0),"") ->  | L147: =IF(Q$112<>"",IF($B147<>"",K147-$J147,""),"") ->  | M147: =IF(B147<>"",RANK(L147,L$112:L$211),"") ->  | N147: =IF(B147<>"",'Classement Général'!BV46,"") ->  | O147: =IF(B147<>"",'Calculs (M1..M20)'!A49,"") ->  | AH147: =IF($G147<>"",AG147,"") -> 0
B148: =IF(B47<>"",B47,"") ->  | C148: =IF(C47<>"",C47,"") ->  | D148: =IF(D47<>"",D47,"") ->  | E148: =IF(E47<>"",E47,"") ->  | F148: 22 | G148: =G47 -> 1 | H148: =IF($G148<>"",G148,"") -> 1 | K148: =IF($B148<>"",IF(I148,(INDEX(P$112:Q$115,MATCH(H148,P$112:P$115),2)/I148)*1000,0),"") ->  | L148: =IF(Q$112<>"",IF($B148<>"",K148-$J148,""),"") ->  | M148: =IF(B148<>"",RANK(L148,L$112:L$211),"") ->  | N148: =IF(B148<>"",'Classement Général'!BV47,"") ->  | O148: =IF(B148<>"",'Calculs (M1..M20)'!A50,"") ->  | AH148: =IF($G148<>"",AG148,"") -> 0
B149: =IF(B48<>"",B48,"") ->  | C149: =IF(C48<>"",C48,"") ->  | D149: =IF(D48<>"",D48,"") ->  | E149: =IF(E48<>"",E48,"") ->  | F149: 22 | G149: =G48 -> 1 | H149: =IF($G149<>"",G149,"") -> 1 | K149: =IF($B149<>"",IF(I149,(INDEX(P$112:Q$115,MATCH(H149,P$112:P$115),2)/I149)*1000,0),"") ->  | L149: =IF(Q$112<>"",IF($B149<>"",K149-$J149,""),"") ->  | M149: =IF(B149<>"",RANK(L149,L$112:L$211),"") ->  | N149: =IF(B149<>"",'Classement Général'!BV48,"") ->  | O149: =IF(B149<>"",'Calculs (M1..M20)'!A51,"") ->  | AH149: =IF($G149<>"",AG149,"") -> 0
B150: =IF(B49<>"",B49,"") ->  | C150: =IF(C49<>"",C49,"") ->  | D150: =IF(D49<>"",D49,"") ->  | E150: =IF(E49<>"",E49,"") ->  | F150: 22 | G150: =G49 -> 1 | H150: =IF($G150<>"",G150,"") -> 1 | K150: =IF($B150<>"",IF(I150,(INDEX(P$112:Q$115,MATCH(H150,P$112:P$115),2)/I150)*1000,0),"") ->  | L150: =IF(Q$112<>"",IF($B150<>"",K150-$J150,""),"") ->  | M150: =IF(B150<>"",RANK(L150,L$112:L$211),"") ->  | N150: =IF(B150<>"",'Classement Général'!BV49,"") ->  | O150: =IF(B150<>"",'Calculs (M1..M20)'!A52,"") ->  | AH150: =IF($G150<>"",AG150,"") -> 0
B151: =IF(B50<>"",B50,"") ->  | C151: =IF(C50<>"",C50,"") ->  | D151: =IF(D50<>"",D50,"") ->  | E151: =IF(E50<>"",E50,"") ->  | F151: 22 | G151: =G50 -> 1 | H151: =IF($G151<>"",G151,"") -> 1 | K151: =IF($B151<>"",IF(I151,(INDEX(P$112:Q$115,MATCH(H151,P$112:P$115),2)/I151)*1000,0),"") ->  | L151: =IF(Q$112<>"",IF($B151<>"",K151-$J151,""),"") ->  | M151: =IF(B151<>"",RANK(L151,L$112:L$211),"") ->  | N151: =IF(B151<>"",'Classement Général'!BV50,"") ->  | O151: =IF(B151<>"",'Calculs (M1..M20)'!A53,"") ->  | AH151: =IF($G151<>"",AG151,"") -> 0
B152: =IF(B51<>"",B51,"") ->  | C152: =IF(C51<>"",C51,"") ->  | D152: =IF(D51<>"",D51,"") ->  | E152: =IF(E51<>"",E51,"") ->  | F152: 22 | G152: =G51 -> 1 | H152: =IF($G152<>"",G152,"") -> 1 | K152: =IF($B152<>"",IF(I152,(INDEX(P$112:Q$115,MATCH(H152,P$112:P$115),2)/I152)*1000,0),"") ->  | L152: =IF(Q$112<>"",IF($B152<>"",K152-$J152,""),"") ->  | M152: =IF(B152<>"",RANK(L152,L$112:L$211),"") ->  | N152: =IF(B152<>"",'Classement Général'!BV51,"") ->  | O152: =IF(B152<>"",'Calculs (M1..M20)'!A54,"") ->  | AH152: =IF($G152<>"",AG152,"") -> 0
B153: =IF(B52<>"",B52,"") ->  | C153: =IF(C52<>"",C52,"") ->  | D153: =IF(D52<>"",D52,"") ->  | E153: =IF(E52<>"",E52,"") ->  | F153: 22 | G153: =G52 -> 1 | H153: =IF($G153<>"",G153,"") -> 1 | K153: =IF($B153<>"",IF(I153,(INDEX(P$112:Q$115,MATCH(H153,P$112:P$115),2)/I153)*1000,0),"") ->  | L153: =IF(Q$112<>"",IF($B153<>"",K153-$J153,""),"") ->  | M153: =IF(B153<>"",RANK(L153,L$112:L$211),"") ->  | N153: =IF(B153<>"",'Classement Général'!BV52,"") ->  | O153: =IF(B153<>"",'Calculs (M1..M20)'!A55,"") ->  | AH153: =IF($G153<>"",AG153,"") -> 0
B154: =IF(B53<>"",B53,"") ->  | C154: =IF(C53<>"",C53,"") ->  | D154: =IF(D53<>"",D53,"") ->  | E154: =IF(E53<>"",E53,"") ->  | F154: 22 | G154: =G53 -> 1 | H154: =IF($G154<>"",G154,"") -> 1 | K154: =IF($B154<>"",IF(I154,(INDEX(P$112:Q$115,MATCH(H154,P$112:P$115),2)/I154)*1000,0),"") ->  | L154: =IF(Q$112<>"",IF($B154<>"",K154-$J154,""),"") ->  | M154: =IF(B154<>"",RANK(L154,L$112:L$211),"") ->  | N154: =IF(B154<>"",'Classement Général'!BV53,"") ->  | O154: =IF(B154<>"",'Calculs (M1..M20)'!A56,"") ->  | AH154: =IF($G154<>"",AG154,"") -> 0
B155: =IF(B54<>"",B54,"") ->  | C155: =IF(C54<>"",C54,"") ->  | D155: =IF(D54<>"",D54,"") ->  | E155: =IF(E54<>"",E54,"") ->  | F155: 22 | G155: =G54 -> 1 | H155: =IF($G155<>"",G155,"") -> 1 | K155: =IF($B155<>"",IF(I155,(INDEX(P$112:Q$115,MATCH(H155,P$112:P$115),2)/I155)*1000,0),"") ->  | L155: =IF(Q$112<>"",IF($B155<>"",K155-$J155,""),"") ->  | M155: =IF(B155<>"",RANK(L155,L$112:L$211),"") ->  | N155: =IF(B155<>"",'Classement Général'!BV54,"") ->  | O155: =IF(B155<>"",'Calculs (M1..M20)'!A57,"") ->  | AH155: =IF($G155<>"",AG155,"") -> 0
B156: =IF(B55<>"",B55,"") ->  | C156: =IF(C55<>"",C55,"") ->  | D156: =IF(D55<>"",D55,"") ->  | E156: =IF(E55<>"",E55,"") ->  | F156: 22 | G156: =G55 -> 1 | H156: =IF($G156<>"",G156,"") -> 1 | K156: =IF($B156<>"",IF(I156,(INDEX(P$112:Q$115,MATCH(H156,P$112:P$115),2)/I156)*1000,0),"") ->  | L156: =IF(Q$112<>"",IF($B156<>"",K156-$J156,""),"") ->  | M156: =IF(B156<>"",RANK(L156,L$112:L$211),"") ->  | N156: =IF(B156<>"",'Classement Général'!BV55,"") ->  | O156: =IF(B156<>"",'Calculs (M1..M20)'!A58,"") ->  | AH156: =IF($G156<>"",AG156,"") -> 0
B157: =IF(B56<>"",B56,"") ->  | C157: =IF(C56<>"",C56,"") ->  | D157: =IF(D56<>"",D56,"") ->  | E157: =IF(E56<>"",E56,"") ->  | F157: 22 | G157: =G56 -> 1 | H157: =IF($G157<>"",G157,"") -> 1 | K157: =IF($B157<>"",IF(I157,(INDEX(P$112:Q$115,MATCH(H157,P$112:P$115),2)/I157)*1000,0),"") ->  | L157: =IF(Q$112<>"",IF($B157<>"",K157-$J157,""),"") ->  | M157: =IF(B157<>"",RANK(L157,L$112:L$211),"") ->  | N157: =IF(B157<>"",'Classement Général'!BV56,"") ->  | O157: =IF(B157<>"",'Calculs (M1..M20)'!A59,"") ->  | AH157: =IF($G157<>"",AG157,"") -> 0
B158: =IF(B57<>"",B57,"") ->  | C158: =IF(C57<>"",C57,"") ->  | D158: =IF(D57<>"",D57,"") ->  | E158: =IF(E57<>"",E57,"") ->  | F158: 22 | G158: =G57 -> 1 | H158: =IF($G158<>"",G158,"") -> 1 | K158: =IF($B158<>"",IF(I158,(INDEX(P$112:Q$115,MATCH(H158,P$112:P$115),2)/I158)*1000,0),"") ->  | L158: =IF(Q$112<>"",IF($B158<>"",K158-$J158,""),"") ->  | M158: =IF(B158<>"",RANK(L158,L$112:L$211),"") ->  | N158: =IF(B158<>"",'Classement Général'!BV57,"") ->  | O158: =IF(B158<>"",'Calculs (M1..M20)'!A60,"") ->  | AH158: =IF($G158<>"",AG158,"") -> 0
B159: =IF(B58<>"",B58,"") ->  | C159: =IF(C58<>"",C58,"") ->  | D159: =IF(D58<>"",D58,"") ->  | E159: =IF(E58<>"",E58,"") ->  | F159: 22 | G159: =G58 -> 1 | H159: =IF($G159<>"",G159,"") -> 1 | K159: =IF($B159<>"",IF(I159,(INDEX(P$112:Q$115,MATCH(H159,P$112:P$115),2)/I159)*1000,0),"") ->  | L159: =IF(Q$112<>"",IF($B159<>"",K159-$J159,""),"") ->  | M159: =IF(B159<>"",RANK(L159,L$112:L$211),"") ->  | N159: =IF(B159<>"",'Classement Général'!BV58,"") ->  | O159: =IF(B159<>"",'Calculs (M1..M20)'!A61,"") ->  | AH159: =IF($G159<>"",AG159,"") -> 0
B160: =IF(B59<>"",B59,"") ->  | C160: =IF(C59<>"",C59,"") ->  | D160: =IF(D59<>"",D59,"") ->  | E160: =IF(E59<>"",E59,"") ->  | F160: 22 | G160: =G59 -> 1 | H160: =IF($G160<>"",G160,"") -> 1 | K160: =IF($B160<>"",IF(I160,(INDEX(P$112:Q$115,MATCH(H160,P$112:P$115),2)/I160)*1000,0),"") ->  | L160: =IF(Q$112<>"",IF($B160<>"",K160-$J160,""),"") ->  | M160: =IF(B160<>"",RANK(L160,L$112:L$211),"") ->  | N160: =IF(B160<>"",'Classement Général'!BV59,"") ->  | O160: =IF(B160<>"",'Calculs (M1..M20)'!A62,"") ->  | AH160: =IF($G160<>"",AG160,"") -> 0
B161: =IF(B60<>"",B60,"") ->  | C161: =IF(C60<>"",C60,"") ->  | D161: =IF(D60<>"",D60,"") ->  | E161: =IF(E60<>"",E60,"") ->  | F161: 22 | G161: =G60 -> 1 | H161: =IF($G161<>"",G161,"") -> 1 | K161: =IF($B161<>"",IF(I161,(INDEX(P$112:Q$115,MATCH(H161,P$112:P$115),2)/I161)*1000,0),"") ->  | L161: =IF(Q$112<>"",IF($B161<>"",K161-$J161,""),"") ->  | M161: =IF(B161<>"",RANK(L161,L$112:L$211),"") ->  | N161: =IF(B161<>"",'Classement Général'!BV60,"") ->  | O161: =IF(B161<>"",'Calculs (M1..M20)'!A63,"") ->  | AH161: =IF($G161<>"",AG161,"") -> 0
B162: =IF(B61<>"",B61,"") ->  | C162: =IF(C61<>"",C61,"") ->  | D162: =IF(D61<>"",D61,"") ->  | E162: =IF(E61<>"",E61,"") ->  | F162: 22 | G162: =G61 -> 1 | H162: =IF($G162<>"",G162,"") -> 1 | K162: =IF($B162<>"",IF(I162,(INDEX(P$112:Q$115,MATCH(H162,P$112:P$115),2)/I162)*1000,0),"") ->  | L162: =IF(Q$112<>"",IF($B162<>"",K162-$J162,""),"") ->  | M162: =IF(B162<>"",RANK(L162,L$112:L$211),"") ->  | N162: =IF(B162<>"",'Classement Général'!BV61,"") ->  | O162: =IF(B162<>"",'Calculs (M1..M20)'!A64,"") ->  | AH162: =IF($G162<>"",AG162,"") -> 0
B163: =IF(B62<>"",B62,"") ->  | C163: =IF(C62<>"",C62,"") ->  | D163: =IF(D62<>"",D62,"") ->  | E163: =IF(E62<>"",E62,"") ->  | F163: 22 | G163: =G62 -> 1 | H163: =IF($G163<>"",G163,"") -> 1 | K163: =IF($B163<>"",IF(I163,(INDEX(P$112:Q$115,MATCH(H163,P$112:P$115),2)/I163)*1000,0),"") ->  | L163: =IF(Q$112<>"",IF($B163<>"",K163-$J163,""),"") ->  | M163: =IF(B163<>"",RANK(L163,L$112:L$211),"") ->  | N163: =IF(B163<>"",'Classement Général'!BV62,"") ->  | O163: =IF(B163<>"",'Calculs (M1..M20)'!A65,"") ->  | AH163: =IF($G163<>"",AG163,"") -> 0
B164: =IF(B63<>"",B63,"") ->  | C164: =IF(C63<>"",C63,"") ->  | D164: =IF(D63<>"",D63,"") ->  | E164: =IF(E63<>"",E63,"") ->  | F164: 22 | G164: =G63 -> 1 | H164: =IF($G164<>"",G164,"") -> 1 | K164: =IF($B164<>"",IF(I164,(INDEX(P$112:Q$115,MATCH(H164,P$112:P$115),2)/I164)*1000,0),"") ->  | L164: =IF(Q$112<>"",IF($B164<>"",K164-$J164,""),"") ->  | M164: =IF(B164<>"",RANK(L164,L$112:L$211),"") ->  | N164: =IF(B164<>"",'Classement Général'!BV63,"") ->  | O164: =IF(B164<>"",'Calculs (M1..M20)'!A66,"") ->  | AH164: =IF($G164<>"",AG164,"") -> 0
B165: =IF(B64<>"",B64,"") ->  | C165: =IF(C64<>"",C64,"") ->  | D165: =IF(D64<>"",D64,"") ->  | E165: =IF(E64<>"",E64,"") ->  | F165: 22 | G165: =G64 -> 1 | H165: =IF($G165<>"",G165,"") -> 1 | K165: =IF($B165<>"",IF(I165,(INDEX(P$112:Q$115,MATCH(H165,P$112:P$115),2)/I165)*1000,0),"") ->  | L165: =IF(Q$112<>"",IF($B165<>"",K165-$J165,""),"") ->  | M165: =IF(B165<>"",RANK(L165,L$112:L$211),"") ->  | N165: =IF(B165<>"",'Classement Général'!BV64,"") ->  | O165: =IF(B165<>"",'Calculs (M1..M20)'!A67,"") ->  | AH165: =IF($G165<>"",AG165,"") -> 0
B166: =IF(B65<>"",B65,"") ->  | C166: =IF(C65<>"",C65,"") ->  | D166: =IF(D65<>"",D65,"") ->  | E166: =IF(E65<>"",E65,"") ->  | F166: 22 | G166: =G65 -> 1 | H166: =IF($G166<>"",G166,"") -> 1 | K166: =IF($B166<>"",IF(I166,(INDEX(P$112:Q$115,MATCH(H166,P$112:P$115),2)/I166)*1000,0),"") ->  | L166: =IF(Q$112<>"",IF($B166<>"",K166-$J166,""),"") ->  | M166: =IF(B166<>"",RANK(L166,L$112:L$211),"") ->  | N166: =IF(B166<>"",'Classement Général'!BV65,"") ->  | O166: =IF(B166<>"",'Calculs (M1..M20)'!A68,"") ->  | AH166: =IF($G166<>"",AG166,"") -> 0
B167: =IF(B66<>"",B66,"") ->  | C167: =IF(C66<>"",C66,"") ->  | D167: =IF(D66<>"",D66,"") ->  | E167: =IF(E66<>"",E66,"") ->  | F167: 22 | G167: =G66 -> 1 | H167: =IF($G167<>"",G167,"") -> 1 | K167: =IF($B167<>"",IF(I167,(INDEX(P$112:Q$115,MATCH(H167,P$112:P$115),2)/I167)*1000,0),"") ->  | L167: =IF(Q$112<>"",IF($B167<>"",K167-$J167,""),"") ->  | M167: =IF(B167<>"",RANK(L167,L$112:L$211),"") ->  | N167: =IF(B167<>"",'Classement Général'!BV66,"") ->  | O167: =IF(B167<>"",'Calculs (M1..M20)'!A69,"") ->  | AH167: =IF($G167<>"",AG167,"") -> 0
B168: =IF(B67<>"",B67,"") ->  | C168: =IF(C67<>"",C67,"") ->  | D168: =IF(D67<>"",D67,"") ->  | E168: =IF(E67<>"",E67,"") ->  | F168: 22 | G168: =G67 -> 1 | H168: =IF($G168<>"",G168,"") -> 1 | K168: =IF($B168<>"",IF(I168,(INDEX(P$112:Q$115,MATCH(H168,P$112:P$115),2)/I168)*1000,0),"") ->  | L168: =IF(Q$112<>"",IF($B168<>"",K168-$J168,""),"") ->  | M168: =IF(B168<>"",RANK(L168,L$112:L$211),"") ->  | N168: =IF(B168<>"",'Classement Général'!BV67,"") ->  | O168: =IF(B168<>"",'Calculs (M1..M20)'!A70,"") ->  | AH168: =IF($G168<>"",AG168,"") -> 0
B169: =IF(B68<>"",B68,"") ->  | C169: =IF(C68<>"",C68,"") ->  | D169: =IF(D68<>"",D68,"") ->  | E169: =IF(E68<>"",E68,"") ->  | F169: 22 | G169: =G68 -> 0 | H169: =IF($G169<>"",G169,"") -> 0 | K169: =IF($B169<>"",IF(I169,(INDEX(P$112:Q$115,MATCH(H169,P$112:P$115),2)/I169)*1000,0),"") ->  | L169: =IF(Q$112<>"",IF($B169<>"",K169-$J169,""),"") ->  | M169: =IF(B169<>"",RANK(L169,L$112:L$211),"") ->  | N169: =IF(B169<>"",'Classement Général'!BV68,"") ->  | O169: =IF(B169<>"",'Calculs (M1..M20)'!A71,"") ->  | AH169: =IF($G169<>"",AG169,"") -> 0
B170: =IF(B69<>"",B69,"") ->  | C170: =IF(C69<>"",C69,"") ->  | D170: =IF(D69<>"",D69,"") ->  | E170: =IF(E69<>"",E69,"") ->  | F170: 22 | G170: =G69 -> 0 | H170: =IF($G170<>"",G170,"") -> 0 | K170: =IF($B170<>"",IF(I170,(INDEX(P$112:Q$115,MATCH(H170,P$112:P$115),2)/I170)*1000,0),"") ->  | L170: =IF(Q$112<>"",IF($B170<>"",K170-$J170,""),"") ->  | M170: =IF(B170<>"",RANK(L170,L$112:L$211),"") ->  | N170: =IF(B170<>"",'Classement Général'!BV69,"") ->  | O170: =IF(B170<>"",'Calculs (M1..M20)'!A72,"") ->  | AH170: =IF($G170<>"",AG170,"") -> 0
B171: =IF(B70<>"",B70,"") ->  | C171: =IF(C70<>"",C70,"") ->  | D171: =IF(D70<>"",D70,"") ->  | E171: =IF(E70<>"",E70,"") ->  | F171: 22 | G171: =G70 -> 0 | H171: =IF($G171<>"",G171,"") -> 0 | K171: =IF($B171<>"",IF(I171,(INDEX(P$112:Q$115,MATCH(H171,P$112:P$115),2)/I171)*1000,0),"") ->  | L171: =IF(Q$112<>"",IF($B171<>"",K171-$J171,""),"") ->  | M171: =IF(B171<>"",RANK(L171,L$112:L$211),"") ->  | N171: =IF(B171<>"",'Classement Général'!BV70,"") ->  | O171: =IF(B171<>"",'Calculs (M1..M20)'!A73,"") ->  | AH171: =IF($G171<>"",AG171,"") -> 0
B172: =IF(B71<>"",B71,"") ->  | C172: =IF(C71<>"",C71,"") ->  | D172: =IF(D71<>"",D71,"") ->  | E172: =IF(E71<>"",E71,"") ->  | F172: 22 | G172: =G71 -> 0 | H172: =IF($G172<>"",G172,"") -> 0 | K172: =IF($B172<>"",IF(I172,(INDEX(P$112:Q$115,MATCH(H172,P$112:P$115),2)/I172)*1000,0),"") ->  | L172: =IF(Q$112<>"",IF($B172<>"",K172-$J172,""),"") ->  | M172: =IF(B172<>"",RANK(L172,L$112:L$211),"") ->  | N172: =IF(B172<>"",'Classement Général'!BV71,"") ->  | O172: =IF(B172<>"",'Calculs (M1..M20)'!A74,"") ->  | AH172: =IF($G172<>"",AG172,"") -> 0
B173: =IF(B72<>"",B72,"") ->  | C173: =IF(C72<>"",C72,"") ->  | D173: =IF(D72<>"",D72,"") ->  | E173: =IF(E72<>"",E72,"") ->  | F173: 22 | G173: =G72 -> 0 | H173: =IF($G173<>"",G173,"") -> 0 | K173: =IF($B173<>"",IF(I173,(INDEX(P$112:Q$115,MATCH(H173,P$112:P$115),2)/I173)*1000,0),"") ->  | L173: =IF(Q$112<>"",IF($B173<>"",K173-$J173,""),"") ->  | M173: =IF(B173<>"",RANK(L173,L$112:L$211),"") ->  | N173: =IF(B173<>"",'Classement Général'!BV72,"") ->  | O173: =IF(B173<>"",'Calculs (M1..M20)'!A75,"") ->  | AH173: =IF($G173<>"",AG173,"") -> 0
B174: =IF(B73<>"",B73,"") ->  | C174: =IF(C73<>"",C73,"") ->  | D174: =IF(D73<>"",D73,"") ->  | E174: =IF(E73<>"",E73,"") ->  | F174: 22 | G174: =G73 -> 0 | H174: =IF($G174<>"",G174,"") -> 0 | K174: =IF($B174<>"",IF(I174,(INDEX(P$112:Q$115,MATCH(H174,P$112:P$115),2)/I174)*1000,0),"") ->  | L174: =IF(Q$112<>"",IF($B174<>"",K174-$J174,""),"") ->  | M174: =IF(B174<>"",RANK(L174,L$112:L$211),"") ->  | N174: =IF(B174<>"",'Classement Général'!BV73,"") ->  | O174: =IF(B174<>"",'Calculs (M1..M20)'!A76,"") ->  | AH174: =IF($G174<>"",AG174,"") -> 0
B175: =IF(B74<>"",B74,"") ->  | C175: =IF(C74<>"",C74,"") ->  | D175: =IF(D74<>"",D74,"") ->  | E175: =IF(E74<>"",E74,"") ->  | F175: 22 | G175: =G74 -> 0 | H175: =IF($G175<>"",G175,"") -> 0 | K175: =IF($B175<>"",IF(I175,(INDEX(P$112:Q$115,MATCH(H175,P$112:P$115),2)/I175)*1000,0),"") ->  | L175: =IF(Q$112<>"",IF($B175<>"",K175-$J175,""),"") ->  | M175: =IF(B175<>"",RANK(L175,L$112:L$211),"") ->  | N175: =IF(B175<>"",'Classement Général'!BV74,"") ->  | O175: =IF(B175<>"",'Calculs (M1..M20)'!A77,"") ->  | AH175: =IF($G175<>"",AG175,"") -> 0
B176: =IF(B75<>"",B75,"") ->  | C176: =IF(C75<>"",C75,"") ->  | D176: =IF(D75<>"",D75,"") ->  | E176: =IF(E75<>"",E75,"") ->  | F176: 22 | G176: =G75 -> 0 | H176: =IF($G176<>"",G176,"") -> 0 | K176: =IF($B176<>"",IF(I176,(INDEX(P$112:Q$115,MATCH(H176,P$112:P$115),2)/I176)*1000,0),"") ->  | L176: =IF(Q$112<>"",IF($B176<>"",K176-$J176,""),"") ->  | M176: =IF(B176<>"",RANK(L176,L$112:L$211),"") ->  | N176: =IF(B176<>"",'Classement Général'!BV75,"") ->  | O176: =IF(B176<>"",'Calculs (M1..M20)'!A78,"") ->  | AH176: =IF($G176<>"",AG176,"") -> 0
B177: =IF(B76<>"",B76,"") ->  | C177: =IF(C76<>"",C76,"") ->  | D177: =IF(D76<>"",D76,"") ->  | E177: =IF(E76<>"",E76,"") ->  | F177: 22 | G177: =G76 -> 0 | H177: =IF($G177<>"",G177,"") -> 0 | K177: =IF($B177<>"",IF(I177,(INDEX(P$112:Q$115,MATCH(H177,P$112:P$115),2)/I177)*1000,0),"") ->  | L177: =IF(Q$112<>"",IF($B177<>"",K177-$J177,""),"") ->  | M177: =IF(B177<>"",RANK(L177,L$112:L$211),"") ->  | N177: =IF(B177<>"",'Classement Général'!BV76,"") ->  | O177: =IF(B177<>"",'Calculs (M1..M20)'!A79,"") ->  | AH177: =IF($G177<>"",AG177,"") -> 0
B178: =IF(B77<>"",B77,"") ->  | C178: =IF(C77<>"",C77,"") ->  | D178: =IF(D77<>"",D77,"") ->  | E178: =IF(E77<>"",E77,"") ->  | F178: 22 | G178: =G77 -> 0 | H178: =IF($G178<>"",G178,"") -> 0 | K178: =IF($B178<>"",IF(I178,(INDEX(P$112:Q$115,MATCH(H178,P$112:P$115),2)/I178)*1000,0),"") ->  | L178: =IF(Q$112<>"",IF($B178<>"",K178-$J178,""),"") ->  | M178: =IF(B178<>"",RANK(L178,L$112:L$211),"") ->  | N178: =IF(B178<>"",'Classement Général'!BV77,"") ->  | O178: =IF(B178<>"",'Calculs (M1..M20)'!A80,"") ->  | AH178: =IF($G178<>"",AG178,"") -> 0
B179: =IF(B78<>"",B78,"") ->  | C179: =IF(C78<>"",C78,"") ->  | D179: =IF(D78<>"",D78,"") ->  | E179: =IF(E78<>"",E78,"") ->  | F179: 22 | G179: =G78 -> 0 | H179: =IF($G179<>"",G179,"") -> 0 | K179: =IF($B179<>"",IF(I179,(INDEX(P$112:Q$115,MATCH(H179,P$112:P$115),2)/I179)*1000,0),"") ->  | L179: =IF(Q$112<>"",IF($B179<>"",K179-$J179,""),"") ->  | M179: =IF(B179<>"",RANK(L179,L$112:L$211),"") ->  | N179: =IF(B179<>"",'Classement Général'!BV78,"") ->  | O179: =IF(B179<>"",'Calculs (M1..M20)'!A81,"") ->  | AH179: =IF($G179<>"",AG179,"") -> 0
B180: =IF(B79<>"",B79,"") ->  | C180: =IF(C79<>"",C79,"") ->  | D180: =IF(D79<>"",D79,"") ->  | E180: =IF(E79<>"",E79,"") ->  | F180: 22 | G180: =G79 -> 0 | H180: =IF($G180<>"",G180,"") -> 0 | K180: =IF($B180<>"",IF(I180,(INDEX(P$112:Q$115,MATCH(H180,P$112:P$115),2)/I180)*1000,0),"") ->  | L180: =IF(Q$112<>"",IF($B180<>"",K180-$J180,""),"") ->  | M180: =IF(B180<>"",RANK(L180,L$112:L$211),"") ->  | N180: =IF(B180<>"",'Classement Général'!BV79,"") ->  | O180: =IF(B180<>"",'Calculs (M1..M20)'!A82,"") ->  | AH180: =IF($G180<>"",AG180,"") -> 0
B181: =IF(B80<>"",B80,"") ->  | C181: =IF(C80<>"",C80,"") ->  | D181: =IF(D80<>"",D80,"") ->  | E181: =IF(E80<>"",E80,"") ->  | F181: 22 | G181: =G80 -> 0 | H181: =IF($G181<>"",G181,"") -> 0 | K181: =IF($B181<>"",IF(I181,(INDEX(P$112:Q$115,MATCH(H181,P$112:P$115),2)/I181)*1000,0),"") ->  | L181: =IF(Q$112<>"",IF($B181<>"",K181-$J181,""),"") ->  | M181: =IF(B181<>"",RANK(L181,L$112:L$211),"") ->  | N181: =IF(B181<>"",'Classement Général'!BV80,"") ->  | O181: =IF(B181<>"",'Calculs (M1..M20)'!A83,"") ->  | AH181: =IF($G181<>"",AG181,"") -> 0
B182: =IF(B81<>"",B81,"") ->  | C182: =IF(C81<>"",C81,"") ->  | D182: =IF(D81<>"",D81,"") ->  | E182: =IF(E81<>"",E81,"") ->  | F182: 22 | G182: =G81 -> 0 | H182: =IF($G182<>"",G182,"") -> 0 | K182: =IF($B182<>"",IF(I182,(INDEX(P$112:Q$115,MATCH(H182,P$112:P$115),2)/I182)*1000,0),"") ->  | L182: =IF(Q$112<>"",IF($B182<>"",K182-$J182,""),"") ->  | M182: =IF(B182<>"",RANK(L182,L$112:L$211),"") ->  | N182: =IF(B182<>"",'Classement Général'!BV81,"") ->  | O182: =IF(B182<>"",'Calculs (M1..M20)'!A84,"") ->  | AH182: =IF($G182<>"",AG182,"") -> 0
B183: =IF(B82<>"",B82,"") ->  | C183: =IF(C82<>"",C82,"") ->  | D183: =IF(D82<>"",D82,"") ->  | E183: =IF(E82<>"",E82,"") ->  | F183: 22 | G183: =G82 -> 0 | H183: =IF($G183<>"",G183,"") -> 0 | K183: =IF($B183<>"",IF(I183,(INDEX(P$112:Q$115,MATCH(H183,P$112:P$115),2)/I183)*1000,0),"") ->  | L183: =IF(Q$112<>"",IF($B183<>"",K183-$J183,""),"") ->  | M183: =IF(B183<>"",RANK(L183,L$112:L$211),"") ->  | N183: =IF(B183<>"",'Classement Général'!BV82,"") ->  | O183: =IF(B183<>"",'Calculs (M1..M20)'!A85,"") ->  | AH183: =IF($G183<>"",AG183,"") -> 0
B184: =IF(B83<>"",B83,"") ->  | C184: =IF(C83<>"",C83,"") ->  | D184: =IF(D83<>"",D83,"") ->  | E184: =IF(E83<>"",E83,"") ->  | F184: 22 | G184: =G83 -> 0 | H184: =IF($G184<>"",G184,"") -> 0 | K184: =IF($B184<>"",IF(I184,(INDEX(P$112:Q$115,MATCH(H184,P$112:P$115),2)/I184)*1000,0),"") ->  | L184: =IF(Q$112<>"",IF($B184<>"",K184-$J184,""),"") ->  | M184: =IF(B184<>"",RANK(L184,L$112:L$211),"") ->  | N184: =IF(B184<>"",'Classement Général'!BV83,"") ->  | O184: =IF(B184<>"",'Calculs (M1..M20)'!A86,"") ->  | AH184: =IF($G184<>"",AG184,"") -> 0
B185: =IF(B84<>"",B84,"") ->  | C185: =IF(C84<>"",C84,"") ->  | D185: =IF(D84<>"",D84,"") ->  | E185: =IF(E84<>"",E84,"") ->  | F185: 22 | G185: =G84 -> 0 | H185: =IF($G185<>"",G185,"") -> 0 | K185: =IF($B185<>"",IF(I185,(INDEX(P$112:Q$115,MATCH(H185,P$112:P$115),2)/I185)*1000,0),"") ->  | L185: =IF(Q$112<>"",IF($B185<>"",K185-$J185,""),"") ->  | M185: =IF(B185<>"",RANK(L185,L$112:L$211),"") ->  | N185: =IF(B185<>"",'Classement Général'!BV84,"") ->  | O185: =IF(B185<>"",'Calculs (M1..M20)'!A87,"") ->  | AH185: =IF($G185<>"",AG185,"") -> 0
B186: =IF(B85<>"",B85,"") ->  | C186: =IF(C85<>"",C85,"") ->  | D186: =IF(D85<>"",D85,"") ->  | E186: =IF(E85<>"",E85,"") ->  | F186: 22 | G186: =G85 -> 0 | H186: =IF($G186<>"",G186,"") -> 0 | K186: =IF($B186<>"",IF(I186,(INDEX(P$112:Q$115,MATCH(H186,P$112:P$115),2)/I186)*1000,0),"") ->  | L186: =IF(Q$112<>"",IF($B186<>"",K186-$J186,""),"") ->  | M186: =IF(B186<>"",RANK(L186,L$112:L$211),"") ->  | N186: =IF(B186<>"",'Classement Général'!BV85,"") ->  | O186: =IF(B186<>"",'Calculs (M1..M20)'!A88,"") ->  | AH186: =IF($G186<>"",AG186,"") -> 0
B187: =IF(B86<>"",B86,"") ->  | C187: =IF(C86<>"",C86,"") ->  | D187: =IF(D86<>"",D86,"") ->  | E187: =IF(E86<>"",E86,"") ->  | F187: 22 | G187: =G86 -> 0 | H187: =IF($G187<>"",G187,"") -> 0 | K187: =IF($B187<>"",IF(I187,(INDEX(P$112:Q$115,MATCH(H187,P$112:P$115),2)/I187)*1000,0),"") ->  | L187: =IF(Q$112<>"",IF($B187<>"",K187-$J187,""),"") ->  | M187: =IF(B187<>"",RANK(L187,L$112:L$211),"") ->  | N187: =IF(B187<>"",'Classement Général'!BV86,"") ->  | O187: =IF(B187<>"",'Calculs (M1..M20)'!A89,"") ->  | AH187: =IF($G187<>"",AG187,"") -> 0
B188: =IF(B87<>"",B87,"") ->  | C188: =IF(C87<>"",C87,"") ->  | D188: =IF(D87<>"",D87,"") ->  | E188: =IF(E87<>"",E87,"") ->  | F188: 22 | G188: =G87 -> 0 | H188: =IF($G188<>"",G188,"") -> 0 | K188: =IF($B188<>"",IF(I188,(INDEX(P$112:Q$115,MATCH(H188,P$112:P$115),2)/I188)*1000,0),"") ->  | L188: =IF(Q$112<>"",IF($B188<>"",K188-$J188,""),"") ->  | M188: =IF(B188<>"",RANK(L188,L$112:L$211),"") ->  | N188: =IF(B188<>"",'Classement Général'!BV87,"") ->  | O188: =IF(B188<>"",'Calculs (M1..M20)'!A90,"") ->  | AH188: =IF($G188<>"",AG188,"") -> 0
B189: =IF(B88<>"",B88,"") ->  | C189: =IF(C88<>"",C88,"") ->  | D189: =IF(D88<>"",D88,"") ->  | E189: =IF(E88<>"",E88,"") ->  | F189: 22 | G189: =G88 -> 0 | H189: =IF($G189<>"",G189,"") -> 0 | K189: =IF($B189<>"",IF(I189,(INDEX(P$112:Q$115,MATCH(H189,P$112:P$115),2)/I189)*1000,0),"") ->  | L189: =IF(Q$112<>"",IF($B189<>"",K189-$J189,""),"") ->  | M189: =IF(B189<>"",RANK(L189,L$112:L$211),"") ->  | N189: =IF(B189<>"",'Classement Général'!BV88,"") ->  | O189: =IF(B189<>"",'Calculs (M1..M20)'!A91,"") ->  | AH189: =IF($G189<>"",AG189,"") -> 0
B190: =IF(B89<>"",B89,"") ->  | C190: =IF(C89<>"",C89,"") ->  | D190: =IF(D89<>"",D89,"") ->  | E190: =IF(E89<>"",E89,"") ->  | F190: 22 | G190: =G89 -> 0 | H190: =IF($G190<>"",G190,"") -> 0 | K190: =IF($B190<>"",IF(I190,(INDEX(P$112:Q$115,MATCH(H190,P$112:P$115),2)/I190)*1000,0),"") ->  | L190: =IF(Q$112<>"",IF($B190<>"",K190-$J190,""),"") ->  | M190: =IF(B190<>"",RANK(L190,L$112:L$211),"") ->  | N190: =IF(B190<>"",'Classement Général'!BV89,"") ->  | O190: =IF(B190<>"",'Calculs (M1..M20)'!A92,"") ->  | AH190: =IF($G190<>"",AG190,"") -> 0
B191: =IF(B90<>"",B90,"") ->  | C191: =IF(C90<>"",C90,"") ->  | D191: =IF(D90<>"",D90,"") ->  | E191: =IF(E90<>"",E90,"") ->  | F191: 22 | G191: =G90 -> 0 | H191: =IF($G191<>"",G191,"") -> 0 | K191: =IF($B191<>"",IF(I191,(INDEX(P$112:Q$115,MATCH(H191,P$112:P$115),2)/I191)*1000,0),"") ->  | L191: =IF(Q$112<>"",IF($B191<>"",K191-$J191,""),"") ->  | M191: =IF(B191<>"",RANK(L191,L$112:L$211),"") ->  | N191: =IF(B191<>"",'Classement Général'!BV90,"") ->  | O191: =IF(B191<>"",'Calculs (M1..M20)'!A93,"") ->  | AH191: =IF($G191<>"",AG191,"") -> 0
B192: =IF(B91<>"",B91,"") ->  | C192: =IF(C91<>"",C91,"") ->  | D192: =IF(D91<>"",D91,"") ->  | E192: =IF(E91<>"",E91,"") ->  | F192: 22 | G192: =G91 -> 0 | H192: =IF($G192<>"",G192,"") -> 0 | K192: =IF($B192<>"",IF(I192,(INDEX(P$112:Q$115,MATCH(H192,P$112:P$115),2)/I192)*1000,0),"") ->  | L192: =IF(Q$112<>"",IF($B192<>"",K192-$J192,""),"") ->  | M192: =IF(B192<>"",RANK(L192,L$112:L$211),"") ->  | N192: =IF(B192<>"",'Classement Général'!BV91,"") ->  | O192: =IF(B192<>"",'Calculs (M1..M20)'!A94,"") ->  | AH192: =IF($G192<>"",AG192,"") -> 0
B193: =IF(B92<>"",B92,"") ->  | C193: =IF(C92<>"",C92,"") ->  | D193: =IF(D92<>"",D92,"") ->  | E193: =IF(E92<>"",E92,"") ->  | F193: 22 | G193: =G92 -> 0 | H193: =IF($G193<>"",G193,"") -> 0 | K193: =IF($B193<>"",IF(I193,(INDEX(P$112:Q$115,MATCH(H193,P$112:P$115),2)/I193)*1000,0),"") ->  | L193: =IF(Q$112<>"",IF($B193<>"",K193-$J193,""),"") ->  | M193: =IF(B193<>"",RANK(L193,L$112:L$211),"") ->  | N193: =IF(B193<>"",'Classement Général'!BV92,"") ->  | O193: =IF(B193<>"",'Calculs (M1..M20)'!A95,"") ->  | AH193: =IF($G193<>"",AG193,"") -> 0
B194: =IF(B93<>"",B93,"") ->  | C194: =IF(C93<>"",C93,"") ->  | D194: =IF(D93<>"",D93,"") ->  | E194: =IF(E93<>"",E93,"") ->  | F194: 22 | G194: =G93 -> 0 | H194: =IF($G194<>"",G194,"") -> 0 | K194: =IF($B194<>"",IF(I194,(INDEX(P$112:Q$115,MATCH(H194,P$112:P$115),2)/I194)*1000,0),"") ->  | L194: =IF(Q$112<>"",IF($B194<>"",K194-$J194,""),"") ->  | M194: =IF(B194<>"",RANK(L194,L$112:L$211),"") ->  | N194: =IF(B194<>"",'Classement Général'!BV93,"") ->  | O194: =IF(B194<>"",'Calculs (M1..M20)'!A96,"") ->  | AH194: =IF($G194<>"",AG194,"") -> 0
B195: =IF(B94<>"",B94,"") ->  | C195: =IF(C94<>"",C94,"") ->  | D195: =IF(D94<>"",D94,"") ->  | E195: =IF(E94<>"",E94,"") ->  | F195: 22 | G195: =G94 -> 0 | H195: =IF($G195<>"",G195,"") -> 0 | K195: =IF($B195<>"",IF(I195,(INDEX(P$112:Q$115,MATCH(H195,P$112:P$115),2)/I195)*1000,0),"") ->  | L195: =IF(Q$112<>"",IF($B195<>"",K195-$J195,""),"") ->  | M195: =IF(B195<>"",RANK(L195,L$112:L$211),"") ->  | N195: =IF(B195<>"",'Classement Général'!BV94,"") ->  | O195: =IF(B195<>"",'Calculs (M1..M20)'!A97,"") ->  | AH195: =IF($G195<>"",AG195,"") -> 0
B196: =IF(B95<>"",B95,"") ->  | C196: =IF(C95<>"",C95,"") ->  | D196: =IF(D95<>"",D95,"") ->  | E196: =IF(E95<>"",E95,"") ->  | F196: 22 | G196: =G95 -> 0 | H196: =IF($G196<>"",G196,"") -> 0 | K196: =IF($B196<>"",IF(I196,(INDEX(P$112:Q$115,MATCH(H196,P$112:P$115),2)/I196)*1000,0),"") ->  | L196: =IF(Q$112<>"",IF($B196<>"",K196-$J196,""),"") ->  | M196: =IF(B196<>"",RANK(L196,L$112:L$211),"") ->  | N196: =IF(B196<>"",'Classement Général'!BV95,"") ->  | O196: =IF(B196<>"",'Calculs (M1..M20)'!A98,"") ->  | AH196: =IF($G196<>"",AG196,"") -> 0
B197: =IF(B96<>"",B96,"") ->  | C197: =IF(C96<>"",C96,"") ->  | D197: =IF(D96<>"",D96,"") ->  | E197: =IF(E96<>"",E96,"") ->  | F197: 22 | G197: =G96 -> 0 | H197: =IF($G197<>"",G197,"") -> 0 | K197: =IF($B197<>"",IF(I197,(INDEX(P$112:Q$115,MATCH(H197,P$112:P$115),2)/I197)*1000,0),"") ->  | L197: =IF(Q$112<>"",IF($B197<>"",K197-$J197,""),"") ->  | M197: =IF(B197<>"",RANK(L197,L$112:L$211),"") ->  | N197: =IF(B197<>"",'Classement Général'!BV96,"") ->  | O197: =IF(B197<>"",'Calculs (M1..M20)'!A99,"") ->  | AH197: =IF($G197<>"",AG197,"") -> 0
B198: =IF(B97<>"",B97,"") ->  | C198: =IF(C97<>"",C97,"") ->  | D198: =IF(D97<>"",D97,"") ->  | E198: =IF(E97<>"",E97,"") ->  | F198: 22 | G198: =G97 -> 0 | H198: =IF($G198<>"",G198,"") -> 0 | K198: =IF($B198<>"",IF(I198,(INDEX(P$112:Q$115,MATCH(H198,P$112:P$115),2)/I198)*1000,0),"") ->  | L198: =IF(Q$112<>"",IF($B198<>"",K198-$J198,""),"") ->  | M198: =IF(B198<>"",RANK(L198,L$112:L$211),"") ->  | N198: =IF(B198<>"",'Classement Général'!BV97,"") ->  | O198: =IF(B198<>"",'Calculs (M1..M20)'!A100,"") ->  | AH198: =IF($G198<>"",AG198,"") -> 0
B199: =IF(B98<>"",B98,"") ->  | C199: =IF(C98<>"",C98,"") ->  | D199: =IF(D98<>"",D98,"") ->  | E199: =IF(E98<>"",E98,"") ->  | F199: 22 | G199: =G98 -> 0 | H199: =IF($G199<>"",G199,"") -> 0 | K199: =IF($B199<>"",IF(I199,(INDEX(P$112:Q$115,MATCH(H199,P$112:P$115),2)/I199)*1000,0),"") ->  | L199: =IF(Q$112<>"",IF($B199<>"",K199-$J199,""),"") ->  | M199: =IF(B199<>"",RANK(L199,L$112:L$211),"") ->  | N199: =IF(B199<>"",'Classement Général'!BV98,"") ->  | O199: =IF(B199<>"",'Calculs (M1..M20)'!A101,"") ->  | AH199: =IF($G199<>"",AG199,"") -> 0
B200: =IF(B99<>"",B99,"") ->  | C200: =IF(C99<>"",C99,"") ->  | D200: =IF(D99<>"",D99,"") ->  | E200: =IF(E99<>"",E99,"") ->  | F200: 22 | G200: =G99 -> 0 | H200: =IF($G200<>"",G200,"") -> 0 | K200: =IF($B200<>"",IF(I200,(INDEX(P$112:Q$115,MATCH(H200,P$112:P$115),2)/I200)*1000,0),"") ->  | L200: =IF(Q$112<>"",IF($B200<>"",K200-$J200,""),"") ->  | M200: =IF(B200<>"",RANK(L200,L$112:L$211),"") ->  | N200: =IF(B200<>"",'Classement Général'!BV99,"") ->  | O200: =IF(B200<>"",'Calculs (M1..M20)'!A102,"") ->  | AH200: =IF($G200<>"",AG200,"") -> 0
... 1830 more rows

Sheet Classement Général
B1: F3F - Classement évolutif | W1: Classement trié par dossard >>>>>>>>
B2: CLUB : | C2: =Pilotes!C2 -> GAP
B3: LIEU : | C3: =Pilotes!C3 -> Col de la Croix Morand | AV3: Classement trié par dossard, pour copier/coller des classements intermédiaires
B4: DATE : | C4: =Pilotes!C4 -> 6, 7 et 8 mai 2017
B10: Général | C10: Points | D10: FAI / 1000 | E10: Pilote | F10: Dossard | G10: 1 | H10: 2 | I10: 3 | J10: 4 | K10: 5 | L10: 6 | M10: 7 | N10: 8 | O10: 9 | P10: 10 | Q10: 11 | R10: 12 | S10: 13 | T10: 14 | U10: 15 | V10: 16 | W10: 17 | X10: 18 | Y10: 19 | Z10: 20 | AA10: 21 | AB10: 22 | AC10: 23 | AD10: 24 | AE10: 25 | AF10: 26 | AG10: 27 | AH10: 28 | AI10: 29 | AJ10: 30 | AK10: 31 | AL10: 32 | AM10: 33 | AN10: 34 | AO10: 35 | AP10: 36 | AQ10: 37 | AR10: 38 | AS10: 39 | AT10: 40 | AV10: Général | AW10: Points | AX10: FAI / 1000 | AY10: Pilote | AZ10: Dossard | BA10: M1 | BB10: M2 | BC10: M3 | BD10: M4 | BE10: M5 | BF10: M6 | BG10: M7 | BH10: M8 | BI10: M9 | BJ10: M10 | BK10: M11 | BL10: M12 | BM10: M13 | BN10: M14 | BO10: M15 | BP10: M16 | BQ10: M17 | BR10: M18 | BS10: M19 | BT10: M20 | BU10: M21 | BV10: M22 | BW10: M23 | BX10: M24 | BY10: M25 | BZ10: M26 | CA10: M27 | CB10: M28 | CC10: M29 | CD10: M30 | CE10: M31 | CF10: M32 | CG10: M33 | CH10: M34 | CI10: M35 | CJ10: M36 | CK10: M37 | CL10: M38 | CM10: M39 | CN10: M40
B11: 1 | C11: =IF(ISNA(VLOOKUP(B11,ClassEvo,2,0)),"",VLOOKUP(B11,ClassEvo,2,0)) -> 5532.897781 | D11: =IF(ISNA(VLOOKUP($B11,ClassEvo,3,0)),"",VLOOKUP($B11,ClassEvo,3,0)) -> 1000 | E11: =IF(ISNA(VLOOKUP($B11,ClassEvo,4,0)),"",VLOOKUP($B11,ClassEvo,4,0)) -> Pierre RONDEL | F11: =IF(ISNA(VLOOKUP($B11,ClassEvo,5,0)),"",VLOOKUP($B11,ClassEvo,5,0)) -> 7 | G11: =IF(ISNA(VLOOKUP($B11,ClassEvo,5+G$10,0)),"",VLOOKUP($B11,ClassEvo,5+G$10,0)) -> 3 | H11: =IF(ISNA(VLOOKUP($B11,ClassEvo,5+H$10,0)),"",VLOOKUP($B11,ClassEvo,5+H$10,0)) -> 3 | I11: =IF(ISNA(VLOOKUP($B11,ClassEvo,5+I$10,0)),"",VLOOKUP($B11,ClassEvo,5+I$10,0)) -> 1 | J11: =IF(ISNA(VLOOKUP($B11,ClassEvo,5+J$10,0)),"",VLOOKUP($B11,ClassEvo,5+J$10,0)) -> 2 | K11: =IF(ISNA(VLOOKUP($B11,ClassEvo,5+K$10,0)),"",VLOOKUP($B11,ClassEvo,5+K$10,0)) -> 2 | L11: =IF(ISNA(VLOOKUP($B11,ClassEvo,5+L$10,0)),"",VLOOKUP($B11,ClassEvo,5+L$10,0)) -> 2 | M11: =IF(ISNA(VLOOKUP($B11,ClassEvo,5+M$10,0)),"",VLOOKUP($B11,ClassEvo,5+M$10,0)) -> 1 | N11: =IF(ISNA(VLOOKUP($B11,ClassEvo,5+N$10,0)),"",VLOOKUP($B11,ClassEvo,5+N$10,0)) ->  | O11: =IF(ISNA(VLOOKUP($B11,ClassEvo,5+O$10,0)),"",VLOOKUP($B11,ClassEvo,5+O$10,0)) ->  | P11: =IF(ISNA(VLOOKUP($B11,ClassEvo,5+P$10,0)),"",VLOOKUP($B11,ClassEvo,5+P$10,0)) ->  | Q11: =IF(ISNA(VLOOKUP($B11,ClassEvo,5+Q$10,0)),"",VLOOKUP($B11,ClassEvo,5+Q$10,0)) ->  | R11: =IF(ISNA(VLOOKUP($B11,ClassEvo,5+R$10,0)),"",VLOOKUP($B11,ClassEvo,5+R$10,0)) ->  | S11: =IF(ISNA(VLOOKUP($B11,ClassEvo,5+S$10,0)),"",VLOOKUP($B11,ClassEvo,5+S$10,0)) ->  | T11: =IF(ISNA(VLOOKUP($B11,ClassEvo,5+T$10,0)),"",VLOOKUP($B11,ClassEvo,5+T$10,0)) ->  | U11: =IF(ISNA(VLOOKUP($B11,ClassEvo,5+U$10,0)),"",VLOOKUP($B11,ClassEvo,5+U$10,0)) ->  | V11: =IF(ISNA(VLOOKUP($B11,ClassEvo,5+V$10,0)),"",VLOOKUP($B11,ClassEvo,5+V$10,0)) ->  | W11: =IF(ISNA(VLOOKUP($B11,ClassEvo,5+W$10,0)),"",VLOOKUP($B11,ClassEvo,5+W$10,0)) ->  | X11: =IF(ISNA(VLOOKUP($B11,ClassEvo,5+X$10,0)),"",VLOOKUP($B11,ClassEvo,5+X$10,0)) ->  | Y11: =IF(ISNA(VLOOKUP($B11,ClassEvo,5+Y$10,0)),"",VLOOKUP($B11,ClassEvo,5+Y$10,0)) ->  | Z11: =IF(ISNA(VLOOKUP($B11,ClassEvo,5+Z$10,0)),"",VLOOKUP($B11,ClassEvo,5+Z$10,0)) ->  | AA11: =IF(ISNA(VLOOKUP($B11,ClassEvo,5+AA$10,0)),"",VLOOKUP($B11,ClassEvo,5+AA$10,0)) ->  | AB11: =IF(ISNA(VLOOKUP($B11,ClassEvo,5+AB$10,0)),"",VLOOKUP($B11,ClassEvo,5+AB$10,0)) ->  | AC11: =IF(ISNA(VLOOKUP($B11,ClassEvo,5+AC$10,0)),"",VLOOKUP($B11,ClassEvo,5+AC$10,0)) ->  | AD11: =IF(ISNA(VLOOKUP($B11,ClassEvo,5+AD$10,0)),"",VLOOKUP($B11,ClassEvo,5+AD$10,0)) ->  | AE11: =IF(ISNA(VLOOKUP($B11,ClassEvo,5+AE$10,0)),"",VLOOKUP($B11,ClassEvo,5+AE$10,0)) ->  | AF11: =IF(ISNA(VLOOKUP($B11,ClassEvo,5+AF$10,0)),"",VLOOKUP($B11,ClassEvo,5+AF$10,0)) ->  | AG11: =IF(ISNA(VLOOKUP($B11,ClassEvo,5+AG$10,0)),"",VLOOKUP($B11,ClassEvo,5+AG$10,0)) ->  | AH11: =IF(ISNA(VLOOKUP($B11,ClassEvo,5+AH$10,0)),"",VLOOKUP($B11,ClassEvo,5+AH$10,0)) ->  | AI11: =IF(ISNA(VLOOKUP($B11,ClassEvo,5+AI$10,0)),"",VLOOKUP($B11,ClassEvo,5+AI$10,0)) ->  | AJ11: =IF(ISNA(VLOOKUP($B11,ClassEvo,5+AJ$10,0)),"",VLOOKUP($B11,ClassEvo,5+AJ$10,0)) ->  | AK11: =IF(ISNA(VLOOKUP($B11,ClassEvo,5+AK$10,0)),"",VLOOKUP($B11,ClassEvo,5+AK$10,0)) ->  | AL11: =IF(ISNA(VLOOKUP($B11,ClassEvo,5+AL$10,0)),"",VLOOKUP($B11,ClassEvo,5+AL$10,0)) ->  | AM11: =IF(ISNA(VLOOKUP($B11,ClassEvo,5+AM$10,0)),"",VLOOKUP($B11,ClassEvo,5+AM$10,0)) ->  | AN11: =IF(ISNA(VLOOKUP($B11,ClassEvo,5+AN$10,0)),"",VLOOKUP($B11,ClassEvo,5+AN$10,0)) ->  | AO11: =IF(ISNA(VLOOKUP($B11,ClassEvo,5+AO$10,0)),"",VLOOKUP($B11,ClassEvo,5+AO$10,0)) ->  | AP11: =IF(ISNA(VLOOKUP($B11,ClassEvo,5+AP$10,0)),"",VLOOKUP($B11,ClassEvo,5+AP$10,0)) ->  | AQ11: =IF(ISNA(VLOOKUP($B11,ClassEvo,5+AQ$10,0)),"",VLOOKUP($B11,ClassEvo,5+AQ$10,0)) ->  | AR11: =IF(ISNA(VLOOKUP($B11,ClassEvo,5+AR$10,0)),"",VLOOKUP($B11,ClassEvo,5+AR$10,0)) ->  | AS11: =IF(ISNA(VLOOKUP($B11,ClassEvo,5+AS$10,0)),"",VLOOKUP($B11,ClassEvo,5+AS$10,0)) ->  | AT11: =IF(ISNA(VLOOKUP($B11,ClassEvo,5+AT$10,0)),"",VLOOKUP($B11,ClassEvo,5+AT$10,0)) ->  | AV11: ='Calculs (M21..M40)'!A14 -> 22 | AW11: ='Calculs (M21..M40)'!G14 -> 4465.689564 | AX11: ='Calculs (M21..M40)'!H14 -> 807.1158625 | AY11: ='Calculs (M21..M40)'!I14 -> Sébastien CHABAUD | AZ11: ='Calculs (M21..M40)'!C14 -> 1 | BA11: ='Calculs (M1..M20)'!GM14 -> 21 | BB11: ='Calculs (M1..M20)'!GN14 -> 22 | BC11: ='Calculs (M1..M20)'!GO14 -> 22 | BD11: ='Calculs (M1..M20)'!GP14 -> 22 | BE11: ='Calculs (M1..M20)'!GQ14 -> 21 | BF11: ='Calculs (M1..M20)'!GR14 -> 22 | BG11: ='Calculs (M1..M20)'!GS14 -> 22 | BH11: ='Calculs (M1..M20)'!GT14 ->  | BI11: ='Calculs (M1..M20)'!GU14 ->  | BJ11: ='Calculs (M1..M20)'!GV14 ->  | BK11: ='Calculs (M1..M20)'!GW14 ->  | BL11: ='Calculs (M1..M20)'!GX14 ->  | BM11: ='Calculs (M1..M20)'!GY14 ->  | BN11: ='Calculs (M1..M20)'!GZ14 ->  | BO11: ='Calculs (M1..M20)'!HA14 ->  | BP11: ='Calculs (M1..M20)'!HB14 ->  | BQ11: ='Calculs (M1..M20)'!HC14 ->  | BR11: ='Calculs (M1..M20)'!HD14 ->  | BS11: ='Calculs (M1..M20)'!HE14 ->  | BT11: ='Calculs (M1..M20)'!HF14 ->  | BU11: ='Calculs (M21..M40)'!GM14 ->  | BV11: ='Calculs (M21..M40)'!GN14 ->  | BW11: ='Calculs (M21..M40)'!GO14 ->  | BX11: ='Calculs (M21..M40)'!GP14 ->  | BY11: ='Calculs (M21..M40)'!GQ14 ->  | BZ11: ='Calculs (M21..M40)'!GR14 ->  | CA11: ='Calculs (M21..M40)'!GS14 ->  | CB11: ='Calculs (M21..M40)'!GT14 ->  | CC11: ='Calculs (M21..M40)'!GU14 ->  | CD11: ='Calculs (M21..M40)'!GV14 ->  | CE11: ='Calculs (M21..M40)'!GW14 ->  | CF11: ='Calculs (M21..M40)'!GX14 ->  | CG11: ='Calculs (M21..M40)'!GY14 ->  | CH11: ='Calculs (M21..M40)'!GZ14 ->  | CI11: ='Calculs (M21..M40)'!HA14 ->  | CJ11: ='Calculs (M21..M40)'!HB14 ->  | CK11: ='Calculs (M21..M40)'!HC14 ->  | CL11: ='Calculs (M21..M40)'!HD14 ->  | CM11: ='Calculs (M21..M40)'!HE14 ->  | CN11: ='Calculs (M21..M40)'!HF14 -> 
B12: 2 | C12: =IF(ISNA(VLOOKUP(B12,ClassEvo,2,0)),"",VLOOKUP(B12,ClassEvo,2,0)) -> 5505.319043 | D12: =IF(ISNA(VLOOKUP($B12,ClassEvo,3,0)),"",VLOOKUP($B12,ClassEvo,3,0)) -> 995.0154985 | E12: =IF(ISNA(VLOOKUP($B12,ClassEvo,4,0)),"",VLOOKUP($B12,ClassEvo,4,0)) -> Matthieu MERVELET | F12: =IF(ISNA(VLOOKUP($B12,ClassEvo,5,0)),"",VLOOKUP($B12,ClassEvo,5,0)) -> 18 | G12: =IF(ISNA(VLOOKUP($B12,ClassEvo,5+G$10,0)),"",VLOOKUP($B12,ClassEvo,5+G$10,0)) -> 1 | H12: =IF(ISNA(VLOOKUP($B12,ClassEvo,5+H$10,0)),"",VLOOKUP($B12,ClassEvo,5+H$10,0)) -> 1 | I12: =IF(ISNA(VLOOKUP($B12,ClassEvo,5+I$10,0)),"",VLOOKUP($B12,ClassEvo,5+I$10,0)) -> 2 | J12: =IF(ISNA(VLOOKUP($B12,ClassEvo,5+J$10,0)),"",VLOOKUP($B12,ClassEvo,5+J$10,0)) -> 1 | K12: =IF(ISNA(VLOOKUP($B12,ClassEvo,5+K$10,0)),"",VLOOKUP($B12,ClassEvo,5+K$10,0)) -> 1 | L12: =IF(ISNA(VLOOKUP($B12,ClassEvo,5+L$10,0)),"",VLOOKUP($B12,ClassEvo,5+L$10,0)) -> 1 | M12: =IF(ISNA(VLOOKUP($B12,ClassEvo,5+M$10,0)),"",VLOOKUP($B12,ClassEvo,5+M$10,0)) -> 2 | N12: =IF(ISNA(VLOOKUP($B12,ClassEvo,5+N$10,0)),"",VLOOKUP($B12,ClassEvo,5+N$10,0)) ->  | O12: =IF(ISNA(VLOOKUP($B12,ClassEvo,5+O$10,0)),"",VLOOKUP($B12,ClassEvo,5+O$10,0)) ->  | P12: =IF(ISNA(VLOOKUP($B12,ClassEvo,5+P$10,0)),"",VLOOKUP($B12,ClassEvo,5+P$10,0)) ->  | Q12: =IF(ISNA(VLOOKUP($B12,ClassEvo,5+Q$10,0)),"",VLOOKUP($B12,ClassEvo,5+Q$10,0)) ->  | R12: =IF(ISNA(VLOOKUP($B12,ClassEvo,5+R$10,0)),"",VLOOKUP($B12,ClassEvo,5+R$10,0)) ->  | S12: =IF(ISNA(VLOOKUP($B12,ClassEvo,5+S$10,0)),"",VLOOKUP($B12,ClassEvo,5+S$10,0)) ->  | T12: =IF(ISNA(VLOOKUP($B12,ClassEvo,5+T$10,0)),"",VLOOKUP($B12,ClassEvo,5+T$10,0)) ->  | U12: =IF(ISNA(VLOOKUP($B12,ClassEvo,5+U$10,0)),"",VLOOKUP($B12,ClassEvo,5+U$10,0)) ->  | V12: =IF(ISNA(VLOOKUP($B12,ClassEvo,5+V$10,0)),"",VLOOKUP($B12,ClassEvo,5+V$10,0)) ->  | W12: =IF(ISNA(VLOOKUP($B12,ClassEvo,5+W$10,0)),"",VLOOKUP($B12,ClassEvo,5+W$10,0)) ->  | X12: =IF(ISNA(VLOOKUP($B12,ClassEvo,5+X$10,0)),"",VLOOKUP($B12,ClassEvo,5+X$10,0)) ->  | Y12: =IF(ISNA(VLOOKUP($B12,ClassEvo,5+Y$10,0)),"",VLOOKUP($B12,ClassEvo,5+Y$10,0)) ->  | Z12: =IF(ISNA(VLOOKUP($B12,ClassEvo,5+Z$10,0)),"",VLOOKUP($B12,ClassEvo,5+Z$10,0)) ->  | AA12: =IF(ISNA(VLOOKUP($B12,ClassEvo,5+AA$10,0)),"",VLOOKUP($B12,ClassEvo,5+AA$10,0)) ->  | AB12: =IF(ISNA(VLOOKUP($B12,ClassEvo,5+AB$10,0)),"",VLOOKUP($B12,ClassEvo,5+AB$10,0)) ->  | AC12: =IF(ISNA(VLOOKUP($B12,ClassEvo,5+AC$10,0)),"",VLOOKUP($B12,ClassEvo,5+AC$10,0)) ->  | AD12: =IF(ISNA(VLOOKUP($B12,ClassEvo,5+AD$10,0)),"",VLOOKUP($B12,ClassEvo,5+AD$10,0)) ->  | AE12: =IF(ISNA(VLOOKUP($B12,ClassEvo,5+AE$10,0)),"",VLOOKUP($B12,ClassEvo,5+AE$10,0)) ->  | AF12: =IF(ISNA(VLOOKUP($B12,ClassEvo,5+AF$10,0)),"",VLOOKUP($B12,ClassEvo,5+AF$10,0)) ->  | AG12: =IF(ISNA(VLOOKUP($B12,ClassEvo,5+AG$10,0)),"",VLOOKUP($B12,ClassEvo,5+AG$10,0)) ->  | AH12: =IF(ISNA(VLOOKUP($B12,ClassEvo,5+AH$10,0)),"",VLOOKUP($B12,ClassEvo,5+AH$10,0)) ->  | AI12: =IF(ISNA(VLOOKUP($B12,ClassEvo,5+AI$10,0)),"",VLOOKUP($B12,ClassEvo,5+AI$10,0)) ->  | AJ12: =IF(ISNA(VLOOKUP($B12,ClassEvo,5+AJ$10,0)),"",VLOOKUP($B12,ClassEvo,5+AJ$10,0)) ->  | AK12: =IF(ISNA(VLOOKUP($B12,ClassEvo,5+AK$10,0)),"",VLOOKUP($B12,ClassEvo,5+AK$10,0)) ->  | AL12: =IF(ISNA(VLOOKUP($B12,ClassEvo,5+AL$10,0)),"",VLOOKUP($B12,ClassEvo,5+AL$10,0)) ->  | AM12: =IF(ISNA(VLOOKUP($B12,ClassEvo,5+AM$10,0)),"",VLOOKUP($B12,ClassEvo,5+AM$10,0)) ->  | AN12: =IF(ISNA(VLOOKUP($B12,ClassEvo,5+AN$10,0)),"",VLOOKUP($B12,ClassEvo,5+AN$10,0)) ->  | AO12: =IF(ISNA(VLOOKUP($B12,ClassEvo,5+AO$10,0)),"",VLOOKUP($B12,ClassEvo,5+AO$10,0)) ->  | AP12: =IF(ISNA(VLOOKUP($B12,ClassEvo,5+AP$10,0)),"",VLOOKUP($B12,ClassEvo,5+AP$10,0)) ->  | AQ12: =IF(ISNA(VLOOKUP($B12,ClassEvo,5+AQ$10,0)),"",VLOOKUP($B12,ClassEvo,5+AQ$10,0)) ->  | AR12: =IF(ISNA(VLOOKUP($B12,ClassEvo,5+AR$10,0)),"",VLOOKUP($B12,ClassEvo,5+AR$10,0)) ->  | AS12: =IF(ISNA(VLOOKUP($B12,ClassEvo,5+AS$10,0)),"",VLOOKUP($B12,ClassEvo,5+AS$10,0)) ->  | AT12: =IF(ISNA(VLOOKUP($B12,ClassEvo,5+AT$10,0)),"",VLOOKUP($B12,ClassEvo,5+AT$10,0)) ->  | AV12: ='Calculs (M21..M40)'!A15 -> 8 | AW12: ='Calculs (M21..M40)'!G15 -> 5050.480798 | AX12: ='Calculs (M21..M40)'!H15 -> 912.8093449 | AY12: ='Calculs (M21..M40)'!I15 -> Herve DALL AVA | AZ12: ='Calculs (M21..M40)'!C15 -> 2 | BA12: ='Calculs (M1..M20)'!GM15 -> 9 | BB12: ='Calculs (M1..M20)'!GN15 -> 7 | BC12: ='Calculs (M1..M20)'!GO15 -> 12 | BD12: ='Calculs (M1..M20)'!GP15 -> 13 | BE12: ='Calculs (M1..M20)'!GQ15 -> 3 | BF12: ='Calculs (M1..M20)'!GR15 -> 10 | BG12: ='Calculs (M1..M20)'!GS15 -> 8 | BH12: ='Calculs (M1..M20)'!GT15 ->  | BI12: ='Calculs (M1..M20)'!GU15 ->  | BJ12: ='Calculs (M1..M20)'!GV15 ->  | BK12: ='Calculs (M1..M20)'!GW15 ->  | BL12: ='Calculs (M1..M20)'!GX15 ->  | BM12: ='Calculs (M1..M20)'!GY15 ->  | BN12: ='Calculs (M1..M20)'!GZ15 ->  | BO12: ='Calculs (M1..M20)'!HA15 ->  | BP12: ='Calculs (M1..M20)'!HB15 ->  | BQ12: ='Calculs (M1..M20)'!HC15 ->  | BR12: ='Calculs (M1..M20)'!HD15 ->  | BS12: ='Calculs (M1..M20)'!HE15 ->  | BT12: ='Calculs (M1..M20)'!HF15 ->  | BU12: ='Calculs (M21..M40)'!GM15 ->  | BV12: ='Calculs (M21..M40)'!GN15 ->  | BW12: ='Calculs (M21..M40)'!GO15 ->  | BX12: ='Calculs (M21..M40)'!GP15 ->  | BY12: ='Calculs (M21..M40)'!GQ15 ->  | BZ12: ='Calculs (M21..M40)'!GR15 ->  | CA12: ='Calculs (M21..M40)'!GS15 ->  | CB12: ='Calculs (M21..M40)'!GT15 ->  | CC12: ='Calculs (M21..M40)'!GU15 ->  | CD12: ='Calculs (M21..M40)'!GV15 ->  | CE12: ='Calculs (M21..M40)'!GW15 ->  | CF12: ='Calculs (M21..M40)'!GX15 ->  | CG12: ='Calculs (M21..M40)'!GY15 ->  | CH12: ='Calculs (M21..M40)'!GZ15 ->  | CI12: ='Calculs (M21..M40)'!HA15 ->  | CJ12: ='Calculs (M21..M40)'!HB15 ->  | CK12: ='Calculs (M21..M40)'!HC15 ->  | CL12: ='Calculs (M21..M40)'!HD15 ->  | CM12: ='Calculs (M21..M40)'!HE15 ->  | CN12: ='Calculs (M21..M40)'!HF15 -> 
B13: 3 | C13: =IF(ISNA(VLOOKUP(B13,ClassEvo,2,0)),"",VLOOKUP(B13,ClassEvo,2,0)) -> 5232.126067 | D13: =IF(ISNA(VLOOKUP($B13,ClassEvo,3,0)),"",VLOOKUP($B13,ClassEvo,3,0)) -> 945.6393873 | E13: =IF(ISNA(VLOOKUP($B13,ClassEvo,4,0)),"",VLOOKUP($B13,ClassEvo,4,0)) -> Julien HONOR | F13: =IF(ISNA(VLOOKUP($B13,ClassEvo,5,0)),"",VLOOKUP($B13,ClassEvo,5,0)) -> 11 | G13: =IF(ISNA(VLOOKUP($B13,ClassEvo,5+G$10,0)),"",VLOOKUP($B13,ClassEvo,5+G$10,0)) -> 15 | H13: =IF(ISNA(VLOOKUP($B13,ClassEvo,5+H$10,0)),"",VLOOKUP($B13,ClassEvo,5+H$10,0)) -> 13 | I13: =IF(ISNA(VLOOKUP($B13,ClassEvo,5+I$10,0)),"",VLOOKUP($B13,ClassEvo,5+I$10,0)) -> 11 | J13: =IF(ISNA(VLOOKUP($B13,ClassEvo,5+J$10,0)),"",VLOOKUP($B13,ClassEvo,5+J$10,0)) -> 9 | K13: =IF(ISNA(VLOOKUP($B13,ClassEvo,5+K$10,0)),"",VLOOKUP($B13,ClassEvo,5+K$10,0)) -> 4 | L13: =IF(ISNA(VLOOKUP($B13,ClassEvo,5+L$10,0)),"",VLOOKUP($B13,ClassEvo,5+L$10,0)) -> 4 | M13: =IF(ISNA(VLOOKUP($B13,ClassEvo,5+M$10,0)),"",VLOOKUP($B13,ClassEvo,5+M$10,0)) -> 3 | N13: =IF(ISNA(VLOOKUP($B13,ClassEvo,5+N$10,0)),"",VLOOKUP($B13,ClassEvo,5+N$10,0)) ->  | O13: =IF(ISNA(VLOOKUP($B13,ClassEvo,5+O$10,0)),"",VLOOKUP($B13,ClassEvo,5+O$10,0)) ->  | P13: =IF(ISNA(VLOOKUP($B13,ClassEvo,5+P$10,0)),"",VLOOKUP($B13,ClassEvo,5+P$10,0)) ->  | Q13: =IF(ISNA(VLOOKUP($B13,ClassEvo,5+Q$10,0)),"",VLOOKUP($B13,ClassEvo,5+Q$10,0)) ->  | R13: =IF(ISNA(VLOOKUP($B13,ClassEvo,5+R$10,0)),"",VLOOKUP($B13,ClassEvo,5+R$10,0)) ->  | S13: =IF(ISNA(VLOOKUP($B13,ClassEvo,5+S$10,0)),"",VLOOKUP($B13,ClassEvo,5+S$10,0)) ->  | T13: =IF(ISNA(VLOOKUP($B13,ClassEvo,5+T$10,0)),"",VLOOKUP($B13,ClassEvo,5+T$10,0)) ->  | U13: =IF(ISNA(VLOOKUP($B13,ClassEvo,5+U$10,0)),"",VLOOKUP($B13,ClassEvo,5+U$10,0)) ->  | V13: =IF(ISNA(VLOOKUP($B13,ClassEvo,5+V$10,0)),"",VLOOKUP($B13,ClassEvo,5+V$10,0)) ->  | W13: =IF(ISNA(VLOOKUP($B13,ClassEvo,5+W$10,0)),"",VLOOKUP($B13,ClassEvo,5+W$10,0)) ->  | X13: =IF(ISNA(VLOOKUP($B13,ClassEvo,5+X$10,0)),"",VLOOKUP($B13,ClassEvo,5+X$10,0)) ->  | Y13: =IF(ISNA(VLOOKUP($B13,ClassEvo,5+Y$10,0)),"",VLOOKUP($B13,ClassEvo,5+Y$10,0)) ->  | Z13: =IF(ISNA(VLOOKUP($B13,ClassEvo,5+Z$10,0)),"",VLOOKUP($B13,ClassEvo,5+Z$10,0)) ->  | AA13: =IF(ISNA(VLOOKUP($B13,ClassEvo,5+AA$10,0)),"",VLOOKUP($B13,ClassEvo,5+AA$10,0)) ->  | AB13: =IF(ISNA(VLOOKUP($B13,ClassEvo,5+AB$10,0)),"",VLOOKUP($B13,ClassEvo,5+AB$10,0)) ->  | AC13: =IF(ISNA(VLOOKUP($B13,ClassEvo,5+AC$10,0)),"",VLOOKUP($B13,ClassEvo,5+AC$10,0)) ->  | AD13: =IF(ISNA(VLOOKUP($B13,ClassEvo,5+AD$10,0)),"",VLOOKUP($B13,ClassEvo,5+AD$10,0)) ->  | AE13: =IF(ISNA(VLOOKUP($B13,ClassEvo,5+AE$10,0)),"",VLOOKUP($B13,ClassEvo,5+AE$10,0)) ->  | AF13: =IF(ISNA(VLOOKUP($B13,ClassEvo,5+AF$10,0)),"",VLOOKUP($B13,ClassEvo,5+AF$10,0)) ->  | AG13: =IF(ISNA(VLOOKUP($B13,ClassEvo,5+AG$10,0)),"",VLOOKUP($B13,ClassEvo,5+AG$10,0)) ->  | AH13: =IF(ISNA(VLOOKUP($B13,ClassEvo,5+AH$10,0)),"",VLOOKUP($B13,ClassEvo,5+AH$10,0)) ->  | AI13: =IF(ISNA(VLOOKUP($B13,ClassEvo,5+AI$10,0)),"",VLOOKUP($B13,ClassEvo,5+AI$10,0)) ->  | AJ13: =IF(ISNA(VLOOKUP($B13,ClassEvo,5+AJ$10,0)),"",VLOOKUP($B13,ClassEvo,5+AJ$10,0)) ->  | AK13: =IF(ISNA(VLOOKUP($B13,ClassEvo,5+AK$10,0)),"",VLOOKUP($B13,ClassEvo,5+AK$10,0)) ->  | AL13: =IF(ISNA(VLOOKUP($B13,ClassEvo,5+AL$10,0)),"",VLOOKUP($B13,ClassEvo,5+AL$10,0)) ->  | AM13: =IF(ISNA(VLOOKUP($B13,ClassEvo,5+AM$10,0)),"",VLOOKUP($B13,ClassEvo,5+AM$10,0)) ->  | AN13: =IF(ISNA(VLOOKUP($B13,ClassEvo,5+AN$10,0)),"",VLOOKUP($B13,ClassEvo,5+AN$10,0)) ->  | AO13: =IF(ISNA(VLOOKUP($B13,ClassEvo,5+AO$10,0)),"",VLOOKUP($B13,ClassEvo,5+AO$10,0)) ->  | AP13: =IF(ISNA(VLOOKUP($B13,ClassEvo,5+AP$10,0)),"",VLOOKUP($B13,ClassEvo,5+AP$10,0)) ->  | AQ13: =IF(ISNA(VLOOKUP($B13,ClassEvo,5+AQ$10,0)),"",VLOOKUP($B13,ClassEvo,5+AQ$10,0)) ->  | AR13: =IF(ISNA(VLOOKUP($B13,ClassEvo,5+AR$10,0)),"",VLOOKUP($B13,ClassEvo,5+AR$10,0)) ->  | AS13: =IF(ISNA(VLOOKUP($B13,ClassEvo,5+AS$10,0)),"",VLOOKUP($B13,ClassEvo,5+AS$10,0)) ->  | AT13: =IF(ISNA(VLOOKUP($B13,ClassEvo,5+AT$10,0)),"",VLOOKUP($B13,ClassEvo,5+AT$10,0)) ->  | AV13: ='Calculs (M21..M40)'!A16 -> 15 | AW13: ='Calculs (M21..M40)'!G16 -> 4917.592697 | AX13: ='Calculs (M21..M40)'!H16 -> 888.7915324 | AY13: ='Calculs (M21..M40)'!I16 -> Jean Luc FOUCHER | AZ13: ='Calculs (M21..M40)'!C16 -> 3 | BA13: ='Calculs (M1..M20)'!GM16 -> 13 | BB13: ='Calculs (M1..M20)'!GN16 -> 14 | BC13: ='Calculs (M1..M20)'!GO16 -> 15 | BD13: ='Calculs (M1..M20)'!GP16 -> 15 | BE13: ='Calculs (M1..M20)'!GQ16 -> 14 | BF13: ='Calculs (M1..M20)'!GR16 -> 13 | BG13: ='Calculs (M1..M20)'!GS16 -> 15 | BH13: ='Calculs (M1..M20)'!GT16 ->  | BI13: ='Calculs (M1..M20)'!GU16 ->  | BJ13: ='Calculs (M1..M20)'!GV16 ->  | BK13: ='Calculs (M1..M20)'!GW16 ->  | BL13: ='Calculs (M1..M20)'!GX16 ->  | BM13: ='Calculs (M1..M20)'!GY16 ->  | BN13: ='Calculs (M1..M20)'!GZ16 ->  | BO13: ='Calculs (M1..M20)'!HA16 ->  | BP13: ='Calculs (M1..M20)'!HB16 ->  | BQ13: ='Calculs (M1..M20)'!HC16 ->  | BR13: ='Calculs (M1..M20)'!HD16 ->  | BS13: ='Calculs (M1..M20)'!HE16 ->  | BT13: ='Calculs (M1..M20)'!HF16 ->  | BU13: ='Calculs (M21..M40)'!GM16 ->  | BV13: ='Calculs (M21..M40)'!GN16 ->  | BW13: ='Calculs (M21..M40)'!GO16 ->  | BX13: ='Calculs (M21..M40)'!GP16 ->  | BY13: ='Calculs (M21..M40)'!GQ16 ->  | BZ13: ='Calculs (M21..M40)'!GR16 ->  | CA13: ='Calculs (M21..M40)'!GS16 ->  | CB13: ='Calculs (M21..M40)'!GT16 ->  | CC13: ='Calculs (M21..M40)'!GU16 ->  | CD13: ='Calculs (M21..M40)'!GV16 ->  | CE13: ='Calculs (M21..M40)'!GW16 ->  | CF13: ='Calculs (M21..M40)'!GX16 ->  | CG13: ='Calculs (M21..M40)'!GY16 ->  | CH13: ='Calculs (M21..M40)'!GZ16 ->  | CI13: ='Calculs (M21..M40)'!HA16 ->  | CJ13: ='Calculs (M21..M40)'!HB16 ->  | CK13: ='Calculs (M21..M40)'!HC16 ->  | CL13: ='Calculs (M21..M40)'!HD16 ->  | CM13: ='Calculs (M21..M40)'!HE16 ->  | CN13: ='Calculs (M21..M40)'!HF16 -> 
B14: 4 | C14: =IF(ISNA(VLOOKUP(B14,ClassEvo,2,0)),"",VLOOKUP(B14,ClassEvo,2,0)) -> 5196.39364 | D14: =IF(ISNA(VLOOKUP($B14,ClassEvo,3,0)),"",VLOOKUP($B14,ClassEvo,3,0)) -> 939.1812114 | E14: =IF(ISNA(VLOOKUP($B14,ClassEvo,4,0)),"",VLOOKUP($B14,ClassEvo,4,0)) -> Sébastien LANES | F14: =IF(ISNA(VLOOKUP($B14,ClassEvo,5,0)),"",VLOOKUP($B14,ClassEvo,5,0)) -> 22 | G14: =IF(ISNA(VLOOKUP($B14,ClassEvo,5+G$10,0)),"",VLOOKUP($B14,ClassEvo,5+G$10,0)) -> 6 | H14: =IF(ISNA(VLOOKUP($B14,ClassEvo,5+H$10,0)),"",VLOOKUP($B14,ClassEvo,5+H$10,0)) -> 6 | I14: =IF(ISNA(VLOOKUP($B14,ClassEvo,5+I$10,0)),"",VLOOKUP($B14,ClassEvo,5+I$10,0)) -> 10 | J14: =IF(ISNA(VLOOKUP($B14,ClassEvo,5+J$10,0)),"",VLOOKUP($B14,ClassEvo,5+J$10,0)) -> 8 | K14: =IF(ISNA(VLOOKUP($B14,ClassEvo,5+K$10,0)),"",VLOOKUP($B14,ClassEvo,5+K$10,0)) -> 6 | L14: =IF(ISNA(VLOOKUP($B14,ClassEvo,5+L$10,0)),"",VLOOKUP($B14,ClassEvo,5+L$10,0)) -> 6 | M14: =IF(ISNA(VLOOKUP($B14,ClassEvo,5+M$10,0)),"",VLOOKUP($B14,ClassEvo,5+M$10,0)) -> 4 | N14: =IF(ISNA(VLOOKUP($B14,ClassEvo,5+N$10,0)),"",VLOOKUP($B14,ClassEvo,5+N$10,0)) ->  | O14: =IF(ISNA(VLOOKUP($B14,ClassEvo,5+O$10,0)),"",VLOOKUP($B14,ClassEvo,5+O$10,0)) ->  | P14: =IF(ISNA(VLOOKUP($B14,ClassEvo,5+P$10,0)),"",VLOOKUP($B14,ClassEvo,5+P$10,0)) ->  | Q14: =IF(ISNA(VLOOKUP($B14,ClassEvo,5+Q$10,0)),"",VLOOKUP($B14,ClassEvo,5+Q$10,0)) ->  | R14: =IF(ISNA(VLOOKUP($B14,ClassEvo,5+R$10,0)),"",VLOOKUP($B14,ClassEvo,5+R$10,0)) ->  | S14: =IF(ISNA(VLOOKUP($B14,ClassEvo,5+S$10,0)),"",VLOOKUP($B14,ClassEvo,5+S$10,0)) ->  | T14: =IF(ISNA(VLOOKUP($B14,ClassEvo,5+T$10,0)),"",VLOOKUP($B14,ClassEvo,5+T$10,0)) ->  | U14: =IF(ISNA(VLOOKUP($B14,ClassEvo,5+U$10,0)),"",VLOOKUP($B14,ClassEvo,5+U$10,0)) ->  | V14: =IF(ISNA(VLOOKUP($B14,ClassEvo,5+V$10,0)),"",VLOOKUP($B14,ClassEvo,5+V$10,0)) ->  | W14: =IF(ISNA(VLOOKUP($B14,ClassEvo,5+W$10,0)),"",VLOOKUP($B14,ClassEvo,5+W$10,0)) ->  | X14: =IF(ISNA(VLOOKUP($B14,ClassEvo,5+X$10,0)),"",VLOOKUP($B14,ClassEvo,5+X$10,0)) ->  | Y14: =IF(ISNA(VLOOKUP($B14,ClassEvo,5+Y$10,0)),"",VLOOKUP($B14,ClassEvo,5+Y$10,0)) ->  | Z14: =IF(ISNA(VLOOKUP($B14,ClassEvo,5+Z$10,0)),"",VLOOKUP($B14,ClassEvo,5+Z$10,0)) ->  | AA14: =IF(ISNA(VLOOKUP($B14,ClassEvo,5+AA$10,0)),"",VLOOKUP($B14,ClassEvo,5+AA$10,0)) ->  | AB14: =IF(ISNA(VLOOKUP($B14,ClassEvo,5+AB$10,0)),"",VLOOKUP($B14,ClassEvo,5+AB$10,0)) ->  | AC14: =IF(ISNA(VLOOKUP($B14,ClassEvo,5+AC$10,0)),"",VLOOKUP($B14,ClassEvo,5+AC$10,0)) ->  | AD14: =IF(ISNA(VLOOKUP($B14,ClassEvo,5+AD$10,0)),"",VLOOKUP($B14,ClassEvo,5+AD$10,0)) ->  | AE14: =IF(ISNA(VLOOKUP($B14,ClassEvo,5+AE$10,0)),"",VLOOKUP($B14,ClassEvo,5+AE$10,0)) ->  | AF14: =IF(ISNA(VLOOKUP($B14,ClassEvo,5+AF$10,0)),"",VLOOKUP($B14,ClassEvo,5+AF$10,0)) ->  | AG14: =IF(ISNA(VLOOKUP($B14,ClassEvo,5+AG$10,0)),"",VLOOKUP($B14,ClassEvo,5+AG$10,0)) ->  | AH14: =IF(ISNA(VLOOKUP($B14,ClassEvo,5+AH$10,0)),"",VLOOKUP($B14,ClassEvo,5+AH$10,0)) ->  | AI14: =IF(ISNA(VLOOKUP($B14,ClassEvo,5+AI$10,0)),"",VLOOKUP($B14,ClassEvo,5+AI$10,0)) ->  | AJ14: =IF(ISNA(VLOOKUP($B14,ClassEvo,5+AJ$10,0)),"",VLOOKUP($B14,ClassEvo,5+AJ$10,0)) ->  | AK14: =IF(ISNA(VLOOKUP($B14,ClassEvo,5+AK$10,0)),"",VLOOKUP($B14,ClassEvo,5+AK$10,0)) ->  | AL14: =IF(ISNA(VLOOKUP($B14,ClassEvo,5+AL$10,0)),"",VLOOKUP($B14,ClassEvo,5+AL$10,0)) ->  | AM14: =IF(ISNA(VLOOKUP($B14,ClassEvo,5+AM$10,0)),"",VLOOKUP($B14,ClassEvo,5+AM$10,0)) ->  | AN14: =IF(ISNA(VLOOKUP($B14,ClassEvo,5+AN$10,0)),"",VLOOKUP($B14,ClassEvo,5+AN$10,0)) ->  | AO14: =IF(ISNA(VLOOKUP($B14,ClassEvo,5+AO$10,0)),"",VLOOKUP($B14,ClassEvo,5+AO$10,0)) ->  | AP14: =IF(ISNA(VLOOKUP($B14,ClassEvo,5+AP$10,0)),"",VLOOKUP($B14,ClassEvo,5+AP$10,0)) ->  | AQ14: =IF(ISNA(VLOOKUP($B14,ClassEvo,5+AQ$10,0)),"",VLOOKUP($B14,ClassEvo,5+AQ$10,0)) ->  | AR14: =IF(ISNA(VLOOKUP($B14,ClassEvo,5+AR$10,0)),"",VLOOKUP($B14,ClassEvo,5+AR$10,0)) ->  | AS14: =IF(ISNA(VLOOKUP($B14,ClassEvo,5+AS$10,0)),"",VLOOKUP($B14,ClassEvo,5+AS$10,0)) ->  | AT14: =IF(ISNA(VLOOKUP($B14,ClassEvo,5+AT$10,0)),"",VLOOKUP($B14,ClassEvo,5+AT$10,0)) ->  | AV14: ='Calculs (M21..M40)'!A17 -> 10 | AW14: ='Calculs (M21..M40)'!G17 -> 5045.878852 | AX14: ='Calculs (M21..M40)'!H17 -> 911.9776024 | AY14: ='Calculs (M21..M40)'!I17 -> Thomas DELARBRE | AZ14: ='Calculs (M21..M40)'!C17 -> 4 | BA14: ='Calculs (M1..M20)'!GM17 -> 12 | BB14: ='Calculs (M1..M20)'!GN17 -> 10 | BC14: ='Calculs (M1..M20)'!GO17 -> 4 | BD14: ='Calculs (M1..M20)'!GP17 -> 5 | BE14: ='Calculs (M1..M20)'!GQ17 -> 10 | BF14: ='Calculs (M1..M20)'!GR17 -> 12 | BG14: ='Calculs (M1..M20)'!GS17 -> 10 | BH14: ='Calculs (M1..M20)'!GT17 ->  | BI14: ='Calculs (M1..M20)'!GU17 ->  | BJ14: ='Calculs (M1..M20)'!GV17 ->  | BK14: ='Calculs (M1..M20)'!GW17 ->  | BL14: ='Calculs (M1..M20)'!GX17 ->  | BM14: ='Calculs (M1..M20)'!GY17 ->  | BN14: ='Calculs (M1..M20)'!GZ17 ->  | BO14: ='Calculs (M1..M20)'!HA17 ->  | BP14: ='Calculs (M1..M20)'!HB17 ->  | BQ14: ='Calculs (M1..M20)'!HC17 ->  | BR14: ='Calculs (M1..M20)'!HD17 ->  | BS14: ='Calculs (M1..M20)'!HE17 ->  | BT14: ='Calculs (M1..M20)'!HF17 ->  | BU14: ='Calculs (M21..M40)'!GM17 ->  | BV14: ='Calculs (M21..M40)'!GN17 ->  | BW14: ='Calculs (M21..M40)'!GO17 ->  | BX14: ='Calculs (M21..M40)'!GP17 ->  | BY14: ='Calculs (M21..M40)'!GQ17 ->  | BZ14: ='Calculs (M21..M40)'!GR17 ->  | CA14: ='Calculs (M21..M40)'!GS17 ->  | CB14: ='Calculs (M21..M40)'!GT17 ->  | CC14: ='Calculs (M21..M40)'!GU17 ->  | CD14: ='Calculs (M21..M40)'!GV17 ->  | CE14: ='Calculs (M21..M40)'!GW17 ->  | CF14: ='Calculs (M21..M40)'!GX17 ->  | CG14: ='Calculs (M21..M40)'!GY17 ->  | CH14: ='Calculs (M21..M40)'!GZ17 ->  | CI14: ='Calculs (M21..M40)'!HA17 ->  | CJ14: ='Calculs (M21..M40)'!HB17 ->  | CK14: ='Calculs (M21..M40)'!HC17 ->  | CL14: ='Calculs (M21..M40)'!HD17 ->  | CM14: ='Calculs (M21..M40)'!HE17 ->  | CN14: ='Calculs (M21..M40)'!HF17 -> 
B15: 5 | C15: =IF(ISNA(VLOOKUP(B15,ClassEvo,2,0)),"",VLOOKUP(B15,ClassEvo,2,0)) -> 5153.113251 | D15: =IF(ISNA(VLOOKUP($B15,ClassEvo,3,0)),"",VLOOKUP($B15,ClassEvo,3,0)) -> 931.3588387 | E15: =IF(ISNA(VLOOKUP($B15,ClassEvo,4,0)),"",VLOOKUP($B15,ClassEvo,4,0)) -> Aubry GABANON | F15: =IF(ISNA(VLOOKUP($B15,ClassEvo,5,0)),"",VLOOKUP($B15,ClassEvo,5,0)) -> 13 | G15: =IF(ISNA(VLOOKUP($B15,ClassEvo,5+G$10,0)),"",VLOOKUP($B15,ClassEvo,5+G$10,0)) -> 5 | H15: =IF(ISNA(VLOOKUP($B15,ClassEvo,5+H$10,0)),"",VLOOKUP($B15,ClassEvo,5+H$10,0)) -> 4 | I15: =IF(ISNA(VLOOKUP($B15,ClassEvo,5+I$10,0)),"",VLOOKUP($B15,ClassEvo,5+I$10,0)) -> 5 | J15: =IF(ISNA(VLOOKUP($B15,ClassEvo,5+J$10,0)),"",VLOOKUP($B15,ClassEvo,5+J$10,0)) -> 6 | K15: =IF(ISNA(VLOOKUP($B15,ClassEvo,5+K$10,0)),"",VLOOKUP($B15,ClassEvo,5+K$10,0)) -> 8 | L15: =IF(ISNA(VLOOKUP($B15,ClassEvo,5+L$10,0)),"",VLOOKUP($B15,ClassEvo,5+L$10,0)) -> 3 | M15: =IF(ISNA(VLOOKUP($B15,ClassEvo,5+M$10,0)),"",VLOOKUP($B15,ClassEvo,5+M$10,0)) -> 5 | N15: =IF(ISNA(VLOOKUP($B15,ClassEvo,5+N$10,0)),"",VLOOKUP($B15,ClassEvo,5+N$10,0)) ->  | O15: =IF(ISNA(VLOOKUP($B15,ClassEvo,5+O$10,0)),"",VLOOKUP($B15,ClassEvo,5+O$10,0)) ->  | P15: =IF(ISNA(VLOOKUP($B15,ClassEvo,5+P$10,0)),"",VLOOKUP($B15,ClassEvo,5+P$10,0)) ->  | Q15: =IF(ISNA(VLOOKUP($B15,ClassEvo,5+Q$10,0)),"",VLOOKUP($B15,ClassEvo,5+Q$10,0)) ->  | R15: =IF(ISNA(VLOOKUP($B15,ClassEvo,5+R$10,0)),"",VLOOKUP($B15,ClassEvo,5+R$10,0)) ->  | S15: =IF(ISNA(VLOOKUP($B15,ClassEvo,5+S$10,0)),"",VLOOKUP($B15,ClassEvo,5+S$10,0)) ->  | T15: =IF(ISNA(VLOOKUP($B15,ClassEvo,5+T$10,0)),"",VLOOKUP($B15,ClassEvo,5+T$10,0)) ->  | U15: =IF(ISNA(VLOOKUP($B15,ClassEvo,5+U$10,0)),"",VLOOKUP($B15,ClassEvo,5+U$10,0)) ->  | V15: =IF(ISNA(VLOOKUP($B15,ClassEvo,5+V$10,0)),"",VLOOKUP($B15,ClassEvo,5+V$10,0)) ->  | W15: =IF(ISNA(VLOOKUP($B15,ClassEvo,5+W$10,0)),"",VLOOKUP($B15,ClassEvo,5+W$10,0)) ->  | X15: =IF(ISNA(VLOOKUP($B15,ClassEvo,5+X$10,0)),"",VLOOKUP($B15,ClassEvo,5+X$10,0)) ->  | Y15: =IF(ISNA(VLOOKUP($B15,ClassEvo,5+Y$10,0)),"",VLOOKUP($B15,ClassEvo,5+Y$10,0)) ->  | Z15: =IF(ISNA(VLOOKUP($B15,ClassEvo,5+Z$10,0)),"",VLOOKUP($B15,ClassEvo,5+Z$10,0)) ->  | AA15: =IF(ISNA(VLOOKUP($B15,ClassEvo,5+AA$10,0)),"",VLOOKUP($B15,ClassEvo,5+AA$10,0)) ->  | AB15: =IF(ISNA(VLOOKUP($B15,ClassEvo,5+AB$10,0)),"",VLOOKUP($B15,ClassEvo,5+AB$10,0)) ->  | AC15: =IF(ISNA(VLOOKUP($B15,ClassEvo,5+AC$10,0)),"",VLOOKUP($B15,ClassEvo,5+AC$10,0)) ->  | AD15: =IF(ISNA(VLOOKUP($B15,ClassEvo,5+AD$10,0)),"",VLOOKUP($B15,ClassEvo,5+AD$10,0)) ->  | AE15: =IF(ISNA(VLOOKUP($B15,ClassEvo,5+AE$10,0)),"",VLOOKUP($B15,ClassEvo,5+AE$10,0)) ->  | AF15: =IF(ISNA(VLOOKUP($B15,ClassEvo,5+AF$10,0)),"",VLOOKUP($B15,ClassEvo,5+AF$10,0)) ->  | AG15: =IF(ISNA(VLOOKUP($B15,ClassEvo,5+AG$10,0)),"",VLOOKUP($B15,ClassEvo,5+AG$10,0)) ->  | AH15: =IF(ISNA(VLOOKUP($B15,ClassEvo,5+AH$10,0)),"",VLOOKUP($B15,ClassEvo,5+AH$10,0)) ->  | AI15: =IF(ISNA(VLOOKUP($B15,ClassEvo,5+AI$10,0)),"",VLOOKUP($B15,ClassEvo,5+AI$10,0)) ->  | AJ15: =IF(ISNA(VLOOKUP($B15,ClassEvo,5+AJ$10,0)),"",VLOOKUP($B15,ClassEvo,5+AJ$10,0)) ->  | AK15: =IF(ISNA(VLOOKUP($B15,ClassEvo,5+AK$10,0)),"",VLOOKUP($B15,ClassEvo,5+AK$10,0)) ->  | AL15: =IF(ISNA(VLOOKUP($B15,ClassEvo,5+AL$10,0)),"",VLOOKUP($B15,ClassEvo,5+AL$10,0)) ->  | AM15: =IF(ISNA(VLOOKUP($B15,ClassEvo,5+AM$10,0)),"",VLOOKUP($B15,ClassEvo,5+AM$10,0)) ->  | AN15: =IF(ISNA(VLOOKUP($B15,ClassEvo,5+AN$10,0)),"",VLOOKUP($B15,ClassEvo,5+AN$10,0)) ->  | AO15: =IF(ISNA(VLOOKUP($B15,ClassEvo,5+AO$10,0)),"",VLOOKUP($B15,ClassEvo,5+AO$10,0)) ->  | AP15: =IF(ISNA(VLOOKUP($B15,ClassEvo,5+AP$10,0)),"",VLOOKUP($B15,ClassEvo,5+AP$10,0)) ->  | AQ15: =IF(ISNA(VLOOKUP($B15,ClassEvo,5+AQ$10,0)),"",VLOOKUP($B15,ClassEvo,5+AQ$10,0)) ->  | AR15: =IF(ISNA(VLOOKUP($B15,ClassEvo,5+AR$10,0)),"",VLOOKUP($B15,ClassEvo,5+AR$10,0)) ->  | AS15: =IF(ISNA(VLOOKUP($B15,ClassEvo,5+AS$10,0)),"",VLOOKUP($B15,ClassEvo,5+AS$10,0)) ->  | AT15: =IF(ISNA(VLOOKUP($B15,ClassEvo,5+AT$10,0)),"",VLOOKUP($B15,ClassEvo,5+AT$10,0)) ->  | AV15: ='Calculs (M21..M40)'!A18 -> 20 | AW15: ='Calculs (M21..M40)'!G18 -> 4698.943146 | AX15: ='Calculs (M21..M40)'!H18 -> 849.2734427 | AY15: ='Calculs (M21..M40)'!I18 -> Pierre DIATTA | AZ15: ='Calculs (M21..M40)'!C18 -> 5 | BA15: ='Calculs (M1..M20)'!GM18 -> 11 | BB15: ='Calculs (M1..M20)'!GN18 -> 15 | BC15: ='Calculs (M1..M20)'!GO18 -> 21 | BD15: ='Calculs (M1..M20)'!GP18 -> 21 | BE15: ='Calculs (M1..M20)'!GQ18 -> 22 | BF15: ='Calculs (M1..M20)'!GR18 -> 20 | BG15: ='Calculs (M1..M20)'!GS18 -> 20 | BH15: ='Calculs (M1..M20)'!GT18 ->  | BI15: ='Calculs (M1..M20)'!GU18 ->  | BJ15: ='Calculs (M1..M20)'!GV18 ->  | BK15: ='Calculs (M1..M20)'!GW18 ->  | BL15: ='Calculs (M1..M20)'!GX18 ->  | BM15: ='Calculs (M1..M20)'!GY18 ->  | BN15: ='Calculs (M1..M20)'!GZ18 ->  | BO15: ='Calculs (M1..M20)'!HA18 ->  | BP15: ='Calculs (M1..M20)'!HB18 ->  | BQ15: ='Calculs (M1..M20)'!HC18 ->  | BR15: ='Calculs (M1..M20)'!HD18 ->  | BS15: ='Calculs (M1..M20)'!HE18 ->  | BT15: ='Calculs (M1..M20)'!HF18 ->  | BU15: ='Calculs (M21..M40)'!GM18 ->  | BV15: ='Calculs (M21..M40)'!GN18 ->  | BW15: ='Calculs (M21..M40)'!GO18 ->  | BX15: ='Calculs (M21..M40)'!GP18 ->  | BY15: ='Calculs (M21..M40)'!GQ18 ->  | BZ15: ='Calculs (M21..M40)'!GR18 ->  | CA15: ='Calculs (M21..M40)'!GS18 ->  | CB15: ='Calculs (M21..M40)'!GT18 ->  | CC15: ='Calculs (M21..M40)'!GU18 ->  | CD15: ='Calculs (M21..M40)'!GV18 ->  | CE15: ='Calculs (M21..M40)'!GW18 ->  | CF15: ='Calculs (M21..M40)'!GX18 ->  | CG15: ='Calculs (M21..M40)'!GY18 ->  | CH15: ='Calculs (M21..M40)'!GZ18 ->  | CI15: ='Calculs (M21..M40)'!HA18 ->  | CJ15: ='Calculs (M21..M40)'!HB18 ->  | CK15: ='Calculs (M21..M40)'!HC18 ->  | CL15: ='Calculs (M21..M40)'!HD18 ->  | CM15: ='Calculs (M21..M40)'!HE18 ->  | CN15: ='Calculs (M21..M40)'!HF18 -> 
B16: 6 | C16: =IF(ISNA(VLOOKUP(B16,ClassEvo,2,0)),"",VLOOKUP(B16,ClassEvo,2,0)) -> 5079.327419 | D16: =IF(ISNA(VLOOKUP($B16,ClassEvo,3,0)),"",VLOOKUP($B16,ClassEvo,3,0)) -> 918.023 | E16: =IF(ISNA(VLOOKUP($B16,ClassEvo,4,0)),"",VLOOKUP($B16,ClassEvo,4,0)) -> Olivier MONET | F16: =IF(ISNA(VLOOKUP($B16,ClassEvo,5,0)),"",VLOOKUP($B16,ClassEvo,5,0)) -> 6 | G16: =IF(ISNA(VLOOKUP($B16,ClassEvo,5+G$10,0)),"",VLOOKUP($B16,ClassEvo,5+G$10,0)) -> 14 | H16: =IF(ISNA(VLOOKUP($B16,ClassEvo,5+H$10,0)),"",VLOOKUP($B16,ClassEvo,5+H$10,0)) -> 8 | I16: =IF(ISNA(VLOOKUP($B16,ClassEvo,5+I$10,0)),"",VLOOKUP($B16,ClassEvo,5+I$10,0)) -> 9 | J16: =IF(ISNA(VLOOKUP($B16,ClassEvo,5+J$10,0)),"",VLOOKUP($B16,ClassEvo,5+J$10,0)) -> 11 | K16: =IF(ISNA(VLOOKUP($B16,ClassEvo,5+K$10,0)),"",VLOOKUP($B16,ClassEvo,5+K$10,0)) -> 11 | L16: =IF(ISNA(VLOOKUP($B16,ClassEvo,5+L$10,0)),"",VLOOKUP($B16,ClassEvo,5+L$10,0)) -> 5 | M16: =IF(ISNA(VLOOKUP($B16,ClassEvo,5+M$10,0)),"",VLOOKUP($B16,ClassEvo,5+M$10,0)) -> 6 | N16: =IF(ISNA(VLOOKUP($B16,ClassEvo,5+N$10,0)),"",VLOOKUP($B16,ClassEvo,5+N$10,0)) ->  | O16: =IF(ISNA(VLOOKUP($B16,ClassEvo,5+O$10,0)),"",VLOOKUP($B16,ClassEvo,5+O$10,0)) ->  | P16: =IF(ISNA(VLOOKUP($B16,ClassEvo,5+P$10,0)),"",VLOOKUP($B16,ClassEvo,5+P$10,0)) ->  | Q16: =IF(ISNA(VLOOKUP($B16,ClassEvo,5+Q$10,0)),"",VLOOKUP($B16,ClassEvo,5+Q$10,0)) ->  | R16: =IF(ISNA(VLOOKUP($B16,ClassEvo,5+R$10,0)),"",VLOOKUP($B16,ClassEvo,5+R$10,0)) ->  | S16: =IF(ISNA(VLOOKUP($B16,ClassEvo,5+S$10,0)),"",VLOOKUP($B16,ClassEvo,5+S$10,0)) ->  | T16: =IF(ISNA(VLOOKUP($B16,ClassEvo,5+T$10,0)),"",VLOOKUP($B16,ClassEvo,5+T$10,0)) ->  | U16: =IF(ISNA(VLOOKUP($B16,ClassEvo,5+U$10,0)),"",VLOOKUP($B16,ClassEvo,5+U$10,0)) ->  | V16: =IF(ISNA(VLOOKUP($B16,ClassEvo,5+V$10,0)),"",VLOOKUP($B16,ClassEvo,5+V$10,0)) ->  | W16: =IF(ISNA(VLOOKUP($B16,ClassEvo,5+W$10,0)),"",VLOOKUP($B16,ClassEvo,5+W$10,0)) ->  | X16: =IF(ISNA(VLOOKUP($B16,ClassEvo,5+X$10,0)),"",VLOOKUP($B16,ClassEvo,5+X$10,0)) ->  | Y16: =IF(ISNA(VLOOKUP($B16,ClassEvo,5+Y$10,0)),"",VLOOKUP($B16,ClassEvo,5+Y$10,0)) ->  | Z16: =IF(ISNA(VLOOKUP($B16,ClassEvo,5+Z$10,0)),"",VLOOKUP($B16,ClassEvo,5+Z$10,0)) ->  | AA16: =IF(ISNA(VLOOKUP($B16,ClassEvo,5+AA$10,0)),"",VLOOKUP($B16,ClassEvo,5+AA$10,0)) ->  | AB16: =IF(ISNA(VLOOKUP($B16,ClassEvo,5+AB$10,0)),"",VLOOKUP($B16,ClassEvo,5+AB$10,0)) ->  | AC16: =IF(ISNA(VLOOKUP($B16,ClassEvo,5+AC$10,0)),"",VLOOKUP($B16,ClassEvo,5+AC$10,0)) ->  | AD16: =IF(ISNA(VLOOKUP($B16,ClassEvo,5+AD$10,0)),"",VLOOKUP($B16,ClassEvo,5+AD$10,0)) ->  | AE16: =IF(ISNA(VLOOKUP($B16,ClassEvo,5+AE$10,0)),"",VLOOKUP($B16,ClassEvo,5+AE$10,0)) ->  | AF16: =IF(ISNA(VLOOKUP($B16,ClassEvo,5+AF$10,0)),"",VLOOKUP($B16,ClassEvo,5+AF$10,0)) ->  | AG16: =IF(ISNA(VLOOKUP($B16,ClassEvo,5+AG$10,0)),"",VLOOKUP($B16,ClassEvo,5+AG$10,0)) ->  | AH16: =IF(ISNA(VLOOKUP($B16,ClassEvo,5+AH$10,0)),"",VLOOKUP($B16,ClassEvo,5+AH$10,0)) ->  | AI16: =IF(ISNA(VLOOKUP($B16,ClassEvo,5+AI$10,0)),"",VLOOKUP($B16,ClassEvo,5+AI$10,0)) ->  | AJ16: =IF(ISNA(VLOOKUP($B16,ClassEvo,5+AJ$10,0)),"",VLOOKUP($B16,ClassEvo,5+AJ$10,0)) ->  | AK16: =IF(ISNA(VLOOKUP($B16,ClassEvo,5+AK$10,0)),"",VLOOKUP($B16,ClassEvo,5+AK$10,0)) ->  | AL16: =IF(ISNA(VLOOKUP($B16,ClassEvo,5+AL$10,0)),"",VLOOKUP($B16,ClassEvo,5+AL$10,0)) ->  | AM16: =IF(ISNA(VLOOKUP($B16,ClassEvo,5+AM$10,0)),"",VLOOKUP($B16,ClassEvo,5+AM$10,0)) ->  | AN16: =IF(ISNA(VLOOKUP($B16,ClassEvo,5+AN$10,0)),"",VLOOKUP($B16,ClassEvo,5+AN$10,0)) ->  | AO16: =IF(ISNA(VLOOKUP($B16,ClassEvo,5+AO$10,0)),"",VLOOKUP($B16,ClassEvo,5+AO$10,0)) ->  | AP16: =IF(ISNA(VLOOKUP($B16,ClassEvo,5+AP$10,0)),"",VLOOKUP($B16,ClassEvo,5+AP$10,0)) ->  | AQ16: =IF(ISNA(VLOOKUP($B16,ClassEvo,5+AQ$10,0)),"",VLOOKUP($B16,ClassEvo,5+AQ$10,0)) ->  | AR16: =IF(ISNA(VLOOKUP($B16,ClassEvo,5+AR$10,0)),"",VLOOKUP($B16,ClassEvo,5+AR$10,0)) ->  | AS16: =IF(ISNA(VLOOKUP($B16,ClassEvo,5+AS$10,0)),"",VLOOKUP($B16,ClassEvo,5+AS$10,0)) ->  | AT16: =IF(ISNA(VLOOKUP($B16,ClassEvo,5+AT$10,0)),"",VLOOKUP($B16,ClassEvo,5+AT$10,0)) ->  | AV16: ='Calculs (M21..M40)'!A19 -> 6 | AW16: ='Calculs (M21..M40)'!G19 -> 5079.327419 | AX16: ='Calculs (M21..M40)'!H19 -> 918.023 | AY16: ='Calculs (M21..M40)'!I19 -> Olivier MONET | AZ16: ='Calculs (M21..M40)'!C19 -> 6 | BA16: ='Calculs (M1..M20)'!GM19 -> 14 | BB16: ='Calculs (M1..M20)'!GN19 -> 8 | BC16: ='Calculs (M1..M20)'!GO19 -> 9 | BD16: ='Calculs (M1..M20)'!GP19 -> 11 | BE16: ='Calculs (M1..M20)'!GQ19 -> 11 | BF16: ='Calculs (M1..M20)'!GR19 -> 5 | BG16: ='Calculs (M1..M20)'!GS19 -> 6 | BH16: ='Calculs (M1..M20)'!GT19 ->  | BI16: ='Calculs (M1..M20)'!GU19 ->  | BJ16: ='Calculs (M1..M20)'!GV19 ->  | BK16: ='Calculs (M1..M20)'!GW19 ->  | BL16: ='Calculs (M1..M20)'!GX19 ->  | BM16: ='Calculs (M1..M20)'!GY19 ->  | BN16: ='Calculs (M1..M20)'!GZ19 ->  | BO16: ='Calculs (M1..M20)'!HA19 ->  | BP16: ='Calculs (M1..M20)'!HB19 ->  | BQ16: ='Calculs (M1..M20)'!HC19 ->  | BR16: ='Calculs (M1..M20)'!HD19 ->  | BS16: ='Calculs (M1..M20)'!HE19 ->  | BT16: ='Calculs (M1..M20)'!HF19 ->  | BU16: ='Calculs (M21..M40)'!GM19 ->  | BV16: ='Calculs (M21..M40)'!GN19 ->  | BW16: ='Calculs (M21..M40)'!GO19 ->  | BX16: ='Calculs (M21..M40)'!GP19 ->  | BY16: ='Calculs (M21..M40)'!GQ19 ->  | BZ16: ='Calculs (M21..M40)'!GR19 ->  | CA16: ='Calculs (M21..M40)'!GS19 ->  | CB16: ='Calculs (M21..M40)'!GT19 ->  | CC16: ='Calculs (M21..M40)'!GU19 ->  | CD16: ='Calculs (M21..M40)'!GV19 ->  | CE16: ='Calculs (M21..M40)'!GW19 ->  | CF16: ='Calculs (M21..M40)'!GX19 ->  | CG16: ='Calculs (M21..M40)'!GY19 ->  | CH16: ='Calculs (M21..M40)'!GZ19 ->  | CI16: ='Calculs (M21..M40)'!HA19 ->  | CJ16: ='Calculs (M21..M40)'!HB19 ->  | CK16: ='Calculs (M21..M40)'!HC19 ->  | CL16: ='Calculs (M21..M40)'!HD19 ->  | CM16: ='Calculs (M21..M40)'!HE19 ->  | CN16: ='Calculs (M21..M40)'!HF19 -> 
B17: 7 | C17: =IF(ISNA(VLOOKUP(B17,ClassEvo,2,0)),"",VLOOKUP(B17,ClassEvo,2,0)) -> 5072.240209 | D17: =IF(ISNA(VLOOKUP($B17,ClassEvo,3,0)),"",VLOOKUP($B17,ClassEvo,3,0)) -> 916.7420781 | E17: =IF(ISNA(VLOOKUP($B17,ClassEvo,4,0)),"",VLOOKUP($B17,ClassEvo,4,0)) -> Arnaud LEGER | F17: =IF(ISNA(VLOOKUP($B17,ClassEvo,5,0)),"",VLOOKUP($B17,ClassEvo,5,0)) -> 15 | G17: =IF(ISNA(VLOOKUP($B17,ClassEvo,5+G$10,0)),"",VLOOKUP($B17,ClassEvo,5+G$10,0)) -> 10 | H17: =IF(ISNA(VLOOKUP($B17,ClassEvo,5+H$10,0)),"",VLOOKUP($B17,ClassEvo,5+H$10,0)) -> 5 | I17: =IF(ISNA(VLOOKUP($B17,ClassEvo,5+I$10,0)),"",VLOOKUP($B17,ClassEvo,5+I$10,0)) -> 6 | J17: =IF(ISNA(VLOOKUP($B17,ClassEvo,5+J$10,0)),"",VLOOKUP($B17,ClassEvo,5+J$10,0)) -> 7 | K17: =IF(ISNA(VLOOKUP($B17,ClassEvo,5+K$10,0)),"",VLOOKUP($B17,ClassEvo,5+K$10,0)) -> 12 | L17: =IF(ISNA(VLOOKUP($B17,ClassEvo,5+L$10,0)),"",VLOOKUP($B17,ClassEvo,5+L$10,0)) -> 7 | M17: =IF(ISNA(VLOOKUP($B17,ClassEvo,5+M$10,0)),"",VLOOKUP($B17,ClassEvo,5+M$10,0)) -> 7 | N17: =IF(ISNA(VLOOKUP($B17,ClassEvo,5+N$10,0)),"",VLOOKUP($B17,ClassEvo,5+N$10,0)) ->  | O17: =IF(ISNA(VLOOKUP($B17,ClassEvo,5+O$10,0)),"",VLOOKUP($B17,ClassEvo,5+O$10,0)) ->  | P17: =IF(ISNA(VLOOKUP($B17,ClassEvo,5+P$10,0)),"",VLOOKUP($B17,ClassEvo,5+P$10,0)) ->  | Q17: =IF(ISNA(VLOOKUP($B17,ClassEvo,5+Q$10,0)),"",VLOOKUP($B17,ClassEvo,5+Q$10,0)) ->  | R17: =IF(ISNA(VLOOKUP($B17,ClassEvo,5+R$10,0)),"",VLOOKUP($B17,ClassEvo,5+R$10,0)) ->  | S17: =IF(ISNA(VLOOKUP($B17,ClassEvo,5+S$10,0)),"",VLOOKUP($B17,ClassEvo,5+S$10,0)) ->  | T17: =IF(ISNA(VLOOKUP($B17,ClassEvo,5+T$10,0)),"",VLOOKUP($B17,ClassEvo,5+T$10,0)) ->  | U17: =IF(ISNA(VLOOKUP($B17,ClassEvo,5+U$10,0)),"",VLOOKUP($B17,ClassEvo,5+U$10,0)) ->  | V17: =IF(ISNA(VLOOKUP($B17,ClassEvo,5+V$10,0)),"",VLOOKUP($B17,ClassEvo,5+V$10,0)) ->  | W17: =IF(ISNA(VLOOKUP($B17,ClassEvo,5+W$10,0)),"",VLOOKUP($B17,ClassEvo,5+W$10,0)) ->  | X17: =IF(ISNA(VLOOKUP($B17,ClassEvo,5+X$10,0)),"",VLOOKUP($B17,ClassEvo,5+X$10,0)) ->  | Y17: =IF(ISNA(VLOOKUP($B17,ClassEvo,5+Y$10,0)),"",VLOOKUP($B17,ClassEvo,5+Y$10,0)) ->  | Z17: =IF(ISNA(VLOOKUP($B17,ClassEvo,5+Z$10,0)),"",VLOOKUP($B17,ClassEvo,5+Z$10,0)) ->  | AA17: =IF(ISNA(VLOOKUP($B17,ClassEvo,5+AA$10,0)),"",VLOOKUP($B17,ClassEvo,5+AA$10,0)) ->  | AB17: =IF(ISNA(VLOOKUP($B17,ClassEvo,5+AB$10,0)),"",VLOOKUP($B17,ClassEvo,5+AB$10,0)) ->  | AC17: =IF(ISNA(VLOOKUP($B17,ClassEvo,5+AC$10,0)),"",VLOOKUP($B17,ClassEvo,5+AC$10,0)) ->  | AD17: =IF(ISNA(VLOOKUP($B17,ClassEvo,5+AD$10,0)),"",VLOOKUP($B17,ClassEvo,5+AD$10,0)) ->  | AE17: =IF(ISNA(VLOOKUP($B17,ClassEvo,5+AE$10,0)),"",VLOOKUP($B17,ClassEvo,5+AE$10,0)) ->  | AF17: =IF(ISNA(VLOOKUP($B17,ClassEvo,5+AF$10,0)),"",VLOOKUP($B17,ClassEvo,5+AF$10,0)) ->  | AG17: =IF(ISNA(VLOOKUP($B17,ClassEvo,5+AG$10,0)),"",VLOOKUP($B17,ClassEvo,5+AG$10,0)) ->  | AH17: =IF(ISNA(VLOOKUP($B17,ClassEvo,5+AH$10,0)),"",VLOOKUP($B17,ClassEvo,5+AH$10,0)) ->  | AI17: =IF(ISNA(VLOOKUP($B17,ClassEvo,5+AI$10,0)),"",VLOOKUP($B17,ClassEvo,5+AI$10,0)) ->  | AJ17: =IF(ISNA(VLOOKUP($B17,ClassEvo,5+AJ$10,0)),"",VLOOKUP($B17,ClassEvo,5+AJ$10,0)) ->  | AK17: =IF(ISNA(VLOOKUP($B17,ClassEvo,5+AK$10,0)),"",VLOOKUP($B17,ClassEvo,5+AK$10,0)) ->  | AL17: =IF(ISNA(VLOOKUP($B17,ClassEvo,5+AL$10,0)),"",VLOOKUP($B17,ClassEvo,5+AL$10,0)) ->  | AM17: =IF(ISNA(VLOOKUP($B17,ClassEvo,5+AM$10,0)),"",VLOOKUP($B17,ClassEvo,5+AM$10,0)) ->  | AN17: =IF(ISNA(VLOOKUP($B17,ClassEvo,5+AN$10,0)),"",VLOOKUP($B17,ClassEvo,5+AN$10,0)) ->  | AO17: =IF(ISNA(VLOOKUP($B17,ClassEvo,5+AO$10,0)),"",VLOOKUP($B17,ClassEvo,5+AO$10,0)) ->  | AP17: =IF(ISNA(VLOOKUP($B17,ClassEvo,5+AP$10,0)),"",VLOOKUP($B17,ClassEvo,5+AP$10,0)) ->  | AQ17: =IF(ISNA(VLOOKUP($B17,ClassEvo,5+AQ$10,0)),"",VLOOKUP($B17,ClassEvo,5+AQ$10,0)) ->  | AR17: =IF(ISNA(VLOOKUP($B17,ClassEvo,5+AR$10,0)),"",VLOOKUP($B17,ClassEvo,5+AR$10,0)) ->  | AS17: =IF(ISNA(VLOOKUP($B17,ClassEvo,5+AS$10,0)),"",VLOOKUP($B17,ClassEvo,5+AS$10,0)) ->  | AT17: =IF(ISNA(VLOOKUP($B17,ClassEvo,5+AT$10,0)),"",VLOOKUP($B17,ClassEvo,5+AT$10,0)) ->  | AV17: ='Calculs (M21..M40)'!A20 -> 1 | AW17: ='Calculs (M21..M40)'!G20 -> 5532.897781 | AX17: ='Calculs (M21..M40)'!H20 -> 1000 | AY17: ='Calculs (M21..M40)'!I20 -> Pierre RONDEL | AZ17: ='Calculs (M21..M40)'!C20 -> 7 | BA17: ='Calculs (M1..M20)'!GM20 -> 3 | BB17: ='Calculs (M1..M20)'!GN20 -> 3 | BC17: ='Calculs (M1..M20)'!GO20 -> 1 | BD17: ='Calculs (M1..M20)'!GP20 -> 2 | BE17: ='Calculs (M1..M20)'!GQ20 -> 2 | BF17: ='Calculs (M1..M20)'!GR20 -> 2 | BG17: ='Calculs (M1..M20)'!GS20 -> 1 | BH17: ='Calculs (M1..M20)'!GT20 ->  | BI17: ='Calculs (M1..M20)'!GU20 ->  | BJ17: ='Calculs (M1..M20)'!GV20 ->  | BK17: ='Calculs (M1..M20)'!GW20 ->  | BL17: ='Calculs (M1..M20)'!GX20 ->  | BM17: ='Calculs (M1..M20)'!GY20 ->  | BN17: ='Calculs (M1..M20)'!GZ20 ->  | BO17: ='Calculs (M1..M20)'!HA20 ->  | BP17: ='Calculs (M1..M20)'!HB20 ->  | BQ17: ='Calculs (M1..M20)'!HC20 ->  | BR17: ='Calculs (M1..M20)'!HD20 ->  | BS17: ='Calculs (M1..M20)'!HE20 ->  | BT17: ='Calculs (M1..M20)'!HF20 ->  | BU17: ='Calculs (M21..M40)'!GM20 ->  | BV17: ='Calculs (M21..M40)'!GN20 ->  | BW17: ='Calculs (M21..M40)'!GO20 ->  | BX17: ='Calculs (M21..M40)'!GP20 ->  | BY17: ='Calculs (M21..M40)'!GQ20 ->  | BZ17: ='Calculs (M21..M40)'!GR20 ->  | CA17: ='Calculs (M21..M40)'!GS20 ->  | CB17: ='Calculs (M21..M40)'!GT20 ->  | CC17: ='Calculs (M21..M40)'!GU20 ->  | CD17: ='Calculs (M21..M40)'!GV20 ->  | CE17: ='Calculs (M21..M40)'!GW20 ->  | CF17: ='Calculs (M21..M40)'!GX20 ->  | CG17: ='Calculs (M21..M40)'!GY20 ->  | CH17: ='Calculs (M21..M40)'!GZ20 ->  | CI17: ='Calculs (M21..M40)'!HA20 ->  | CJ17: ='Calculs (M21..M40)'!HB20 ->  | CK17: ='Calculs (M21..M40)'!HC20 ->  | CL17: ='Calculs (M21..M40)'!HD20 ->  | CM17: ='Calculs (M21..M40)'!HE20 ->  | CN17: ='Calculs (M21..M40)'!HF20 -> 
B18: 8 | C18: =IF(ISNA(VLOOKUP(B18,ClassEvo,2,0)),"",VLOOKUP(B18,ClassEvo,2,0)) -> 5050.480798 | D18: =IF(ISNA(VLOOKUP($B18,ClassEvo,3,0)),"",VLOOKUP($B18,ClassEvo,3,0)) -> 912.8093449 | E18: =IF(ISNA(VLOOKUP($B18,ClassEvo,4,0)),"",VLOOKUP($B18,ClassEvo,4,0)) -> Herve DALL AVA | F18: =IF(ISNA(VLOOKUP($B18,ClassEvo,5,0)),"",VLOOKUP($B18,ClassEvo,5,0)) -> 2 | G18: =IF(ISNA(VLOOKUP($B18,ClassEvo,5+G$10,0)),"",VLOOKUP($B18,ClassEvo,5+G$10,0)) -> 9 | H18: =IF(ISNA(VLOOKUP($B18,ClassEvo,5+H$10,0)),"",VLOOKUP($B18,ClassEvo,5+H$10,0)) -> 7 | I18: =IF(ISNA(VLOOKUP($B18,ClassEvo,5+I$10,0)),"",VLOOKUP($B18,ClassEvo,5+I$10,0)) -> 12 | J18: =IF(ISNA(VLOOKUP($B18,ClassEvo,5+J$10,0)),"",VLOOKUP($B18,ClassEvo,5+J$10,0)) -> 13 | K18: =IF(ISNA(VLOOKUP($B18,ClassEvo,5+K$10,0)),"",VLOOKUP($B18,ClassEvo,5+K$10,0)) -> 3 | L18: =IF(ISNA(VLOOKUP($B18,ClassEvo,5+L$10,0)),"",VLOOKUP($B18,ClassEvo,5+L$10,0)) -> 10 | M18: =IF(ISNA(VLOOKUP($B18,ClassEvo,5+M$10,0)),"",VLOOKUP($B18,ClassEvo,5+M$10,0)) -> 8 | N18: =IF(ISNA(VLOOKUP($B18,ClassEvo,5+N$10,0)),"",VLOOKUP($B18,ClassEvo,5+N$10,0)) ->  | O18: =IF(ISNA(VLOOKUP($B18,ClassEvo,5+O$10,0)),"",VLOOKUP($B18,ClassEvo,5+O$10,0)) ->  | P18: =IF(ISNA(VLOOKUP($B18,ClassEvo,5+P$10,0)),"",VLOOKUP($B18,ClassEvo,5+P$10,0)) ->  | Q18: =IF(ISNA(VLOOKUP($B18,ClassEvo,5+Q$10,0)),"",VLOOKUP($B18,ClassEvo,5+Q$10,0)) ->  | R18: =IF(ISNA(VLOOKUP($B18,ClassEvo,5+R$10,0)),"",VLOOKUP($B18,ClassEvo,5+R$10,0)) ->  | S18: =IF(ISNA(VLOOKUP($B18,ClassEvo,5+S$10,0)),"",VLOOKUP($B18,ClassEvo,5+S$10,0)) ->  | T18: =IF(ISNA(VLOOKUP($B18,ClassEvo,5+T$10,0)),"",VLOOKUP($B18,ClassEvo,5+T$10,0)) ->  | U18: =IF(ISNA(VLOOKUP($B18,ClassEvo,5+U$10,0)),"",VLOOKUP($B18,ClassEvo,5+U$10,0)) ->  | V18: =IF(ISNA(VLOOKUP($B18,ClassEvo,5+V$10,0)),"",VLOOKUP($B18,ClassEvo,5+V$10,0)) ->  | W18: =IF(ISNA(VLOOKUP($B18,ClassEvo,5+W$10,0)),"",VLOOKUP($B18,ClassEvo,5+W$10,0)) ->  | X18: =IF(ISNA(VLOOKUP($B18,ClassEvo,5+X$10,0)),"",VLOOKUP($B18,ClassEvo,5+X$10,0)) ->  | Y18: =IF(ISNA(VLOOKUP($B18,ClassEvo,5+Y$10,0)),"",VLOOKUP($B18,ClassEvo,5+Y$10,0)) ->  | Z18: =IF(ISNA(VLOOKUP($B18,ClassEvo,5+Z$10,0)),"",VLOOKUP($B18,ClassEvo,5+Z$10,0)) ->  | AA18: =IF(ISNA(VLOOKUP($B18,ClassEvo,5+AA$10,0)),"",VLOOKUP($B18,ClassEvo,5+AA$10,0)) ->  | AB18: =IF(ISNA(VLOOKUP($B18,ClassEvo,5+AB$10,0)),"",VLOOKUP($B18,ClassEvo,5+AB$10,0)) ->  | AC18: =IF(ISNA(VLOOKUP($B18,ClassEvo,5+AC$10,0)),"",VLOOKUP($B18,ClassEvo,5+AC$10,0)) ->  | AD18: =IF(ISNA(VLOOKUP($B18,ClassEvo,5+AD$10,0)),"",VLOOKUP($B18,ClassEvo,5+AD$10,0)) ->  | AE18: =IF(ISNA(VLOOKUP($B18,ClassEvo,5+AE$10,0)),"",VLOOKUP($B18,ClassEvo,5+AE$10,0)) ->  | AF18: =IF(ISNA(VLOOKUP($B18,ClassEvo,5+AF$10,0)),"",VLOOKUP($B18,ClassEvo,5+AF$10,0)) ->  | AG18: =IF(ISNA(VLOOKUP($B18,ClassEvo,5+AG$10,0)),"",VLOOKUP($B18,ClassEvo,5+AG$10,0)) ->  | AH18: =IF(ISNA(VLOOKUP($B18,ClassEvo,5+AH$10,0)),"",VLOOKUP($B18,ClassEvo,5+AH$10,0)) ->  | AI18: =IF(ISNA(VLOOKUP($B18,ClassEvo,5+AI$10,0)),"",VLOOKUP($B18,ClassEvo,5+AI$10,0)) ->  | AJ18: =IF(ISNA(VLOOKUP($B18,ClassEvo,5+AJ$10,0)),"",VLOOKUP($B18,ClassEvo,5+AJ$10,0)) ->  | AK18: =IF(ISNA(VLOOKUP($B18,ClassEvo,5+AK$10,0)),"",VLOOKUP($B18,ClassEvo,5+AK$10,0)) ->  | AL18: =IF(ISNA(VLOOKUP($B18,ClassEvo,5+AL$10,0)),"",VLOOKUP($B18,ClassEvo,5+AL$10,0)) ->  | AM18: =IF(ISNA(VLOOKUP($B18,ClassEvo,5+AM$10,0)),"",VLOOKUP($B18,ClassEvo,5+AM$10,0)) ->  | AN18: =IF(ISNA(VLOOKUP($B18,ClassEvo,5+AN$10,0)),"",VLOOKUP($B18,ClassEvo,5+AN$10,0)) ->  | AO18: =IF(ISNA(VLOOKUP($B18,ClassEvo,5+AO$10,0)),"",VLOOKUP($B18,ClassEvo,5+AO$10,0)) ->  | AP18: =IF(ISNA(VLOOKUP($B18,ClassEvo,5+AP$10,0)),"",VLOOKUP($B18,ClassEvo,5+AP$10,0)) ->  | AQ18: =IF(ISNA(VLOOKUP($B18,ClassEvo,5+AQ$10,0)),"",VLOOKUP($B18,ClassEvo,5+AQ$10,0)) ->  | AR18: =IF(ISNA(VLOOKUP($B18,ClassEvo,5+AR$10,0)),"",VLOOKUP($B18,ClassEvo,5+AR$10,0)) ->  | AS18: =IF(ISNA(VLOOKUP($B18,ClassEvo,5+AS$10,0)),"",VLOOKUP($B18,ClassEvo,5+AS$10,0)) ->  | AT18: =IF(ISNA(VLOOKUP($B18,ClassEvo,5+AT$10,0)),"",VLOOKUP($B18,ClassEvo,5+AT$10,0)) ->  | AV18: ='Calculs (M21..M40)'!A21 -> 18 | AW18: ='Calculs (M21..M40)'!G21 -> 4788.649409 | AX18: ='Calculs (M21..M40)'!H21 -> 865.4866941 | AY18: ='Calculs (M21..M40)'!I21 -> Andreas FRICKE | AZ18: ='Calculs (M21..M40)'!C21 -> 8 | BA18: ='Calculs (M1..M20)'!GM21 -> 4 | BB18: ='Calculs (M1..M20)'!GN21 -> 17 | BC18: ='Calculs (M1..M20)'!GO21 -> 14 | BD18: ='Calculs (M1..M20)'!GP21 -> 16 | BE18: ='Calculs (M1..M20)'!GQ21 -> 18 | BF18: ='Calculs (M1..M20)'!GR21 -> 18 | BG18: ='Calculs (M1..M20)'!GS21 -> 18 | BH18: ='Calculs (M1..M20)'!GT21 ->  | BI18: ='Calculs (M1..M20)'!GU21 ->  | BJ18: ='Calculs (M1..M20)'!GV21 ->  | BK18: ='Calculs (M1..M20)'!GW21 ->  | BL18: ='Calculs (M1..M20)'!GX21 ->  | BM18: ='Calculs (M1..M20)'!GY21 ->  | BN18: ='Calculs (M1..M20)'!GZ21 ->  | BO18: ='Calculs (M1..M20)'!HA21 ->  | BP18: ='Calculs (M1..M20)'!HB21 ->  | BQ18: ='Calculs (M1..M20)'!HC21 ->  | BR18: ='Calculs (M1..M20)'!HD21 ->  | BS18: ='Calculs (M1..M20)'!HE21 ->  | BT18: ='Calculs (M1..M20)'!HF21 ->  | BU18: ='Calculs (M21..M40)'!GM21 ->  | BV18: ='Calculs (M21..M40)'!GN21 ->  | BW18: ='Calculs (M21..M40)'!GO21 ->  | BX18: ='Calculs (M21..M40)'!GP21 ->  | BY18: ='Calculs (M21..M40)'!GQ21 ->  | BZ18: ='Calculs (M21..M40)'!GR21 ->  | CA18: ='Calculs (M21..M40)'!GS21 ->  | CB18: ='Calculs (M21..M40)'!GT21 ->  | CC18: ='Calculs (M21..M40)'!GU21 ->  | CD18: ='Calculs (M21..M40)'!GV21 ->  | CE18: ='Calculs (M21..M40)'!GW21 ->  | CF18: ='Calculs (M21..M40)'!GX21 ->  | CG18: ='Calculs (M21..M40)'!GY21 ->  | CH18: ='Calculs (M21..M40)'!GZ21 ->  | CI18: ='Calculs (M21..M40)'!HA21 ->  | CJ18: ='Calculs (M21..M40)'!HB21 ->  | CK18: ='Calculs (M21..M40)'!HC21 ->  | CL18: ='Calculs (M21..M40)'!HD21 ->  | CM18: ='Calculs (M21..M40)'!HE21 ->  | CN18: ='Calculs (M21..M40)'!HF21 -> 
